Workbook

Sheet Cover

Sheet Model Index
B9: A. | E9: B. | H9: C. | K9: D.
B11: A. | E11: B. | H11: C. | K11: D.
B13: A. | E13: B. | H13: C.
B15: A. | E15: B. | H15: C. | K15: E.
H17: C.
B20: Version | D20: Date | F20: Description | L20: Approved By:
B21: 1 | D21: 2019-01-02 | F21: Final | L21: Ausgrid

Sheet A. Summary
A1: Asset Summary Information
A3: Data Inputs
B5: Data Inputs
B6: Population | C6: ='A. Age Profile'!L5 -> 7732
B7: Object Types | C7: SW_HV_ABS - Air Break Switch
B8: Conditional & Function Failures (count) | C8: 1167
B9: Analysis Period (Years) | C9: 6
B10: Asset RAB Life (Years) | C10: ='D. Risk Index Parameters'!E23 -> 46.84
B11: Planned Replacement Cost | C11: ='D. Risk Index Parameters'!E22 -> 14355.03123
B12: WACC | C12: ='D. Risk Index Parameters'!E21 -> 0.039
B15: Loss of Supply Consequence Information
B16: ='C. PoC Summary Stats & Para'!C16 -> Proportion Failures Resulting in Unserved Energy | C16: ='C. PoC Summary Stats & Para'!E16 -> 0.05
B17: Value of Customer Reliability (VCR) per kWh | C17: ='C. PoC Summary Stats & Para'!F14 -> 40.729
B18: Outage Type (HV / LV / CBD) | C18: ='C. PoC Summary Stats & Para'!G18 -> HV
B19: Automatic Protection Time (minutes) | C19: ='C. PoC Summary Stats & Para'!G19 -> 0
B20: Switching Time (hours) | C20: ='C. PoC Summary Stats & Para'!G20 -> 1
B21: Restoration/Repair Time (hours) | C21: ='C. PoC Summary Stats & Para'!G21 -> 2
B22: Automatic Protection % Lost Prior to | C22: ='C. PoC Summary Stats & Para'!G22 -> 0
B23: Switching Load % Lost Prior to | C23: ='C. PoC Summary Stats & Para'!G23 -> 0.95
B24: Restoration/Repair Load % Lost Prior to | C24: ='C. PoC Summary Stats & Para'!G24 -> 0.05
B25: Time without Supply (hours) | C25: ='C. PoC Summary Stats & Para'!G25 -> 0.0525
B26: Avg. Value of Energy Unserved (per asset per event) | C26: =AVERAGE('C. Reliability Consequence'!H6:$H$1048576) -> 2463.304281
B29: Finance Consequence Information
B30: Reactive Replacement Cost | C30: ='C. PoC Summary Stats & Para'!E31 -> 17226.03748
B31: Repair Cost | C31: ='C. PoC Summary Stats & Para'!E33 -> 3244
B32: Proportion Replacement | C32: ='C. PoC Summary Stats & Para'!E32 -> 0.2815
B33: ='C. PoC Summary Stats & Para'!C35 -> Weighted Replacement / Repair Cost | C33: ='C. PoC Summary Stats & Para'!E35 -> 2512.831375
B34: Maintenance original asset per annum | C34: ='C. PoC Summary Stats & Para'!E38 -> 0
B35: Maintenance replacement asset per annum | C35: ='C. PoC Summary Stats & Para'!E39 -> 0
B36: Maintenance benefit per asset per annum | C36: ='C. PoC Summary Stats & Para'!E40 -> 0
A39: Failure Model Parameters
B41: Weibull Parameters | E41: Crow-AMSAA Parameters
B42: βgood | C42: =IF('B. PoF Summary Stats & Params'!$C$12="C", "Not Applicable", 'B. PoF Summary Stats & Params'!M12) -> 1.711344404 | E42: βgood | F42: =IF('B. PoF Summary Stats & Params'!$C$12="W", "Not Applicable", 'B. PoF Summary Stats & Params'!I12) -> Not Applicable
B43: ηgood | C43: =IF('B. PoF Summary Stats & Params'!$C$12="C", "Not Applicable", 'B. PoF Summary Stats & Params'!O12) -> 34.38896457 | E43: βaverage | F43: =IF('B. PoF Summary Stats & Params'!$C$12="W", "Not Applicable", 'B. PoF Summary Stats & Params'!I6) -> Not Applicable
B44: βaverage | C44: =IF('B. PoF Summary Stats & Params'!$C$12="C", "Not Applicable", 'B. PoF Summary Stats & Params'!M6) -> 1.753131606 | E44: βpoor | F44: =IF('B. PoF Summary Stats & Params'!$C$12="W", "Not Applicable", 'B. PoF Summary Stats & Params'!I10) -> Not Applicable
B45: ηaverage | C45: =IF('B. PoF Summary Stats & Params'!$C$12="C", "Not Applicable", 'B. PoF Summary Stats & Params'!M8) -> 31.60802803 | E45: λaverage | F45: =IF('B. PoF Summary Stats & Params'!$C$12="W", "Not Applicable", 'B. PoF Summary Stats & Params'!I8) -> Not Applicable
B46: βpoor | C46: =IF('B. PoF Summary Stats & Params'!$C$12="C", "Not Applicable", 'B. PoF Summary Stats & Params'!M14) -> 1.794918809
B47: ηpoor | C47: =IF('B. PoF Summary Stats & Params'!$C$12="C", "Not Applicable", 'B. PoF Summary Stats & Params'!O14) -> 29.1662686
B48: b (intercept) | C48: =IF('B. PoF Summary Stats & Params'!$C$12="C", "Not Applicable", 'B. PoF Summary Stats & Params'!M10) -> -6.054284218
A51: Adjustments to Probability of Failure (PoF)
B53: PoF Adjustment Fators
B54: =IF(ISBLANK('A. Population Info'!G5), "", 'A. Population Info'!G5) -> 
B55: =IF(ISBLANK('A. Population Info'!H5), "", 'A. Population Info'!H5) -> Construction type
B56: =IF(ISBLANK('A. Population Info'!I5), "", 'A. Population Info'!I5) -> Distance to coast
B57: =IF(ISBLANK('A. Population Info'!J5), "", 'A. Population Info'!J5) -> 
B58: =IF(ISBLANK('A. Population Info'!K5), "", 'A. Population Info'!K5) -> 
A61: Adjustments to Probability of Consequence (PoC)
B63: PoC Adjustment Factors
B64: =IF(ISBLANK('A. Population Info'!L5), "", 'A. Population Info'!L5) -> BF Category
B65: =IF(ISBLANK('A. Population Info'!M5), "", 'A. Population Info'!M5) -> Traffic exposure
B66: =IF(ISBLANK('A. Population Info'!N5), "", 'A. Population Info'!N5) -> People exposure
B67: =IF(ISBLANK('A. Population Info'!O5), "", 'A. Population Info'!O5) -> Construction type
B68: =IF(ISBLANK('A. Population Info'!P5), "", 'A. Population Info'!P5) -> School
A71: Model Calculated Failures
E73: Financial Year | F73: FY19 | G73: FY20 | H73: FY21 | I73: FY22 | J73: FY23 | K73: FY24
E74: Model Calculated Failures | F74: ='B. Asset PoF & Health Index'!J4 -> 194.5 | G74: ='B. Asset PoF & Health Index'!K4 -> 208.5851097 | H74: ='B. Asset PoF & Health Index'!L4 -> 222.1706903 | I74: ='B. Asset PoF & Health Index'!M4 -> 235.3654717 | J74: ='B. Asset PoF & Health Index'!N4 -> 248.2346627 | K74: ='B. Asset PoF & Health Index'!O4 -> 260.8233706
A78: Asset Health Index
A117: Asset Risk Index

Sheet A. Population Info
C1: Asset Population Information
A4: Asset Identifier | B4: Asset Age | C4: Asset Length or Number within Asset ID | D4: Reliability Asset ID | E4: Average Energy Usage (kW) | F4: Reliability Asset Voltage | G4: PoF Factor 1 | H4: PoF Factor 2 | I4: PoF Factor 3 | J4: PoF Factor 4 | K4: PoF Factor 5 | L4: Consequence Factor 1 | M4: Consequence Factor 2 | N4: Consequence Factor 3 | O4: Consequence Factor 4 | P4: Consequence Factor 5
H5: Construction type | I5: Distance to coast | L5: BF Category | M5: Traffic exposure | N5: People exposure | O5: Construction type | P5: School
A6: 1000000209 | B6: 14 | C6: 1 | D6: D.F.ZN00221/011897 | E6: 1357.594515 | F6: HV | H6: Other | I6: 3.343640374 | L6: Not in Bushfire Area | M6: local | N6: 3 | O6: Other | P6: Yes
A7: 1000000268 | B7: 14 | C7: 1 | D7: D.F.ZN00807/074179 | E7: 224.6014549 | F7: HV | H7: Other | I7: 116.7681583 | L7: Not in Bushfire Area | M7: Residential | N7: 2 | O7: Other | P7: No
A8: 1000000326 | B8: 13 | C8: 1 | D8: D.F.ZN00522/083132 | E8: 596.0361527 | F8: HV | H8: Other | I8: 20 | L8: Not in Bushfire Area | M8: Residential | N8: 1 | O8: Other | P8: No
A9: 1000000340 | B9: 14 | C9: 1 | D9: T.F.089047/00 | F9: HV | H9: Other | I9: 20 | L9: Not in Bushfire Area | M9: Residential | N9: 1 | O9: Other | P9: No
A10: 1000000691 | B10: 13 | C10: 1 | D10: D.F.ZN00801/074121 | E10: 735.7980972 | F10: HV | H10: Other | I10: 110.7907232 | L10: Not in Bushfire Area | M10: classified | N10: 2 | O10: Other | P10: No
A11: 1000000751 | B11: 14 | C11: 1 | D11: D.F.ZN00520/048172 | E11: 395.1149987 | F11: HV | H11: Other | I11: 64.15273413 | L11: Not in Bushfire Area | M11: local | N11: 4 | O11: Other | P11: No
A12: 1000000971 | B12: 14 | C12: 1 | D12: D.F.ZN00801/074123 | E12: 315.8056822 | F12: HV | H12: Other | I12: 101.833974 | L12: Cat 1 | M12: Residential | N12: 2 | O12: Other | P12: No
A13: 1000000983 | B13: 14 | C13: 1 | D13: D.F.ZN00222/033596 | E13: 1582.084774 | F13: HV | H13: Other | I13: 20 | L13: Not in Bushfire Area | M13: Residential | N13: 1 | O13: Other | P13: No
A14: 1000000993 | B14: 13 | C14: 1 | D14: D.F.ZN12650/000001 | E14: 1536.19749 | F14: HV | H14: Other | I14: 20 | L14: Not in Bushfire Area | M14: Residential | N14: 1 | O14: Other | P14: No
A15: 1000001837 | B15: 15 | C15: 1 | D15: D.F.ZN00813/089055 | E15: 2222.939809 | F15: HV | H15: Other | I15: 132.3644833 | L15: Cat 3 | M15: local | N15: 3 | O15: Other | P15: No
A16: 1000002195 | B16: 37 | C16: 1 | D16: D.F.ZN00243/80080L | E16: 1015.157513 | F16: HV | H16: Other | I16: 20 | L16: Not in Bushfire Area | M16: Residential | N16: 1 | O16: Other | P16: No
A17: 1000002217 | B17: 40 | C17: 1 | D17: D.F.ZN00243/80084L | E17: 702.4464855 | F17: HV | H17: Other | I17: 20 | L17: Not in Bushfire Area | M17: Residential | N17: 1 | O17: Other | P17: No
A18: 1000002238 | B18: 36 | C18: 1 | D18: D.F.ZN00227/013015 | E18: 1227.17967 | F18: HV | H18: Other | I18: 20 | L18: Not in Bushfire Area | M18: Residential | N18: 1 | O18: Other | P18: No
A19: 1000002414 | B19: 40 | C19: 1 | D19: T.F.003377/00 | F19: HV | H19: Other | I19: 23.44547824 | L19: Not in Bushfire Area | M19: local | N19: 1 | O19: Other | P19: No
A20: 1000007091 | B20: 30 | C20: 1 | D20: D.F.ZN15002/000006 | E20: 2196.743197 | F20: HV | H20: Other | I20: 0.9381640817 | L20: Not in Bushfire Area | M20: local | N20: 3 | O20: Other | P20: Yes
A21: 1000007214 | B21: 28 | C21: 1 | D21: D.F.ZN15006/00012L | E21: 1709.442306 | F21: HV | H21: Taplin D571 | I21: 20 | L21: Not in Bushfire Area | M21: Residential | N21: 1 | O21: Taplin D571 | P21: No
A22: 1000008531 | B22: 11 | C22: 1 | D22: D.F.ZN00807/074184 | E22: 655.9732102 | F22: HV | H22: Other | I22: 20 | L22: Not in Bushfire Area | M22: Residential | N22: 1 | O22: Other | P22: No
A23: 1000008676 | B23: 35 | C23: 1 | D23: D.F.ZN12690/00024L | E23: 493.8748833 | F23: HV | H23: Other | I23: 5.543722166 | L23: Buffer | M23: local | N23: 1 | O23: Other | P23: Yes
A24: 1000011104 | B24: 10 | C24: 1 | D24: D.F.ZN09534/000017 | E24: 870.3225649 | F24: HV | H24: Other | I24: 1.919963182 | L24: Not in Bushfire Area | M24: local | N24: 4 | O24: Other | P24: Yes
A25: 1000011938 | B25: 29 | C25: 1 | D25: D.F.ZN09245/00001L | E25: 1158.362329 | F25: HV | H25: Other | I25: 13.16849926 | L25: Not in Bushfire Area | M25: local | N25: 4 | O25: Other | P25: Yes
A26: 1000014012 | B26: 12 | C26: 1 | D26: D.F.ZN00217/33610L | E26: 1307.085765 | F26: HV | H26: Other | I26: 6.195802233 | L26: Buffer | M26: classified | N26: 4 | O26: Other | P26: No
A27: 1000014046 | B27: 10 | C27: 1 | D27: D.F.ZN00238/034136 | E27: 917.2711733 | F27: HV | H27: Other | I27: 18.67950656 | L27: Not in Bushfire Area | M27: local | N27: 4 | O27: Other | P27: Yes
A28: 1000014057 | B28: 10 | C28: 1 | D28: D.F.ZN03154/000017 | E28: 1062.013489 | F28: HV | H28: Other | I28: 11.26750007 | L28: Buffer | M28: local | N28: 3 | O28: Other | P28: Yes
A29: 1000014107 | B29: 12 | C29: 1 | D29: D.F.ZN00227/013014 | E29: 65.80718354 | F29: HV | H29: Other | I29: 16.21989659 | L29: Buffer | M29: local | N29: 3 | O29: Other | P29: No
A30: 1000014162 | B30: 12 | C30: 1 | D30: D.F.ZN10991/000005 | E30: 799.2277016 | F30: HV | H30: Haycolec (pin insulators) | I30: 8.537268882 | L30: Not in Bushfire Area | M30: Residential | N30: 3 | O30: Haycolec (pin insulators) | P30: Yes
A31: 1000014183 | B31: 12 | C31: 1 | D31: D.F.ZN09534/000018 | E31: 330.1512819 | F31: HV | H31: Other | I31: 1.097012316 | L31: Buffer | M31: Residential | N31: 1 | O31: Other | P31: No
A32: 1000014193 | B32: 10 | C32: 1 | D32: D.F.ZN09700/000020 | E32: 2184.626596 | F32: HV | H32: Other | I32: 20 | L32: Not in Bushfire Area | M32: Residential | N32: 1 | O32: Other | P32: No
A33: 1000014632 | B33: 10 | C33: 1 | D33: D.F.ZN00224/080329 | E33: 697.7446588 | F33: HV | H33: Other | I33: 10.73320921 | L33: Buffer | M33: local | N33: 1 | O33: Other | P33: Yes
A34: 1000014846 | B34: 12 | C34: 1 | D34: D.F.ZN00265/81651L | E34: 965.9975607 | F34: HV | H34: Other | I34: 8.948627064 | L34: Buffer | M34: local | N34: 2 | O34: Other | P34: No
A35: 1000014857 | B35: 12 | C35: 1 | D35: D.F.ZN00204/082701 | E35: 72.26495809 | F35: HV | H35: Other | I35: 2.030183604 | L35: Not in Bushfire Area | M35: Residential | N35: 1 | O35: Other | P35: Yes
A36: 1000015785 | B36: 11 | C36: 1 | D36: D.F.ZN09118/000003 | E36: 776.1680869 | F36: HV | H36: Other | I36: 20 | L36: Not in Bushfire Area | M36: Residential | N36: 1 | O36: Other | P36: No
A37: 1000016201 | B37: 10 | C37: 1 | D37: D.F.ZN00227/013016 | E37: 138.355275 | F37: HV | H37: Other | I37: 14.41747369 | L37: Buffer | M37: local | N37: 4 | O37: Other | P37: Yes
A38: 1000016221 | B38: 10 | C38: 1 | D38: D.F.ZN00243/80074R | E38: 1181.256154 | F38: HV | H38: Other | I38: 15.32005876 | L38: Not in Bushfire Area | M38: local | N38: 2 | O38: Other | P38: Yes
A39: 1000016287 | B39: 12 | C39: 1 | D39: D.F.ZN00512/083733 | E39: 1173.268389 | F39: HV | H39: Other | I39: 44.30960447 | L39: Not in Bushfire Area | M39: classified | N39: 4 | O39: Other | P39: Yes
A40: 1000016385 | B40: 12 | C40: 1 | D40: T.S.ZN00806 | F40: HV | H40: Other | I40: 20 | L40: Not in Bushfire Area | M40: Residential | N40: 1 | O40: Other | P40: No
A41: 1000016397 | B41: 12 | C41: 1 | D41: T.S.ZN00806 | F41: HV | H41: Other | I41: 20 | L41: Not in Bushfire Area | M41: Residential | N41: 1 | O41: Other | P41: No
A42: 1000018705 | B42: 15 | C42: 1 | D42: D.F.ZN00511/029877 | E42: 2145.166969 | F42: HV | H42: Other | I42: 33.53324157 | L42: Buffer | M42: Residential | N42: 4 | O42: Other | P42: No
A43: 1000019221 | B43: 11 | C43: 1 | D43: D.F.ZN00520/048172 | E43: 395.1149987 | F43: HV | H43: Other | I43: 61.71730833 | L43: Not in Bushfire Area | M43: local | N43: 4 | O43: Other | P43: No
A44: 1000019412 | B44: 12 | C44: 1 | D44: D.F.ZN10999/00038L | E44: 1800.816895 | F44: HV | H44: Haycolec (pin insulators) | I44: 8.364450298 | L44: Not in Bushfire Area | M44: local | N44: 3 | O44: Haycolec (pin insulators) | P44: Yes
A45: 1000019452 | B45: 12 | C45: 1 | D45: D.F.ZN10998/000016 | E45: 391.4374226 | F45: HV | H45: Haycolec (pin insulators) | I45: 8.494562094 | L45: Not in Bushfire Area | M45: local | N45: 3 | O45: Haycolec (pin insulators) | P45: Yes
A46: 1000019482 | B46: 10 | C46: 1 | D46: D.F.ZN04545/000027 | E46: 691.3026595 | F46: HV | H46: Other | I46: 18.04110999 | L46: Not in Bushfire Area | M46: local | N46: 4 | O46: Other | P46: Yes
A47: 1000019494 | B47: 10 | C47: 1 | D47: D.F.ZN04545/000021 | E47: 543.5279312 | F47: HV | H47: Other | I47: 16.83101167 | L47: Not in Bushfire Area | M47: local | N47: 4 | O47: Other | P47: Yes
A48: 1000019504 | B48: 10 | C48: 1 | D48: D.F.ZN15005/00008R | E48: 1199.33187 | F48: HV | H48: Other | I48: 8.496888638 | L48: Not in Bushfire Area | M48: local | N48: 4 | O48: Other | P48: Yes
A49: 1000019517 | B49: 10 | C49: 1 | D49: D.F.ZN15005/00008R | E49: 1199.33187 | F49: HV | H49: Other | I49: 8.091993767 | L49: Not in Bushfire Area | M49: local | N49: 4 | O49: Other | P49: Yes
A50: 1000019538 | B50: 10 | C50: 1 | D50: D.F.ZN00502/048010 | E50: 957.0968055 | F50: HV | H50: Other | I50: 28.71863207 | L50: Not in Bushfire Area | M50: classified | N50: 3 | O50: Other | P50: Yes
A51: 1000019550 | B51: 10 | C51: 1 | D51: D.F.ZN00223/014398 | E51: 1343.912535 | F51: HV | H51: Other | I51: 1.688884998 | L51: Not in Bushfire Area | M51: classified | N51: 2 | O51: Other | P51: Yes
A52: 1000019728 | B52: 12 | C52: 1 | D52: D.F.ZN00258/80776L | E52: 446.5601953 | F52: HV | H52: Other | I52: 8.310038952 | L52: Not in Bushfire Area | M52: local | N52: 3 | O52: Other | P52: No
A53: 1000019734 | B53: 10 | C53: 1 | D53: D.F.ZN00522/083131 | E53: 1039.570092 | F53: HV | H53: Other | I53: 20 | L53: Not in Bushfire Area | M53: Residential | N53: 1 | O53: Other | P53: No
A54: 1000019739 | B54: 12 | C54: 1 | D54: D.F.ZN12630/000008 | E54: 1403.685216 | F54: HV | H54: Other | I54: 20 | L54: Not in Bushfire Area | M54: Residential | N54: 1 | O54: Other | P54: No
A55: 1000019849 | B55: 12 | C55: 1 | D55: D.F.ZN12610/000020 | E55: 829.9032802 | F55: HV | H55: Other | I55: 20 | L55: Not in Bushfire Area | M55: Residential | N55: 1 | O55: Other | P55: No
A56: 1000020069 | B56: 10 | C56: 1 | D56: D.F.ZN09550/000042 | E56: 991.288598 | F56: HV | H56: Other | I56: 6.292218363 | L56: Not in Bushfire Area | M56: local | N56: 4 | O56: Other | P56: Yes
A57: 1000023523 | B57: 28 | C57: 1 | D57: T.F.000S21/00 | F57: HV | H57: Other | I57: 1.821652363 | L57: Not in Bushfire Area | M57: Residential | N57: 3 | O57: Other | P57: Yes
A58: 1000024046 | B58: 10 | C58: 1 | D58: D.F.ZN00523/033508 | E58: 1058.103893 | F58: HV | H58: Other | I58: 71.89772837 | L58: Buffer | M58: local | N58: 1 | O58: Other | P58: No
A59: 1000024317 | B59: 10 | C59: 1 | D59: D.F.ZN00239/082136 | E59: 1352.829359 | F59: HV | H59: Other | I59: 8.44667343 | L59: Buffer | M59: local | N59: 2 | O59: Other | P59: No
A60: 1000024441 | B60: 10 | C60: 1 | D60: D.F.ZN15005/000006 | E60: 1327.4797 | F60: HV | H60: Other | I60: 7.397740673 | L60: Not in Bushfire Area | M60: local | N60: 4 | O60: Other | P60: Yes
A61: 1000024541 | B61: 58 | C61: 1 | D61: D.F.ZN36300/00011R | E61: 1656.952048 | F61: HV | H61: Other | I61: 2.583862653 | L61: Not in Bushfire Area | M61: local | N61: 4 | O61: Other | P61: Yes
A62: 1000024646 | B62: 11 | C62: 1 | D62: D.F.ZN00204/082691 | E62: 818.7141502 | F62: HV | H62: Other | I62: 2.869474689 | L62: Not in Bushfire Area | M62: local | N62: 4 | O62: Other | P62: Yes
A63: 1000024648 | B63: 10 | C63: 1 | D63: D.F.ZN00223/014398 | E63: 1343.912535 | F63: HV | H63: Other | I63: 1.779193545 | L63: Not in Bushfire Area | M63: classified | N63: 3 | O63: Other | P63: Yes
A64: 1000024720 | B64: 10 | C64: 1 | D64: D.F.ZN00129/000064 | E64: 1528.212937 | F64: HV | H64: Other | I64: 13.31685707 | L64: Not in Bushfire Area | M64: local | N64: 3 | O64: Other | P64: Yes
A65: 1000025263 | B65: 14 | C65: 1 | D65: D.F.ZN00501/048125 | F65: HV | H65: Other | I65: 20 | L65: Not in Bushfire Area | M65: Residential | N65: 1 | O65: Other | P65: No
A66: 1000025380 | B66: 13 | C66: 1 | D66: D.F.ZN00515/035192 | E66: 522.9866997 | F66: HV | H66: Other | I66: 20 | L66: Not in Bushfire Area | M66: Residential | N66: 1 | O66: Other | P66: No
A67: 1000025769 | B67: 13 | C67: 1 | D67: D.F.ZN00238/034137 | E67: 867.512505 | F67: HV | H67: Other | I67: 21.03518894 | L67: Not in Bushfire Area | M67: Residential | N67: 1 | O67: Other | P67: Yes
A68: 1000027001 | B68: 10 | C68: 1 | D68: D.F.ZN00801/074120 | E68: 793.3365476 | F68: HV | H68: Other | I68: 108.9669087 | L68: Not in Bushfire Area | M68: Residential | N68: 1 | O68: Other | P68: Yes
A69: 1000027143 | B69: 12 | C69: 1 | D69: D.F.ZN00512/083733 | E69: 1173.268389 | F69: HV | H69: Other | I69: 44.27413548 | L69: Not in Bushfire Area | M69: local | N69: 4 | O69: Other | P69: Yes
A70: 1000027280 | B70: 25 | C70: 1 | D70: D.F.ZN00508/082580 | E70: 392.6232622 | F70: HV | H70: Haycolec (pin insulators) | I70: 25.29132653 | L70: Buffer | M70: local | N70: 4 | O70: Haycolec (pin insulators) | P70: No
A71: 1000027554 | B71: 11 | C71: 1 | D71: D.F.ZN01673/000018 | E71: 1151.5932 | F71: HV | H71: Other | I71: 18.13514335 | L71: Buffer | M71: local | N71: 4 | O71: Other | P71: Yes
A72: 1000027576 | B72: 11 | C72: 1 | D72: D.F.ZN01673/000018 | E72: 1151.5932 | F72: HV | H72: Other | I72: 18.20490156 | L72: Buffer | M72: local | N72: 4 | O72: Other | P72: Yes
A73: 1000027586 | B73: 10 | C73: 1 | D73: D.F.ZN01673/000018 | E73: 1151.5932 | F73: HV | H73: Other | I73: 17.4052972 | L73: Buffer | M73: local | N73: 3 | O73: Other | P73: Yes
A74: 1000027608 | B74: 11 | C74: 1 | D74: D.F.ZN01673/000018 | E74: 1151.5932 | F74: HV | H74: Other | I74: 17.19352136 | L74: Not in Bushfire Area | M74: local | N74: 3 | O74: Other | P74: Yes
A75: 1000027640 | B75: 11 | C75: 1 | D75: D.F.ZN01673/000018 | E75: 1151.5932 | F75: HV | H75: Other | I75: 18.29797466 | L75: Buffer | M75: local | N75: 4 | O75: Other | P75: Yes
A76: 1000027887 | B76: 10 | C76: 1 | D76: D.F.ZN00228/007490 | E76: 991.8291432 | F76: HV | H76: Other | I76: 2.325593141 | L76: Cat 1 | M76: classified | N76: 3 | O76: Other | P76: No
A77: 1000028884 | B77: 15 | C77: 1 | D77: D.F.ZN00806/082662 | E77: 417.4747277 | F77: HV | H77: Haycolec (pin insulators) | I77: 117.8595993 | L77: Cat 3 | M77: Residential | N77: 3 | O77: Haycolec (pin insulators) | P77: No
A78: 1000029314 | B78: 45 | C78: 1 | D78: D.F.ZN09700/000020 | E78: 2184.626596 | F78: HV | H78: Essantee HS641 | I78: 9.718963382 | L78: Not in Bushfire Area | M78: local | N78: 1 | O78: Essantee HS641 | P78: Yes
A79: 1000030003 | B79: 12 | C79: 1 | D79: D.F.ZN09900/000016 | E79: 200.4198697 | F79: HV | H79: Other | I79: 13.69779427 | L79: Not in Bushfire Area | M79: local | N79: 4 | O79: Other | P79: No
A80: 1000030059 | B80: 12 | C80: 1 | D80: D.F.ZN01285/00033R | E80: 1266.193625 | F80: HV | H80: Essantee HS641 | I80: 18.43259135 | L80: Not in Bushfire Area | M80: classified | N80: 3 | O80: Essantee HS641 | P80: Yes
A81: 1000030067 | B81: 11 | C81: 1 | D81: T.S.ZN01285 | F81: HV | H81: Other | I81: 20 | L81: Not in Bushfire Area | M81: Residential | N81: 1 | O81: Other | P81: No
A82: 1000030077 | B82: 12 | C82: 1 | D82: D.F.ZN01285/00027L | E82: 1539.595869 | F82: HV | H82: Other | I82: 20 | L82: Not in Bushfire Area | M82: Residential | N82: 1 | O82: Other | P82: No
A83: 1000030121 | B83: 12 | C83: 1 | D83: D.F.ZN01285/00031R | E83: 2166.227122 | F83: HV | H83: Haycolec (pin insulators) | I83: 16.90341755 | L83: Not in Bushfire Area | M83: classified | N83: 4 | O83: Haycolec (pin insulators) | P83: Yes
A84: 1000030136 | B84: 11 | C84: 1 | D84: D.F.ZN00511/029877 | E84: 2145.166969 | F84: HV | H84: Other | I84: 31.33944716 | L84: Buffer | M84: Residential | N84: 4 | O84: Other | P84: No
A85: 1000030144 | B85: 12 | C85: 1 | D85: D.F.ZN10995/000001 | E85: 1569.010816 | F85: HV | H85: Haycolec (pin insulators) | I85: 12.04322288 | L85: Not in Bushfire Area | M85: local | N85: 3 | O85: Haycolec (pin insulators) | P85: Yes
A86: 1000030168 | B86: 12 | C86: 1 | D86: D.F.ZN01287/000024 | E86: 1857.841554 | F86: HV | H86: Taplin D571 | I86: 16.76649179 | L86: Not in Bushfire Area | M86: classified | N86: 4 | O86: Taplin D571 | P86: Yes
A87: 1000030187 | B87: 10 | C87: 1 | D87: T.F.000LD1/00 | F87: HV | H87: Other | I87: 20 | L87: Not in Bushfire Area | M87: Residential | N87: 1 | O87: Other | P87: No
A88: 1000030212 | B88: 12 | C88: 1 | D88: D.F.ZN35900/000006 | E88: 1200.70639 | F88: HV | H88: Haycolec (pin insulators) | I88: 19.7333587 | L88: Not in Bushfire Area | M88: classified | N88: 2 | O88: Haycolec (pin insulators) | P88: Yes
A89: 1000030277 | B89: 12 | C89: 1 | D89: D.F.ZN35800/000007 | E89: 1373.053241 | F89: HV | H89: Other | I89: 16.78587158 | L89: Not in Bushfire Area | M89: local | N89: 4 | O89: Other | P89: Yes
A90: 1000030309 | B90: 12 | C90: 1 | D90: D.F.ZN35800/000007 | E90: 1373.053241 | F90: HV | H90: Other | I90: 16.68287168 | L90: Not in Bushfire Area | M90: classified | N90: 1 | O90: Other | P90: Yes
A91: 1000030330 | B91: 12 | C91: 1 | D91: D.F.ZN35800/00001L | E91: 1368.661713 | F91: HV | H91: Other | I91: 17.85320948 | L91: Not in Bushfire Area | M91: local | N91: 4 | O91: Other | P91: Yes
A92: 1000030350 | B92: 12 | C92: 1 | D92: D.F.ZN35800/00006L | E92: 913.0363497 | F92: HV | H92: Other | I92: 15.6957646 | L92: Not in Bushfire Area | M92: classified | N92: 4 | O92: Other | P92: Yes
A93: 1000030372 | B93: 10 | C93: 1 | D93: T.F.000LD2/00 | F93: HV | H93: Other | I93: 20 | L93: Not in Bushfire Area | M93: Residential | N93: 1 | O93: Other | P93: No
A94: 1000030373 | B94: 12 | C94: 1 | D94: D.F.ZN35800/000014 | E94: 1554.837159 | F94: HV | H94: Haycolec (pin insulators) | I94: 18.25102508 | L94: Not in Bushfire Area | M94: local | N94: 3 | O94: Haycolec (pin insulators) | P94: Yes
A95: 1000030417 | B95: 12 | C95: 1 | D95: D.F.ZN02196/000009 | E95: 1848.944484 | F95: HV | H95: Other | I95: 18.44991646 | L95: Not in Bushfire Area | M95: local | N95: 4 | O95: Other | P95: Yes
A96: 1000030439 | B96: 12 | C96: 1 | D96: D.F.ZN09037/000007 | E96: 1276.660038 | F96: HV | H96: Other | I96: 6.905877148 | L96: Not in Bushfire Area | M96: classified | N96: 4 | O96: Other | P96: Yes
A97: 1000030449 | B97: 12 | C97: 1 | D97: D.F.ZN10994/000021 | F97: HV | H97: Taplin D571 | I97: 20 | L97: Not in Bushfire Area | M97: Residential | N97: 1 | O97: Taplin D571 | P97: No
A98: 1000030491 | B98: 12 | C98: 1 | D98: D.F.ZN01290/000004 | F98: HV | H98: Other | I98: 20 | L98: Not in Bushfire Area | M98: Residential | N98: 1 | O98: Other | P98: No
A99: 1000030502 | B99: 12 | C99: 1 | D99: D.F.ZN01290/000011 | E99: 2717.964821 | F99: HV | H99: Other | I99: 24.11533402 | L99: Not in Bushfire Area | M99: Residential | N99: 1 | O99: Other | P99: Yes
A100: 1000030549 | B100: 11 | C100: 1 | D100: D.F.ZN00802/082225 | E100: 184.538054 | F100: HV | H100: Other | I100: 20 | L100: Not in Bushfire Area | M100: Residential | N100: 1 | O100: Other | P100: No
A101: 1000030558 | B101: 12 | C101: 1 | D101: D.F.ZN09245/000013 | E101: 1663.152715 | F101: HV | H101: Haycolec (pin insulators) | I101: 14.19660908 | L101: Not in Bushfire Area | M101: local | N101: 4 | O101: Haycolec (pin insulators) | P101: Yes
A102: 1000030580 | B102: 12 | C102: 1 | D102: D.F.ZN03472/000015 | E102: 416.611104 | F102: HV | H102: Other | I102: 22.06882967 | L102: Not in Bushfire Area | M102: local | N102: 4 | O102: Other | P102: Yes
A103: 1000030600 | B103: 12 | C103: 1 | D103: D.F.ZN10994/000011 | E103: 829.5437179 | F103: HV | H103: Other | I103: 10.08993436 | L103: Not in Bushfire Area | M103: local | N103: 5 | O103: Other | P103: Yes
A104: 1000030620 | B104: 12 | C104: 1 | D104: D.F.ZN10994/00010L | E104: 1009.32055 | F104: HV | H104: Haycolec (pin insulators) | I104: 12.44931975 | L104: Not in Bushfire Area | M104: local | N104: 4 | O104: Haycolec (pin insulators) | P104: Yes
A105: 1000030631 | B105: 12 | C105: 1 | D105: D.F.ZN10994/000013 | E105: 903.388163 | F105: HV | H105: Other | I105: 20 | L105: Not in Bushfire Area | M105: Residential | N105: 1 | O105: Other | P105: No
A106: 1000030674 | B106: 12 | C106: 1 | D106: D.F.ZN10994/000003 | E106: 929.9768968 | F106: HV | H106: Other | I106: 10.10971837 | L106: Not in Bushfire Area | M106: local | N106: 3 | O106: Other | P106: Yes
A107: 1000030686 | B107: 12 | C107: 1 | D107: D.F.ZN10994/000003 | E107: 929.9768968 | F107: HV | H107: Other | I107: 10.27518272 | L107: Not in Bushfire Area | M107: local | N107: 3 | O107: Other | P107: Yes
A108: 1000030697 | B108: 12 | C108: 1 | D108: D.F.ZN10994/000011 | E108: 829.5437179 | F108: HV | H108: Other | I108: 10.0576392 | L108: Not in Bushfire Area | M108: local | N108: 1 | O108: Other | P108: Yes
A109: 1000030714 | B109: 11 | C109: 1 | D109: T.F.060334/00 | F109: HV | H109: Other | I109: 20 | L109: Not in Bushfire Area | M109: Residential | N109: 1 | O109: Other | P109: No
A110: 1000030730 | B110: 12 | C110: 1 | D110: D.F.ZN10994/000007 | E110: 1812.648267 | F110: HV | H110: Other | I110: 8.524678243 | L110: Not in Bushfire Area | M110: local | N110: 4 | O110: Other | P110: Yes
A111: 1000030891 | B111: 10 | C111: 1 | D111: D.F.ZN13000/000007 | E111: 1957.367038 | F111: HV | H111: Other | I111: 20 | L111: Not in Bushfire Area | M111: Residential | N111: 1 | O111: Other | P111: No
A112: 1000030903 | B112: 10 | C112: 1 | D112: D.F.ZN14891/000020 | E112: 1366.28171 | F112: HV | H112: Other | I112: 20 | L112: Not in Bushfire Area | M112: Residential | N112: 1 | O112: Other | P112: No
A113: 1000030991 | B113: 10 | C113: 1 | D113: D.F.ZN01290/000011 | E113: 2717.964821 | F113: HV | H113: Other | I113: 22.47177056 | L113: Not in Bushfire Area | M113: local | N113: 4 | O113: Other | P113: Yes
A114: 1000031490 | B114: 28 | C114: 1 | D114: D.F.ZN09252/000025 | E114: 1013.41445 | F114: HV | H114: Other | I114: 10.72659306 | L114: Buffer | M114: Residential | N114: 1 | O114: Other | P114: Yes
A115: 1000031500 | B115: 10 | C115: 1 | D115: D.F.ZN09245/000019 | E115: 1501.037247 | F115: HV | H115: Other | I115: 12.60926783 | L115: Not in Bushfire Area | M115: local | N115: 4 | O115: Other | P115: Yes
A116: 1000034735 | B116: 10 | C116: 1 | D116: D.F.ZN00261/081885 | E116: 1996.94987 | F116: HV | H116: Other | I116: 3.102421328 | L116: Not in Bushfire Area | M116: local | N116: 1 | O116: Other | P116: Yes
A117: 1000034804 | B117: 19 | C117: 1 | D117: D.F.ZN00528/083013 | E117: 1740.705993 | F117: HV | H117: Other | I117: 30.30826914 | L117: Not in Bushfire Area | M117: classified | N117: 4 | O117: Other | P117: Yes
A118: 1000034814 | B118: 10 | C118: 1 | D118: D.F.ZN00801/074121 | E118: 735.7980972 | F118: HV | H118: Other | I118: 109.8361924 | L118: Cat 2 | M118: Residential | N118: 3 | O118: Other | P118: No
A119: 1000034824 | B119: 19 | C119: 1 | D119: D.F.ZN00512/083732 | E119: 1173.268389 | F119: HV | H119: Other | I119: 48.264321 | L119: Not in Bushfire Area | M119: classified | N119: 4 | O119: Other | P119: No
A120: 1000035182 | B120: 12 | C120: 1 | D120: D.F.ZN10993/00022L | E120: 2117.595426 | F120: HV | H120: Other | I120: 12.38661863 | L120: Not in Bushfire Area | M120: local | N120: 4 | O120: Other | P120: Yes
A121: 1000035216 | B121: 12 | C121: 1 | D121: D.F.ZN00801/074120 | E121: 793.3365476 | F121: HV | H121: Other | I121: 109.0113682 | L121: Not in Bushfire Area | M121: local | N121: 1 | O121: Other | P121: Yes
A122: 1000035517 | B122: 10 | C122: 1 | D122: D.F.ZN02196/000005 | E122: 1794.054014 | F122: HV | H122: Other | I122: 19.73414658 | L122: Buffer | M122: classified | N122: 1 | O122: Other | P122: Yes
A123: 1000035636 | B123: 12 | C123: 1 | D123: D.F.ZN00526/034636 | E123: 635.8637842 | F123: HV | H123: Other | I123: 45.23066187 | L123: Cat 3 | M123: Residential | N123: 3 | O123: Other | P123: No
A124: 1000035658 | B124: 10 | C124: 1 | D124: D.F.ZN00965/000043 | E124: 1189.297272 | F124: HV | H124: Other | I124: 21.20762437 | L124: Not in Bushfire Area | M124: local | N124: 4 | O124: Other | P124: Yes
A125: 1000035671 | B125: 10 | C125: 1 | D125: D.F.ZN15005/00012L | E125: 1426.131604 | F125: HV | H125: Other | I125: 8.045811611 | L125: Not in Bushfire Area | M125: local | N125: 1 | O125: Other | P125: Yes
A126: 1000035714 | B126: 10 | C126: 1 | D126: D.F.ZN00195/000030 | E126: 1382.800953 | F126: HV | H126: Other | I126: 13.00512091 | L126: Not in Bushfire Area | M126: local | N126: 1 | O126: Other | P126: Yes
A127: 1000035788 | B127: 10 | C127: 1 | D127: D.F.ZN00195/000009 | E127: 1620.25254 | F127: HV | H127: Other | I127: 12.37351727 | L127: Not in Bushfire Area | M127: local | N127: 4 | O127: Other | P127: Yes
A128: 1000037068 | B128: 10 | C128: 1 | D128: D.F.ZN00528/083014 | E128: 1007.037272 | F128: HV | H128: Other | I128: 27.70333894 | L128: Not in Bushfire Area | M128: local | N128: 4 | O128: Other | P128: Yes
A129: 1000037116 | B129: 10 | C129: 1 | D129: D.F.ZN00812/019072 | E129: 592.7360761 | F129: HV | H129: Other | I129: 114.0707572 | L129: Buffer | M129: local | N129: 2 | O129: Other | P129: No
A130: 1000037138 | B130: 10 | C130: 1 | D130: D.F.ZN00516/048066 | E130: 113.7478953 | F130: HV | H130: Other | I130: 20 | L130: Not in Bushfire Area | M130: Residential | N130: 1 | O130: Other | P130: No
A131: 1000037146 | B131: 12 | C131: 1 | D131: D.F.ZN10999/00011L | E131: 1757.476812 | F131: HV | H131: Other | I131: 20 | L131: Not in Bushfire Area | M131: Residential | N131: 1 | O131: Other | P131: No
A132: 1000037182 | B132: 11 | C132: 1 | D132: T.F.080504/00 | F132: HV | H132: Other | I132: 20 | L132: Not in Bushfire Area | M132: Residential | N132: 1 | O132: Other | P132: No
A133: 1000037193 | B133: 10 | C133: 1 | D133: D.F.ZN00516/048066 | E133: 113.7478953 | F133: HV | H133: Other | I133: 20 | L133: Not in Bushfire Area | M133: Residential | N133: 1 | O133: Other | P133: No
A134: 1000037262 | B134: 11 | C134: 1 | D134: D.F.ZN12640/000001 | E134: 769.6491071 | F134: HV | H134: Other | I134: 6.293077664 | L134: Not in Bushfire Area | M134: local | N134: 3 | O134: Other | P134: Yes
A135: 1000037691 | B135: 12 | C135: 1 | D135: D.F.ZN00508/082579 | E135: 578.5242671 | F135: HV | H135: Other | I135: 34.39887399 | L135: Not in Bushfire Area | M135: Residential | N135: 3 | O135: Other | P135: No
A136: 1000037720 | B136: 10 | C136: 1 | D136: D.F.ZN00801/074120 | E136: 793.3365476 | F136: HV | H136: Other | I136: 108.7804926 | L136: Not in Bushfire Area | M136: local | N136: 2 | O136: Other | P136: Yes
A137: 1000037731 | B137: 10 | C137: 1 | D137: D.F.ZN00801/074122 | E137: 1895.811582 | F137: HV | H137: Other | I137: 109.1677963 | L137: Not in Bushfire Area | M137: local | N137: 1 | O137: Other | P137: Yes
A138: 1000037793 | B138: 10 | C138: 1 | D138: D.F.ZN00801/074122 | E138: 1895.811582 | F138: HV | H138: Other | I138: 108.8116265 | L138: Not in Bushfire Area | M138: local | N138: 3 | O138: Other | P138: Yes
A139: 1000037804 | B139: 10 | C139: 1 | D139: D.F.ZN00801/074118 | E139: 1421.701542 | F139: HV | H139: Other | I139: 109.1259485 | L139: Not in Bushfire Area | M139: local | N139: 1 | O139: Other | P139: Yes
A140: 1000037854 | B140: 10 | C140: 1 | D140: T.S.ZN00512 | F140: HV | H140: Other | I140: 20 | L140: Not in Bushfire Area | M140: Residential | N140: 1 | O140: Other | P140: No
A141: 1000037875 | B141: 11 | C141: 1 | D141: D.F.ZN00080/000031 | E141: 1285.885992 | F141: HV | H141: Other | I141: 20 | L141: Not in Bushfire Area | M141: Residential | N141: 1 | O141: Other | P141: No
A142: 1000037886 | B142: 10 | C142: 1 | D142: D.F.ZN00270/083591 | E142: 381.6032356 | F142: HV | H142: Other | I142: 9.795123985 | L142: Buffer | M142: local | N142: 3 | O142: Other | P142: Yes
A143: 1000037897 | B143: 10 | C143: 1 | D143: D.F.ZN00270/083583 | E143: 467.1668642 | F143: HV | H143: Other | I143: 9.640801793 | L143: Not in Bushfire Area | M143: local | N143: 4 | O143: Other | P143: Yes
A144: 1000037963 | B144: 10 | C144: 1 | D144: D.F.ZN00512/083743 | E144: 1173.268389 | F144: HV | H144: Other | I144: 20 | L144: Not in Bushfire Area | M144: Residential | N144: 1 | O144: Other | P144: No
A145: 1000039311 | B145: 25 | C145: 1 | D145: D.F.ZN09534/000018 | E145: 330.1512819 | F145: HV | H145: Haycolec (pin insulators) | I145: 1.221956163 | L145: Buffer | M145: classified | N145: 1 | O145: Haycolec (pin insulators) | P145: No
A146: 1000039334 | B146: 12 | C146: 1 | D146: D.F.ZN12570/000040 | E146: 1091.424601 | F146: HV | H146: Taplin D571 | I146: 4.358449029 | L146: Buffer | M146: local | N146: 3 | O146: Taplin D571 | P146: No
A147: 1000041143 | B147: 12 | C147: 1 | D147: D.F.ZN00205/012203 | E147: 1220.225046 | F147: HV | H147: Other | I147: 20 | L147: Not in Bushfire Area | M147: Residential | N147: 1 | O147: Other | P147: No
A148: 1000041383 | B148: 9 | C148: 1 | D148: D.F.ZN15005/000004 | E148: 1267.147291 | F148: HV | H148: Other | I148: 7.805136689 | L148: Not in Bushfire Area | M148: local | N148: 4 | O148: Other | P148: Yes
A149: 1000041786 | B149: 10 | C149: 1 | D149: D.F.ZN15005/000004 | E149: 1267.147291 | F149: HV | H149: Other | I149: 7.660837319 | L149: Not in Bushfire Area | M149: local | N149: 3 | O149: Other | P149: Yes
A150: 1000041856 | B150: 12 | C150: 1 | D150: T.S.ZN00221 | F150: HV | H150: Other | I150: 20 | L150: Not in Bushfire Area | M150: Residential | N150: 1 | O150: Other | P150: No
A151: 1000041868 | B151: 12 | C151: 1 | D151: T.S.ZN00217 | F151: HV | H151: Other | I151: 20 | L151: Not in Bushfire Area | M151: Residential | N151: 1 | O151: Other | P151: No
A152: 1000041872 | B152: 10 | C152: 1 | D152: D.F.ZN00239/082133 | E152: 963.1830892 | F152: HV | H152: Other | I152: 7.700525317 | L152: Buffer | M152: local | N152: 1 | O152: Other | P152: Yes
A153: 1000041887 | B153: 23 | C153: 1 | D153: T.S.ZN00167 | F153: HV | H153: Other | I153: 20 | L153: Not in Bushfire Area | M153: Residential | N153: 1 | O153: Other | P153: No
A154: 1000041919 | B154: 11 | C154: 1 | D154: D.F.ZN00512/083733 | E154: 1173.268389 | F154: HV | H154: Other | I154: 48.57548742 | L154: Cat 3 | M154: classified | N154: 1 | O154: Other | P154: Yes
A155: 1000041924 | B155: 12 | C155: 1 | D155: D.F.ZN14891/000020 | E155: 1366.28171 | F155: HV | H155: Haycolec (pin insulators) | I155: 14.03433897 | L155: Cat 1 | M155: local | N155: 4 | O155: Haycolec (pin insulators) | P155: No
A156: 1000041960 | B156: 10 | C156: 1 | D156: D.F.ZN00532/083293 | E156: 1364.000808 | F156: HV | H156: Other | I156: 23.2853352 | L156: Not in Bushfire Area | M156: classified | N156: 1 | O156: Other | P156: Yes
A157: 1000042277 | B157: 10 | C157: 1 | D157: D.F.ZN00801/074121 | E157: 735.7980972 | F157: HV | H157: Other | I157: 119.3709634 | L157: Buffer | M157: Residential | N157: 3 | O157: Other | P157: No
A158: 1000042608 | B158: 19 | C158: 1 | D158: D.F.ZN00523/033508 | E158: 1058.103893 | F158: HV | H158: Other | I158: 72.48699857 | L158: Buffer | M158: local | N158: 1 | O158: Other | P158: No
A159: 1000042897 | B159: 13 | C159: 1 | D159: D.F.ZN00802/082225 | E159: 184.538054 | F159: HV | H159: Other | I159: 20 | L159: Not in Bushfire Area | M159: Residential | N159: 1 | O159: Other | P159: No
A160: 1000042919 | B160: 12 | C160: 1 | D160: D.F.ZN00512/083743 | E160: 1173.268389 | F160: HV | H160: Other | I160: 50.84090331 | L160: Buffer | M160: classified | N160: 4 | O160: Other | P160: No
A161: 1000043032 | B161: 13 | C161: 1 | D161: D.F.ZN00238/034143 | E161: 740.3228439 | F161: HV | H161: Other | I161: 21.05213028 | L161: Not in Bushfire Area | M161: Residential | N161: 1 | O161: Other | P161: Yes
A162: 1000043351 | B162: 13 | C162: 1 | D162: D.F.ZN00238/034137 | E162: 867.512505 | F162: HV | H162: Other | I162: 21.05104036 | L162: Not in Bushfire Area | M162: Residential | N162: 1 | O162: Other | P162: No
A163: 1000043525 | B163: 14 | C163: 1 | D163: D.F.ZN00523/033508 | E163: 1058.103893 | F163: HV | H163: Other | I163: 69.99790451 | L163: Not in Bushfire Area | M163: Residential | N163: 1 | O163: Other | P163: No
A164: 1000043538 | B164: 13 | C164: 1 | D164: T.F.000LD2/00 | F164: HV | H164: Other | I164: 92.74875972 | L164: Not in Bushfire Area | M164: Residential | N164: 1 | O164: Other | P164: No
A165: 1000043630 | B165: 13 | C165: 1 | D165: D.F.ZN00812/019071 | E165: 1636.956455 | F165: HV | H165: Other | I165: 20 | L165: Not in Bushfire Area | M165: Residential | N165: 1 | O165: Other | P165: No
A166: 1000043637 | B166: 13 | C166: 1 | D166: D.F.ZN00522/083132 | E166: 596.0361527 | F166: HV | H166: Other | I166: 20 | L166: Not in Bushfire Area | M166: Residential | N166: 1 | O166: Other | P166: No
A167: 1000043849 | B167: 13 | C167: 1 | D167: D.F.ZN00523/033503 | E167: 740.405439 | F167: HV | H167: Other | I167: 70.88367026 | L167: Not in Bushfire Area | M167: Residential | N167: 2 | O167: Other | P167: Yes
A168: 1000043957 | B168: 13 | C168: 1 | D168: D.F.ZN00516/048066 | E168: 113.7478953 | F168: HV | H168: Other | I168: 80.34210644 | L168: Not in Bushfire Area | M168: Residential | N168: 3 | O168: Other | P168: No
A169: 1000045106 | B169: 11 | C169: 1 | D169: D.F.ZN00511/029880 | E169: 1463.54321 | F169: HV | H169: Other | I169: 32.8705187 | L169: Not in Bushfire Area | M169: local | N169: 1 | O169: Other | P169: No
A170: 1000045337 | B170: 10 | C170: 1 | D170: D.F.ZN00258/080787 | E170: 1653.715182 | F170: HV | H170: Other | I170: 8.895061198 | L170: Not in Bushfire Area | M170: local | N170: 2 | O170: Other | P170: Yes
A171: 1000045662 | B171: 10 | C171: 1 | D171: D.F.ZN00206/034438 | E171: 643.6958907 | F171: HV | H171: Other | I171: 5.179527543 | L171: Not in Bushfire Area | M171: local | N171: 3 | O171: Other | P171: Yes
A172: 1000045684 | B172: 10 | C172: 1 | D172: D.F.ZN00502/048008 | E172: 847.2776355 | F172: HV | H172: Other | I172: 30.31135565 | L172: Not in Bushfire Area | M172: local | N172: 4 | O172: Other | P172: Yes
A173: 1000045779 | B173: 10 | C173: 1 | D173: D.F.ZN00511/029877 | E173: 2145.166969 | F173: HV | H173: Other | I173: 34.42332351 | L173: Not in Bushfire Area | M173: local | N173: 4 | O173: Other | P173: No
A174: 1000045789 | B174: 10 | C174: 1 | D174: D.F.ZN00511/029877 | E174: 2145.166969 | F174: HV | H174: Other | I174: 35.66828649 | L174: Cat 3 | M174: Residential | N174: 3 | O174: Other | P174: No
A175: 1000045931 | B175: 10 | C175: 1 | D175: D.F.ZN03154/000023 | E175: 607.6020863 | F175: HV | H175: Other | I175: 20 | L175: Not in Bushfire Area | M175: Residential | N175: 1 | O175: Other | P175: No
A176: 1000047105 | B176: 10 | C176: 1 | D176: D.F.ZN09252/000024 | E176: 1806.279137 | F176: HV | H176: Other | I176: 10.32745227 | L176: Not in Bushfire Area | M176: local | N176: 4 | O176: Other | P176: Yes
A177: 1000047975 | B177: 10 | C177: 1 | D177: D.F.ZN14891/000019 | E177: 393.0835005 | F177: HV | H177: Haycolec (pin insulators) | I177: 9.416772938 | L177: Not in Bushfire Area | M177: local | N177: 2 | O177: Haycolec (pin insulators) | P177: Yes
A178: 1000048434 | B178: 28 | C178: 1 | D178: D.F.ZN15014/000007 | F178: HV | H178: Other | I178: 0.7907270887 | L178: Not in Bushfire Area | M178: local | N178: 4 | O178: Other | P178: Yes
A179: 1000049034 | B179: 11 | C179: 1 | D179: T.S.ZN00512 | F179: HV | H179: Other | I179: 20 | L179: Not in Bushfire Area | M179: Residential | N179: 1 | O179: Other | P179: No
A180: 1000049149 | B180: 10 | C180: 1 | D180: D.F.ZN00238/034141 | E180: 845.4792569 | F180: HV | H180: Other | I180: 15.81566312 | L180: Not in Bushfire Area | M180: classified | N180: 4 | O180: Other | P180: No
A181: 1000049373 | B181: 10 | C181: 1 | D181: D.F.ZN00202/034260 | E181: 1352.437943 | F181: HV | H181: Other | I181: 0.6708323036 | L181: Not in Bushfire Area | M181: local | N181: 3 | O181: Other | P181: Yes
A182: 1000049429 | B182: 10 | C182: 1 | D182: D.F.ZN01193/000027 | E182: 1179.761539 | F182: HV | H182: Other | I182: 9.46789507 | L182: Not in Bushfire Area | M182: local | N182: 4 | O182: Other | P182: Yes
A183: 1000049581 | B183: 10 | C183: 1 | D183: D.F.ZN00810/074050 | E183: 233.2153705 | F183: HV | H183: Other | I183: 20 | L183: Not in Bushfire Area | M183: Residential | N183: 1 | O183: Other | P183: No
A184: 1000049593 | B184: 10 | C184: 1 | D184: D.F.ZN02400/000021 | E184: 1707.642813 | F184: HV | H184: Other | I184: 17.23164941 | L184: Not in Bushfire Area | M184: local | N184: 4 | O184: Other | P184: Yes
A185: 1000049604 | B185: 11 | C185: 1 | D185: D.F.ZN00847/000022 | E185: 1628.283101 | F185: HV | H185: Other | I185: 19.33794663 | L185: Buffer | M185: local | N185: 4 | O185: Other | P185: Yes
A186: 1000049608 | B186: 10 | C186: 1 | D186: D.F.ZN15006/000008 | E186: 1393.642868 | F186: HV | H186: Other | I186: 2.177151892 | L186: Not in Bushfire Area | M186: local | N186: 3 | O186: Other | P186: Yes
A187: 1000049792 | B187: 10 | C187: 1 | D187: D.F.ZN14144/000002 | E187: 1108.505114 | F187: HV | H187: Other | I187: 1.587573111 | L187: Buffer | M187: classified | N187: 4 | O187: Other | P187: Yes
A188: 1000049884 | B188: 10 | C188: 1 | D188: T.S.ZN00516 | E188: 1357.594515 | F188: HV | H188: Other | I188: 20 | L188: Not in Bushfire Area | M188: Residential | N188: 1 | O188: Other | P188: No
A189: 1000049906 | B189: 10 | C189: 1 | D189: T.S.ZN00516 | E189: 1357.594515 | F189: HV | H189: Other | I189: 20 | L189: Not in Bushfire Area | M189: Residential | N189: 1 | O189: Other | P189: No
A190: 1000049970 | B190: 12 | C190: 1 | D190: D.F.ZN00240/34835L | E190: 1289.445708 | F190: HV | H190: Other | I190: 8.331409898 | L190: Buffer | M190: local | N190: 1 | O190: Other | P190: No
A191: 1000051073 | B191: 10 | C191: 1 | D191: D.F.ZN00807/074184 | E191: 655.9732102 | F191: HV | H191: Other | I191: 112.4101038 | L191: Not in Bushfire Area | M191: local | N191: 4 | O191: Other | P191: No
A192: 1000051097 | B192: 12 | C192: 1 | D192: D.F.ZN00512/083743 | E192: 1173.268389 | F192: HV | H192: Other | I192: 58.75995289 | L192: Not in Bushfire Area | M192: Residential | N192: 4 | O192: Other | P192: No
A193: 1000051688 | B193: 10 | C193: 1 | D193: D.F.ZN00801/074121 | E193: 735.7980972 | F193: HV | H193: Other | I193: 120.7836335 | L193: Buffer | M193: Residential | N193: 3 | O193: Other | P193: No
A194: 1000052045 | B194: 12 | C194: 1 | D194: D.F.ZN00507/080932 | E194: 1527.342266 | F194: HV | H194: Other | I194: 20 | L194: Not in Bushfire Area | M194: Residential | N194: 1 | O194: Other | P194: No
A195: 1000052309 | B195: 10 | C195: 1 | D195: D.F.ZN15014/000020 | E195: 1553.694564 | F195: HV | H195: Haycolec (pin insulators) | I195: 1.743638508 | L195: Not in Bushfire Area | M195: local | N195: 4 | O195: Haycolec (pin insulators) | P195: Yes
A196: 1000052419 | B196: 11 | C196: 1 | D196: D.F.ZN00239/082127 | E196: 110.4218661 | F196: HV | H196: Other | I196: 9.362031424 | L196: Buffer | M196: classified | N196: 1 | O196: Other | P196: No
A197: 1000052505 | B197: 10 | C197: 1 | D197: D.F.ZN00801/074121 | E197: 735.7980972 | F197: HV | H197: Other | I197: 20 | L197: Not in Bushfire Area | M197: Residential | N197: 1 | O197: Other | P197: No
A198: 1000052648 | B198: 10 | C198: 1 | D198: D.F.ZN00202/034260 | E198: 1352.437943 | F198: HV | H198: Other | I198: 0.3974888993 | L198: Not in Bushfire Area | M198: local | N198: 3 | O198: Other | P198: Yes
A199: 1000052693 | B199: 10 | C199: 1 | D199: D.F.ZN00129/000064 | E199: 1528.212937 | F199: HV | H199: Other | I199: 13.33529356 | L199: Not in Bushfire Area | M199: local | N199: 4 | O199: Other | P199: Yes
A200: 1000052704 | B200: 10 | C200: 1 | D200: D.F.ZN02400/000021 | E200: 1707.642813 | F200: HV | H200: Other | I200: 16.5455422 | L200: Not in Bushfire Area | M200: classified | N200: 4 | O200: Other | P200: Yes
A201: 1000052716 | B201: 10 | C201: 1 | D201: D.F.ZN35370/000008 | E201: 991.9394594 | F201: HV | H201: Other | I201: 25.73547088 | L201: Not in Bushfire Area | M201: local | N201: 4 | O201: Other | P201: Yes
A202: 1000052727 | B202: 10 | C202: 1 | D202: D.F.ZN03425/000030 | E202: 1451.642336 | F202: HV | H202: Other | I202: 9.411880183 | L202: Not in Bushfire Area | M202: local | N202: 4 | O202: Other | P202: Yes
... 923 more rows

Sheet A. Age Profile
C1: Asset Population Age Profile
A3: Asset Age | B3: Median Age (x) | C3: Freq. of x (f) | D3: Cumulative Freq. of x (F) | E3: f.x | G3: E(f) | H3: Asset Units | K3: Summary Statisitics | N3: Additional Information for Graph
A4: 0 | B4: 0.5 | C4: =COUNTIF('A. Population Info'!$B:$B, 'A. Age Profile'!A4) -> 213 | D4: =SUM($C$4:C4) -> 213 | E4: =B4*C4 -> 106.5 | F4: =(B4-$L$6)^2*C4 -> 23924.97163 | G4: =_xlfn.NORM.DIST(B4,$L$6,$L$7,FALSE)*$L$4 -> 176.042153 | H4: =SUMIF('A. Population Info'!$B:$B, A4,'A. Population Info'!$C:$C) -> 213 | K4: Population Bins (n) | L4: =SUM(C:C) -> 7732
A5: 1 | B5: 1.5 | C5: =COUNTIF('A. Population Info'!$B:$B, 'A. Age Profile'!A5) -> 415 | D5: =SUM($C$4:C5) -> 628 | E5: =B5*C5 -> 622.5 | F5: 38232.79831 | G5: =_xlfn.NORM.DIST(B5,$L$6,$L$7,FALSE)*$L$4 -> 194.4978924 | H5: =SUMIF('A. Population Info'!$B:$B, A5,'A. Population Info'!$C:$C) -> 415 | K5: No. of Asset Units | L5: =SUM(H:H) -> 7732
A6: 2 | B6: 2.5 | C6: =COUNTIF('A. Population Info'!$B:$B, 'A. Age Profile'!A6) -> 402 | D6: =SUM($C$4:C6) -> 1030 | E6: =B6*C6 -> 1005 | F6: 29720.11697 | G6: 212.7773765 | H6: =SUMIF('A. Population Info'!$B:$B, A6,'A. Population Info'!$C:$C) -> 402 | K6: Mean Age | L6: =SUM(E:E)/SUM(C:C) -> 11.09829281 | N6: Mean Marker | O6: =MATCH(L6,$A$4:$A$104,1) -> 12 | P6: =P8 -> 532
A7: 3 | B7: 3.5 | C7: =COUNTIF('A. Population Info'!$B:$B, 'A. Age Profile'!A7) -> 362 | D7: =SUM($C$4:C7) -> 1392 | E7: 1267 | F7: 20899.72741 | G7: 230.4880014 | H7: =SUMIF('A. Population Info'!$B:$B, A7,'A. Population Info'!$C:$C) -> 362 | K7: Standard Deviation | L7: =(SUM(F:F)/SUM(C:C))^0.5 -> 10.06424203
A8: 4 | B8: 4.5 | C8: =COUNTIF('A. Population Info'!$B:$B, 'A. Age Profile'!A8) -> 390 | D8: =SUM($C$4:C8) -> 1782 | E8: 1755 | F8: 16979.61252 | G8: 247.2199511 | H8: =SUMIF('A. Population Info'!$B:$B, A8,'A. Population Info'!$C:$C) -> 390 | K8: Median Age | L8: =L13+(((L4/2)-L10)/L11)*L12 -> 8.935064935 | N8: Median Marker | O8: =MATCH(L8,$A$4:$A$104,1) -> 9 | P8: =INDEX($C$4:$C$104,O8)+70 -> 532
A9: 5 | B9: 5.5 | C9: =COUNTIF('A. Population Info'!$B:$B, 'A. Age Profile'!A9) -> 527 | D9: =SUM($C$4:C9) -> 2309 | E9: 2898.5 | F9: 16516.64501 | G9: 262.5614925 | H9: =SUMIF('A. Population Info'!$B:$B, A9,'A. Population Info'!$C:$C) -> 527 | K9: Mode Age | L9: =MATCH(MAX(C4:C104),C4:C104,0) -> 11
A10: 6 | B10: 6.5 | C10: =COUNTIF('A. Population Info'!$B:$B, 'A. Age Profile'!A10) -> 556 | D10: =SUM($C$4:C10) -> 2865 | E10: 3614 | F10: 11756.229 | G10: 276.1155532 | H10: =SUMIF('A. Population Info'!$B:$B, A10,'A. Population Info'!$C:$C) -> 556 | K10: F | L10: =INDEX(D4:D104,MATCH(L4/2,$D$4:$D$104,1)) -> 3434
A11: 7 | B11: 7.5 | C11: =COUNTIF('A. Population Info'!$B:$B, 'A. Age Profile'!A11) -> 569 | D11: =SUM($C$4:C11) -> 3434 | E11: 4267.5 | F11: 7367.247639 | G11: 287.5166705 | H11: =SUMIF('A. Population Info'!$B:$B, A11,'A. Population Info'!$C:$C) -> 569 | K11: fm | L11: =INDEX(C4:C104,MATCH(L4/2,$D$4:$D$104,1)+1) -> 462
A12: 8 | B12: 8.5 | C12: =COUNTIF('A. Population Info'!$B:$B, 'A. Age Profile'!A12) -> 462 | D12: =SUM($C$4:C12) -> 3896 | E12: 3927 | F12: 3119.019991 | G12: 296.4473091 | H12: =SUMIF('A. Population Info'!$B:$B, A12,'A. Population Info'!$C:$C) -> 462 | K12: i | L12: =B6-B5 -> 1
A13: 9 | B13: 9.5 | C13: =COUNTIF('A. Population Info'!$B:$B, 'A. Age Profile'!A13) -> 637 | D13: =SUM($C$4:C13) -> 4533 | E13: 6051.5 | F13: 1627.241919 | G13: 302.6525355 | H13: =SUMIF('A. Population Info'!$B:$B, A13,'A. Population Info'!$C:$C) -> 637 | K13: Lm | L13: =INDEX(B4:B104,MATCH(L4/2,$D$4:$D$104,1))+L12/2 -> 8
A14: 10 | B14: 10.5 | C14: =COUNTIF('A. Population Info'!$B:$B, 'A. Age Profile'!A14) -> 1105 | D14: =SUM($C$4:C14) -> 5638 | E14: 11602.5 | F14: 395.5394854 | G14: 305.9521029 | H14: =SUMIF('A. Population Info'!$B:$B, A14,'A. Population Info'!$C:$C) -> 1105
A15: 11 | B15: 11.5 | C15: =COUNTIF('A. Population Info'!$B:$B, 'A. Age Profile'!A15) -> 248 | D15: =SUM($C$4:C15) -> 5886 | E15: 2852 | F15: 40.01942947 | G15: 306.2491489 | H15: =SUMIF('A. Population Info'!$B:$B, A15,'A. Population Info'!$C:$C) -> 248
A16: 12 | B16: 12.5 | C16: =COUNTIF('A. Population Info'!$B:$B, 'A. Age Profile'!A16) -> 372 | D16: =SUM($C$4:C16) -> 6258 | E16: 4650 | F16: 730.8992942 | G16: 303.5349192 | H16: =SUMIF('A. Population Info'!$B:$B, A16,'A. Population Info'!$C:$C) -> 372
A17: 13 | B17: 13.5 | C17: =COUNTIF('A. Population Info'!$B:$B, 'A. Age Profile'!A17) -> 136 | D17: =SUM($C$4:C17) -> 6394 | E17: 1836 | F17: 784.4748506 | G17: 297.8891959 | H17: =SUMIF('A. Population Info'!$B:$B, A17,'A. Population Info'!$C:$C) -> 136
A18: 14 | B18: 14.5 | C18: =COUNTIF('A. Population Info'!$B:$B, 'A. Age Profile'!A18) -> 101 | D18: =SUM($C$4:C18) -> 6495 | E18: 1464.5 | F18: 1168.732793 | G18: 289.476402 | H18: =SUMIF('A. Population Info'!$B:$B, A18,'A. Population Info'!$C:$C) -> 101
A19: 15 | B19: 15.5 | C19: =COUNTIF('A. Population Info'!$B:$B, 'A. Age Profile'!A19) -> 126 | D19: =SUM($C$4:C19) -> 6621 | E19: 1953 | F19: 2441.2533 | G19: 278.5376465 | H19: =SUMIF('A. Population Info'!$B:$B, A19,'A. Population Info'!$C:$C) -> 126
A20: 16 | B20: 16.5 | C20: =COUNTIF('A. Population Info'!$B:$B, 'A. Age Profile'!A20) -> 56 | D20: =SUM($C$4:C20) -> 6677 | E20: 924 | F20: 1633.992672 | G20: 265.3792482 | H20: =SUMIF('A. Population Info'!$B:$B, A20,'A. Population Info'!$C:$C) -> 56
A21: 17 | B21: 17.5 | C21: =COUNTIF('A. Population Info'!$B:$B, 'A. Age Profile'!A21) -> 30 | D21: =SUM($C$4:C21) -> 6707 | E21: 525 | F21: 1229.455649 | G21: 250.358499 | H21: =SUMIF('A. Population Info'!$B:$B, A21,'A. Population Info'!$C:$C) -> 30
A22: 18 | B22: 18.5 | C22: =COUNTIF('A. Population Info'!$B:$B, 'A. Age Profile'!A22) -> 23 | D22: =SUM($C$4:C22) -> 6730 | E22: 425.5 | F22: 1260.061195 | G22: 233.8675903 | H22: =SUMIF('A. Population Info'!$B:$B, A22,'A. Population Info'!$C:$C) -> 23
A23: 19 | B23: 19.5 | C23: =COUNTIF('A. Population Info'!$B:$B, 'A. Age Profile'!A23) -> 8 | D23: =SUM($C$4:C23) -> 6738 | E23: 156 | F23: 564.7094698 | G23: 216.3167077 | H23: =SUMIF('A. Population Info'!$B:$B, A23,'A. Population Info'!$C:$C) -> 8
A24: 20 | B24: 20.5 | C24: =COUNTIF('A. Population Info'!$B:$B, 'A. Age Profile'!A24) -> 8 | D24: =SUM($C$4:C24) -> 6746 | E24: 164 | F24: 707.1367848 | G24: 198.1173043 | H24: =SUMIF('A. Population Info'!$B:$B, A24,'A. Population Info'!$C:$C) -> 8
A25: 21 | B25: 21.5 | C25: =COUNTIF('A. Population Info'!$B:$B, 'A. Age Profile'!A25) -> 3 | D25: =SUM($C$4:C25) -> 6749 | E25: 64.5 | F25: 324.5865375 | G25: 179.6664876 | H25: =SUMIF('A. Population Info'!$B:$B, A25,'A. Population Info'!$C:$C) -> 3
A26: 22 | B26: 22.5 | C26: =COUNTIF('A. Population Info'!$B:$B, 'A. Age Profile'!A26) -> 17 | D26: =SUM($C$4:C26) -> 6766 | E26: 382.5 | F26: 2209.981757 | G26: 161.3333185 | H26: =SUMIF('A. Population Info'!$B:$B, A26,'A. Population Info'!$C:$C) -> 17
A27: 23 | B27: 23.5 | C27: =COUNTIF('A. Population Info'!$B:$B, 'A. Age Profile'!A27) -> 28 | D27: =SUM($C$4:C27) -> 6794 | E27: 658 | F27: 4306.465555 | G27: 143.4476304 | H27: =SUMIF('A. Population Info'!$B:$B, A27,'A. Population Info'!$C:$C) -> 28
A28: 24 | B28: 24.5 | C28: =COUNTIF('A. Population Info'!$B:$B, 'A. Age Profile'!A28) -> 16 | D28: =SUM($C$4:C28) -> 6810 | E28: 392 | F28: 2873.69209 | G28: 126.2917589 | H28: =SUMIF('A. Population Info'!$B:$B, A28,'A. Population Info'!$C:$C) -> 16
A29: 25 | B29: 25.5 | C29: =COUNTIF('A. Population Info'!$B:$B, 'A. Age Profile'!A29) -> 31 | D29: =SUM($C$4:C29) -> 6841 | E29: 790.5 | F29: 6429.68427 | G29: 110.0953477 | H29: =SUMIF('A. Population Info'!$B:$B, A29,'A. Population Info'!$C:$C) -> 31
A30: 26 | B30: 26.5 | C30: =COUNTIF('A. Population Info'!$B:$B, 'A. Age Profile'!A30) -> 43 | D30: =SUM($C$4:C30) -> 6884 | E30: 1139.5 | F30: 10200.14113 | G30: 95.03317623 | H30: =SUMIF('A. Population Info'!$B:$B, A30,'A. Population Info'!$C:$C) -> 43
A31: 27 | B31: 27.5 | C31: =COUNTIF('A. Population Info'!$B:$B, 'A. Age Profile'!A31) -> 60 | D31: =SUM($C$4:C31) -> 6944 | E31: 1650 | F31: 16140.95993 | G31: 81.22577129 | H31: =SUMIF('A. Population Info'!$B:$B, A31,'A. Population Info'!$C:$C) -> 60
A32: 28 | B32: 28.5 | C32: =COUNTIF('A. Population Info'!$B:$B, 'A. Age Profile'!A32) -> 261 | D32: =SUM($C$4:C32) -> 7205 | E32: 7438.5 | F32: 79035.86683 | G32: 68.74241181 | H32: =SUMIF('A. Population Info'!$B:$B, A32,'A. Population Info'!$C:$C) -> 261
A33: 29 | B33: 29.5 | C33: =COUNTIF('A. Population Info'!$B:$B, 'A. Age Profile'!A33) -> 56 | D33: =SUM($C$4:C33) -> 7261 | E33: 1652 | F33: 18962.87834 | G33: 57.60603825 | H33: =SUMIF('A. Population Info'!$B:$B, A33,'A. Population Info'!$C:$C) -> 56
A34: 30 | B34: 30.5 | C34: =COUNTIF('A. Population Info'!$B:$B, 'A. Age Profile'!A34) -> 21 | D34: =SUM($C$4:C34) -> 7282 | E34: 640.5 | F34: 7904.95108 | G34: 47.7995242 | H34: =SUMIF('A. Population Info'!$B:$B, A34,'A. Population Info'!$C:$C) -> 21
A35: 31 | B35: 31.5 | C35: =COUNTIF('A. Population Info'!$B:$B, 'A. Age Profile'!A35) -> 15 | D35: =SUM($C$4:C35) -> 7297 | E35: 472.5 | F35: 6243.444845 | G35: 39.27276336 | H35: =SUMIF('A. Population Info'!$B:$B, A35,'A. Population Info'!$C:$C) -> 15
A36: 32 | B36: 32.5 | C36: =COUNTIF('A. Population Info'!$B:$B, 'A. Age Profile'!A36) -> 25 | D36: =SUM($C$4:C36) -> 7322 | E36: 812.5 | F36: =(B36-$L$6)^2*C36 -> 11450.82677 | G36: 31.9500594 | H36: =SUMIF('A. Population Info'!$B:$B, A36,'A. Population Info'!$C:$C) -> 25
A37: 33 | B37: 33.5 | C37: =COUNTIF('A. Population Info'!$B:$B, 'A. Age Profile'!A37) -> 31 | D37: =SUM($C$4:C37) -> 7353 | E37: 1038.5 | F37: 15556.93104 | G37: 25.73737207 | H37: =SUMIF('A. Population Info'!$B:$B, A37,'A. Population Info'!$C:$C) -> 31
A38: 34 | B38: 34.5 | C38: =COUNTIF('A. Population Info'!$B:$B, 'A. Age Profile'!A38) -> 8 | D38: =SUM($C$4:C38) -> 7361 | E38: 276 | F38: 4381.119196 | G38: 20.52905953 | H38: =SUMIF('A. Population Info'!$B:$B, A38,'A. Population Info'!$C:$C) -> 8
A39: 35 | B39: 35.5 | C39: =COUNTIF('A. Population Info'!$B:$B, 'A. Age Profile'!A39) -> 20 | D39: =SUM($C$4:C39) -> 7381 | E39: 710 | F39: 11908.86628 | G39: 16.21385292 | H39: =SUMIF('A. Population Info'!$B:$B, A39,'A. Population Info'!$C:$C) -> 20
A40: 36 | B40: 36.5 | C40: =COUNTIF('A. Population Info'!$B:$B, 'A. Age Profile'!A40) -> 33 | D40: =SUM($C$4:C40) -> 7414 | E40: 1204.5 | F40: 21293.14203 | G40: 12.67989701 | H40: =SUMIF('A. Population Info'!$B:$B, A40,'A. Population Info'!$C:$C) -> 33
A41: 37 | B41: 37.5 | C41: =COUNTIF('A. Population Info'!$B:$B, 'A. Age Profile'!A41) -> 22 | D41: =SUM($C$4:C41) -> 7436 | E41: 825 | F41: 15335.10314 | G41: 9.818780352 | H41: =SUMIF('A. Population Info'!$B:$B, A41,'A. Population Info'!$C:$C) -> 22
A42: 38 | B42: 38.5 | C42: =COUNTIF('A. Population Info'!$B:$B, 'A. Age Profile'!A42) -> 26 | D42: =SUM($C$4:C42) -> 7462 | E42: 1001 | F42: 19522.19248 | G42: 7.52855601 | H42: =SUMIF('A. Population Info'!$B:$B, A42,'A. Population Info'!$C:$C) -> 26
A43: 39 | B43: 39.5 | C43: =COUNTIF('A. Population Info'!$B:$B, 'A. Age Profile'!A43) -> 18 | D43: =SUM($C$4:C43) -> 7480 | E43: 711 | F43: 14519.82548 | G43: 5.715814799 | H43: =SUMIF('A. Population Info'!$B:$B, A43,'A. Population Info'!$C:$C) -> 18
A44: 40 | B44: 40.5 | C44: =COUNTIF('A. Population Info'!$B:$B, 'A. Age Profile'!A44) -> 12 | D44: =SUM($C$4:C44) -> 7492 | E44: 486 | F44: 10373.52463 | G44: 4.296916689 | H44: =SUMIF('A. Population Info'!$B:$B, A44,'A. Population Info'!$C:$C) -> 12
A45: 41 | B45: 41.5 | C45: =COUNTIF('A. Population Info'!$B:$B, 'A. Age Profile'!A45) -> 12 | D45: =SUM($C$4:C45) -> 7504 | E45: 498 | F45: 11091.1656 | G45: 3.198512411 | H45: =SUMIF('A. Population Info'!$B:$B, A45,'A. Population Info'!$C:$C) -> 12
A46: 42 | B46: 42.5 | C46: =COUNTIF('A. Population Info'!$B:$B, 'A. Age Profile'!A46) -> 11 | D46: =SUM($C$4:C46) -> 7515 | E46: 467.5 | F46: 10846.73936 | G46: 2.357498738 | H46: =SUMIF('A. Population Info'!$B:$B, A46,'A. Population Info'!$C:$C) -> 11
A47: 43 | B47: 43.5 | C47: =COUNTIF('A. Population Info'!$B:$B, 'A. Age Profile'!A47) -> 15 | D47: =SUM($C$4:C47) -> 7530 | E47: 652.5 | F47: 15748.05943 | G47: 1.72054969 | H47: =SUMIF('A. Population Info'!$B:$B, A47,'A. Population Info'!$C:$C) -> 15
A48: 44 | B48: 44.5 | C48: =COUNTIF('A. Population Info'!$B:$B, 'A. Age Profile'!A48) -> 15 | D48: =SUM($C$4:C48) -> 7545 | E48: 667.5 | F48: 16735.11065 | G48: 1.243355421 | H48: =SUMIF('A. Population Info'!$B:$B, A48,'A. Population Info'!$C:$C) -> 15
A49: 45 | B49: 45.5 | C49: =COUNTIF('A. Population Info'!$B:$B, 'A. Age Profile'!A49) -> 98 | D49: =SUM($C$4:C49) -> 7643 | E49: 4459 | F49: 115980.7908 | G49: 0.8896838085 | H49: =SUMIF('A. Population Info'!$B:$B, A49,'A. Population Info'!$C:$C) -> 98
A50: 46 | B50: 46.5 | C50: =COUNTIF('A. Population Info'!$B:$B, 'A. Age Profile'!A50) -> 8 | D50: =SUM($C$4:C50) -> 7651 | E50: 372 | F50: 10026.24698 | G50: 0.6303596467 | H50: =SUMIF('A. Population Info'!$B:$B, A50,'A. Population Info'!$C:$C) -> 8
A51: 47 | B51: 47.5 | C51: =COUNTIF('A. Population Info'!$B:$B, 'A. Age Profile'!A51) -> 8 | D51: =SUM($C$4:C51) -> 7659 | E51: 380 | F51: 10600.67429 | G51: 0.4422353368 | H51: =SUMIF('A. Population Info'!$B:$B, A51,'A. Population Info'!$C:$C) -> 8
A52: 48 | B52: 48.5 | C52: =COUNTIF('A. Population Info'!$B:$B, 'A. Age Profile'!A52) -> 10 | D52: =SUM($C$4:C52) -> 7669 | E52: 485 | F52: 13988.87701 | G52: 0.3072067844 | H52: =SUMIF('A. Population Info'!$B:$B, A52,'A. Population Info'!$C:$C) -> 10
A53: 49 | B53: 49.5 | C53: =COUNTIF('A. Population Info'!$B:$B, 'A. Age Profile'!A53) -> 10 | D53: =SUM($C$4:C53) -> 7679 | E53: 495 | F53: 14746.91115 | G53: 0.2113102116 | H53: =SUMIF('A. Population Info'!$B:$B, A53,'A. Population Info'!$C:$C) -> 10
A54: 50 | B54: 50.5 | C54: =COUNTIF('A. Population Info'!$B:$B, 'A. Age Profile'!A54) -> 5 | D54: =SUM($C$4:C54) -> 7684 | E54: 252.5 | F54: 7762.472648 | G54: 0.1439204437 | H54: =SUMIF('A. Population Info'!$B:$B, A54,'A. Population Info'!$C:$C) -> 5
A55: 51 | B55: 51.5 | C55: =COUNTIF('A. Population Info'!$B:$B, 'A. Age Profile'!A55) -> 4 | D55: =SUM($C$4:C55) -> 7688 | E55: 206 | F55: 6529.191776 | G55: 0.09705922421 | H55: =SUMIF('A. Population Info'!$B:$B, A55,'A. Population Info'!$C:$C) -> 4
A56: 52 | B56: 52.5 | C56: =COUNTIF('A. Population Info'!$B:$B, 'A. Age Profile'!A56) -> 1 | D56: =SUM($C$4:C56) -> 7689 | E56: 52.5 | F56: 1714.101358 | G56: 0.06481319997 | H56: =SUMIF('A. Population Info'!$B:$B, A56,'A. Population Info'!$C:$C) -> 1
A57: 53 | B57: 53.5 | C57: =COUNTIF('A. Population Info'!$B:$B, 'A. Age Profile'!A57) -> 7 | D57: =SUM($C$4:C57) -> 7696 | E57: 374.5 | F57: 12585.33341 | G57: 0.04285509226 | H57: =SUMIF('A. Population Info'!$B:$B, A57,'A. Population Info'!$C:$C) -> 7
A58: 54 | B58: 54.5 | C58: =COUNTIF('A. Population Info'!$B:$B, 'A. Age Profile'!A58) -> 10 | D58: =SUM($C$4:C58) -> 7706 | E58: 545 | F58: 18837.08187 | G58: 0.0280578072 | H58: =SUMIF('A. Population Info'!$B:$B, A58,'A. Population Info'!$C:$C) -> 10
A59: 55 | B59: 55.5 | C59: =COUNTIF('A. Population Info'!$B:$B, 'A. Age Profile'!A59) -> 7 | D59: =SUM($C$4:C59) -> 7713 | E59: 388.5 | F59: 13800.58121 | G59: 0.01818935675 | H59: =SUMIF('A. Population Info'!$B:$B, A59,'A. Population Info'!$C:$C) -> 7
A60: 56 | B60: 56.5 | C60: =COUNTIF('A. Population Info'!$B:$B, 'A. Age Profile'!A60) -> 7 | D60: =SUM($C$4:C60) -> 7720 | E60: 395.5 | F60: 14429.20511 | G60: 0.01167597824 | H60: =SUMIF('A. Population Info'!$B:$B, A60,'A. Population Info'!$C:$C) -> 7
A61: 57 | B61: 57.5 | C61: =COUNTIF('A. Population Info'!$B:$B, 'A. Age Profile'!A61) -> 3 | D61: =SUM($C$4:C61) -> 7723 | E61: 172.5 | F61: 6459.355291 | G61: 0.00742132644 | H61: =SUMIF('A. Population Info'!$B:$B, A61,'A. Population Info'!$C:$C) -> 3
A62: 58 | B62: 58.5 | C62: =COUNTIF('A. Population Info'!$B:$B, 'A. Age Profile'!A62) -> 4 | D62: =SUM($C$4:C62) -> 7727 | E62: 234 | F62: 8987.687378 | G62: 0.004670701527 | H62: =SUMIF('A. Population Info'!$B:$B, A62,'A. Population Info'!$C:$C) -> 4
A63: 59 | B63: 59.5 | C63: =COUNTIF('A. Population Info'!$B:$B, 'A. Age Profile'!A63) -> 4 | D63: =SUM($C$4:C63) -> 7731 | E63: 238 | F63: 9370.901036 | G63: 0.002910683724 | H63: =SUMIF('A. Population Info'!$B:$B, A63,'A. Population Info'!$C:$C) -> 4
A64: 60 | B64: 60.5 | C64: =COUNTIF('A. Population Info'!$B:$B, 'A. Age Profile'!A64) -> 0 | D64: =SUM($C$4:C64) -> 7731 | E64: 0 | F64: 0 | G64: 0.001796057521 | H64: =SUMIF('A. Population Info'!$B:$B, A64,'A. Population Info'!$C:$C) -> 0
A65: 61 | B65: 61.5 | C65: =COUNTIF('A. Population Info'!$B:$B, 'A. Age Profile'!A65) -> 0 | D65: =SUM($C$4:C65) -> 7731 | E65: 0 | F65: 0 | G65: 0.001097381887 | H65: =SUMIF('A. Population Info'!$B:$B, A65,'A. Population Info'!$C:$C) -> 0
A66: 62 | B66: 62.5 | C66: =COUNTIF('A. Population Info'!$B:$B, 'A. Age Profile'!A66) -> 0 | D66: =SUM($C$4:C66) -> 7731 | E66: 0 | F66: 0 | G66: 0.0006639076232 | H66: =SUMIF('A. Population Info'!$B:$B, A66,'A. Population Info'!$C:$C) -> 0
A67: 63 | B67: 63.5 | C67: =COUNTIF('A. Population Info'!$B:$B, 'A. Age Profile'!A67) -> 0 | D67: =SUM($C$4:C67) -> 7731 | E67: 0 | F67: 0 | G67: 0.0003977130534 | H67: =SUMIF('A. Population Info'!$B:$B, A67,'A. Population Info'!$C:$C) -> 0
A68: 64 | B68: 64.5 | C68: =COUNTIF('A. Population Info'!$B:$B, 'A. Age Profile'!A68) -> 1 | D68: =SUM($C$4:C68) -> 7732 | E68: 64.5 | F68: =(B68-$L$6)^2*C68 -> 2851.742331 | G68: 0.0002359089172 | H68: =SUMIF('A. Population Info'!$B:$B, A68,'A. Population Info'!$C:$C) -> 1
A69: 65 | B69: 65.5 | C69: =COUNTIF('A. Population Info'!$B:$B, 'A. Age Profile'!A69) -> 0 | D69: =SUM($C$4:C69) -> 7732 | E69: 0 | F69: 0 | G69: =_xlfn.NORM.DIST(B69,$L$6,$L$7,FALSE)*$L$4 -> 0.0001385578676 | H69: =SUMIF('A. Population Info'!$B:$B, A69,'A. Population Info'!$C:$C) -> 0
A70: 66 | B70: 66.5 | C70: =COUNTIF('A. Population Info'!$B:$B, 'A. Age Profile'!A70) -> 0 | D70: =SUM($C$4:C70) -> 7732 | E70: =B70*C70 -> 0 | F70: 0 | G70: 8.058057217e-05 | H70: =SUMIF('A. Population Info'!$B:$B, A70,'A. Population Info'!$C:$C) -> 0
A71: 67 | B71: 67.5 | C71: =COUNTIF('A. Population Info'!$B:$B, 'A. Age Profile'!A71) -> 0 | D71: =SUM($C$4:C71) -> 7732 | E71: 0 | F71: 0 | G71: 4.640254757e-05 | H71: =SUMIF('A. Population Info'!$B:$B, A71,'A. Population Info'!$C:$C) -> 0
A72: 68 | B72: 68.5 | C72: =COUNTIF('A. Population Info'!$B:$B, 'A. Age Profile'!A72) -> 0 | D72: =SUM($C$4:C72) -> 7732 | E72: 0 | F72: 0 | G72: 2.645852468e-05 | H72: =SUMIF('A. Population Info'!$B:$B, A72,'A. Population Info'!$C:$C) -> 0
A73: 69 | B73: 69.5 | C73: =COUNTIF('A. Population Info'!$B:$B, 'A. Age Profile'!A73) -> 0 | D73: =SUM($C$4:C73) -> 7732 | E73: 0 | F73: 0 | G73: 1.493831957e-05 | H73: =SUMIF('A. Population Info'!$B:$B, A73,'A. Population Info'!$C:$C) -> 0
A74: 70 | B74: 70.5 | C74: =COUNTIF('A. Population Info'!$B:$B, 'A. Age Profile'!A74) -> 0 | D74: =SUM($C$4:C74) -> 7732 | E74: 0 | F74: 0 | G74: 8.351225096e-06 | H74: =SUMIF('A. Population Info'!$B:$B, A74,'A. Population Info'!$C:$C) -> 0
A75: 71 | B75: 71.5 | C75: =COUNTIF('A. Population Info'!$B:$B, 'A. Age Profile'!A75) -> 0 | D75: =SUM($C$4:C75) -> 7732 | E75: 0 | F75: 0 | G75: 4.622862277e-06 | H75: =SUMIF('A. Population Info'!$B:$B, A75,'A. Population Info'!$C:$C) -> 0
A76: 72 | B76: 72.5 | C76: =COUNTIF('A. Population Info'!$B:$B, 'A. Age Profile'!A76) -> 0 | D76: =SUM($C$4:C76) -> 7732 | E76: 0 | F76: 0 | G76: 2.533868327e-06 | H76: =SUMIF('A. Population Info'!$B:$B, A76,'A. Population Info'!$C:$C) -> 0
A77: 73 | B77: 73.5 | C77: =COUNTIF('A. Population Info'!$B:$B, 'A. Age Profile'!A77) -> 0 | D77: =SUM($C$4:C77) -> 7732 | E77: 0 | F77: 0 | G77: 1.375211364e-06 | H77: =SUMIF('A. Population Info'!$B:$B, A77,'A. Population Info'!$C:$C) -> 0
A78: 74 | B78: 74.5 | C78: =COUNTIF('A. Population Info'!$B:$B, 'A. Age Profile'!A78) -> 0 | D78: =SUM($C$4:C78) -> 7732 | E78: 0 | F78: 0 | G78: 7.39038705e-07 | H78: =SUMIF('A. Population Info'!$B:$B, A78,'A. Population Info'!$C:$C) -> 0
A79: 75 | B79: 75.5 | C79: =COUNTIF('A. Population Info'!$B:$B, 'A. Age Profile'!A79) -> 0 | D79: =SUM($C$4:C79) -> 7732 | E79: 0 | F79: 0 | G79: 3.932577022e-07 | H79: =SUMIF('A. Population Info'!$B:$B, A79,'A. Population Info'!$C:$C) -> 0
A80: 76 | B80: 76.5 | C80: =COUNTIF('A. Population Info'!$B:$B, 'A. Age Profile'!A80) -> 0 | D80: =SUM($C$4:C80) -> 7732 | E80: 0 | F80: 0 | G80: 2.07204705e-07 | H80: =SUMIF('A. Population Info'!$B:$B, A80,'A. Population Info'!$C:$C) -> 0
A81: 77 | B81: 77.5 | C81: =COUNTIF('A. Population Info'!$B:$B, 'A. Age Profile'!A81) -> 0 | D81: =SUM($C$4:C81) -> 7732 | E81: 0 | F81: 0 | G81: 1.081021447e-07 | H81: =SUMIF('A. Population Info'!$B:$B, A81,'A. Population Info'!$C:$C) -> 0
A82: 78 | B82: 78.5 | C82: =COUNTIF('A. Population Info'!$B:$B, 'A. Age Profile'!A82) -> 0 | D82: =SUM($C$4:C82) -> 7732 | E82: 0 | F82: 0 | G82: 5.584461864e-08 | H82: =SUMIF('A. Population Info'!$B:$B, A82,'A. Population Info'!$C:$C) -> 0
A83: 79 | B83: 79.5 | C83: =COUNTIF('A. Population Info'!$B:$B, 'A. Age Profile'!A83) -> 0 | D83: =SUM($C$4:C83) -> 7732 | E83: 0 | F83: 0 | G83: 2.856542374e-08 | H83: =SUMIF('A. Population Info'!$B:$B, A83,'A. Population Info'!$C:$C) -> 0
A84: 80 | B84: 80.5 | C84: =COUNTIF('A. Population Info'!$B:$B, 'A. Age Profile'!A84) -> 0 | D84: =SUM($C$4:C84) -> 7732 | E84: 0 | F84: 0 | G84: 1.446812772e-08 | H84: =SUMIF('A. Population Info'!$B:$B, A84,'A. Population Info'!$C:$C) -> 0
A85: 81 | B85: 81.5 | C85: =COUNTIF('A. Population Info'!$B:$B, 'A. Age Profile'!A85) -> 0 | D85: =SUM($C$4:C85) -> 7732 | E85: 0 | F85: 0 | G85: 7.255984048e-09 | H85: =SUMIF('A. Population Info'!$B:$B, A85,'A. Population Info'!$C:$C) -> 0
A86: 82 | B86: 82.5 | C86: =COUNTIF('A. Population Info'!$B:$B, 'A. Age Profile'!A86) -> 0 | D86: =SUM($C$4:C86) -> 7732 | E86: 0 | F86: 0 | G86: 3.603235325e-09 | H86: =SUMIF('A. Population Info'!$B:$B, A86,'A. Population Info'!$C:$C) -> 0
A87: 83 | B87: 83.5 | C87: =COUNTIF('A. Population Info'!$B:$B, 'A. Age Profile'!A87) -> 0 | D87: =SUM($C$4:C87) -> 7732 | E87: 0 | F87: 0 | G87: 1.771745162e-09 | H87: =SUMIF('A. Population Info'!$B:$B, A87,'A. Population Info'!$C:$C) -> 0
A88: 84 | B88: 84.5 | C88: =COUNTIF('A. Population Info'!$B:$B, 'A. Age Profile'!A88) -> 0 | D88: =SUM($C$4:C88) -> 7732 | E88: 0 | F88: 0 | G88: 8.626253304e-10 | H88: =SUMIF('A. Population Info'!$B:$B, A88,'A. Population Info'!$C:$C) -> 0
A89: 85 | B89: 85.5 | C89: =COUNTIF('A. Population Info'!$B:$B, 'A. Age Profile'!A89) -> 0 | D89: =SUM($C$4:C89) -> 7732 | E89: 0 | F89: 0 | G89: 4.158679771e-10 | H89: =SUMIF('A. Population Info'!$B:$B, A89,'A. Population Info'!$C:$C) -> 0
A90: 86 | B90: 86.5 | C90: =COUNTIF('A. Population Info'!$B:$B, 'A. Age Profile'!A90) -> 0 | D90: =SUM($C$4:C90) -> 7732 | E90: 0 | F90: 0 | G90: 1.985185411e-10 | H90: =SUMIF('A. Population Info'!$B:$B, A90,'A. Population Info'!$C:$C) -> 0
A91: 87 | B91: 87.5 | C91: =COUNTIF('A. Population Info'!$B:$B, 'A. Age Profile'!A91) -> 0 | D91: =SUM($C$4:C91) -> 7732 | E91: 0 | F91: 0 | G91: 9.383373248e-11 | H91: =SUMIF('A. Population Info'!$B:$B, A91,'A. Population Info'!$C:$C) -> 0
A92: 88 | B92: 88.5 | C92: =COUNTIF('A. Population Info'!$B:$B, 'A. Age Profile'!A92) -> 0 | D92: =SUM($C$4:C92) -> 7732 | E92: 0 | F92: 0 | G92: 4.391665268e-11 | H92: =SUMIF('A. Population Info'!$B:$B, A92,'A. Population Info'!$C:$C) -> 0
A93: 89 | B93: 89.5 | C93: =COUNTIF('A. Population Info'!$B:$B, 'A. Age Profile'!A93) -> 0 | D93: =SUM($C$4:C93) -> 7732 | E93: 0 | F93: 0 | G93: 2.035222015e-11 | H93: =SUMIF('A. Population Info'!$B:$B, A93,'A. Population Info'!$C:$C) -> 0
A94: 90 | B94: 90.5 | C94: =COUNTIF('A. Population Info'!$B:$B, 'A. Age Profile'!A94) -> 0 | D94: =SUM($C$4:C94) -> 7732 | E94: =B94*C94 -> 0 | F94: 0 | G94: 9.339135459e-12 | H94: =SUMIF('A. Population Info'!$B:$B, A94,'A. Population Info'!$C:$C) -> 0
A95: 91 | B95: 91.5 | C95: =COUNTIF('A. Population Info'!$B:$B, 'A. Age Profile'!A95) -> 0 | D95: =SUM($C$4:C95) -> 7732 | E95: =B95*C95 -> 0 | F95: 0 | G95: 4.243399096e-12 | H95: =SUMIF('A. Population Info'!$B:$B, A95,'A. Population Info'!$C:$C) -> 0
A96: 92 | B96: 92.5 | C96: =COUNTIF('A. Population Info'!$B:$B, 'A. Age Profile'!A96) -> 0 | D96: =SUM($C$4:C96) -> 7732 | E96: 0 | F96: 0 | G96: 1.909120787e-12 | H96: =SUMIF('A. Population Info'!$B:$B, A96,'A. Population Info'!$C:$C) -> 0
A97: 93 | B97: 93.5 | C97: =COUNTIF('A. Population Info'!$B:$B, 'A. Age Profile'!A97) -> 0 | D97: =SUM($C$4:C97) -> 7732 | E97: 0 | F97: 0 | G97: 8.504822519e-13 | H97: =SUMIF('A. Population Info'!$B:$B, A97,'A. Population Info'!$C:$C) -> 0
A98: 94 | B98: 94.5 | C98: =COUNTIF('A. Population Info'!$B:$B, 'A. Age Profile'!A98) -> 0 | D98: =SUM($C$4:C98) -> 7732 | E98: 0 | F98: 0 | G98: 3.751538656e-13 | H98: =SUMIF('A. Population Info'!$B:$B, A98,'A. Population Info'!$C:$C) -> 0
A99: 95 | B99: 95.5 | C99: =COUNTIF('A. Population Info'!$B:$B, 'A. Age Profile'!A99) -> 0 | D99: =SUM($C$4:C99) -> 7732 | E99: 0 | F99: 0 | G99: 1.638573468e-13 | H99: =SUMIF('A. Population Info'!$B:$B, A99,'A. Population Info'!$C:$C) -> 0
A100: 96 | B100: 96.5 | C100: =COUNTIF('A. Population Info'!$B:$B, 'A. Age Profile'!A100) -> 0 | D100: =SUM($C$4:C100) -> 7732 | E100: 0 | F100: 0 | G100: 7.086548e-14 | H100: =SUMIF('A. Population Info'!$B:$B, A100,'A. Population Info'!$C:$C) -> 0
A101: 97 | B101: 97.5 | C101: =COUNTIF('A. Population Info'!$B:$B, 'A. Age Profile'!A101) -> 0 | D101: =SUM($C$4:C101) -> 7732 | E101: 0 | F101: 0 | G101: 3.034700734e-14 | H101: =SUMIF('A. Population Info'!$B:$B, A101,'A. Population Info'!$C:$C) -> 0
A102: 98 | B102: 98.5 | C102: =COUNTIF('A. Population Info'!$B:$B, 'A. Age Profile'!A102) -> 0 | D102: =SUM($C$4:C102) -> 7732 | E102: 0 | F102: 0 | G102: 1.286794892e-14 | H102: =SUMIF('A. Population Info'!$B:$B, A102,'A. Population Info'!$C:$C) -> 0
A103: 99 | B103: 99.5 | C103: =COUNTIF('A. Population Info'!$B:$B, 'A. Age Profile'!A103) -> 0 | D103: =SUM($C$4:C103) -> 7732 | E103: 0 | F103: 0 | G103: 5.402752946e-15 | H103: =SUMIF('A. Population Info'!$B:$B, A103,'A. Population Info'!$C:$C) -> 0
A104: 100 | B104: 100.5 | C104: =COUNTIF('A. Population Info'!$B:$B, 'A. Age Profile'!A104) -> 0 | D104: =SUM($C$4:C104) -> 7732 | E104: 0 | F104: 0 | G104: 2.246121326e-15 | H104: =SUMIF('A. Population Info'!$B:$B, A104,'A. Population Info'!$C:$C) -> 0

Sheet A. Initial PoF
B1: Initial Probability of Failure
A3: Age Label | B3: No. of Asset Units | C3: PoFpoor (Upper 95%) | D3: PoFavg | E3: PoFgood (Lower 95%)
A4: 0 | B4: 1 | C4: =IF('B. PoF Summary Stats & Params'!$C$12="C", B4*'B. PoF Summary Stats & Params'!$I$8*'B. PoF Summary Stats & Params'!$I$10*A4^('B. PoF Summary Stats & Params'!$I$10-1), IF('B. PoF Summary Stats & Params'!$C$12="W", B4*(('B. PoF Summary Stats & Params'!$M$14/'B. PoF Summary Stats & Params'!$O$14)*((A4)/'B. PoF Summary Stats & Params'!$O$14)^('B. PoF Summary Stats & Params'!$M$14-1)), "Choose Model")) -> 0 | D4: =IF('B. PoF Summary Stats & Params'!$C$12="C", B4*'B. PoF Summary Stats & Params'!$I$8*'B. PoF Summary Stats & Params'!$I$6*A4^('B. PoF Summary Stats & Params'!$I$6-1), IF('B. PoF Summary Stats & Params'!$C$12="W", B4*(('B. PoF Summary Stats & Params'!$M$6/'B. PoF Summary Stats & Params'!$M$8)*((A4)/'B. PoF Summary Stats & Params'!$M$8)^('B. PoF Summary Stats & Params'!$M$6-1)), "Choose Model")) -> 0 | E4: =IF('B. PoF Summary Stats & Params'!$C$12="C", B4*'B. PoF Summary Stats & Params'!$I$8*'B. PoF Summary Stats & Params'!$I$12*A4^('B. PoF Summary Stats & Params'!$I$12-1), IF('B. PoF Summary Stats & Params'!$C$12="W", B4*(('B. PoF Summary Stats & Params'!$M$12/'B. PoF Summary Stats & Params'!$O$12)*((A4)/'B. PoF Summary Stats & Params'!$O$12)^('B. PoF Summary Stats & Params'!$M$12-1)), "Choose Model")) -> 0
A5: 1 | B5: 1 | C5: =IF('B. PoF Summary Stats & Params'!$C$12="C", B5*'B. PoF Summary Stats & Params'!$I$8*'B. PoF Summary Stats & Params'!$I$10*A5^('B. PoF Summary Stats & Params'!$I$10-1), IF('B. PoF Summary Stats & Params'!$C$12="W", B5*(('B. PoF Summary Stats & Params'!$M$14/'B. PoF Summary Stats & Params'!$O$14)*((A5)/'B. PoF Summary Stats & Params'!$O$14)^('B. PoF Summary Stats & Params'!$M$14-1)), "Choose Model")) -> 0.004214078106 | D5: =IF('B. PoF Summary Stats & Params'!$C$12="C", B5*'B. PoF Summary Stats & Params'!$I$8*'B. PoF Summary Stats & Params'!$I$6*A5^('B. PoF Summary Stats & Params'!$I$6-1), IF('B. PoF Summary Stats & Params'!$C$12="W", B5*(('B. PoF Summary Stats & Params'!$M$6/'B. PoF Summary Stats & Params'!$M$8)*((A5)/'B. PoF Summary Stats & Params'!$M$8)^('B. PoF Summary Stats & Params'!$M$6-1)), "Choose Model")) -> 0.004115970863 | E5: =IF('B. PoF Summary Stats & Params'!$C$12="C", B5*'B. PoF Summary Stats & Params'!$I$8*'B. PoF Summary Stats & Params'!$I$12*A5^('B. PoF Summary Stats & Params'!$I$12-1), IF('B. PoF Summary Stats & Params'!$C$12="W", B5*(('B. PoF Summary Stats & Params'!$M$12/'B. PoF Summary Stats & Params'!$O$12)*((A5)/'B. PoF Summary Stats & Params'!$O$12)^('B. PoF Summary Stats & Params'!$M$12-1)), "Choose Model")) -> 0.004017863621
A6: 2 | B6: 1 | C6: =IF('B. PoF Summary Stats & Params'!$C$12="C", B6*'B. PoF Summary Stats & Params'!$I$8*'B. PoF Summary Stats & Params'!$I$10*A6^('B. PoF Summary Stats & Params'!$I$10-1), IF('B. PoF Summary Stats & Params'!$C$12="W", B6*(('B. PoF Summary Stats & Params'!$M$14/'B. PoF Summary Stats & Params'!$O$14)*((A6)/'B. PoF Summary Stats & Params'!$O$14)^('B. PoF Summary Stats & Params'!$M$14-1)), "Choose Model")) -> 0.007311340099 | D6: =IF('B. PoF Summary Stats & Params'!$C$12="C", B6*'B. PoF Summary Stats & Params'!$I$8*'B. PoF Summary Stats & Params'!$I$6*A6^('B. PoF Summary Stats & Params'!$I$6-1), IF('B. PoF Summary Stats & Params'!$C$12="W", B6*(('B. PoF Summary Stats & Params'!$M$6/'B. PoF Summary Stats & Params'!$M$8)*((A6)/'B. PoF Summary Stats & Params'!$M$8)^('B. PoF Summary Stats & Params'!$M$6-1)), "Choose Model")) -> 0.0069372524 | E6: =IF('B. PoF Summary Stats & Params'!$C$12="C", B6*'B. PoF Summary Stats & Params'!$I$8*'B. PoF Summary Stats & Params'!$I$12*A6^('B. PoF Summary Stats & Params'!$I$12-1), IF('B. PoF Summary Stats & Params'!$C$12="W", B6*(('B. PoF Summary Stats & Params'!$M$12/'B. PoF Summary Stats & Params'!$O$12)*((A6)/'B. PoF Summary Stats & Params'!$O$12)^('B. PoF Summary Stats & Params'!$M$12-1)), "Choose Model")) -> 0.006578565362
A7: 3 | B7: 1 | C7: =IF('B. PoF Summary Stats & Params'!$C$12="C", B7*'B. PoF Summary Stats & Params'!$I$8*'B. PoF Summary Stats & Params'!$I$10*A7^('B. PoF Summary Stats & Params'!$I$10-1), IF('B. PoF Summary Stats & Params'!$C$12="W", B7*(('B. PoF Summary Stats & Params'!$M$14/'B. PoF Summary Stats & Params'!$O$14)*((A7)/'B. PoF Summary Stats & Params'!$O$14)^('B. PoF Summary Stats & Params'!$M$14-1)), "Choose Model")) -> 0.01009195348 | D7: =IF('B. PoF Summary Stats & Params'!$C$12="C", B7*'B. PoF Summary Stats & Params'!$I$8*'B. PoF Summary Stats & Params'!$I$6*A7^('B. PoF Summary Stats & Params'!$I$6-1), IF('B. PoF Summary Stats & Params'!$C$12="W", B7*(('B. PoF Summary Stats & Params'!$M$6/'B. PoF Summary Stats & Params'!$M$8)*((A7)/'B. PoF Summary Stats & Params'!$M$8)^('B. PoF Summary Stats & Params'!$M$6-1)), "Choose Model")) -> 0.009414719572 | E7: =IF('B. PoF Summary Stats & Params'!$C$12="C", B7*'B. PoF Summary Stats & Params'!$I$8*'B. PoF Summary Stats & Params'!$I$12*A7^('B. PoF Summary Stats & Params'!$I$12-1), IF('B. PoF Summary Stats & Params'!$C$12="W", B7*(('B. PoF Summary Stats & Params'!$M$12/'B. PoF Summary Stats & Params'!$O$12)*((A7)/'B. PoF Summary Stats & Params'!$O$12)^('B. PoF Summary Stats & Params'!$M$12-1)), "Choose Model")) -> 0.008777942378
A8: 4 | B8: 1 | C8: =IF('B. PoF Summary Stats & Params'!$C$12="C", B8*'B. PoF Summary Stats & Params'!$I$8*'B. PoF Summary Stats & Params'!$I$10*A8^('B. PoF Summary Stats & Params'!$I$10-1), IF('B. PoF Summary Stats & Params'!$C$12="W", B8*(('B. PoF Summary Stats & Params'!$M$14/'B. PoF Summary Stats & Params'!$O$14)*((A8)/'B. PoF Summary Stats & Params'!$O$14)^('B. PoF Summary Stats & Params'!$M$14-1)), "Choose Model")) -> 0.01268502688 | D8: =IF('B. PoF Summary Stats & Params'!$C$12="C", B8*'B. PoF Summary Stats & Params'!$I$8*'B. PoF Summary Stats & Params'!$I$6*A8^('B. PoF Summary Stats & Params'!$I$6-1), IF('B. PoF Summary Stats & Params'!$C$12="W", B8*(('B. PoF Summary Stats & Params'!$M$6/'B. PoF Summary Stats & Params'!$M$8)*((A8)/'B. PoF Summary Stats & Params'!$M$8)^('B. PoF Summary Stats & Params'!$M$6-1)), "Choose Model")) -> 0.01169237404 | E8: =IF('B. PoF Summary Stats & Params'!$C$12="C", B8*'B. PoF Summary Stats & Params'!$I$8*'B. PoF Summary Stats & Params'!$I$12*A8^('B. PoF Summary Stats & Params'!$I$12-1), IF('B. PoF Summary Stats & Params'!$C$12="W", B8*(('B. PoF Summary Stats & Params'!$M$12/'B. PoF Summary Stats & Params'!$O$12)*((A8)/'B. PoF Summary Stats & Params'!$O$12)^('B. PoF Summary Stats & Params'!$M$12-1)), "Choose Model")) -> 0.01077127705
A9: 5 | B9: 1 | C9: =IF('B. PoF Summary Stats & Params'!$C$12="C", B9*'B. PoF Summary Stats & Params'!$I$8*'B. PoF Summary Stats & Params'!$I$10*A9^('B. PoF Summary Stats & Params'!$I$10-1), IF('B. PoF Summary Stats & Params'!$C$12="W", B9*(('B. PoF Summary Stats & Params'!$M$14/'B. PoF Summary Stats & Params'!$O$14)*((A9)/'B. PoF Summary Stats & Params'!$O$14)^('B. PoF Summary Stats & Params'!$M$14-1)), "Choose Model")) -> 0.0151470125 | D9: =IF('B. PoF Summary Stats & Params'!$C$12="C", B9*'B. PoF Summary Stats & Params'!$I$8*'B. PoF Summary Stats & Params'!$I$6*A9^('B. PoF Summary Stats & Params'!$I$6-1), IF('B. PoF Summary Stats & Params'!$C$12="W", B9*(('B. PoF Summary Stats & Params'!$M$6/'B. PoF Summary Stats & Params'!$M$8)*((A9)/'B. PoF Summary Stats & Params'!$M$8)^('B. PoF Summary Stats & Params'!$M$6-1)), "Choose Model")) -> 0.01383211827 | E9: =IF('B. PoF Summary Stats & Params'!$C$12="C", B9*'B. PoF Summary Stats & Params'!$I$8*'B. PoF Summary Stats & Params'!$I$12*A9^('B. PoF Summary Stats & Params'!$I$12-1), IF('B. PoF Summary Stats & Params'!$C$12="W", B9*(('B. PoF Summary Stats & Params'!$M$12/'B. PoF Summary Stats & Params'!$O$12)*((A9)/'B. PoF Summary Stats & Params'!$O$12)^('B. PoF Summary Stats & Params'!$M$12-1)), "Choose Model")) -> 0.01262419203
A10: 6 | B10: 1 | C10: =IF('B. PoF Summary Stats & Params'!$C$12="C", B10*'B. PoF Summary Stats & Params'!$I$8*'B. PoF Summary Stats & Params'!$I$10*A10^('B. PoF Summary Stats & Params'!$I$10-1), IF('B. PoF Summary Stats & Params'!$C$12="W", B10*(('B. PoF Summary Stats & Params'!$M$14/'B. PoF Summary Stats & Params'!$O$14)*((A10)/'B. PoF Summary Stats & Params'!$O$14)^('B. PoF Summary Stats & Params'!$M$14-1)), "Choose Model")) -> 0.01750933474 | D10: =IF('B. PoF Summary Stats & Params'!$C$12="C", B10*'B. PoF Summary Stats & Params'!$I$8*'B. PoF Summary Stats & Params'!$I$6*A10^('B. PoF Summary Stats & Params'!$I$6-1), IF('B. PoF Summary Stats & Params'!$C$12="W", B10*(('B. PoF Summary Stats & Params'!$M$6/'B. PoF Summary Stats & Params'!$M$8)*((A10)/'B. PoF Summary Stats & Params'!$M$8)^('B. PoF Summary Stats & Params'!$M$6-1)), "Choose Model")) -> 0.01586801465 | E10: =IF('B. PoF Summary Stats & Params'!$C$12="C", B10*'B. PoF Summary Stats & Params'!$I$8*'B. PoF Summary Stats & Params'!$I$12*A10^('B. PoF Summary Stats & Params'!$I$12-1), IF('B. PoF Summary Stats & Params'!$C$12="W", B10*(('B. PoF Summary Stats & Params'!$M$12/'B. PoF Summary Stats & Params'!$O$12)*((A10)/'B. PoF Summary Stats & Params'!$O$12)^('B. PoF Summary Stats & Params'!$M$12-1)), "Choose Model")) -> 0.01437238123
A11: 7 | B11: 1 | C11: =IF('B. PoF Summary Stats & Params'!$C$12="C", B11*'B. PoF Summary Stats & Params'!$I$8*'B. PoF Summary Stats & Params'!$I$10*A11^('B. PoF Summary Stats & Params'!$I$10-1), IF('B. PoF Summary Stats & Params'!$C$12="W", B11*(('B. PoF Summary Stats & Params'!$M$14/'B. PoF Summary Stats & Params'!$O$14)*((A11)/'B. PoF Summary Stats & Params'!$O$14)^('B. PoF Summary Stats & Params'!$M$14-1)), "Choose Model")) -> 0.01979187356 | D11: =IF('B. PoF Summary Stats & Params'!$C$12="C", B11*'B. PoF Summary Stats & Params'!$I$8*'B. PoF Summary Stats & Params'!$I$6*A11^('B. PoF Summary Stats & Params'!$I$6-1), IF('B. PoF Summary Stats & Params'!$C$12="W", B11*(('B. PoF Summary Stats & Params'!$M$6/'B. PoF Summary Stats & Params'!$M$8)*((A11)/'B. PoF Summary Stats & Params'!$M$8)^('B. PoF Summary Stats & Params'!$M$6-1)), "Choose Model")) -> 0.01782142125 | E11: =IF('B. PoF Summary Stats & Params'!$C$12="C", B11*'B. PoF Summary Stats & Params'!$I$8*'B. PoF Summary Stats & Params'!$I$12*A11^('B. PoF Summary Stats & Params'!$I$12-1), IF('B. PoF Summary Stats & Params'!$C$12="W", B11*(('B. PoF Summary Stats & Params'!$M$12/'B. PoF Summary Stats & Params'!$O$12)*((A11)/'B. PoF Summary Stats & Params'!$O$12)^('B. PoF Summary Stats & Params'!$M$12-1)), "Choose Model")) -> 0.01603802745
A12: 8 | B12: 1 | C12: =IF('B. PoF Summary Stats & Params'!$C$12="C", B12*'B. PoF Summary Stats & Params'!$I$8*'B. PoF Summary Stats & Params'!$I$10*A12^('B. PoF Summary Stats & Params'!$I$10-1), IF('B. PoF Summary Stats & Params'!$C$12="W", B12*(('B. PoF Summary Stats & Params'!$M$14/'B. PoF Summary Stats & Params'!$O$14)*((A12)/'B. PoF Summary Stats & Params'!$O$14)^('B. PoF Summary Stats & Params'!$M$14-1)), "Choose Model")) -> 0.02200826452 | D12: =IF('B. PoF Summary Stats & Params'!$C$12="C", B12*'B. PoF Summary Stats & Params'!$I$8*'B. PoF Summary Stats & Params'!$I$6*A12^('B. PoF Summary Stats & Params'!$I$6-1), IF('B. PoF Summary Stats & Params'!$C$12="W", B12*(('B. PoF Summary Stats & Params'!$M$6/'B. PoF Summary Stats & Params'!$M$8)*((A12)/'B. PoF Summary Stats & Params'!$M$8)^('B. PoF Summary Stats & Params'!$M$6-1)), "Choose Model")) -> 0.01970688145 | E12: =IF('B. PoF Summary Stats & Params'!$C$12="C", B12*'B. PoF Summary Stats & Params'!$I$8*'B. PoF Summary Stats & Params'!$I$12*A12^('B. PoF Summary Stats & Params'!$I$12-1), IF('B. PoF Summary Stats & Params'!$C$12="W", B12*(('B. PoF Summary Stats & Params'!$M$12/'B. PoF Summary Stats & Params'!$O$12)*((A12)/'B. PoF Summary Stats & Params'!$O$12)^('B. PoF Summary Stats & Params'!$M$12-1)), "Choose Model")) -> 0.01763612626
A13: 9 | B13: 1 | C13: =IF('B. PoF Summary Stats & Params'!$C$12="C", B13*'B. PoF Summary Stats & Params'!$I$8*'B. PoF Summary Stats & Params'!$I$10*A13^('B. PoF Summary Stats & Params'!$I$10-1), IF('B. PoF Summary Stats & Params'!$C$12="W", B13*(('B. PoF Summary Stats & Params'!$M$14/'B. PoF Summary Stats & Params'!$O$14)*((A13)/'B. PoF Summary Stats & Params'!$O$14)^('B. PoF Summary Stats & Params'!$M$14-1)), "Choose Model")) -> 0.02416839996 | D13: =IF('B. PoF Summary Stats & Params'!$C$12="C", B13*'B. PoF Summary Stats & Params'!$I$8*'B. PoF Summary Stats & Params'!$I$6*A13^('B. PoF Summary Stats & Params'!$I$6-1), IF('B. PoF Summary Stats & Params'!$C$12="W", B13*(('B. PoF Summary Stats & Params'!$M$6/'B. PoF Summary Stats & Params'!$M$8)*((A13)/'B. PoF Summary Stats & Params'!$M$8)^('B. PoF Summary Stats & Params'!$M$6-1)), "Choose Model")) -> 0.02153488146 | E13: =IF('B. PoF Summary Stats & Params'!$C$12="C", B13*'B. PoF Summary Stats & Params'!$I$8*'B. PoF Summary Stats & Params'!$I$12*A13^('B. PoF Summary Stats & Params'!$I$12-1), IF('B. PoF Summary Stats & Params'!$C$12="W", B13*(('B. PoF Summary Stats & Params'!$M$12/'B. PoF Summary Stats & Params'!$O$12)*((A13)/'B. PoF Summary Stats & Params'!$O$12)^('B. PoF Summary Stats & Params'!$M$12-1)), "Choose Model")) -> 0.01917742355
A14: 10 | B14: 1 | C14: =IF('B. PoF Summary Stats & Params'!$C$12="C", B14*'B. PoF Summary Stats & Params'!$I$8*'B. PoF Summary Stats & Params'!$I$10*A14^('B. PoF Summary Stats & Params'!$I$10-1), IF('B. PoF Summary Stats & Params'!$C$12="W", B14*(('B. PoF Summary Stats & Params'!$M$14/'B. PoF Summary Stats & Params'!$O$14)*((A14)/'B. PoF Summary Stats & Params'!$O$14)^('B. PoF Summary Stats & Params'!$M$14-1)), "Choose Model")) -> 0.02627975967 | D14: =IF('B. PoF Summary Stats & Params'!$C$12="C", B14*'B. PoF Summary Stats & Params'!$I$8*'B. PoF Summary Stats & Params'!$I$6*A14^('B. PoF Summary Stats & Params'!$I$6-1), IF('B. PoF Summary Stats & Params'!$C$12="W", B14*(('B. PoF Summary Stats & Params'!$M$6/'B. PoF Summary Stats & Params'!$M$8)*((A14)/'B. PoF Summary Stats & Params'!$M$8)^('B. PoF Summary Stats & Params'!$M$6-1)), "Choose Model")) -> 0.02331330781 | E14: =IF('B. PoF Summary Stats & Params'!$C$12="C", B14*'B. PoF Summary Stats & Params'!$I$8*'B. PoF Summary Stats & Params'!$I$12*A14^('B. PoF Summary Stats & Params'!$I$12-1), IF('B. PoF Summary Stats & Params'!$C$12="W", B14*(('B. PoF Summary Stats & Params'!$M$12/'B. PoF Summary Stats & Params'!$O$12)*((A14)/'B. PoF Summary Stats & Params'!$O$12)^('B. PoF Summary Stats & Params'!$M$12-1)), "Choose Model")) -> 0.02066995803
A15: 11 | B15: 1 | C15: =IF('B. PoF Summary Stats & Params'!$C$12="C", B15*'B. PoF Summary Stats & Params'!$I$8*'B. PoF Summary Stats & Params'!$I$10*A15^('B. PoF Summary Stats & Params'!$I$10-1), IF('B. PoF Summary Stats & Params'!$C$12="W", B15*(('B. PoF Summary Stats & Params'!$M$14/'B. PoF Summary Stats & Params'!$O$14)*((A15)/'B. PoF Summary Stats & Params'!$O$14)^('B. PoF Summary Stats & Params'!$M$14-1)), "Choose Model")) -> 0.02834818206 | D15: =IF('B. PoF Summary Stats & Params'!$C$12="C", B15*'B. PoF Summary Stats & Params'!$I$8*'B. PoF Summary Stats & Params'!$I$6*A15^('B. PoF Summary Stats & Params'!$I$6-1), IF('B. PoF Summary Stats & Params'!$C$12="W", B15*(('B. PoF Summary Stats & Params'!$M$6/'B. PoF Summary Stats & Params'!$M$8)*((A15)/'B. PoF Summary Stats & Params'!$M$8)^('B. PoF Summary Stats & Params'!$M$6-1)), "Choose Model")) -> 0.02504828738 | E15: =IF('B. PoF Summary Stats & Params'!$C$12="C", B15*'B. PoF Summary Stats & Params'!$I$8*'B. PoF Summary Stats & Params'!$I$12*A15^('B. PoF Summary Stats & Params'!$I$12-1), IF('B. PoF Summary Stats & Params'!$C$12="W", B15*(('B. PoF Summary Stats & Params'!$M$12/'B. PoF Summary Stats & Params'!$O$12)*((A15)/'B. PoF Summary Stats & Params'!$O$12)^('B. PoF Summary Stats & Params'!$M$12-1)), "Choose Model")) -> 0.02211994536
A16: 12 | B16: 1 | C16: =IF('B. PoF Summary Stats & Params'!$C$12="C", B16*'B. PoF Summary Stats & Params'!$I$8*'B. PoF Summary Stats & Params'!$I$10*A16^('B. PoF Summary Stats & Params'!$I$10-1), IF('B. PoF Summary Stats & Params'!$C$12="W", B16*(('B. PoF Summary Stats & Params'!$M$14/'B. PoF Summary Stats & Params'!$O$14)*((A16)/'B. PoF Summary Stats & Params'!$O$14)^('B. PoF Summary Stats & Params'!$M$14-1)), "Choose Model")) -> 0.03037834088 | D16: =IF('B. PoF Summary Stats & Params'!$C$12="C", B16*'B. PoF Summary Stats & Params'!$I$8*'B. PoF Summary Stats & Params'!$I$6*A16^('B. PoF Summary Stats & Params'!$I$6-1), IF('B. PoF Summary Stats & Params'!$C$12="W", B16*(('B. PoF Summary Stats & Params'!$M$6/'B. PoF Summary Stats & Params'!$M$8)*((A16)/'B. PoF Summary Stats & Params'!$M$8)^('B. PoF Summary Stats & Params'!$M$6-1)), "Choose Model")) -> 0.02674470407 | E16: =IF('B. PoF Summary Stats & Params'!$C$12="C", B16*'B. PoF Summary Stats & Params'!$I$8*'B. PoF Summary Stats & Params'!$I$12*A16^('B. PoF Summary Stats & Params'!$I$12-1), IF('B. PoF Summary Stats & Params'!$C$12="W", B16*(('B. PoF Summary Stats & Params'!$M$12/'B. PoF Summary Stats & Params'!$O$12)*((A16)/'B. PoF Summary Stats & Params'!$O$12)^('B. PoF Summary Stats & Params'!$M$12-1)), "Choose Model")) -> 0.02353231922
A17: 13 | B17: 1 | C17: =IF('B. PoF Summary Stats & Params'!$C$12="C", B17*'B. PoF Summary Stats & Params'!$I$8*'B. PoF Summary Stats & Params'!$I$10*A17^('B. PoF Summary Stats & Params'!$I$10-1), IF('B. PoF Summary Stats & Params'!$C$12="W", B17*(('B. PoF Summary Stats & Params'!$M$14/'B. PoF Summary Stats & Params'!$O$14)*((A17)/'B. PoF Summary Stats & Params'!$O$14)^('B. PoF Summary Stats & Params'!$M$14-1)), "Choose Model")) -> 0.03237405522 | D17: =IF('B. PoF Summary Stats & Params'!$C$12="C", B17*'B. PoF Summary Stats & Params'!$I$8*'B. PoF Summary Stats & Params'!$I$6*A17^('B. PoF Summary Stats & Params'!$I$6-1), IF('B. PoF Summary Stats & Params'!$C$12="W", B17*(('B. PoF Summary Stats & Params'!$M$6/'B. PoF Summary Stats & Params'!$M$8)*((A17)/'B. PoF Summary Stats & Params'!$M$8)^('B. PoF Summary Stats & Params'!$M$6-1)), "Choose Model")) -> 0.0284065334 | E17: =IF('B. PoF Summary Stats & Params'!$C$12="C", B17*'B. PoF Summary Stats & Params'!$I$8*'B. PoF Summary Stats & Params'!$I$12*A17^('B. PoF Summary Stats & Params'!$I$12-1), IF('B. PoF Summary Stats & Params'!$C$12="W", B17*(('B. PoF Summary Stats & Params'!$M$12/'B. PoF Summary Stats & Params'!$O$12)*((A17)/'B. PoF Summary Stats & Params'!$O$12)^('B. PoF Summary Stats & Params'!$M$12-1)), "Choose Model")) -> 0.02491108025
A18: 14 | B18: 1 | C18: =IF('B. PoF Summary Stats & Params'!$C$12="C", B18*'B. PoF Summary Stats & Params'!$I$8*'B. PoF Summary Stats & Params'!$I$10*A18^('B. PoF Summary Stats & Params'!$I$10-1), IF('B. PoF Summary Stats & Params'!$C$12="W", B18*(('B. PoF Summary Stats & Params'!$M$14/'B. PoF Summary Stats & Params'!$O$14)*((A18)/'B. PoF Summary Stats & Params'!$O$14)^('B. PoF Summary Stats & Params'!$M$14-1)), "Choose Model")) -> 0.03433849947 | D18: =IF('B. PoF Summary Stats & Params'!$C$12="C", B18*'B. PoF Summary Stats & Params'!$I$8*'B. PoF Summary Stats & Params'!$I$6*A18^('B. PoF Summary Stats & Params'!$I$6-1), IF('B. PoF Summary Stats & Params'!$C$12="W", B18*(('B. PoF Summary Stats & Params'!$M$6/'B. PoF Summary Stats & Params'!$M$8)*((A18)/'B. PoF Summary Stats & Params'!$M$8)^('B. PoF Summary Stats & Params'!$M$6-1)), "Choose Model")) -> 0.03003706816 | E18: =IF('B. PoF Summary Stats & Params'!$C$12="C", B18*'B. PoF Summary Stats & Params'!$I$8*'B. PoF Summary Stats & Params'!$I$12*A18^('B. PoF Summary Stats & Params'!$I$12-1), IF('B. PoF Summary Stats & Params'!$C$12="W", B18*(('B. PoF Summary Stats & Params'!$M$12/'B. PoF Summary Stats & Params'!$O$12)*((A18)/'B. PoF Summary Stats & Params'!$O$12)^('B. PoF Summary Stats & Params'!$M$12-1)), "Choose Model")) -> 0.02625953039
A19: 15 | B19: 1 | C19: =IF('B. PoF Summary Stats & Params'!$C$12="C", B19*'B. PoF Summary Stats & Params'!$I$8*'B. PoF Summary Stats & Params'!$I$10*A19^('B. PoF Summary Stats & Params'!$I$10-1), IF('B. PoF Summary Stats & Params'!$C$12="W", B19*(('B. PoF Summary Stats & Params'!$M$14/'B. PoF Summary Stats & Params'!$O$14)*((A19)/'B. PoF Summary Stats & Params'!$O$14)^('B. PoF Summary Stats & Params'!$M$14-1)), "Choose Model")) -> 0.03627435034 | D19: =IF('B. PoF Summary Stats & Params'!$C$12="C", B19*'B. PoF Summary Stats & Params'!$I$8*'B. PoF Summary Stats & Params'!$I$6*A19^('B. PoF Summary Stats & Params'!$I$6-1), IF('B. PoF Summary Stats & Params'!$C$12="W", B19*(('B. PoF Summary Stats & Params'!$M$6/'B. PoF Summary Stats & Params'!$M$8)*((A19)/'B. PoF Summary Stats & Params'!$M$8)^('B. PoF Summary Stats & Params'!$M$6-1)), "Choose Model")) -> 0.03163907592 | E19: =IF('B. PoF Summary Stats & Params'!$C$12="C", B19*'B. PoF Summary Stats & Params'!$I$8*'B. PoF Summary Stats & Params'!$I$12*A19^('B. PoF Summary Stats & Params'!$I$12-1), IF('B. PoF Summary Stats & Params'!$C$12="W", B19*(('B. PoF Summary Stats & Params'!$M$12/'B. PoF Summary Stats & Params'!$O$12)*((A19)/'B. PoF Summary Stats & Params'!$O$12)^('B. PoF Summary Stats & Params'!$M$12-1)), "Choose Model")) -> 0.02758043595
A20: 16 | B20: 1 | C20: =IF('B. PoF Summary Stats & Params'!$C$12="C", B20*'B. PoF Summary Stats & Params'!$I$8*'B. PoF Summary Stats & Params'!$I$10*A20^('B. PoF Summary Stats & Params'!$I$10-1), IF('B. PoF Summary Stats & Params'!$C$12="W", B20*(('B. PoF Summary Stats & Params'!$M$14/'B. PoF Summary Stats & Params'!$O$14)*((A20)/'B. PoF Summary Stats & Params'!$O$14)^('B. PoF Summary Stats & Params'!$M$14-1)), "Choose Model")) -> 0.03818389286 | D20: =IF('B. PoF Summary Stats & Params'!$C$12="C", B20*'B. PoF Summary Stats & Params'!$I$8*'B. PoF Summary Stats & Params'!$I$6*A20^('B. PoF Summary Stats & Params'!$I$6-1), IF('B. PoF Summary Stats & Params'!$C$12="W", B20*(('B. PoF Summary Stats & Params'!$M$6/'B. PoF Summary Stats & Params'!$M$8)*((A20)/'B. PoF Summary Stats & Params'!$M$8)^('B. PoF Summary Stats & Params'!$M$6-1)), "Choose Model")) -> 0.03321491215 | E20: =IF('B. PoF Summary Stats & Params'!$C$12="C", B20*'B. PoF Summary Stats & Params'!$I$8*'B. PoF Summary Stats & Params'!$I$12*A20^('B. PoF Summary Stats & Params'!$I$12-1), IF('B. PoF Summary Stats & Params'!$C$12="W", B20*(('B. PoF Summary Stats & Params'!$M$12/'B. PoF Summary Stats & Params'!$O$12)*((A20)/'B. PoF Summary Stats & Params'!$O$12)^('B. PoF Summary Stats & Params'!$M$12-1)), "Choose Model")) -> 0.02887614422
A21: 17 | B21: 1 | C21: =IF('B. PoF Summary Stats & Params'!$C$12="C", B21*'B. PoF Summary Stats & Params'!$I$8*'B. PoF Summary Stats & Params'!$I$10*A21^('B. PoF Summary Stats & Params'!$I$10-1), IF('B. PoF Summary Stats & Params'!$C$12="W", B21*(('B. PoF Summary Stats & Params'!$M$14/'B. PoF Summary Stats & Params'!$O$14)*((A21)/'B. PoF Summary Stats & Params'!$O$14)^('B. PoF Summary Stats & Params'!$M$14-1)), "Choose Model")) -> 0.04006909848 | D21: =IF('B. PoF Summary Stats & Params'!$C$12="C", B21*'B. PoF Summary Stats & Params'!$I$8*'B. PoF Summary Stats & Params'!$I$6*A21^('B. PoF Summary Stats & Params'!$I$6-1), IF('B. PoF Summary Stats & Params'!$C$12="W", B21*(('B. PoF Summary Stats & Params'!$M$6/'B. PoF Summary Stats & Params'!$M$8)*((A21)/'B. PoF Summary Stats & Params'!$M$8)^('B. PoF Summary Stats & Params'!$M$6-1)), "Choose Model")) -> 0.03476660345 | E21: =IF('B. PoF Summary Stats & Params'!$C$12="C", B21*'B. PoF Summary Stats & Params'!$I$8*'B. PoF Summary Stats & Params'!$I$12*A21^('B. PoF Summary Stats & Params'!$I$12-1), IF('B. PoF Summary Stats & Params'!$C$12="W", B21*(('B. PoF Summary Stats & Params'!$M$12/'B. PoF Summary Stats & Params'!$O$12)*((A21)/'B. PoF Summary Stats & Params'!$O$12)^('B. PoF Summary Stats & Params'!$M$12-1)), "Choose Model")) -> 0.03014866912
A22: 18 | B22: 1 | C22: =IF('B. PoF Summary Stats & Params'!$C$12="C", B22*'B. PoF Summary Stats & Params'!$I$8*'B. PoF Summary Stats & Params'!$I$10*A22^('B. PoF Summary Stats & Params'!$I$10-1), IF('B. PoF Summary Stats & Params'!$C$12="W", B22*(('B. PoF Summary Stats & Params'!$M$14/'B. PoF Summary Stats & Params'!$O$14)*((A22)/'B. PoF Summary Stats & Params'!$O$14)^('B. PoF Summary Stats & Params'!$M$14-1)), "Choose Model")) -> 0.04193168406 | D22: =IF('B. PoF Summary Stats & Params'!$C$12="C", B22*'B. PoF Summary Stats & Params'!$I$8*'B. PoF Summary Stats & Params'!$I$6*A22^('B. PoF Summary Stats & Params'!$I$6-1), IF('B. PoF Summary Stats & Params'!$C$12="W", B22*(('B. PoF Summary Stats & Params'!$M$6/'B. PoF Summary Stats & Params'!$M$8)*((A22)/'B. PoF Summary Stats & Params'!$M$8)^('B. PoF Summary Stats & Params'!$M$6-1)), "Choose Model")) -> 0.03629591001 | E22: =IF('B. PoF Summary Stats & Params'!$C$12="C", B22*'B. PoF Summary Stats & Params'!$I$8*'B. PoF Summary Stats & Params'!$I$12*A22^('B. PoF Summary Stats & Params'!$I$12-1), IF('B. PoF Summary Stats & Params'!$C$12="W", B22*(('B. PoF Summary Stats & Params'!$M$12/'B. PoF Summary Stats & Params'!$O$12)*((A22)/'B. PoF Summary Stats & Params'!$O$12)^('B. PoF Summary Stats & Params'!$M$12-1)), "Choose Model")) -> 0.03139975524
A23: 19 | B23: 1 | C23: =IF('B. PoF Summary Stats & Params'!$C$12="C", B23*'B. PoF Summary Stats & Params'!$I$8*'B. PoF Summary Stats & Params'!$I$10*A23^('B. PoF Summary Stats & Params'!$I$10-1), IF('B. PoF Summary Stats & Params'!$C$12="W", B23*(('B. PoF Summary Stats & Params'!$M$14/'B. PoF Summary Stats & Params'!$O$14)*((A23)/'B. PoF Summary Stats & Params'!$O$14)^('B. PoF Summary Stats & Params'!$M$14-1)), "Choose Model")) -> 0.04377315698 | D23: =IF('B. PoF Summary Stats & Params'!$C$12="C", B23*'B. PoF Summary Stats & Params'!$I$8*'B. PoF Summary Stats & Params'!$I$6*A23^('B. PoF Summary Stats & Params'!$I$6-1), IF('B. PoF Summary Stats & Params'!$C$12="W", B23*(('B. PoF Summary Stats & Params'!$M$6/'B. PoF Summary Stats & Params'!$M$8)*((A23)/'B. PoF Summary Stats & Params'!$M$8)^('B. PoF Summary Stats & Params'!$M$6-1)), "Choose Model")) -> 0.03780437347 | E23: =IF('B. PoF Summary Stats & Params'!$C$12="C", B23*'B. PoF Summary Stats & Params'!$I$8*'B. PoF Summary Stats & Params'!$I$12*A23^('B. PoF Summary Stats & Params'!$I$12-1), IF('B. PoF Summary Stats & Params'!$C$12="W", B23*(('B. PoF Summary Stats & Params'!$M$12/'B. PoF Summary Stats & Params'!$O$12)*((A23)/'B. PoF Summary Stats & Params'!$O$12)^('B. PoF Summary Stats & Params'!$M$12-1)), "Choose Model")) -> 0.03263092679
A24: 20 | B24: 1 | C24: =IF('B. PoF Summary Stats & Params'!$C$12="C", B24*'B. PoF Summary Stats & Params'!$I$8*'B. PoF Summary Stats & Params'!$I$10*A24^('B. PoF Summary Stats & Params'!$I$10-1), IF('B. PoF Summary Stats & Params'!$C$12="W", B24*(('B. PoF Summary Stats & Params'!$M$14/'B. PoF Summary Stats & Params'!$O$14)*((A24)/'B. PoF Summary Stats & Params'!$O$14)^('B. PoF Summary Stats & Params'!$M$14-1)), "Choose Model")) -> 0.04559485037 | D24: =IF('B. PoF Summary Stats & Params'!$C$12="C", B24*'B. PoF Summary Stats & Params'!$I$8*'B. PoF Summary Stats & Params'!$I$6*A24^('B. PoF Summary Stats & Params'!$I$6-1), IF('B. PoF Summary Stats & Params'!$C$12="W", B24*(('B. PoF Summary Stats & Params'!$M$6/'B. PoF Summary Stats & Params'!$M$8)*((A24)/'B. PoF Summary Stats & Params'!$M$8)^('B. PoF Summary Stats & Params'!$M$6-1)), "Choose Model")) -> 0.03929335409 | E24: =IF('B. PoF Summary Stats & Params'!$C$12="C", B24*'B. PoF Summary Stats & Params'!$I$8*'B. PoF Summary Stats & Params'!$I$12*A24^('B. PoF Summary Stats & Params'!$I$12-1), IF('B. PoF Summary Stats & Params'!$C$12="W", B24*(('B. PoF Summary Stats & Params'!$M$12/'B. PoF Summary Stats & Params'!$O$12)*((A24)/'B. PoF Summary Stats & Params'!$O$12)^('B. PoF Summary Stats & Params'!$M$12-1)), "Choose Model")) -> 0.03384352551
A25: 21 | B25: 1 | C25: =IF('B. PoF Summary Stats & Params'!$C$12="C", B25*'B. PoF Summary Stats & Params'!$I$8*'B. PoF Summary Stats & Params'!$I$10*A25^('B. PoF Summary Stats & Params'!$I$10-1), IF('B. PoF Summary Stats & Params'!$C$12="W", B25*(('B. PoF Summary Stats & Params'!$M$14/'B. PoF Summary Stats & Params'!$O$14)*((A25)/'B. PoF Summary Stats & Params'!$O$14)^('B. PoF Summary Stats & Params'!$M$14-1)), "Choose Model")) -> 0.04739795095 | D25: =IF('B. PoF Summary Stats & Params'!$C$12="C", B25*'B. PoF Summary Stats & Params'!$I$8*'B. PoF Summary Stats & Params'!$I$6*A25^('B. PoF Summary Stats & Params'!$I$6-1), IF('B. PoF Summary Stats & Params'!$C$12="W", B25*(('B. PoF Summary Stats & Params'!$M$6/'B. PoF Summary Stats & Params'!$M$8)*((A25)/'B. PoF Summary Stats & Params'!$M$8)^('B. PoF Summary Stats & Params'!$M$6-1)), "Choose Model")) -> 0.04076406006 | E25: =IF('B. PoF Summary Stats & Params'!$C$12="C", B25*'B. PoF Summary Stats & Params'!$I$8*'B. PoF Summary Stats & Params'!$I$12*A25^('B. PoF Summary Stats & Params'!$I$12-1), IF('B. PoF Summary Stats & Params'!$C$12="W", B25*(('B. PoF Summary Stats & Params'!$M$12/'B. PoF Summary Stats & Params'!$O$12)*((A25)/'B. PoF Summary Stats & Params'!$O$12)^('B. PoF Summary Stats & Params'!$M$12-1)), "Choose Model")) -> 0.03503874052
A26: 22 | B26: 1 | C26: =IF('B. PoF Summary Stats & Params'!$C$12="C", B26*'B. PoF Summary Stats & Params'!$I$8*'B. PoF Summary Stats & Params'!$I$10*A26^('B. PoF Summary Stats & Params'!$I$10-1), IF('B. PoF Summary Stats & Params'!$C$12="W", B26*(('B. PoF Summary Stats & Params'!$M$14/'B. PoF Summary Stats & Params'!$O$14)*((A26)/'B. PoF Summary Stats & Params'!$O$14)^('B. PoF Summary Stats & Params'!$M$14-1)), "Choose Model")) -> 0.04918352129 | D26: =IF('B. PoF Summary Stats & Params'!$C$12="C", B26*'B. PoF Summary Stats & Params'!$I$8*'B. PoF Summary Stats & Params'!$I$6*A26^('B. PoF Summary Stats & Params'!$I$6-1), IF('B. PoF Summary Stats & Params'!$C$12="W", B26*(('B. PoF Summary Stats & Params'!$M$6/'B. PoF Summary Stats & Params'!$M$8)*((A26)/'B. PoF Summary Stats & Params'!$M$8)^('B. PoF Summary Stats & Params'!$M$6-1)), "Choose Model")) -> 0.04221757089 | E26: =IF('B. PoF Summary Stats & Params'!$C$12="C", B26*'B. PoF Summary Stats & Params'!$I$8*'B. PoF Summary Stats & Params'!$I$12*A26^('B. PoF Summary Stats & Params'!$I$12-1), IF('B. PoF Summary Stats & Params'!$C$12="W", B26*(('B. PoF Summary Stats & Params'!$M$12/'B. PoF Summary Stats & Params'!$O$12)*((A26)/'B. PoF Summary Stats & Params'!$O$12)^('B. PoF Summary Stats & Params'!$M$12-1)), "Choose Model")) -> 0.03621763207
A27: 23 | B27: 1 | C27: =IF('B. PoF Summary Stats & Params'!$C$12="C", B27*'B. PoF Summary Stats & Params'!$I$8*'B. PoF Summary Stats & Params'!$I$10*A27^('B. PoF Summary Stats & Params'!$I$10-1), IF('B. PoF Summary Stats & Params'!$C$12="W", B27*(('B. PoF Summary Stats & Params'!$M$14/'B. PoF Summary Stats & Params'!$O$14)*((A27)/'B. PoF Summary Stats & Params'!$O$14)^('B. PoF Summary Stats & Params'!$M$14-1)), "Choose Model")) -> 0.05095251784 | D27: =IF('B. PoF Summary Stats & Params'!$C$12="C", B27*'B. PoF Summary Stats & Params'!$I$8*'B. PoF Summary Stats & Params'!$I$6*A27^('B. PoF Summary Stats & Params'!$I$6-1), IF('B. PoF Summary Stats & Params'!$C$12="W", B27*(('B. PoF Summary Stats & Params'!$M$6/'B. PoF Summary Stats & Params'!$M$8)*((A27)/'B. PoF Summary Stats & Params'!$M$8)^('B. PoF Summary Stats & Params'!$M$6-1)), "Choose Model")) -> 0.04365485639 | E27: =IF('B. PoF Summary Stats & Params'!$C$12="C", B27*'B. PoF Summary Stats & Params'!$I$8*'B. PoF Summary Stats & Params'!$I$12*A27^('B. PoF Summary Stats & Params'!$I$12-1), IF('B. PoF Summary Stats & Params'!$C$12="W", B27*(('B. PoF Summary Stats & Params'!$M$12/'B. PoF Summary Stats & Params'!$O$12)*((A27)/'B. PoF Summary Stats & Params'!$O$12)^('B. PoF Summary Stats & Params'!$M$12-1)), "Choose Model")) -> 0.03738115075
A28: 24 | B28: 1 | C28: =IF('B. PoF Summary Stats & Params'!$C$12="C", B28*'B. PoF Summary Stats & Params'!$I$8*'B. PoF Summary Stats & Params'!$I$10*A28^('B. PoF Summary Stats & Params'!$I$10-1), IF('B. PoF Summary Stats & Params'!$C$12="W", B28*(('B. PoF Summary Stats & Params'!$M$14/'B. PoF Summary Stats & Params'!$O$14)*((A28)/'B. PoF Summary Stats & Params'!$O$14)^('B. PoF Summary Stats & Params'!$M$14-1)), "Choose Model")) -> 0.05270580569 | D28: =IF('B. PoF Summary Stats & Params'!$C$12="C", B28*'B. PoF Summary Stats & Params'!$I$8*'B. PoF Summary Stats & Params'!$I$6*A28^('B. PoF Summary Stats & Params'!$I$6-1), IF('B. PoF Summary Stats & Params'!$C$12="W", B28*(('B. PoF Summary Stats & Params'!$M$6/'B. PoF Summary Stats & Params'!$M$8)*((A28)/'B. PoF Summary Stats & Params'!$M$8)^('B. PoF Summary Stats & Params'!$M$6-1)), "Choose Model")) -> 0.04507679201 | E28: =IF('B. PoF Summary Stats & Params'!$C$12="C", B28*'B. PoF Summary Stats & Params'!$I$8*'B. PoF Summary Stats & Params'!$I$12*A28^('B. PoF Summary Stats & Params'!$I$12-1), IF('B. PoF Summary Stats & Params'!$C$12="W", B28*(('B. PoF Summary Stats & Params'!$M$12/'B. PoF Summary Stats & Params'!$O$12)*((A28)/'B. PoF Summary Stats & Params'!$O$12)^('B. PoF Summary Stats & Params'!$M$12-1)), "Choose Model")) -> 0.03853015302
A29: 25 | B29: 1 | C29: =IF('B. PoF Summary Stats & Params'!$C$12="C", B29*'B. PoF Summary Stats & Params'!$I$8*'B. PoF Summary Stats & Params'!$I$10*A29^('B. PoF Summary Stats & Params'!$I$10-1), IF('B. PoF Summary Stats & Params'!$C$12="W", B29*(('B. PoF Summary Stats & Params'!$M$14/'B. PoF Summary Stats & Params'!$O$14)*((A29)/'B. PoF Summary Stats & Params'!$O$14)^('B. PoF Summary Stats & Params'!$M$14-1)), "Choose Model")) -> 0.05444417069 | D29: =IF('B. PoF Summary Stats & Params'!$C$12="C", B29*'B. PoF Summary Stats & Params'!$I$8*'B. PoF Summary Stats & Params'!$I$6*A29^('B. PoF Summary Stats & Params'!$I$6-1), IF('B. PoF Summary Stats & Params'!$C$12="W", B29*(('B. PoF Summary Stats & Params'!$M$6/'B. PoF Summary Stats & Params'!$M$8)*((A29)/'B. PoF Summary Stats & Params'!$M$8)^('B. PoF Summary Stats & Params'!$M$6-1)), "Choose Model")) -> 0.04648417159 | E29: =IF('B. PoF Summary Stats & Params'!$C$12="C", B29*'B. PoF Summary Stats & Params'!$I$8*'B. PoF Summary Stats & Params'!$I$12*A29^('B. PoF Summary Stats & Params'!$I$12-1), IF('B. PoF Summary Stats & Params'!$C$12="W", B29*(('B. PoF Summary Stats & Params'!$M$12/'B. PoF Summary Stats & Params'!$O$12)*((A29)/'B. PoF Summary Stats & Params'!$O$12)^('B. PoF Summary Stats & Params'!$M$12-1)), "Choose Model")) -> 0.03966541413
A30: 26 | B30: 1 | C30: =IF('B. PoF Summary Stats & Params'!$C$12="C", B30*'B. PoF Summary Stats & Params'!$I$8*'B. PoF Summary Stats & Params'!$I$10*A30^('B. PoF Summary Stats & Params'!$I$10-1), IF('B. PoF Summary Stats & Params'!$C$12="W", B30*(('B. PoF Summary Stats & Params'!$M$14/'B. PoF Summary Stats & Params'!$O$14)*((A30)/'B. PoF Summary Stats & Params'!$O$14)^('B. PoF Summary Stats & Params'!$M$14-1)), "Choose Model")) -> 0.05616832962 | D30: =IF('B. PoF Summary Stats & Params'!$C$12="C", B30*'B. PoF Summary Stats & Params'!$I$8*'B. PoF Summary Stats & Params'!$I$6*A30^('B. PoF Summary Stats & Params'!$I$6-1), IF('B. PoF Summary Stats & Params'!$C$12="W", B30*(('B. PoF Summary Stats & Params'!$M$6/'B. PoF Summary Stats & Params'!$M$8)*((A30)/'B. PoF Summary Stats & Params'!$M$8)^('B. PoF Summary Stats & Params'!$M$6-1)), "Choose Model")) -> 0.04787771793 | E30: =IF('B. PoF Summary Stats & Params'!$C$12="C", B30*'B. PoF Summary Stats & Params'!$I$8*'B. PoF Summary Stats & Params'!$I$12*A30^('B. PoF Summary Stats & Params'!$I$12-1), IF('B. PoF Summary Stats & Params'!$C$12="W", B30*(('B. PoF Summary Stats & Params'!$M$12/'B. PoF Summary Stats & Params'!$O$12)*((A30)/'B. PoF Summary Stats & Params'!$O$12)^('B. PoF Summary Stats & Params'!$M$12-1)), "Choose Model")) -> 0.04078763869
A31: 27 | B31: 1 | C31: =IF('B. PoF Summary Stats & Params'!$C$12="C", B31*'B. PoF Summary Stats & Params'!$I$8*'B. PoF Summary Stats & Params'!$I$10*A31^('B. PoF Summary Stats & Params'!$I$10-1), IF('B. PoF Summary Stats & Params'!$C$12="W", B31*(('B. PoF Summary Stats & Params'!$M$14/'B. PoF Summary Stats & Params'!$O$14)*((A31)/'B. PoF Summary Stats & Params'!$O$14)^('B. PoF Summary Stats & Params'!$M$14-1)), "Choose Model")) -> 0.05787893866 | D31: =IF('B. PoF Summary Stats & Params'!$C$12="C", B31*'B. PoF Summary Stats & Params'!$I$8*'B. PoF Summary Stats & Params'!$I$6*A31^('B. PoF Summary Stats & Params'!$I$6-1), IF('B. PoF Summary Stats & Params'!$C$12="W", B31*(('B. PoF Summary Stats & Params'!$M$6/'B. PoF Summary Stats & Params'!$M$8)*((A31)/'B. PoF Summary Stats & Params'!$M$8)^('B. PoF Summary Stats & Params'!$M$6-1)), "Choose Model")) -> 0.04925809163 | E31: =IF('B. PoF Summary Stats & Params'!$C$12="C", B31*'B. PoF Summary Stats & Params'!$I$8*'B. PoF Summary Stats & Params'!$I$12*A31^('B. PoF Summary Stats & Params'!$I$12-1), IF('B. PoF Summary Stats & Params'!$C$12="W", B31*(('B. PoF Summary Stats & Params'!$M$12/'B. PoF Summary Stats & Params'!$O$12)*((A31)/'B. PoF Summary Stats & Params'!$O$12)^('B. PoF Summary Stats & Params'!$M$12-1)), "Choose Model")) -> 0.04189746959
A32: 28 | B32: 1 | C32: =IF('B. PoF Summary Stats & Params'!$C$12="C", B32*'B. PoF Summary Stats & Params'!$I$8*'B. PoF Summary Stats & Params'!$I$10*A32^('B. PoF Summary Stats & Params'!$I$10-1), IF('B. PoF Summary Stats & Params'!$C$12="W", B32*(('B. PoF Summary Stats & Params'!$M$14/'B. PoF Summary Stats & Params'!$O$14)*((A32)/'B. PoF Summary Stats & Params'!$O$14)^('B. PoF Summary Stats & Params'!$M$14-1)), "Choose Model")) -> 0.05957660057 | D32: =IF('B. PoF Summary Stats & Params'!$C$12="C", B32*'B. PoF Summary Stats & Params'!$I$8*'B. PoF Summary Stats & Params'!$I$6*A32^('B. PoF Summary Stats & Params'!$I$6-1), IF('B. PoF Summary Stats & Params'!$C$12="W", B32*(('B. PoF Summary Stats & Params'!$M$6/'B. PoF Summary Stats & Params'!$M$8)*((A32)/'B. PoF Summary Stats & Params'!$M$8)^('B. PoF Summary Stats & Params'!$M$6-1)), "Choose Model")) -> 0.0506258985 | E32: =IF('B. PoF Summary Stats & Params'!$C$12="C", B32*'B. PoF Summary Stats & Params'!$I$8*'B. PoF Summary Stats & Params'!$I$12*A32^('B. PoF Summary Stats & Params'!$I$12-1), IF('B. PoF Summary Stats & Params'!$C$12="W", B32*(('B. PoF Summary Stats & Params'!$M$12/'B. PoF Summary Stats & Params'!$O$12)*((A32)/'B. PoF Summary Stats & Params'!$O$12)^('B. PoF Summary Stats & Params'!$M$12-1)), "Choose Model")) -> 0.04299549546
A33: 29 | B33: 1 | C33: =IF('B. PoF Summary Stats & Params'!$C$12="C", B33*'B. PoF Summary Stats & Params'!$I$8*'B. PoF Summary Stats & Params'!$I$10*A33^('B. PoF Summary Stats & Params'!$I$10-1), IF('B. PoF Summary Stats & Params'!$C$12="W", B33*(('B. PoF Summary Stats & Params'!$M$14/'B. PoF Summary Stats & Params'!$O$14)*((A33)/'B. PoF Summary Stats & Params'!$O$14)^('B. PoF Summary Stats & Params'!$M$14-1)), "Choose Model")) -> 0.06126187077 | D33: =IF('B. PoF Summary Stats & Params'!$C$12="C", B33*'B. PoF Summary Stats & Params'!$I$8*'B. PoF Summary Stats & Params'!$I$6*A33^('B. PoF Summary Stats & Params'!$I$6-1), IF('B. PoF Summary Stats & Params'!$C$12="W", B33*(('B. PoF Summary Stats & Params'!$M$6/'B. PoF Summary Stats & Params'!$M$8)*((A33)/'B. PoF Summary Stats & Params'!$M$8)^('B. PoF Summary Stats & Params'!$M$6-1)), "Choose Model")) -> 0.05198169594 | E33: =IF('B. PoF Summary Stats & Params'!$C$12="C", B33*'B. PoF Summary Stats & Params'!$I$8*'B. PoF Summary Stats & Params'!$I$12*A33^('B. PoF Summary Stats & Params'!$I$12-1), IF('B. PoF Summary Stats & Params'!$C$12="W", B33*(('B. PoF Summary Stats & Params'!$M$12/'B. PoF Summary Stats & Params'!$O$12)*((A33)/'B. PoF Summary Stats & Params'!$O$12)^('B. PoF Summary Stats & Params'!$M$12-1)), "Choose Model")) -> 0.04408225707
A34: 30 | B34: 1 | C34: =IF('B. PoF Summary Stats & Params'!$C$12="C", B34*'B. PoF Summary Stats & Params'!$I$8*'B. PoF Summary Stats & Params'!$I$10*A34^('B. PoF Summary Stats & Params'!$I$10-1), IF('B. PoF Summary Stats & Params'!$C$12="W", B34*(('B. PoF Summary Stats & Params'!$M$14/'B. PoF Summary Stats & Params'!$O$14)*((A34)/'B. PoF Summary Stats & Params'!$O$14)^('B. PoF Summary Stats & Params'!$M$14-1)), "Choose Model")) -> 0.0629352626 | D34: =IF('B. PoF Summary Stats & Params'!$C$12="C", B34*'B. PoF Summary Stats & Params'!$I$8*'B. PoF Summary Stats & Params'!$I$6*A34^('B. PoF Summary Stats & Params'!$I$6-1), IF('B. PoF Summary Stats & Params'!$C$12="W", B34*(('B. PoF Summary Stats & Params'!$M$6/'B. PoF Summary Stats & Params'!$M$8)*((A34)/'B. PoF Summary Stats & Params'!$M$8)^('B. PoF Summary Stats & Params'!$M$6-1)), "Choose Model")) -> 0.05332599832 | E34: =IF('B. PoF Summary Stats & Params'!$C$12="C", B34*'B. PoF Summary Stats & Params'!$I$8*'B. PoF Summary Stats & Params'!$I$12*A34^('B. PoF Summary Stats & Params'!$I$12-1), IF('B. PoF Summary Stats & Params'!$C$12="W", B34*(('B. PoF Summary Stats & Params'!$M$12/'B. PoF Summary Stats & Params'!$O$12)*((A34)/'B. PoF Summary Stats & Params'!$O$12)^('B. PoF Summary Stats & Params'!$M$12-1)), "Choose Model")) -> 0.04515825267
A35: 31 | B35: 1 | C35: =IF('B. PoF Summary Stats & Params'!$C$12="C", B35*'B. PoF Summary Stats & Params'!$I$8*'B. PoF Summary Stats & Params'!$I$10*A35^('B. PoF Summary Stats & Params'!$I$10-1), IF('B. PoF Summary Stats & Params'!$C$12="W", B35*(('B. PoF Summary Stats & Params'!$M$14/'B. PoF Summary Stats & Params'!$O$14)*((A35)/'B. PoF Summary Stats & Params'!$O$14)^('B. PoF Summary Stats & Params'!$M$14-1)), "Choose Model")) -> 0.06459725174 | D35: =IF('B. PoF Summary Stats & Params'!$C$12="C", B35*'B. PoF Summary Stats & Params'!$I$8*'B. PoF Summary Stats & Params'!$I$6*A35^('B. PoF Summary Stats & Params'!$I$6-1), IF('B. PoF Summary Stats & Params'!$C$12="W", B35*(('B. PoF Summary Stats & Params'!$M$6/'B. PoF Summary Stats & Params'!$M$8)*((A35)/'B. PoF Summary Stats & Params'!$M$8)^('B. PoF Summary Stats & Params'!$M$6-1)), "Choose Model")) -> 0.05465928161 | E35: =IF('B. PoF Summary Stats & Params'!$C$12="C", B35*'B. PoF Summary Stats & Params'!$I$8*'B. PoF Summary Stats & Params'!$I$12*A35^('B. PoF Summary Stats & Params'!$I$12-1), IF('B. PoF Summary Stats & Params'!$C$12="W", B35*(('B. PoF Summary Stats & Params'!$M$12/'B. PoF Summary Stats & Params'!$O$12)*((A35)/'B. PoF Summary Stats & Params'!$O$12)^('B. PoF Summary Stats & Params'!$M$12-1)), "Choose Model")) -> 0.04622394267
A36: 32 | B36: 1 | C36: =IF('B. PoF Summary Stats & Params'!$C$12="C", B36*'B. PoF Summary Stats & Params'!$I$8*'B. PoF Summary Stats & Params'!$I$10*A36^('B. PoF Summary Stats & Params'!$I$10-1), IF('B. PoF Summary Stats & Params'!$C$12="W", B36*(('B. PoF Summary Stats & Params'!$M$14/'B. PoF Summary Stats & Params'!$O$14)*((A36)/'B. PoF Summary Stats & Params'!$O$14)^('B. PoF Summary Stats & Params'!$M$14-1)), "Choose Model")) -> 0.06624828015 | D36: =IF('B. PoF Summary Stats & Params'!$C$12="C", B36*'B. PoF Summary Stats & Params'!$I$8*'B. PoF Summary Stats & Params'!$I$6*A36^('B. PoF Summary Stats & Params'!$I$6-1), IF('B. PoF Summary Stats & Params'!$C$12="W", B36*(('B. PoF Summary Stats & Params'!$M$6/'B. PoF Summary Stats & Params'!$M$8)*((A36)/'B. PoF Summary Stats & Params'!$M$8)^('B. PoF Summary Stats & Params'!$M$6-1)), "Choose Model")) -> 0.05598198741 | E36: =IF('B. PoF Summary Stats & Params'!$C$12="C", B36*'B. PoF Summary Stats & Params'!$I$8*'B. PoF Summary Stats & Params'!$I$12*A36^('B. PoF Summary Stats & Params'!$I$12-1), IF('B. PoF Summary Stats & Params'!$C$12="W", B36*(('B. PoF Summary Stats & Params'!$M$12/'B. PoF Summary Stats & Params'!$O$12)*((A36)/'B. PoF Summary Stats & Params'!$O$12)^('B. PoF Summary Stats & Params'!$M$12-1)), "Choose Model")) -> 0.04727975364
A37: 33 | B37: 1 | C37: =IF('B. PoF Summary Stats & Params'!$C$12="C", B37*'B. PoF Summary Stats & Params'!$I$8*'B. PoF Summary Stats & Params'!$I$10*A37^('B. PoF Summary Stats & Params'!$I$10-1), IF('B. PoF Summary Stats & Params'!$C$12="W", B37*(('B. PoF Summary Stats & Params'!$M$14/'B. PoF Summary Stats & Params'!$O$14)*((A37)/'B. PoF Summary Stats & Params'!$O$14)^('B. PoF Summary Stats & Params'!$M$14-1)), "Choose Model")) -> 0.06788875943 | D37: =IF('B. PoF Summary Stats & Params'!$C$12="C", B37*'B. PoF Summary Stats & Params'!$I$8*'B. PoF Summary Stats & Params'!$I$6*A37^('B. PoF Summary Stats & Params'!$I$6-1), IF('B. PoF Summary Stats & Params'!$C$12="W", B37*(('B. PoF Summary Stats & Params'!$M$6/'B. PoF Summary Stats & Params'!$M$8)*((A37)/'B. PoF Summary Stats & Params'!$M$8)^('B. PoF Summary Stats & Params'!$M$6-1)), "Choose Model")) -> 0.05729452643 | E37: =IF('B. PoF Summary Stats & Params'!$C$12="C", B37*'B. PoF Summary Stats & Params'!$I$8*'B. PoF Summary Stats & Params'!$I$12*A37^('B. PoF Summary Stats & Params'!$I$12-1), IF('B. PoF Summary Stats & Params'!$C$12="W", B37*(('B. PoF Summary Stats & Params'!$M$12/'B. PoF Summary Stats & Params'!$O$12)*((A37)/'B. PoF Summary Stats & Params'!$O$12)^('B. PoF Summary Stats & Params'!$M$12-1)), "Choose Model")) -> 0.04832608174
A38: 34 | B38: 1 | C38: =IF('B. PoF Summary Stats & Params'!$C$12="C", B38*'B. PoF Summary Stats & Params'!$I$8*'B. PoF Summary Stats & Params'!$I$10*A38^('B. PoF Summary Stats & Params'!$I$10-1), IF('B. PoF Summary Stats & Params'!$C$12="W", B38*(('B. PoF Summary Stats & Params'!$M$14/'B. PoF Summary Stats & Params'!$O$14)*((A38)/'B. PoF Summary Stats & Params'!$O$14)^('B. PoF Summary Stats & Params'!$M$14-1)), "Choose Model")) -> 0.06951907371 | D38: =IF('B. PoF Summary Stats & Params'!$C$12="C", B38*'B. PoF Summary Stats & Params'!$I$8*'B. PoF Summary Stats & Params'!$I$6*A38^('B. PoF Summary Stats & Params'!$I$6-1), IF('B. PoF Summary Stats & Params'!$C$12="W", B38*(('B. PoF Summary Stats & Params'!$M$6/'B. PoF Summary Stats & Params'!$M$8)*((A38)/'B. PoF Summary Stats & Params'!$M$8)^('B. PoF Summary Stats & Params'!$M$6-1)), "Choose Model")) -> 0.05859728148 | E38: =IF('B. PoF Summary Stats & Params'!$C$12="C", B38*'B. PoF Summary Stats & Params'!$I$8*'B. PoF Summary Stats & Params'!$I$12*A38^('B. PoF Summary Stats & Params'!$I$12-1), IF('B. PoF Summary Stats & Params'!$C$12="W", B38*(('B. PoF Summary Stats & Params'!$M$12/'B. PoF Summary Stats & Params'!$O$12)*((A38)/'B. PoF Summary Stats & Params'!$O$12)^('B. PoF Summary Stats & Params'!$M$12-1)), "Choose Model")) -> 0.04936329579
A39: 35 | B39: 1 | C39: =IF('B. PoF Summary Stats & Params'!$C$12="C", B39*'B. PoF Summary Stats & Params'!$I$8*'B. PoF Summary Stats & Params'!$I$10*A39^('B. PoF Summary Stats & Params'!$I$10-1), IF('B. PoF Summary Stats & Params'!$C$12="W", B39*(('B. PoF Summary Stats & Params'!$M$14/'B. PoF Summary Stats & Params'!$O$14)*((A39)/'B. PoF Summary Stats & Params'!$O$14)^('B. PoF Summary Stats & Params'!$M$14-1)), "Choose Model")) -> 0.0711395823 | D39: =IF('B. PoF Summary Stats & Params'!$C$12="C", B39*'B. PoF Summary Stats & Params'!$I$8*'B. PoF Summary Stats & Params'!$I$6*A39^('B. PoF Summary Stats & Params'!$I$6-1), IF('B. PoF Summary Stats & Params'!$C$12="W", B39*(('B. PoF Summary Stats & Params'!$M$6/'B. PoF Summary Stats & Params'!$M$8)*((A39)/'B. PoF Summary Stats & Params'!$M$8)^('B. PoF Summary Stats & Params'!$M$6-1)), "Choose Model")) -> 0.05989061018 | E39: =IF('B. PoF Summary Stats & Params'!$C$12="C", B39*'B. PoF Summary Stats & Params'!$I$8*'B. PoF Summary Stats & Params'!$I$12*A39^('B. PoF Summary Stats & Params'!$I$12-1), IF('B. PoF Summary Stats & Params'!$C$12="W", B39*(('B. PoF Summary Stats & Params'!$M$12/'B. PoF Summary Stats & Params'!$O$12)*((A39)/'B. PoF Summary Stats & Params'!$O$12)^('B. PoF Summary Stats & Params'!$M$12-1)), "Choose Model")) -> 0.05039173986
A40: 36 | B40: 1 | C40: =IF('B. PoF Summary Stats & Params'!$C$12="C", B40*'B. PoF Summary Stats & Params'!$I$8*'B. PoF Summary Stats & Params'!$I$10*A40^('B. PoF Summary Stats & Params'!$I$10-1), IF('B. PoF Summary Stats & Params'!$C$12="W", B40*(('B. PoF Summary Stats & Params'!$M$14/'B. PoF Summary Stats & Params'!$O$14)*((A40)/'B. PoF Summary Stats & Params'!$O$14)^('B. PoF Summary Stats & Params'!$M$14-1)), "Choose Model")) -> 0.07275062194 | D40: =IF('B. PoF Summary Stats & Params'!$C$12="C", B40*'B. PoF Summary Stats & Params'!$I$8*'B. PoF Summary Stats & Params'!$I$6*A40^('B. PoF Summary Stats & Params'!$I$6-1), IF('B. PoF Summary Stats & Params'!$C$12="W", B40*(('B. PoF Summary Stats & Params'!$M$6/'B. PoF Summary Stats & Params'!$M$8)*((A40)/'B. PoF Summary Stats & Params'!$M$8)^('B. PoF Summary Stats & Params'!$M$6-1)), "Choose Model")) -> 0.06117484725 | E40: =IF('B. PoF Summary Stats & Params'!$C$12="C", B40*'B. PoF Summary Stats & Params'!$I$8*'B. PoF Summary Stats & Params'!$I$12*A40^('B. PoF Summary Stats & Params'!$I$12-1), IF('B. PoF Summary Stats & Params'!$C$12="W", B40*(('B. PoF Summary Stats & Params'!$M$12/'B. PoF Summary Stats & Params'!$O$12)*((A40)/'B. PoF Summary Stats & Params'!$O$12)^('B. PoF Summary Stats & Params'!$M$12-1)), "Choose Model")) -> 0.05141173561
A41: 37 | B41: 1 | C41: =IF('B. PoF Summary Stats & Params'!$C$12="C", B41*'B. PoF Summary Stats & Params'!$I$8*'B. PoF Summary Stats & Params'!$I$10*A41^('B. PoF Summary Stats & Params'!$I$10-1), IF('B. PoF Summary Stats & Params'!$C$12="W", B41*(('B. PoF Summary Stats & Params'!$M$14/'B. PoF Summary Stats & Params'!$O$14)*((A41)/'B. PoF Summary Stats & Params'!$O$14)^('B. PoF Summary Stats & Params'!$M$14-1)), "Choose Model")) -> 0.07435250876 | D41: =IF('B. PoF Summary Stats & Params'!$C$12="C", B41*'B. PoF Summary Stats & Params'!$I$8*'B. PoF Summary Stats & Params'!$I$6*A41^('B. PoF Summary Stats & Params'!$I$6-1), IF('B. PoF Summary Stats & Params'!$C$12="W", B41*(('B. PoF Summary Stats & Params'!$M$6/'B. PoF Summary Stats & Params'!$M$8)*((A41)/'B. PoF Summary Stats & Params'!$M$8)^('B. PoF Summary Stats & Params'!$M$6-1)), "Choose Model")) -> 0.06245030659 | E41: =IF('B. PoF Summary Stats & Params'!$C$12="C", B41*'B. PoF Summary Stats & Params'!$I$8*'B. PoF Summary Stats & Params'!$I$12*A41^('B. PoF Summary Stats & Params'!$I$12-1), IF('B. PoF Summary Stats & Params'!$C$12="W", B41*(('B. PoF Summary Stats & Params'!$M$12/'B. PoF Summary Stats & Params'!$O$12)*((A41)/'B. PoF Summary Stats & Params'!$O$12)^('B. PoF Summary Stats & Params'!$M$12-1)), "Choose Model")) -> 0.05242358432
A42: 38 | B42: 1 | C42: =IF('B. PoF Summary Stats & Params'!$C$12="C", B42*'B. PoF Summary Stats & Params'!$I$8*'B. PoF Summary Stats & Params'!$I$10*A42^('B. PoF Summary Stats & Params'!$I$10-1), IF('B. PoF Summary Stats & Params'!$C$12="W", B42*(('B. PoF Summary Stats & Params'!$M$14/'B. PoF Summary Stats & Params'!$O$14)*((A42)/'B. PoF Summary Stats & Params'!$O$14)^('B. PoF Summary Stats & Params'!$M$14-1)), "Choose Model")) -> 0.07594554012 | D42: =IF('B. PoF Summary Stats & Params'!$C$12="C", B42*'B. PoF Summary Stats & Params'!$I$8*'B. PoF Summary Stats & Params'!$I$6*A42^('B. PoF Summary Stats & Params'!$I$6-1), IF('B. PoF Summary Stats & Params'!$C$12="W", B42*(('B. PoF Summary Stats & Params'!$M$6/'B. PoF Summary Stats & Params'!$M$8)*((A42)/'B. PoF Summary Stats & Params'!$M$8)^('B. PoF Summary Stats & Params'!$M$6-1)), "Choose Model")) -> 0.06371728308 | E42: =IF('B. PoF Summary Stats & Params'!$C$12="C", B42*'B. PoF Summary Stats & Params'!$I$8*'B. PoF Summary Stats & Params'!$I$12*A42^('B. PoF Summary Stats & Params'!$I$12-1), IF('B. PoF Summary Stats & Params'!$C$12="W", B42*(('B. PoF Summary Stats & Params'!$M$12/'B. PoF Summary Stats & Params'!$O$12)*((A42)/'B. PoF Summary Stats & Params'!$O$12)^('B. PoF Summary Stats & Params'!$M$12-1)), "Choose Model")) -> 0.05342756872
A43: 39 | B43: 1 | C43: =IF('B. PoF Summary Stats & Params'!$C$12="C", B43*'B. PoF Summary Stats & Params'!$I$8*'B. PoF Summary Stats & Params'!$I$10*A43^('B. PoF Summary Stats & Params'!$I$10-1), IF('B. PoF Summary Stats & Params'!$C$12="W", B43*(('B. PoF Summary Stats & Params'!$M$14/'B. PoF Summary Stats & Params'!$O$14)*((A43)/'B. PoF Summary Stats & Params'!$O$14)^('B. PoF Summary Stats & Params'!$M$14-1)), "Choose Model")) -> 0.07752999617 | D43: =IF('B. PoF Summary Stats & Params'!$C$12="C", B43*'B. PoF Summary Stats & Params'!$I$8*'B. PoF Summary Stats & Params'!$I$6*A43^('B. PoF Summary Stats & Params'!$I$6-1), IF('B. PoF Summary Stats & Params'!$C$12="W", B43*(('B. PoF Summary Stats & Params'!$M$6/'B. PoF Summary Stats & Params'!$M$8)*((A43)/'B. PoF Summary Stats & Params'!$M$8)^('B. PoF Summary Stats & Params'!$M$6-1)), "Choose Model")) -> 0.06497605422 | E43: =IF('B. PoF Summary Stats & Params'!$C$12="C", B43*'B. PoF Summary Stats & Params'!$I$8*'B. PoF Summary Stats & Params'!$I$12*A43^('B. PoF Summary Stats & Params'!$I$12-1), IF('B. PoF Summary Stats & Params'!$C$12="W", B43*(('B. PoF Summary Stats & Params'!$M$12/'B. PoF Summary Stats & Params'!$O$12)*((A43)/'B. PoF Summary Stats & Params'!$O$12)^('B. PoF Summary Stats & Params'!$M$12-1)), "Choose Model")) -> 0.05442395454
A44: 40 | B44: 1 | C44: =IF('B. PoF Summary Stats & Params'!$C$12="C", B44*'B. PoF Summary Stats & Params'!$I$8*'B. PoF Summary Stats & Params'!$I$10*A44^('B. PoF Summary Stats & Params'!$I$10-1), IF('B. PoF Summary Stats & Params'!$C$12="W", B44*(('B. PoF Summary Stats & Params'!$M$14/'B. PoF Summary Stats & Params'!$O$14)*((A44)/'B. PoF Summary Stats & Params'!$O$14)^('B. PoF Summary Stats & Params'!$M$14-1)), "Choose Model")) -> 0.07910614123 | D44: =IF('B. PoF Summary Stats & Params'!$C$12="C", B44*'B. PoF Summary Stats & Params'!$I$8*'B. PoF Summary Stats & Params'!$I$6*A44^('B. PoF Summary Stats & Params'!$I$6-1), IF('B. PoF Summary Stats & Params'!$C$12="W", B44*(('B. PoF Summary Stats & Params'!$M$6/'B. PoF Summary Stats & Params'!$M$8)*((A44)/'B. PoF Summary Stats & Params'!$M$8)^('B. PoF Summary Stats & Params'!$M$6-1)), "Choose Model")) -> 0.06622688159 | E44: =IF('B. PoF Summary Stats & Params'!$C$12="C", B44*'B. PoF Summary Stats & Params'!$I$8*'B. PoF Summary Stats & Params'!$I$12*A44^('B. PoF Summary Stats & Params'!$I$12-1), IF('B. PoF Summary Stats & Params'!$C$12="W", B44*(('B. PoF Summary Stats & Params'!$M$12/'B. PoF Summary Stats & Params'!$O$12)*((A44)/'B. PoF Summary Stats & Params'!$O$12)^('B. PoF Summary Stats & Params'!$M$12-1)), "Choose Model")) -> 0.05541299199
A45: 41 | B45: 1 | C45: =IF('B. PoF Summary Stats & Params'!$C$12="C", B45*'B. PoF Summary Stats & Params'!$I$8*'B. PoF Summary Stats & Params'!$I$10*A45^('B. PoF Summary Stats & Params'!$I$10-1), IF('B. PoF Summary Stats & Params'!$C$12="W", B45*(('B. PoF Summary Stats & Params'!$M$14/'B. PoF Summary Stats & Params'!$O$14)*((A45)/'B. PoF Summary Stats & Params'!$O$14)^('B. PoF Summary Stats & Params'!$M$14-1)), "Choose Model")) -> 0.0806742251 | D45: =IF('B. PoF Summary Stats & Params'!$C$12="C", B45*'B. PoF Summary Stats & Params'!$I$8*'B. PoF Summary Stats & Params'!$I$6*A45^('B. PoF Summary Stats & Params'!$I$6-1), IF('B. PoF Summary Stats & Params'!$C$12="W", B45*(('B. PoF Summary Stats & Params'!$M$6/'B. PoF Summary Stats & Params'!$M$8)*((A45)/'B. PoF Summary Stats & Params'!$M$8)^('B. PoF Summary Stats & Params'!$M$6-1)), "Choose Model")) -> 0.06747001209 | E45: =IF('B. PoF Summary Stats & Params'!$C$12="C", B45*'B. PoF Summary Stats & Params'!$I$8*'B. PoF Summary Stats & Params'!$I$12*A45^('B. PoF Summary Stats & Params'!$I$12-1), IF('B. PoF Summary Stats & Params'!$C$12="W", B45*(('B. PoF Summary Stats & Params'!$M$12/'B. PoF Summary Stats & Params'!$O$12)*((A45)/'B. PoF Summary Stats & Params'!$O$12)^('B. PoF Summary Stats & Params'!$M$12-1)), "Choose Model")) -> 0.05639491701
A46: 42 | B46: 1 | C46: =IF('B. PoF Summary Stats & Params'!$C$12="C", B46*'B. PoF Summary Stats & Params'!$I$8*'B. PoF Summary Stats & Params'!$I$10*A46^('B. PoF Summary Stats & Params'!$I$10-1), IF('B. PoF Summary Stats & Params'!$C$12="W", B46*(('B. PoF Summary Stats & Params'!$M$14/'B. PoF Summary Stats & Params'!$O$14)*((A46)/'B. PoF Summary Stats & Params'!$O$14)^('B. PoF Summary Stats & Params'!$M$14-1)), "Choose Model")) -> 0.08223448418 | D46: =IF('B. PoF Summary Stats & Params'!$C$12="C", B46*'B. PoF Summary Stats & Params'!$I$8*'B. PoF Summary Stats & Params'!$I$6*A46^('B. PoF Summary Stats & Params'!$I$6-1), IF('B. PoF Summary Stats & Params'!$C$12="W", B46*(('B. PoF Summary Stats & Params'!$M$6/'B. PoF Summary Stats & Params'!$M$8)*((A46)/'B. PoF Summary Stats & Params'!$M$8)^('B. PoF Summary Stats & Params'!$M$6-1)), "Choose Model")) -> 0.06870567913 | E46: =IF('B. PoF Summary Stats & Params'!$C$12="C", B46*'B. PoF Summary Stats & Params'!$I$8*'B. PoF Summary Stats & Params'!$I$12*A46^('B. PoF Summary Stats & Params'!$I$12-1), IF('B. PoF Summary Stats & Params'!$C$12="W", B46*(('B. PoF Summary Stats & Params'!$M$12/'B. PoF Summary Stats & Params'!$O$12)*((A46)/'B. PoF Summary Stats & Params'!$O$12)^('B. PoF Summary Stats & Params'!$M$12-1)), "Choose Model")) -> 0.05736995241
A47: 43 | B47: 1 | C47: =IF('B. PoF Summary Stats & Params'!$C$12="C", B47*'B. PoF Summary Stats & Params'!$I$8*'B. PoF Summary Stats & Params'!$I$10*A47^('B. PoF Summary Stats & Params'!$I$10-1), IF('B. PoF Summary Stats & Params'!$C$12="W", B47*(('B. PoF Summary Stats & Params'!$M$14/'B. PoF Summary Stats & Params'!$O$14)*((A47)/'B. PoF Summary Stats & Params'!$O$14)^('B. PoF Summary Stats & Params'!$M$14-1)), "Choose Model")) -> 0.08378714248 | D47: =IF('B. PoF Summary Stats & Params'!$C$12="C", B47*'B. PoF Summary Stats & Params'!$I$8*'B. PoF Summary Stats & Params'!$I$6*A47^('B. PoF Summary Stats & Params'!$I$6-1), IF('B. PoF Summary Stats & Params'!$C$12="W", B47*(('B. PoF Summary Stats & Params'!$M$6/'B. PoF Summary Stats & Params'!$M$8)*((A47)/'B. PoF Summary Stats & Params'!$M$8)^('B. PoF Summary Stats & Params'!$M$6-1)), "Choose Model")) -> 0.06993410369 | E47: =IF('B. PoF Summary Stats & Params'!$C$12="C", B47*'B. PoF Summary Stats & Params'!$I$8*'B. PoF Summary Stats & Params'!$I$12*A47^('B. PoF Summary Stats & Params'!$I$12-1), IF('B. PoF Summary Stats & Params'!$C$12="W", B47*(('B. PoF Summary Stats & Params'!$M$12/'B. PoF Summary Stats & Params'!$O$12)*((A47)/'B. PoF Summary Stats & Params'!$O$12)^('B. PoF Summary Stats & Params'!$M$12-1)), "Choose Model")) -> 0.05833830888
A48: 44 | B48: 1 | C48: =IF('B. PoF Summary Stats & Params'!$C$12="C", B48*'B. PoF Summary Stats & Params'!$I$8*'B. PoF Summary Stats & Params'!$I$10*A48^('B. PoF Summary Stats & Params'!$I$10-1), IF('B. PoF Summary Stats & Params'!$C$12="W", B48*(('B. PoF Summary Stats & Params'!$M$14/'B. PoF Summary Stats & Params'!$O$14)*((A48)/'B. PoF Summary Stats & Params'!$O$14)^('B. PoF Summary Stats & Params'!$M$14-1)), "Choose Model")) -> 0.08533241253 | D48: =IF('B. PoF Summary Stats & Params'!$C$12="C", B48*'B. PoF Summary Stats & Params'!$I$8*'B. PoF Summary Stats & Params'!$I$6*A48^('B. PoF Summary Stats & Params'!$I$6-1), IF('B. PoF Summary Stats & Params'!$C$12="W", B48*(('B. PoF Summary Stats & Params'!$M$6/'B. PoF Summary Stats & Params'!$M$8)*((A48)/'B. PoF Summary Stats & Params'!$M$8)^('B. PoF Summary Stats & Params'!$M$6-1)), "Choose Model")) -> 0.0711554952 | E48: =IF('B. PoF Summary Stats & Params'!$C$12="C", B48*'B. PoF Summary Stats & Params'!$I$8*'B. PoF Summary Stats & Params'!$I$12*A48^('B. PoF Summary Stats & Params'!$I$12-1), IF('B. PoF Summary Stats & Params'!$C$12="W", B48*(('B. PoF Summary Stats & Params'!$M$12/'B. PoF Summary Stats & Params'!$O$12)*((A48)/'B. PoF Summary Stats & Params'!$O$12)^('B. PoF Summary Stats & Params'!$M$12-1)), "Choose Model")) -> 0.05930018595
A49: 45 | B49: 1 | C49: =IF('B. PoF Summary Stats & Params'!$C$12="C", B49*'B. PoF Summary Stats & Params'!$I$8*'B. PoF Summary Stats & Params'!$I$10*A49^('B. PoF Summary Stats & Params'!$I$10-1), IF('B. PoF Summary Stats & Params'!$C$12="W", B49*(('B. PoF Summary Stats & Params'!$M$14/'B. PoF Summary Stats & Params'!$O$14)*((A49)/'B. PoF Summary Stats & Params'!$O$14)^('B. PoF Summary Stats & Params'!$M$14-1)), "Choose Model")) -> 0.08687049626 | D49: =IF('B. PoF Summary Stats & Params'!$C$12="C", B49*'B. PoF Summary Stats & Params'!$I$8*'B. PoF Summary Stats & Params'!$I$6*A49^('B. PoF Summary Stats & Params'!$I$6-1), IF('B. PoF Summary Stats & Params'!$C$12="W", B49*(('B. PoF Summary Stats & Params'!$M$6/'B. PoF Summary Stats & Params'!$M$8)*((A49)/'B. PoF Summary Stats & Params'!$M$8)^('B. PoF Summary Stats & Params'!$M$6-1)), "Choose Model")) -> 0.07237005245 | E49: =IF('B. PoF Summary Stats & Params'!$C$12="C", B49*'B. PoF Summary Stats & Params'!$I$8*'B. PoF Summary Stats & Params'!$I$12*A49^('B. PoF Summary Stats & Params'!$I$12-1), IF('B. PoF Summary Stats & Params'!$C$12="W", B49*(('B. PoF Summary Stats & Params'!$M$12/'B. PoF Summary Stats & Params'!$O$12)*((A49)/'B. PoF Summary Stats & Params'!$O$12)^('B. PoF Summary Stats & Params'!$M$12-1)), "Choose Model")) -> 0.06025577281
A50: 46 | B50: 1 | C50: =IF('B. PoF Summary Stats & Params'!$C$12="C", B50*'B. PoF Summary Stats & Params'!$I$8*'B. PoF Summary Stats & Params'!$I$10*A50^('B. PoF Summary Stats & Params'!$I$10-1), IF('B. PoF Summary Stats & Params'!$C$12="W", B50*(('B. PoF Summary Stats & Params'!$M$14/'B. PoF Summary Stats & Params'!$O$14)*((A50)/'B. PoF Summary Stats & Params'!$O$14)^('B. PoF Summary Stats & Params'!$M$14-1)), "Choose Model")) -> 0.0884015857 | D50: =IF('B. PoF Summary Stats & Params'!$C$12="C", B50*'B. PoF Summary Stats & Params'!$I$8*'B. PoF Summary Stats & Params'!$I$6*A50^('B. PoF Summary Stats & Params'!$I$6-1), IF('B. PoF Summary Stats & Params'!$C$12="W", B50*(('B. PoF Summary Stats & Params'!$M$6/'B. PoF Summary Stats & Params'!$M$8)*((A50)/'B. PoF Summary Stats & Params'!$M$8)^('B. PoF Summary Stats & Params'!$M$6-1)), "Choose Model")) -> 0.07357796431 | E50: =IF('B. PoF Summary Stats & Params'!$C$12="C", B50*'B. PoF Summary Stats & Params'!$I$8*'B. PoF Summary Stats & Params'!$I$12*A50^('B. PoF Summary Stats & Params'!$I$12-1), IF('B. PoF Summary Stats & Params'!$C$12="W", B50*(('B. PoF Summary Stats & Params'!$M$12/'B. PoF Summary Stats & Params'!$O$12)*((A50)/'B. PoF Summary Stats & Params'!$O$12)^('B. PoF Summary Stats & Params'!$M$12-1)), "Choose Model")) -> 0.06120524903
A51: 47 | B51: 1 | C51: =IF('B. PoF Summary Stats & Params'!$C$12="C", B51*'B. PoF Summary Stats & Params'!$I$8*'B. PoF Summary Stats & Params'!$I$10*A51^('B. PoF Summary Stats & Params'!$I$10-1), IF('B. PoF Summary Stats & Params'!$C$12="W", B51*(('B. PoF Summary Stats & Params'!$M$14/'B. PoF Summary Stats & Params'!$O$14)*((A51)/'B. PoF Summary Stats & Params'!$O$14)^('B. PoF Summary Stats & Params'!$M$14-1)), "Choose Model")) -> 0.08992586371 | D51: =IF('B. PoF Summary Stats & Params'!$C$12="C", B51*'B. PoF Summary Stats & Params'!$I$8*'B. PoF Summary Stats & Params'!$I$6*A51^('B. PoF Summary Stats & Params'!$I$6-1), IF('B. PoF Summary Stats & Params'!$C$12="W", B51*(('B. PoF Summary Stats & Params'!$M$6/'B. PoF Summary Stats & Params'!$M$8)*((A51)/'B. PoF Summary Stats & Params'!$M$8)^('B. PoF Summary Stats & Params'!$M$6-1)), "Choose Model")) -> 0.07477941046 | E51: =IF('B. PoF Summary Stats & Params'!$C$12="C", B51*'B. PoF Summary Stats & Params'!$I$8*'B. PoF Summary Stats & Params'!$I$12*A51^('B. PoF Summary Stats & Params'!$I$12-1), IF('B. PoF Summary Stats & Params'!$C$12="W", B51*(('B. PoF Summary Stats & Params'!$M$12/'B. PoF Summary Stats & Params'!$O$12)*((A51)/'B. PoF Summary Stats & Params'!$O$12)^('B. PoF Summary Stats & Params'!$M$12-1)), "Choose Model")) -> 0.0621487853
A52: 48 | B52: 1 | C52: =IF('B. PoF Summary Stats & Params'!$C$12="C", B52*'B. PoF Summary Stats & Params'!$I$8*'B. PoF Summary Stats & Params'!$I$10*A52^('B. PoF Summary Stats & Params'!$I$10-1), IF('B. PoF Summary Stats & Params'!$C$12="W", B52*(('B. PoF Summary Stats & Params'!$M$14/'B. PoF Summary Stats & Params'!$O$14)*((A52)/'B. PoF Summary Stats & Params'!$O$14)^('B. PoF Summary Stats & Params'!$M$14-1)), "Choose Model")) -> 0.09144350457 | D52: =IF('B. PoF Summary Stats & Params'!$C$12="C", B52*'B. PoF Summary Stats & Params'!$I$8*'B. PoF Summary Stats & Params'!$I$6*A52^('B. PoF Summary Stats & Params'!$I$6-1), IF('B. PoF Summary Stats & Params'!$C$12="W", B52*(('B. PoF Summary Stats & Params'!$M$6/'B. PoF Summary Stats & Params'!$M$8)*((A52)/'B. PoF Summary Stats & Params'!$M$8)^('B. PoF Summary Stats & Params'!$M$6-1)), "Choose Model")) -> 0.075974562 | E52: =IF('B. PoF Summary Stats & Params'!$C$12="C", B52*'B. PoF Summary Stats & Params'!$I$8*'B. PoF Summary Stats & Params'!$I$12*A52^('B. PoF Summary Stats & Params'!$I$12-1), IF('B. PoF Summary Stats & Params'!$C$12="W", B52*(('B. PoF Summary Stats & Params'!$M$12/'B. PoF Summary Stats & Params'!$O$12)*((A52)/'B. PoF Summary Stats & Params'!$O$12)^('B. PoF Summary Stats & Params'!$M$12-1)), "Choose Model")) -> 0.06308654399
A53: 49 | B53: 1 | C53: =IF('B. PoF Summary Stats & Params'!$C$12="C", B53*'B. PoF Summary Stats & Params'!$I$8*'B. PoF Summary Stats & Params'!$I$10*A53^('B. PoF Summary Stats & Params'!$I$10-1), IF('B. PoF Summary Stats & Params'!$C$12="W", B53*(('B. PoF Summary Stats & Params'!$M$14/'B. PoF Summary Stats & Params'!$O$14)*((A53)/'B. PoF Summary Stats & Params'!$O$14)^('B. PoF Summary Stats & Params'!$M$14-1)), "Choose Model")) -> 0.0929546746 | D53: =IF('B. PoF Summary Stats & Params'!$C$12="C", B53*'B. PoF Summary Stats & Params'!$I$8*'B. PoF Summary Stats & Params'!$I$6*A53^('B. PoF Summary Stats & Params'!$I$6-1), IF('B. PoF Summary Stats & Params'!$C$12="W", B53*(('B. PoF Summary Stats & Params'!$M$6/'B. PoF Summary Stats & Params'!$M$8)*((A53)/'B. PoF Summary Stats & Params'!$M$8)^('B. PoF Summary Stats & Params'!$M$6-1)), "Choose Model")) -> 0.07716358205 | E53: =IF('B. PoF Summary Stats & Params'!$C$12="C", B53*'B. PoF Summary Stats & Params'!$I$8*'B. PoF Summary Stats & Params'!$I$12*A53^('B. PoF Summary Stats & Params'!$I$12-1), IF('B. PoF Summary Stats & Params'!$C$12="W", B53*(('B. PoF Summary Stats & Params'!$M$12/'B. PoF Summary Stats & Params'!$O$12)*((A53)/'B. PoF Summary Stats & Params'!$O$12)^('B. PoF Summary Stats & Params'!$M$12-1)), "Choose Model")) -> 0.06401867979
A54: 50 | B54: 1 | C54: =IF('B. PoF Summary Stats & Params'!$C$12="C", B54*'B. PoF Summary Stats & Params'!$I$8*'B. PoF Summary Stats & Params'!$I$10*A54^('B. PoF Summary Stats & Params'!$I$10-1), IF('B. PoF Summary Stats & Params'!$C$12="W", B54*(('B. PoF Summary Stats & Params'!$M$14/'B. PoF Summary Stats & Params'!$O$14)*((A54)/'B. PoF Summary Stats & Params'!$O$14)^('B. PoF Summary Stats & Params'!$M$14-1)), "Choose Model")) -> 0.09445953261 | D54: =IF('B. PoF Summary Stats & Params'!$C$12="C", B54*'B. PoF Summary Stats & Params'!$I$8*'B. PoF Summary Stats & Params'!$I$6*A54^('B. PoF Summary Stats & Params'!$I$6-1), IF('B. PoF Summary Stats & Params'!$C$12="W", B54*(('B. PoF Summary Stats & Params'!$M$6/'B. PoF Summary Stats & Params'!$M$8)*((A54)/'B. PoF Summary Stats & Params'!$M$8)^('B. PoF Summary Stats & Params'!$M$6-1)), "Choose Model")) -> 0.07834662626 | E54: =IF('B. PoF Summary Stats & Params'!$C$12="C", B54*'B. PoF Summary Stats & Params'!$I$8*'B. PoF Summary Stats & Params'!$I$12*A54^('B. PoF Summary Stats & Params'!$I$12-1), IF('B. PoF Summary Stats & Params'!$C$12="W", B54*(('B. PoF Summary Stats & Params'!$M$12/'B. PoF Summary Stats & Params'!$O$12)*((A54)/'B. PoF Summary Stats & Params'!$O$12)^('B. PoF Summary Stats & Params'!$M$12-1)), "Choose Model")) -> 0.06494534014
A55: 51 | B55: 1 | C55: =IF('B. PoF Summary Stats & Params'!$C$12="C", B55*'B. PoF Summary Stats & Params'!$I$8*'B. PoF Summary Stats & Params'!$I$10*A55^('B. PoF Summary Stats & Params'!$I$10-1), IF('B. PoF Summary Stats & Params'!$C$12="W", B55*(('B. PoF Summary Stats & Params'!$M$14/'B. PoF Summary Stats & Params'!$O$14)*((A55)/'B. PoF Summary Stats & Params'!$O$14)^('B. PoF Summary Stats & Params'!$M$14-1)), "Choose Model")) -> 0.09595823046 | D55: =IF('B. PoF Summary Stats & Params'!$C$12="C", B55*'B. PoF Summary Stats & Params'!$I$8*'B. PoF Summary Stats & Params'!$I$6*A55^('B. PoF Summary Stats & Params'!$I$6-1), IF('B. PoF Summary Stats & Params'!$C$12="W", B55*(('B. PoF Summary Stats & Params'!$M$6/'B. PoF Summary Stats & Params'!$M$8)*((A55)/'B. PoF Summary Stats & Params'!$M$8)^('B. PoF Summary Stats & Params'!$M$6-1)), "Choose Model")) -> 0.07952384331 | E55: =IF('B. PoF Summary Stats & Params'!$C$12="C", B55*'B. PoF Summary Stats & Params'!$I$8*'B. PoF Summary Stats & Params'!$I$12*A55^('B. PoF Summary Stats & Params'!$I$12-1), IF('B. PoF Summary Stats & Params'!$C$12="W", B55*(('B. PoF Summary Stats & Params'!$M$12/'B. PoF Summary Stats & Params'!$O$12)*((A55)/'B. PoF Summary Stats & Params'!$O$12)^('B. PoF Summary Stats & Params'!$M$12-1)), "Choose Model")) -> 0.06586666579
A56: 52 | B56: 1 | C56: =IF('B. PoF Summary Stats & Params'!$C$12="C", B56*'B. PoF Summary Stats & Params'!$I$8*'B. PoF Summary Stats & Params'!$I$10*A56^('B. PoF Summary Stats & Params'!$I$10-1), IF('B. PoF Summary Stats & Params'!$C$12="W", B56*(('B. PoF Summary Stats & Params'!$M$14/'B. PoF Summary Stats & Params'!$O$14)*((A56)/'B. PoF Summary Stats & Params'!$O$14)^('B. PoF Summary Stats & Params'!$M$14-1)), "Choose Model")) -> 0.09745091341 | D56: =IF('B. PoF Summary Stats & Params'!$C$12="C", B56*'B. PoF Summary Stats & Params'!$I$8*'B. PoF Summary Stats & Params'!$I$6*A56^('B. PoF Summary Stats & Params'!$I$6-1), IF('B. PoF Summary Stats & Params'!$C$12="W", B56*(('B. PoF Summary Stats & Params'!$M$6/'B. PoF Summary Stats & Params'!$M$8)*((A56)/'B. PoF Summary Stats & Params'!$M$8)^('B. PoF Summary Stats & Params'!$M$6-1)), "Choose Model")) -> 0.08069537533 | E56: =IF('B. PoF Summary Stats & Params'!$C$12="C", B56*'B. PoF Summary Stats & Params'!$I$8*'B. PoF Summary Stats & Params'!$I$12*A56^('B. PoF Summary Stats & Params'!$I$12-1), IF('B. PoF Summary Stats & Params'!$C$12="W", B56*(('B. PoF Summary Stats & Params'!$M$12/'B. PoF Summary Stats & Params'!$O$12)*((A56)/'B. PoF Summary Stats & Params'!$O$12)^('B. PoF Summary Stats & Params'!$M$12-1)), "Choose Model")) -> 0.06678279116
A57: 53 | B57: 1 | C57: =IF('B. PoF Summary Stats & Params'!$C$12="C", B57*'B. PoF Summary Stats & Params'!$I$8*'B. PoF Summary Stats & Params'!$I$10*A57^('B. PoF Summary Stats & Params'!$I$10-1), IF('B. PoF Summary Stats & Params'!$C$12="W", B57*(('B. PoF Summary Stats & Params'!$M$14/'B. PoF Summary Stats & Params'!$O$14)*((A57)/'B. PoF Summary Stats & Params'!$O$14)^('B. PoF Summary Stats & Params'!$M$14-1)), "Choose Model")) -> 0.09893772062 | D57: =IF('B. PoF Summary Stats & Params'!$C$12="C", B57*'B. PoF Summary Stats & Params'!$I$8*'B. PoF Summary Stats & Params'!$I$6*A57^('B. PoF Summary Stats & Params'!$I$6-1), IF('B. PoF Summary Stats & Params'!$C$12="W", B57*(('B. PoF Summary Stats & Params'!$M$6/'B. PoF Summary Stats & Params'!$M$8)*((A57)/'B. PoF Summary Stats & Params'!$M$8)^('B. PoF Summary Stats & Params'!$M$6-1)), "Choose Model")) -> 0.08186135834 | E57: =IF('B. PoF Summary Stats & Params'!$C$12="C", B57*'B. PoF Summary Stats & Params'!$I$8*'B. PoF Summary Stats & Params'!$I$12*A57^('B. PoF Summary Stats & Params'!$I$12-1), IF('B. PoF Summary Stats & Params'!$C$12="W", B57*(('B. PoF Summary Stats & Params'!$M$12/'B. PoF Summary Stats & Params'!$O$12)*((A57)/'B. PoF Summary Stats & Params'!$O$12)^('B. PoF Summary Stats & Params'!$M$12-1)), "Choose Model")) -> 0.06769384479
A58: 54 | B58: 1 | C58: =IF('B. PoF Summary Stats & Params'!$C$12="C", B58*'B. PoF Summary Stats & Params'!$I$8*'B. PoF Summary Stats & Params'!$I$10*A58^('B. PoF Summary Stats & Params'!$I$10-1), IF('B. PoF Summary Stats & Params'!$C$12="W", B58*(('B. PoF Summary Stats & Params'!$M$14/'B. PoF Summary Stats & Params'!$O$14)*((A58)/'B. PoF Summary Stats & Params'!$O$14)^('B. PoF Summary Stats & Params'!$M$14-1)), "Choose Model")) -> 0.1004187854 | D58: =IF('B. PoF Summary Stats & Params'!$C$12="C", B58*'B. PoF Summary Stats & Params'!$I$8*'B. PoF Summary Stats & Params'!$I$6*A58^('B. PoF Summary Stats & Params'!$I$6-1), IF('B. PoF Summary Stats & Params'!$C$12="W", B58*(('B. PoF Summary Stats & Params'!$M$6/'B. PoF Summary Stats & Params'!$M$8)*((A58)/'B. PoF Summary Stats & Params'!$M$8)^('B. PoF Summary Stats & Params'!$M$6-1)), "Choose Model")) -> 0.08302192259 | E58: =IF('B. PoF Summary Stats & Params'!$C$12="C", B58*'B. PoF Summary Stats & Params'!$I$8*'B. PoF Summary Stats & Params'!$I$12*A58^('B. PoF Summary Stats & Params'!$I$12-1), IF('B. PoF Summary Stats & Params'!$C$12="W", B58*(('B. PoF Summary Stats & Params'!$M$12/'B. PoF Summary Stats & Params'!$O$12)*((A58)/'B. PoF Summary Stats & Params'!$O$12)^('B. PoF Summary Stats & Params'!$M$12-1)), "Choose Model")) -> 0.06859994967
A59: 55 | B59: 1 | C59: =IF('B. PoF Summary Stats & Params'!$C$12="C", B59*'B. PoF Summary Stats & Params'!$I$8*'B. PoF Summary Stats & Params'!$I$10*A59^('B. PoF Summary Stats & Params'!$I$10-1), IF('B. PoF Summary Stats & Params'!$C$12="W", B59*(('B. PoF Summary Stats & Params'!$M$14/'B. PoF Summary Stats & Params'!$O$14)*((A59)/'B. PoF Summary Stats & Params'!$O$14)^('B. PoF Summary Stats & Params'!$M$14-1)), "Choose Model")) -> 0.1018942358 | D59: =IF('B. PoF Summary Stats & Params'!$C$12="C", B59*'B. PoF Summary Stats & Params'!$I$8*'B. PoF Summary Stats & Params'!$I$6*A59^('B. PoF Summary Stats & Params'!$I$6-1), IF('B. PoF Summary Stats & Params'!$C$12="W", B59*(('B. PoF Summary Stats & Params'!$M$6/'B. PoF Summary Stats & Params'!$M$8)*((A59)/'B. PoF Summary Stats & Params'!$M$8)^('B. PoF Summary Stats & Params'!$M$6-1)), "Choose Model")) -> 0.08417719293 | E59: =IF('B. PoF Summary Stats & Params'!$C$12="C", B59*'B. PoF Summary Stats & Params'!$I$8*'B. PoF Summary Stats & Params'!$I$12*A59^('B. PoF Summary Stats & Params'!$I$12-1), IF('B. PoF Summary Stats & Params'!$C$12="W", B59*(('B. PoF Summary Stats & Params'!$M$12/'B. PoF Summary Stats & Params'!$O$12)*((A59)/'B. PoF Summary Stats & Params'!$O$12)^('B. PoF Summary Stats & Params'!$M$12-1)), "Choose Model")) -> 0.0695012236
A60: 56 | B60: 1 | C60: =IF('B. PoF Summary Stats & Params'!$C$12="C", B60*'B. PoF Summary Stats & Params'!$I$8*'B. PoF Summary Stats & Params'!$I$10*A60^('B. PoF Summary Stats & Params'!$I$10-1), IF('B. PoF Summary Stats & Params'!$C$12="W", B60*(('B. PoF Summary Stats & Params'!$M$14/'B. PoF Summary Stats & Params'!$O$14)*((A60)/'B. PoF Summary Stats & Params'!$O$14)^('B. PoF Summary Stats & Params'!$M$14-1)), "Choose Model")) -> 0.1033641944 | D60: =IF('B. PoF Summary Stats & Params'!$C$12="C", B60*'B. PoF Summary Stats & Params'!$I$8*'B. PoF Summary Stats & Params'!$I$6*A60^('B. PoF Summary Stats & Params'!$I$6-1), IF('B. PoF Summary Stats & Params'!$C$12="W", B60*(('B. PoF Summary Stats & Params'!$M$6/'B. PoF Summary Stats & Params'!$M$8)*((A60)/'B. PoF Summary Stats & Params'!$M$8)^('B. PoF Summary Stats & Params'!$M$6-1)), "Choose Model")) -> 0.08532728913 | E60: =IF('B. PoF Summary Stats & Params'!$C$12="C", B60*'B. PoF Summary Stats & Params'!$I$8*'B. PoF Summary Stats & Params'!$I$12*A60^('B. PoF Summary Stats & Params'!$I$12-1), IF('B. PoF Summary Stats & Params'!$C$12="W", B60*(('B. PoF Summary Stats & Params'!$M$12/'B. PoF Summary Stats & Params'!$O$12)*((A60)/'B. PoF Summary Stats & Params'!$O$12)^('B. PoF Summary Stats & Params'!$M$12-1)), "Choose Model")) -> 0.07039777949
A61: 57 | B61: 1 | C61: =IF('B. PoF Summary Stats & Params'!$C$12="C", B61*'B. PoF Summary Stats & Params'!$I$8*'B. PoF Summary Stats & Params'!$I$10*A61^('B. PoF Summary Stats & Params'!$I$10-1), IF('B. PoF Summary Stats & Params'!$C$12="W", B61*(('B. PoF Summary Stats & Params'!$M$14/'B. PoF Summary Stats & Params'!$O$14)*((A61)/'B. PoF Summary Stats & Params'!$O$14)^('B. PoF Summary Stats & Params'!$M$14-1)), "Choose Model")) -> 0.1048287794 | D61: =IF('B. PoF Summary Stats & Params'!$C$12="C", B61*'B. PoF Summary Stats & Params'!$I$8*'B. PoF Summary Stats & Params'!$I$6*A61^('B. PoF Summary Stats & Params'!$I$6-1), IF('B. PoF Summary Stats & Params'!$C$12="W", B61*(('B. PoF Summary Stats & Params'!$M$6/'B. PoF Summary Stats & Params'!$M$8)*((A61)/'B. PoF Summary Stats & Params'!$M$8)^('B. PoF Summary Stats & Params'!$M$6-1)), "Choose Model")) -> 0.08647232614 | E61: =IF('B. PoF Summary Stats & Params'!$C$12="C", B61*'B. PoF Summary Stats & Params'!$I$8*'B. PoF Summary Stats & Params'!$I$12*A61^('B. PoF Summary Stats & Params'!$I$12-1), IF('B. PoF Summary Stats & Params'!$C$12="W", B61*(('B. PoF Summary Stats & Params'!$M$12/'B. PoF Summary Stats & Params'!$O$12)*((A61)/'B. PoF Summary Stats & Params'!$O$12)^('B. PoF Summary Stats & Params'!$M$12-1)), "Choose Model")) -> 0.07128972562
A62: 58 | B62: 1 | C62: =IF('B. PoF Summary Stats & Params'!$C$12="C", B62*'B. PoF Summary Stats & Params'!$I$8*'B. PoF Summary Stats & Params'!$I$10*A62^('B. PoF Summary Stats & Params'!$I$10-1), IF('B. PoF Summary Stats & Params'!$C$12="W", B62*(('B. PoF Summary Stats & Params'!$M$14/'B. PoF Summary Stats & Params'!$O$14)*((A62)/'B. PoF Summary Stats & Params'!$O$14)^('B. PoF Summary Stats & Params'!$M$14-1)), "Choose Model")) -> 0.1062881041 | D62: =IF('B. PoF Summary Stats & Params'!$C$12="C", B62*'B. PoF Summary Stats & Params'!$I$8*'B. PoF Summary Stats & Params'!$I$6*A62^('B. PoF Summary Stats & Params'!$I$6-1), IF('B. PoF Summary Stats & Params'!$C$12="W", B62*(('B. PoF Summary Stats & Params'!$M$6/'B. PoF Summary Stats & Params'!$M$8)*((A62)/'B. PoF Summary Stats & Params'!$M$8)^('B. PoF Summary Stats & Params'!$M$6-1)), "Choose Model")) -> 0.0876124144 | E62: =IF('B. PoF Summary Stats & Params'!$C$12="C", B62*'B. PoF Summary Stats & Params'!$I$8*'B. PoF Summary Stats & Params'!$I$12*A62^('B. PoF Summary Stats & Params'!$I$12-1), IF('B. PoF Summary Stats & Params'!$C$12="W", B62*(('B. PoF Summary Stats & Params'!$M$12/'B. PoF Summary Stats & Params'!$O$12)*((A62)/'B. PoF Summary Stats & Params'!$O$12)^('B. PoF Summary Stats & Params'!$M$12-1)), "Choose Model")) -> 0.07217716598
A63: 59 | B63: 1 | C63: =IF('B. PoF Summary Stats & Params'!$C$12="C", B63*'B. PoF Summary Stats & Params'!$I$8*'B. PoF Summary Stats & Params'!$I$10*A63^('B. PoF Summary Stats & Params'!$I$10-1), IF('B. PoF Summary Stats & Params'!$C$12="W", B63*(('B. PoF Summary Stats & Params'!$M$14/'B. PoF Summary Stats & Params'!$O$14)*((A63)/'B. PoF Summary Stats & Params'!$O$14)^('B. PoF Summary Stats & Params'!$M$14-1)), "Choose Model")) -> 0.1077422776 | D63: =IF('B. PoF Summary Stats & Params'!$C$12="C", B63*'B. PoF Summary Stats & Params'!$I$8*'B. PoF Summary Stats & Params'!$I$6*A63^('B. PoF Summary Stats & Params'!$I$6-1), IF('B. PoF Summary Stats & Params'!$C$12="W", B63*(('B. PoF Summary Stats & Params'!$M$6/'B. PoF Summary Stats & Params'!$M$8)*((A63)/'B. PoF Summary Stats & Params'!$M$8)^('B. PoF Summary Stats & Params'!$M$6-1)), "Choose Model")) -> 0.08874766009 | E63: =IF('B. PoF Summary Stats & Params'!$C$12="C", B63*'B. PoF Summary Stats & Params'!$I$8*'B. PoF Summary Stats & Params'!$I$12*A63^('B. PoF Summary Stats & Params'!$I$12-1), IF('B. PoF Summary Stats & Params'!$C$12="W", B63*(('B. PoF Summary Stats & Params'!$M$12/'B. PoF Summary Stats & Params'!$O$12)*((A63)/'B. PoF Summary Stats & Params'!$O$12)^('B. PoF Summary Stats & Params'!$M$12-1)), "Choose Model")) -> 0.07306020043
A64: 60 | B64: 1 | C64: =IF('B. PoF Summary Stats & Params'!$C$12="C", B64*'B. PoF Summary Stats & Params'!$I$8*'B. PoF Summary Stats & Params'!$I$10*A64^('B. PoF Summary Stats & Params'!$I$10-1), IF('B. PoF Summary Stats & Params'!$C$12="W", B64*(('B. PoF Summary Stats & Params'!$M$14/'B. PoF Summary Stats & Params'!$O$14)*((A64)/'B. PoF Summary Stats & Params'!$O$14)^('B. PoF Summary Stats & Params'!$M$14-1)), "Choose Model")) -> 0.109191405 | D64: =IF('B. PoF Summary Stats & Params'!$C$12="C", B64*'B. PoF Summary Stats & Params'!$I$8*'B. PoF Summary Stats & Params'!$I$6*A64^('B. PoF Summary Stats & Params'!$I$6-1), IF('B. PoF Summary Stats & Params'!$C$12="W", B64*(('B. PoF Summary Stats & Params'!$M$6/'B. PoF Summary Stats & Params'!$M$8)*((A64)/'B. PoF Summary Stats & Params'!$M$8)^('B. PoF Summary Stats & Params'!$M$6-1)), "Choose Model")) -> 0.08987816535 | E64: =IF('B. PoF Summary Stats & Params'!$C$12="C", B64*'B. PoF Summary Stats & Params'!$I$8*'B. PoF Summary Stats & Params'!$I$12*A64^('B. PoF Summary Stats & Params'!$I$12-1), IF('B. PoF Summary Stats & Params'!$C$12="W", B64*(('B. PoF Summary Stats & Params'!$M$12/'B. PoF Summary Stats & Params'!$O$12)*((A64)/'B. PoF Summary Stats & Params'!$O$12)^('B. PoF Summary Stats & Params'!$M$12-1)), "Choose Model")) -> 0.07393892498
A65: 61 | B65: 1 | C65: =IF('B. PoF Summary Stats & Params'!$C$12="C", B65*'B. PoF Summary Stats & Params'!$I$8*'B. PoF Summary Stats & Params'!$I$10*A65^('B. PoF Summary Stats & Params'!$I$10-1), IF('B. PoF Summary Stats & Params'!$C$12="W", B65*(('B. PoF Summary Stats & Params'!$M$14/'B. PoF Summary Stats & Params'!$O$14)*((A65)/'B. PoF Summary Stats & Params'!$O$14)^('B. PoF Summary Stats & Params'!$M$14-1)), "Choose Model")) -> 0.1106355874 | D65: =IF('B. PoF Summary Stats & Params'!$C$12="C", B65*'B. PoF Summary Stats & Params'!$I$8*'B. PoF Summary Stats & Params'!$I$6*A65^('B. PoF Summary Stats & Params'!$I$6-1), IF('B. PoF Summary Stats & Params'!$C$12="W", B65*(('B. PoF Summary Stats & Params'!$M$6/'B. PoF Summary Stats & Params'!$M$8)*((A65)/'B. PoF Summary Stats & Params'!$M$8)^('B. PoF Summary Stats & Params'!$M$6-1)), "Choose Model")) -> 0.09100402849 | E65: =IF('B. PoF Summary Stats & Params'!$C$12="C", B65*'B. PoF Summary Stats & Params'!$I$8*'B. PoF Summary Stats & Params'!$I$12*A65^('B. PoF Summary Stats & Params'!$I$12-1), IF('B. PoF Summary Stats & Params'!$C$12="W", B65*(('B. PoF Summary Stats & Params'!$M$12/'B. PoF Summary Stats & Params'!$O$12)*((A65)/'B. PoF Summary Stats & Params'!$O$12)^('B. PoF Summary Stats & Params'!$M$12-1)), "Choose Model")) -> 0.07481343198
A66: 62 | B66: 1 | C66: =IF('B. PoF Summary Stats & Params'!$C$12="C", B66*'B. PoF Summary Stats & Params'!$I$8*'B. PoF Summary Stats & Params'!$I$10*A66^('B. PoF Summary Stats & Params'!$I$10-1), IF('B. PoF Summary Stats & Params'!$C$12="W", B66*(('B. PoF Summary Stats & Params'!$M$14/'B. PoF Summary Stats & Params'!$O$14)*((A66)/'B. PoF Summary Stats & Params'!$O$14)^('B. PoF Summary Stats & Params'!$M$14-1)), "Choose Model")) -> 0.1120749224 | D66: =IF('B. PoF Summary Stats & Params'!$C$12="C", B66*'B. PoF Summary Stats & Params'!$I$8*'B. PoF Summary Stats & Params'!$I$6*A66^('B. PoF Summary Stats & Params'!$I$6-1), IF('B. PoF Summary Stats & Params'!$C$12="W", B66*(('B. PoF Summary Stats & Params'!$M$6/'B. PoF Summary Stats & Params'!$M$8)*((A66)/'B. PoF Summary Stats & Params'!$M$8)^('B. PoF Summary Stats & Params'!$M$6-1)), "Choose Model")) -> 0.09212534421 | E66: =IF('B. PoF Summary Stats & Params'!$C$12="C", B66*'B. PoF Summary Stats & Params'!$I$8*'B. PoF Summary Stats & Params'!$I$12*A66^('B. PoF Summary Stats & Params'!$I$12-1), IF('B. PoF Summary Stats & Params'!$C$12="W", B66*(('B. PoF Summary Stats & Params'!$M$12/'B. PoF Summary Stats & Params'!$O$12)*((A66)/'B. PoF Summary Stats & Params'!$O$12)^('B. PoF Summary Stats & Params'!$M$12-1)), "Choose Model")) -> 0.07568381032
A67: 63 | B67: 1 | C67: =IF('B. PoF Summary Stats & Params'!$C$12="C", B67*'B. PoF Summary Stats & Params'!$I$8*'B. PoF Summary Stats & Params'!$I$10*A67^('B. PoF Summary Stats & Params'!$I$10-1), IF('B. PoF Summary Stats & Params'!$C$12="W", B67*(('B. PoF Summary Stats & Params'!$M$14/'B. PoF Summary Stats & Params'!$O$14)*((A67)/'B. PoF Summary Stats & Params'!$O$14)^('B. PoF Summary Stats & Params'!$M$14-1)), "Choose Model")) -> 0.1135095041 | D67: =IF('B. PoF Summary Stats & Params'!$C$12="C", B67*'B. PoF Summary Stats & Params'!$I$8*'B. PoF Summary Stats & Params'!$I$6*A67^('B. PoF Summary Stats & Params'!$I$6-1), IF('B. PoF Summary Stats & Params'!$C$12="W", B67*(('B. PoF Summary Stats & Params'!$M$6/'B. PoF Summary Stats & Params'!$M$8)*((A67)/'B. PoF Summary Stats & Params'!$M$8)^('B. PoF Summary Stats & Params'!$M$6-1)), "Choose Model")) -> 0.09324220379 | E67: =IF('B. PoF Summary Stats & Params'!$C$12="C", B67*'B. PoF Summary Stats & Params'!$I$8*'B. PoF Summary Stats & Params'!$I$12*A67^('B. PoF Summary Stats & Params'!$I$12-1), IF('B. PoF Summary Stats & Params'!$C$12="W", B67*(('B. PoF Summary Stats & Params'!$M$12/'B. PoF Summary Stats & Params'!$O$12)*((A67)/'B. PoF Summary Stats & Params'!$O$12)^('B. PoF Summary Stats & Params'!$M$12-1)), "Choose Model")) -> 0.07655014563
A68: 64 | B68: 1 | C68: =IF('B. PoF Summary Stats & Params'!$C$12="C", B68*'B. PoF Summary Stats & Params'!$I$8*'B. PoF Summary Stats & Params'!$I$10*A68^('B. PoF Summary Stats & Params'!$I$10-1), IF('B. PoF Summary Stats & Params'!$C$12="W", B68*(('B. PoF Summary Stats & Params'!$M$14/'B. PoF Summary Stats & Params'!$O$14)*((A68)/'B. PoF Summary Stats & Params'!$O$14)^('B. PoF Summary Stats & Params'!$M$14-1)), "Choose Model")) -> 0.1149394233 | D68: =IF('B. PoF Summary Stats & Params'!$C$12="C", B68*'B. PoF Summary Stats & Params'!$I$8*'B. PoF Summary Stats & Params'!$I$6*A68^('B. PoF Summary Stats & Params'!$I$6-1), IF('B. PoF Summary Stats & Params'!$C$12="W", B68*(('B. PoF Summary Stats & Params'!$M$6/'B. PoF Summary Stats & Params'!$M$8)*((A68)/'B. PoF Summary Stats & Params'!$M$8)^('B. PoF Summary Stats & Params'!$M$6-1)), "Choose Model")) -> 0.09435469527 | E68: =IF('B. PoF Summary Stats & Params'!$C$12="C", B68*'B. PoF Summary Stats & Params'!$I$8*'B. PoF Summary Stats & Params'!$I$12*A68^('B. PoF Summary Stats & Params'!$I$12-1), IF('B. PoF Summary Stats & Params'!$C$12="W", B68*(('B. PoF Summary Stats & Params'!$M$12/'B. PoF Summary Stats & Params'!$O$12)*((A68)/'B. PoF Summary Stats & Params'!$O$12)^('B. PoF Summary Stats & Params'!$M$12-1)), "Choose Model")) -> 0.07741252043
A69: 65 | B69: 1 | C69: =IF('B. PoF Summary Stats & Params'!$C$12="C", B69*'B. PoF Summary Stats & Params'!$I$8*'B. PoF Summary Stats & Params'!$I$10*A69^('B. PoF Summary Stats & Params'!$I$10-1), IF('B. PoF Summary Stats & Params'!$C$12="W", B69*(('B. PoF Summary Stats & Params'!$M$14/'B. PoF Summary Stats & Params'!$O$14)*((A69)/'B. PoF Summary Stats & Params'!$O$14)^('B. PoF Summary Stats & Params'!$M$14-1)), "Choose Model")) -> 0.1163647675 | D69: =IF('B. PoF Summary Stats & Params'!$C$12="C", B69*'B. PoF Summary Stats & Params'!$I$8*'B. PoF Summary Stats & Params'!$I$6*A69^('B. PoF Summary Stats & Params'!$I$6-1), IF('B. PoF Summary Stats & Params'!$C$12="W", B69*(('B. PoF Summary Stats & Params'!$M$6/'B. PoF Summary Stats & Params'!$M$8)*((A69)/'B. PoF Summary Stats & Params'!$M$8)^('B. PoF Summary Stats & Params'!$M$6-1)), "Choose Model")) -> 0.09546290358 | E69: =IF('B. PoF Summary Stats & Params'!$C$12="C", B69*'B. PoF Summary Stats & Params'!$I$8*'B. PoF Summary Stats & Params'!$I$12*A69^('B. PoF Summary Stats & Params'!$I$12-1), IF('B. PoF Summary Stats & Params'!$C$12="W", B69*(('B. PoF Summary Stats & Params'!$M$12/'B. PoF Summary Stats & Params'!$O$12)*((A69)/'B. PoF Summary Stats & Params'!$O$12)^('B. PoF Summary Stats & Params'!$M$12-1)), "Choose Model")) -> 0.07827101428
A70: 66 | B70: 1 | C70: =IF('B. PoF Summary Stats & Params'!$C$12="C", B70*'B. PoF Summary Stats & Params'!$I$8*'B. PoF Summary Stats & Params'!$I$10*A70^('B. PoF Summary Stats & Params'!$I$10-1), IF('B. PoF Summary Stats & Params'!$C$12="W", B70*(('B. PoF Summary Stats & Params'!$M$14/'B. PoF Summary Stats & Params'!$O$14)*((A70)/'B. PoF Summary Stats & Params'!$O$14)^('B. PoF Summary Stats & Params'!$M$14-1)), "Choose Model")) -> 0.1177856216 | D70: =IF('B. PoF Summary Stats & Params'!$C$12="C", B70*'B. PoF Summary Stats & Params'!$I$8*'B. PoF Summary Stats & Params'!$I$6*A70^('B. PoF Summary Stats & Params'!$I$6-1), IF('B. PoF Summary Stats & Params'!$C$12="W", B70*(('B. PoF Summary Stats & Params'!$M$6/'B. PoF Summary Stats & Params'!$M$8)*((A70)/'B. PoF Summary Stats & Params'!$M$8)^('B. PoF Summary Stats & Params'!$M$6-1)), "Choose Model")) -> 0.09656691075 | E70: =IF('B. PoF Summary Stats & Params'!$C$12="C", B70*'B. PoF Summary Stats & Params'!$I$8*'B. PoF Summary Stats & Params'!$I$12*A70^('B. PoF Summary Stats & Params'!$I$12-1), IF('B. PoF Summary Stats & Params'!$C$12="W", B70*(('B. PoF Summary Stats & Params'!$M$12/'B. PoF Summary Stats & Params'!$O$12)*((A70)/'B. PoF Summary Stats & Params'!$O$12)^('B. PoF Summary Stats & Params'!$M$12-1)), "Choose Model")) -> 0.07912570396
A71: 67 | B71: 1 | C71: =IF('B. PoF Summary Stats & Params'!$C$12="C", B71*'B. PoF Summary Stats & Params'!$I$8*'B. PoF Summary Stats & Params'!$I$10*A71^('B. PoF Summary Stats & Params'!$I$10-1), IF('B. PoF Summary Stats & Params'!$C$12="W", B71*(('B. PoF Summary Stats & Params'!$M$14/'B. PoF Summary Stats & Params'!$O$14)*((A71)/'B. PoF Summary Stats & Params'!$O$14)^('B. PoF Summary Stats & Params'!$M$14-1)), "Choose Model")) -> 0.1192020673 | D71: =IF('B. PoF Summary Stats & Params'!$C$12="C", B71*'B. PoF Summary Stats & Params'!$I$8*'B. PoF Summary Stats & Params'!$I$6*A71^('B. PoF Summary Stats & Params'!$I$6-1), IF('B. PoF Summary Stats & Params'!$C$12="W", B71*(('B. PoF Summary Stats & Params'!$M$6/'B. PoF Summary Stats & Params'!$M$8)*((A71)/'B. PoF Summary Stats & Params'!$M$8)^('B. PoF Summary Stats & Params'!$M$6-1)), "Choose Model")) -> 0.09766679598 | E71: =IF('B. PoF Summary Stats & Params'!$C$12="C", B71*'B. PoF Summary Stats & Params'!$I$8*'B. PoF Summary Stats & Params'!$I$12*A71^('B. PoF Summary Stats & Params'!$I$12-1), IF('B. PoF Summary Stats & Params'!$C$12="W", B71*(('B. PoF Summary Stats & Params'!$M$12/'B. PoF Summary Stats & Params'!$O$12)*((A71)/'B. PoF Summary Stats & Params'!$O$12)^('B. PoF Summary Stats & Params'!$M$12-1)), "Choose Model")) -> 0.07997666361
A72: 68 | B72: 1 | C72: =IF('B. PoF Summary Stats & Params'!$C$12="C", B72*'B. PoF Summary Stats & Params'!$I$8*'B. PoF Summary Stats & Params'!$I$10*A72^('B. PoF Summary Stats & Params'!$I$10-1), IF('B. PoF Summary Stats & Params'!$C$12="W", B72*(('B. PoF Summary Stats & Params'!$M$14/'B. PoF Summary Stats & Params'!$O$14)*((A72)/'B. PoF Summary Stats & Params'!$O$14)^('B. PoF Summary Stats & Params'!$M$14-1)), "Choose Model")) -> 0.1206141838 | D72: =IF('B. PoF Summary Stats & Params'!$C$12="C", B72*'B. PoF Summary Stats & Params'!$I$8*'B. PoF Summary Stats & Params'!$I$6*A72^('B. PoF Summary Stats & Params'!$I$6-1), IF('B. PoF Summary Stats & Params'!$C$12="W", B72*(('B. PoF Summary Stats & Params'!$M$6/'B. PoF Summary Stats & Params'!$M$8)*((A72)/'B. PoF Summary Stats & Params'!$M$8)^('B. PoF Summary Stats & Params'!$M$6-1)), "Choose Model")) -> 0.09876263587 | E72: =IF('B. PoF Summary Stats & Params'!$C$12="C", B72*'B. PoF Summary Stats & Params'!$I$8*'B. PoF Summary Stats & Params'!$I$12*A72^('B. PoF Summary Stats & Params'!$I$12-1), IF('B. PoF Summary Stats & Params'!$C$12="W", B72*(('B. PoF Summary Stats & Params'!$M$12/'B. PoF Summary Stats & Params'!$O$12)*((A72)/'B. PoF Summary Stats & Params'!$O$12)^('B. PoF Summary Stats & Params'!$M$12-1)), "Choose Model")) -> 0.0808239648
A73: 69 | B73: 1 | C73: =IF('B. PoF Summary Stats & Params'!$C$12="C", B73*'B. PoF Summary Stats & Params'!$I$8*'B. PoF Summary Stats & Params'!$I$10*A73^('B. PoF Summary Stats & Params'!$I$10-1), IF('B. PoF Summary Stats & Params'!$C$12="W", B73*(('B. PoF Summary Stats & Params'!$M$14/'B. PoF Summary Stats & Params'!$O$14)*((A73)/'B. PoF Summary Stats & Params'!$O$14)^('B. PoF Summary Stats & Params'!$M$14-1)), "Choose Model")) -> 0.1220220478 | D73: =IF('B. PoF Summary Stats & Params'!$C$12="C", B73*'B. PoF Summary Stats & Params'!$I$8*'B. PoF Summary Stats & Params'!$I$6*A73^('B. PoF Summary Stats & Params'!$I$6-1), IF('B. PoF Summary Stats & Params'!$C$12="W", B73*(('B. PoF Summary Stats & Params'!$M$6/'B. PoF Summary Stats & Params'!$M$8)*((A73)/'B. PoF Summary Stats & Params'!$M$8)^('B. PoF Summary Stats & Params'!$M$6-1)), "Choose Model")) -> 0.09985450445 | E73: =IF('B. PoF Summary Stats & Params'!$C$12="C", B73*'B. PoF Summary Stats & Params'!$I$8*'B. PoF Summary Stats & Params'!$I$12*A73^('B. PoF Summary Stats & Params'!$I$12-1), IF('B. PoF Summary Stats & Params'!$C$12="W", B73*(('B. PoF Summary Stats & Params'!$M$12/'B. PoF Summary Stats & Params'!$O$12)*((A73)/'B. PoF Summary Stats & Params'!$O$12)^('B. PoF Summary Stats & Params'!$M$12-1)), "Choose Model")) -> 0.08166767672
A74: 70 | B74: 1 | C74: =IF('B. PoF Summary Stats & Params'!$C$12="C", B74*'B. PoF Summary Stats & Params'!$I$8*'B. PoF Summary Stats & Params'!$I$10*A74^('B. PoF Summary Stats & Params'!$I$10-1), IF('B. PoF Summary Stats & Params'!$C$12="W", B74*(('B. PoF Summary Stats & Params'!$M$14/'B. PoF Summary Stats & Params'!$O$14)*((A74)/'B. PoF Summary Stats & Params'!$O$14)^('B. PoF Summary Stats & Params'!$M$14-1)), "Choose Model")) -> 0.1234257334 | D74: =IF('B. PoF Summary Stats & Params'!$C$12="C", B74*'B. PoF Summary Stats & Params'!$I$8*'B. PoF Summary Stats & Params'!$I$6*A74^('B. PoF Summary Stats & Params'!$I$6-1), IF('B. PoF Summary Stats & Params'!$C$12="W", B74*(('B. PoF Summary Stats & Params'!$M$6/'B. PoF Summary Stats & Params'!$M$8)*((A74)/'B. PoF Summary Stats & Params'!$M$8)^('B. PoF Summary Stats & Params'!$M$6-1)), "Choose Model")) -> 0.1009424734 | E74: =IF('B. PoF Summary Stats & Params'!$C$12="C", B74*'B. PoF Summary Stats & Params'!$I$8*'B. PoF Summary Stats & Params'!$I$12*A74^('B. PoF Summary Stats & Params'!$I$12-1), IF('B. PoF Summary Stats & Params'!$C$12="W", B74*(('B. PoF Summary Stats & Params'!$M$12/'B. PoF Summary Stats & Params'!$O$12)*((A74)/'B. PoF Summary Stats & Params'!$O$12)^('B. PoF Summary Stats & Params'!$M$12-1)), "Choose Model")) -> 0.08250786628
A75: 71 | B75: 1 | C75: =IF('B. PoF Summary Stats & Params'!$C$12="C", B75*'B. PoF Summary Stats & Params'!$I$8*'B. PoF Summary Stats & Params'!$I$10*A75^('B. PoF Summary Stats & Params'!$I$10-1), IF('B. PoF Summary Stats & Params'!$C$12="W", B75*(('B. PoF Summary Stats & Params'!$M$14/'B. PoF Summary Stats & Params'!$O$14)*((A75)/'B. PoF Summary Stats & Params'!$O$14)^('B. PoF Summary Stats & Params'!$M$14-1)), "Choose Model")) -> 0.1248253124 | D75: =IF('B. PoF Summary Stats & Params'!$C$12="C", B75*'B. PoF Summary Stats & Params'!$I$8*'B. PoF Summary Stats & Params'!$I$6*A75^('B. PoF Summary Stats & Params'!$I$6-1), IF('B. PoF Summary Stats & Params'!$C$12="W", B75*(('B. PoF Summary Stats & Params'!$M$6/'B. PoF Summary Stats & Params'!$M$8)*((A75)/'B. PoF Summary Stats & Params'!$M$8)^('B. PoF Summary Stats & Params'!$M$6-1)), "Choose Model")) -> 0.102026612 | E75: =IF('B. PoF Summary Stats & Params'!$C$12="C", B75*'B. PoF Summary Stats & Params'!$I$8*'B. PoF Summary Stats & Params'!$I$12*A75^('B. PoF Summary Stats & Params'!$I$12-1), IF('B. PoF Summary Stats & Params'!$C$12="W", B75*(('B. PoF Summary Stats & Params'!$M$12/'B. PoF Summary Stats & Params'!$O$12)*((A75)/'B. PoF Summary Stats & Params'!$O$12)^('B. PoF Summary Stats & Params'!$M$12-1)), "Choose Model")) -> 0.0833445982
A76: 72 | B76: 1 | C76: =IF('B. PoF Summary Stats & Params'!$C$12="C", B76*'B. PoF Summary Stats & Params'!$I$8*'B. PoF Summary Stats & Params'!$I$10*A76^('B. PoF Summary Stats & Params'!$I$10-1), IF('B. PoF Summary Stats & Params'!$C$12="W", B76*(('B. PoF Summary Stats & Params'!$M$14/'B. PoF Summary Stats & Params'!$O$14)*((A76)/'B. PoF Summary Stats & Params'!$O$14)^('B. PoF Summary Stats & Params'!$M$14-1)), "Choose Model")) -> 0.1262208545 | D76: =IF('B. PoF Summary Stats & Params'!$C$12="C", B76*'B. PoF Summary Stats & Params'!$I$8*'B. PoF Summary Stats & Params'!$I$6*A76^('B. PoF Summary Stats & Params'!$I$6-1), IF('B. PoF Summary Stats & Params'!$C$12="W", B76*(('B. PoF Summary Stats & Params'!$M$6/'B. PoF Summary Stats & Params'!$M$8)*((A76)/'B. PoF Summary Stats & Params'!$M$8)^('B. PoF Summary Stats & Params'!$M$6-1)), "Choose Model")) -> 0.1031069874 | E76: =IF('B. PoF Summary Stats & Params'!$C$12="C", B76*'B. PoF Summary Stats & Params'!$I$8*'B. PoF Summary Stats & Params'!$I$12*A76^('B. PoF Summary Stats & Params'!$I$12-1), IF('B. PoF Summary Stats & Params'!$C$12="W", B76*(('B. PoF Summary Stats & Params'!$M$12/'B. PoF Summary Stats & Params'!$O$12)*((A76)/'B. PoF Summary Stats & Params'!$O$12)^('B. PoF Summary Stats & Params'!$M$12-1)), "Choose Model")) -> 0.08417793509
A77: 73 | B77: 1 | C77: =IF('B. PoF Summary Stats & Params'!$C$12="C", B77*'B. PoF Summary Stats & Params'!$I$8*'B. PoF Summary Stats & Params'!$I$10*A77^('B. PoF Summary Stats & Params'!$I$10-1), IF('B. PoF Summary Stats & Params'!$C$12="W", B77*(('B. PoF Summary Stats & Params'!$M$14/'B. PoF Summary Stats & Params'!$O$14)*((A77)/'B. PoF Summary Stats & Params'!$O$14)^('B. PoF Summary Stats & Params'!$M$14-1)), "Choose Model")) -> 0.1276124271 | D77: =IF('B. PoF Summary Stats & Params'!$C$12="C", B77*'B. PoF Summary Stats & Params'!$I$8*'B. PoF Summary Stats & Params'!$I$6*A77^('B. PoF Summary Stats & Params'!$I$6-1), IF('B. PoF Summary Stats & Params'!$C$12="W", B77*(('B. PoF Summary Stats & Params'!$M$6/'B. PoF Summary Stats & Params'!$M$8)*((A77)/'B. PoF Summary Stats & Params'!$M$8)^('B. PoF Summary Stats & Params'!$M$6-1)), "Choose Model")) -> 0.1041836647 | E77: =IF('B. PoF Summary Stats & Params'!$C$12="C", B77*'B. PoF Summary Stats & Params'!$I$8*'B. PoF Summary Stats & Params'!$I$12*A77^('B. PoF Summary Stats & Params'!$I$12-1), IF('B. PoF Summary Stats & Params'!$C$12="W", B77*(('B. PoF Summary Stats & Params'!$M$12/'B. PoF Summary Stats & Params'!$O$12)*((A77)/'B. PoF Summary Stats & Params'!$O$12)^('B. PoF Summary Stats & Params'!$M$12-1)), "Choose Model")) -> 0.08500793762
A78: 74 | B78: 1 | C78: =IF('B. PoF Summary Stats & Params'!$C$12="C", B78*'B. PoF Summary Stats & Params'!$I$8*'B. PoF Summary Stats & Params'!$I$10*A78^('B. PoF Summary Stats & Params'!$I$10-1), IF('B. PoF Summary Stats & Params'!$C$12="W", B78*(('B. PoF Summary Stats & Params'!$M$14/'B. PoF Summary Stats & Params'!$O$14)*((A78)/'B. PoF Summary Stats & Params'!$O$14)^('B. PoF Summary Stats & Params'!$M$14-1)), "Choose Model")) -> 0.1290000956 | D78: =IF('B. PoF Summary Stats & Params'!$C$12="C", B78*'B. PoF Summary Stats & Params'!$I$8*'B. PoF Summary Stats & Params'!$I$6*A78^('B. PoF Summary Stats & Params'!$I$6-1), IF('B. PoF Summary Stats & Params'!$C$12="W", B78*(('B. PoF Summary Stats & Params'!$M$6/'B. PoF Summary Stats & Params'!$M$8)*((A78)/'B. PoF Summary Stats & Params'!$M$8)^('B. PoF Summary Stats & Params'!$M$6-1)), "Choose Model")) -> 0.105256707 | E78: =IF('B. PoF Summary Stats & Params'!$C$12="C", B78*'B. PoF Summary Stats & Params'!$I$8*'B. PoF Summary Stats & Params'!$I$12*A78^('B. PoF Summary Stats & Params'!$I$12-1), IF('B. PoF Summary Stats & Params'!$C$12="W", B78*(('B. PoF Summary Stats & Params'!$M$12/'B. PoF Summary Stats & Params'!$O$12)*((A78)/'B. PoF Summary Stats & Params'!$O$12)^('B. PoF Summary Stats & Params'!$M$12-1)), "Choose Model")) -> 0.08583466452
A79: 75 | B79: 1 | C79: =IF('B. PoF Summary Stats & Params'!$C$12="C", B79*'B. PoF Summary Stats & Params'!$I$8*'B. PoF Summary Stats & Params'!$I$10*A79^('B. PoF Summary Stats & Params'!$I$10-1), IF('B. PoF Summary Stats & Params'!$C$12="W", B79*(('B. PoF Summary Stats & Params'!$M$14/'B. PoF Summary Stats & Params'!$O$14)*((A79)/'B. PoF Summary Stats & Params'!$O$14)^('B. PoF Summary Stats & Params'!$M$14-1)), "Choose Model")) -> 0.1303839237 | D79: =IF('B. PoF Summary Stats & Params'!$C$12="C", B79*'B. PoF Summary Stats & Params'!$I$8*'B. PoF Summary Stats & Params'!$I$6*A79^('B. PoF Summary Stats & Params'!$I$6-1), IF('B. PoF Summary Stats & Params'!$C$12="W", B79*(('B. PoF Summary Stats & Params'!$M$6/'B. PoF Summary Stats & Params'!$M$8)*((A79)/'B. PoF Summary Stats & Params'!$M$8)^('B. PoF Summary Stats & Params'!$M$6-1)), "Choose Model")) -> 0.1063261754 | E79: =IF('B. PoF Summary Stats & Params'!$C$12="C", B79*'B. PoF Summary Stats & Params'!$I$8*'B. PoF Summary Stats & Params'!$I$12*A79^('B. PoF Summary Stats & Params'!$I$12-1), IF('B. PoF Summary Stats & Params'!$C$12="W", B79*(('B. PoF Summary Stats & Params'!$M$12/'B. PoF Summary Stats & Params'!$O$12)*((A79)/'B. PoF Summary Stats & Params'!$O$12)^('B. PoF Summary Stats & Params'!$M$12-1)), "Choose Model")) -> 0.08665817274
A80: 76 | B80: 1 | C80: =IF('B. PoF Summary Stats & Params'!$C$12="C", B80*'B. PoF Summary Stats & Params'!$I$8*'B. PoF Summary Stats & Params'!$I$10*A80^('B. PoF Summary Stats & Params'!$I$10-1), IF('B. PoF Summary Stats & Params'!$C$12="W", B80*(('B. PoF Summary Stats & Params'!$M$14/'B. PoF Summary Stats & Params'!$O$14)*((A80)/'B. PoF Summary Stats & Params'!$O$14)^('B. PoF Summary Stats & Params'!$M$14-1)), "Choose Model")) -> 0.1317639728 | D80: =IF('B. PoF Summary Stats & Params'!$C$12="C", B80*'B. PoF Summary Stats & Params'!$I$8*'B. PoF Summary Stats & Params'!$I$6*A80^('B. PoF Summary Stats & Params'!$I$6-1), IF('B. PoF Summary Stats & Params'!$C$12="W", B80*(('B. PoF Summary Stats & Params'!$M$6/'B. PoF Summary Stats & Params'!$M$8)*((A80)/'B. PoF Summary Stats & Params'!$M$8)^('B. PoF Summary Stats & Params'!$M$6-1)), "Choose Model")) -> 0.1073921293 | E80: =IF('B. PoF Summary Stats & Params'!$C$12="C", B80*'B. PoF Summary Stats & Params'!$I$8*'B. PoF Summary Stats & Params'!$I$12*A80^('B. PoF Summary Stats & Params'!$I$12-1), IF('B. PoF Summary Stats & Params'!$C$12="W", B80*(('B. PoF Summary Stats & Params'!$M$12/'B. PoF Summary Stats & Params'!$O$12)*((A80)/'B. PoF Summary Stats & Params'!$O$12)^('B. PoF Summary Stats & Params'!$M$12-1)), "Choose Model")) -> 0.08747851747
A81: 77 | B81: 1 | C81: =IF('B. PoF Summary Stats & Params'!$C$12="C", B81*'B. PoF Summary Stats & Params'!$I$8*'B. PoF Summary Stats & Params'!$I$10*A81^('B. PoF Summary Stats & Params'!$I$10-1), IF('B. PoF Summary Stats & Params'!$C$12="W", B81*(('B. PoF Summary Stats & Params'!$M$14/'B. PoF Summary Stats & Params'!$O$14)*((A81)/'B. PoF Summary Stats & Params'!$O$14)^('B. PoF Summary Stats & Params'!$M$14-1)), "Choose Model")) -> 0.1331403028 | D81: =IF('B. PoF Summary Stats & Params'!$C$12="C", B81*'B. PoF Summary Stats & Params'!$I$8*'B. PoF Summary Stats & Params'!$I$6*A81^('B. PoF Summary Stats & Params'!$I$6-1), IF('B. PoF Summary Stats & Params'!$C$12="W", B81*(('B. PoF Summary Stats & Params'!$M$6/'B. PoF Summary Stats & Params'!$M$8)*((A81)/'B. PoF Summary Stats & Params'!$M$8)^('B. PoF Summary Stats & Params'!$M$6-1)), "Choose Model")) -> 0.1084546261 | E81: =IF('B. PoF Summary Stats & Params'!$C$12="C", B81*'B. PoF Summary Stats & Params'!$I$8*'B. PoF Summary Stats & Params'!$I$12*A81^('B. PoF Summary Stats & Params'!$I$12-1), IF('B. PoF Summary Stats & Params'!$C$12="W", B81*(('B. PoF Summary Stats & Params'!$M$12/'B. PoF Summary Stats & Params'!$O$12)*((A81)/'B. PoF Summary Stats & Params'!$O$12)^('B. PoF Summary Stats & Params'!$M$12-1)), "Choose Model")) -> 0.08829575226
A82: 78 | B82: 1 | C82: =IF('B. PoF Summary Stats & Params'!$C$12="C", B82*'B. PoF Summary Stats & Params'!$I$8*'B. PoF Summary Stats & Params'!$I$10*A82^('B. PoF Summary Stats & Params'!$I$10-1), IF('B. PoF Summary Stats & Params'!$C$12="W", B82*(('B. PoF Summary Stats & Params'!$M$14/'B. PoF Summary Stats & Params'!$O$14)*((A82)/'B. PoF Summary Stats & Params'!$O$14)^('B. PoF Summary Stats & Params'!$M$14-1)), "Choose Model")) -> 0.1345129719 | D82: =IF('B. PoF Summary Stats & Params'!$C$12="C", B82*'B. PoF Summary Stats & Params'!$I$8*'B. PoF Summary Stats & Params'!$I$6*A82^('B. PoF Summary Stats & Params'!$I$6-1), IF('B. PoF Summary Stats & Params'!$C$12="W", B82*(('B. PoF Summary Stats & Params'!$M$6/'B. PoF Summary Stats & Params'!$M$8)*((A82)/'B. PoF Summary Stats & Params'!$M$8)^('B. PoF Summary Stats & Params'!$M$6-1)), "Choose Model")) -> 0.1095137218 | E82: =IF('B. PoF Summary Stats & Params'!$C$12="C", B82*'B. PoF Summary Stats & Params'!$I$8*'B. PoF Summary Stats & Params'!$I$12*A82^('B. PoF Summary Stats & Params'!$I$12-1), IF('B. PoF Summary Stats & Params'!$C$12="W", B82*(('B. PoF Summary Stats & Params'!$M$12/'B. PoF Summary Stats & Params'!$O$12)*((A82)/'B. PoF Summary Stats & Params'!$O$12)^('B. PoF Summary Stats & Params'!$M$12-1)), "Choose Model")) -> 0.08910992906
A83: 79 | B83: 1 | C83: =IF('B. PoF Summary Stats & Params'!$C$12="C", B83*'B. PoF Summary Stats & Params'!$I$8*'B. PoF Summary Stats & Params'!$I$10*A83^('B. PoF Summary Stats & Params'!$I$10-1), IF('B. PoF Summary Stats & Params'!$C$12="W", B83*(('B. PoF Summary Stats & Params'!$M$14/'B. PoF Summary Stats & Params'!$O$14)*((A83)/'B. PoF Summary Stats & Params'!$O$14)^('B. PoF Summary Stats & Params'!$M$14-1)), "Choose Model")) -> 0.1358820365 | D83: =IF('B. PoF Summary Stats & Params'!$C$12="C", B83*'B. PoF Summary Stats & Params'!$I$8*'B. PoF Summary Stats & Params'!$I$6*A83^('B. PoF Summary Stats & Params'!$I$6-1), IF('B. PoF Summary Stats & Params'!$C$12="W", B83*(('B. PoF Summary Stats & Params'!$M$6/'B. PoF Summary Stats & Params'!$M$8)*((A83)/'B. PoF Summary Stats & Params'!$M$8)^('B. PoF Summary Stats & Params'!$M$6-1)), "Choose Model")) -> 0.1105694707 | E83: =IF('B. PoF Summary Stats & Params'!$C$12="C", B83*'B. PoF Summary Stats & Params'!$I$8*'B. PoF Summary Stats & Params'!$I$12*A83^('B. PoF Summary Stats & Params'!$I$12-1), IF('B. PoF Summary Stats & Params'!$C$12="W", B83*(('B. PoF Summary Stats & Params'!$M$12/'B. PoF Summary Stats & Params'!$O$12)*((A83)/'B. PoF Summary Stats & Params'!$O$12)^('B. PoF Summary Stats & Params'!$M$12-1)), "Choose Model")) -> 0.08992109829
A84: 80 | B84: 1 | C84: =IF('B. PoF Summary Stats & Params'!$C$12="C", B84*'B. PoF Summary Stats & Params'!$I$8*'B. PoF Summary Stats & Params'!$I$10*A84^('B. PoF Summary Stats & Params'!$I$10-1), IF('B. PoF Summary Stats & Params'!$C$12="W", B84*(('B. PoF Summary Stats & Params'!$M$14/'B. PoF Summary Stats & Params'!$O$14)*((A84)/'B. PoF Summary Stats & Params'!$O$14)^('B. PoF Summary Stats & Params'!$M$14-1)), "Choose Model")) -> 0.1372475516 | D84: =IF('B. PoF Summary Stats & Params'!$C$12="C", B84*'B. PoF Summary Stats & Params'!$I$8*'B. PoF Summary Stats & Params'!$I$6*A84^('B. PoF Summary Stats & Params'!$I$6-1), IF('B. PoF Summary Stats & Params'!$C$12="W", B84*(('B. PoF Summary Stats & Params'!$M$6/'B. PoF Summary Stats & Params'!$M$8)*((A84)/'B. PoF Summary Stats & Params'!$M$8)^('B. PoF Summary Stats & Params'!$M$6-1)), "Choose Model")) -> 0.1116219255 | E84: =IF('B. PoF Summary Stats & Params'!$C$12="C", B84*'B. PoF Summary Stats & Params'!$I$8*'B. PoF Summary Stats & Params'!$I$12*A84^('B. PoF Summary Stats & Params'!$I$12-1), IF('B. PoF Summary Stats & Params'!$C$12="W", B84*(('B. PoF Summary Stats & Params'!$M$12/'B. PoF Summary Stats & Params'!$O$12)*((A84)/'B. PoF Summary Stats & Params'!$O$12)^('B. PoF Summary Stats & Params'!$M$12-1)), "Choose Model")) -> 0.09072930894
A85: 81 | B85: 1 | C85: =IF('B. PoF Summary Stats & Params'!$C$12="C", B85*'B. PoF Summary Stats & Params'!$I$8*'B. PoF Summary Stats & Params'!$I$10*A85^('B. PoF Summary Stats & Params'!$I$10-1), IF('B. PoF Summary Stats & Params'!$C$12="W", B85*(('B. PoF Summary Stats & Params'!$M$14/'B. PoF Summary Stats & Params'!$O$14)*((A85)/'B. PoF Summary Stats & Params'!$O$14)^('B. PoF Summary Stats & Params'!$M$14-1)), "Choose Model")) -> 0.1386095706 | D85: =IF('B. PoF Summary Stats & Params'!$C$12="C", B85*'B. PoF Summary Stats & Params'!$I$8*'B. PoF Summary Stats & Params'!$I$6*A85^('B. PoF Summary Stats & Params'!$I$6-1), IF('B. PoF Summary Stats & Params'!$C$12="W", B85*(('B. PoF Summary Stats & Params'!$M$6/'B. PoF Summary Stats & Params'!$M$8)*((A85)/'B. PoF Summary Stats & Params'!$M$8)^('B. PoF Summary Stats & Params'!$M$6-1)), "Choose Model")) -> 0.1126711376 | E85: =IF('B. PoF Summary Stats & Params'!$C$12="C", B85*'B. PoF Summary Stats & Params'!$I$8*'B. PoF Summary Stats & Params'!$I$12*A85^('B. PoF Summary Stats & Params'!$I$12-1), IF('B. PoF Summary Stats & Params'!$C$12="W", B85*(('B. PoF Summary Stats & Params'!$M$12/'B. PoF Summary Stats & Params'!$O$12)*((A85)/'B. PoF Summary Stats & Params'!$O$12)^('B. PoF Summary Stats & Params'!$M$12-1)), "Choose Model")) -> 0.09153460858
A86: 82 | B86: 1 | C86: =IF('B. PoF Summary Stats & Params'!$C$12="C", B86*'B. PoF Summary Stats & Params'!$I$8*'B. PoF Summary Stats & Params'!$I$10*A86^('B. PoF Summary Stats & Params'!$I$10-1), IF('B. PoF Summary Stats & Params'!$C$12="W", B86*(('B. PoF Summary Stats & Params'!$M$14/'B. PoF Summary Stats & Params'!$O$14)*((A86)/'B. PoF Summary Stats & Params'!$O$14)^('B. PoF Summary Stats & Params'!$M$14-1)), "Choose Model")) -> 0.1399681454 | D86: =IF('B. PoF Summary Stats & Params'!$C$12="C", B86*'B. PoF Summary Stats & Params'!$I$8*'B. PoF Summary Stats & Params'!$I$6*A86^('B. PoF Summary Stats & Params'!$I$6-1), IF('B. PoF Summary Stats & Params'!$C$12="W", B86*(('B. PoF Summary Stats & Params'!$M$6/'B. PoF Summary Stats & Params'!$M$8)*((A86)/'B. PoF Summary Stats & Params'!$M$8)^('B. PoF Summary Stats & Params'!$M$6-1)), "Choose Model")) -> 0.1137171566 | E86: =IF('B. PoF Summary Stats & Params'!$C$12="C", B86*'B. PoF Summary Stats & Params'!$I$8*'B. PoF Summary Stats & Params'!$I$12*A86^('B. PoF Summary Stats & Params'!$I$12-1), IF('B. PoF Summary Stats & Params'!$C$12="W", B86*(('B. PoF Summary Stats & Params'!$M$12/'B. PoF Summary Stats & Params'!$O$12)*((A86)/'B. PoF Summary Stats & Params'!$O$12)^('B. PoF Summary Stats & Params'!$M$12-1)), "Choose Model")) -> 0.09233704343
A87: 83 | B87: 1 | C87: =IF('B. PoF Summary Stats & Params'!$C$12="C", B87*'B. PoF Summary Stats & Params'!$I$8*'B. PoF Summary Stats & Params'!$I$10*A87^('B. PoF Summary Stats & Params'!$I$10-1), IF('B. PoF Summary Stats & Params'!$C$12="W", B87*(('B. PoF Summary Stats & Params'!$M$14/'B. PoF Summary Stats & Params'!$O$14)*((A87)/'B. PoF Summary Stats & Params'!$O$14)^('B. PoF Summary Stats & Params'!$M$14-1)), "Choose Model")) -> 0.1413233265 | D87: =IF('B. PoF Summary Stats & Params'!$C$12="C", B87*'B. PoF Summary Stats & Params'!$I$8*'B. PoF Summary Stats & Params'!$I$6*A87^('B. PoF Summary Stats & Params'!$I$6-1), IF('B. PoF Summary Stats & Params'!$C$12="W", B87*(('B. PoF Summary Stats & Params'!$M$6/'B. PoF Summary Stats & Params'!$M$8)*((A87)/'B. PoF Summary Stats & Params'!$M$8)^('B. PoF Summary Stats & Params'!$M$6-1)), "Choose Model")) -> 0.1147600312 | E87: =IF('B. PoF Summary Stats & Params'!$C$12="C", B87*'B. PoF Summary Stats & Params'!$I$8*'B. PoF Summary Stats & Params'!$I$12*A87^('B. PoF Summary Stats & Params'!$I$12-1), IF('B. PoF Summary Stats & Params'!$C$12="W", B87*(('B. PoF Summary Stats & Params'!$M$12/'B. PoF Summary Stats & Params'!$O$12)*((A87)/'B. PoF Summary Stats & Params'!$O$12)^('B. PoF Summary Stats & Params'!$M$12-1)), "Choose Model")) -> 0.09313665845
A88: 84 | B88: 1 | C88: =IF('B. PoF Summary Stats & Params'!$C$12="C", B88*'B. PoF Summary Stats & Params'!$I$8*'B. PoF Summary Stats & Params'!$I$10*A88^('B. PoF Summary Stats & Params'!$I$10-1), IF('B. PoF Summary Stats & Params'!$C$12="W", B88*(('B. PoF Summary Stats & Params'!$M$14/'B. PoF Summary Stats & Params'!$O$14)*((A88)/'B. PoF Summary Stats & Params'!$O$14)^('B. PoF Summary Stats & Params'!$M$14-1)), "Choose Model")) -> 0.1426751632 | D88: =IF('B. PoF Summary Stats & Params'!$C$12="C", B88*'B. PoF Summary Stats & Params'!$I$8*'B. PoF Summary Stats & Params'!$I$6*A88^('B. PoF Summary Stats & Params'!$I$6-1), IF('B. PoF Summary Stats & Params'!$C$12="W", B88*(('B. PoF Summary Stats & Params'!$M$6/'B. PoF Summary Stats & Params'!$M$8)*((A88)/'B. PoF Summary Stats & Params'!$M$8)^('B. PoF Summary Stats & Params'!$M$6-1)), "Choose Model")) -> 0.1157998084 | E88: =IF('B. PoF Summary Stats & Params'!$C$12="C", B88*'B. PoF Summary Stats & Params'!$I$8*'B. PoF Summary Stats & Params'!$I$12*A88^('B. PoF Summary Stats & Params'!$I$12-1), IF('B. PoF Summary Stats & Params'!$C$12="W", B88*(('B. PoF Summary Stats & Params'!$M$12/'B. PoF Summary Stats & Params'!$O$12)*((A88)/'B. PoF Summary Stats & Params'!$O$12)^('B. PoF Summary Stats & Params'!$M$12-1)), "Choose Model")) -> 0.09393349734
A89: 85 | B89: 1 | C89: =IF('B. PoF Summary Stats & Params'!$C$12="C", B89*'B. PoF Summary Stats & Params'!$I$8*'B. PoF Summary Stats & Params'!$I$10*A89^('B. PoF Summary Stats & Params'!$I$10-1), IF('B. PoF Summary Stats & Params'!$C$12="W", B89*(('B. PoF Summary Stats & Params'!$M$14/'B. PoF Summary Stats & Params'!$O$14)*((A89)/'B. PoF Summary Stats & Params'!$O$14)^('B. PoF Summary Stats & Params'!$M$14-1)), "Choose Model")) -> 0.1440237035 | D89: =IF('B. PoF Summary Stats & Params'!$C$12="C", B89*'B. PoF Summary Stats & Params'!$I$8*'B. PoF Summary Stats & Params'!$I$6*A89^('B. PoF Summary Stats & Params'!$I$6-1), IF('B. PoF Summary Stats & Params'!$C$12="W", B89*(('B. PoF Summary Stats & Params'!$M$6/'B. PoF Summary Stats & Params'!$M$8)*((A89)/'B. PoF Summary Stats & Params'!$M$8)^('B. PoF Summary Stats & Params'!$M$6-1)), "Choose Model")) -> 0.1168365343 | E89: =IF('B. PoF Summary Stats & Params'!$C$12="C", B89*'B. PoF Summary Stats & Params'!$I$8*'B. PoF Summary Stats & Params'!$I$12*A89^('B. PoF Summary Stats & Params'!$I$12-1), IF('B. PoF Summary Stats & Params'!$C$12="W", B89*(('B. PoF Summary Stats & Params'!$M$12/'B. PoF Summary Stats & Params'!$O$12)*((A89)/'B. PoF Summary Stats & Params'!$O$12)^('B. PoF Summary Stats & Params'!$M$12-1)), "Choose Model")) -> 0.09472760261
A90: 86 | B90: 1 | C90: =IF('B. PoF Summary Stats & Params'!$C$12="C", B90*'B. PoF Summary Stats & Params'!$I$8*'B. PoF Summary Stats & Params'!$I$10*A90^('B. PoF Summary Stats & Params'!$I$10-1), IF('B. PoF Summary Stats & Params'!$C$12="W", B90*(('B. PoF Summary Stats & Params'!$M$14/'B. PoF Summary Stats & Params'!$O$14)*((A90)/'B. PoF Summary Stats & Params'!$O$14)^('B. PoF Summary Stats & Params'!$M$14-1)), "Choose Model")) -> 0.1453689939 | D90: =IF('B. PoF Summary Stats & Params'!$C$12="C", B90*'B. PoF Summary Stats & Params'!$I$8*'B. PoF Summary Stats & Params'!$I$6*A90^('B. PoF Summary Stats & Params'!$I$6-1), IF('B. PoF Summary Stats & Params'!$C$12="W", B90*(('B. PoF Summary Stats & Params'!$M$6/'B. PoF Summary Stats & Params'!$M$8)*((A90)/'B. PoF Summary Stats & Params'!$M$8)^('B. PoF Summary Stats & Params'!$M$6-1)), "Choose Model")) -> 0.1178702534 | E90: =IF('B. PoF Summary Stats & Params'!$C$12="C", B90*'B. PoF Summary Stats & Params'!$I$8*'B. PoF Summary Stats & Params'!$I$12*A90^('B. PoF Summary Stats & Params'!$I$12-1), IF('B. PoF Summary Stats & Params'!$C$12="W", B90*(('B. PoF Summary Stats & Params'!$M$12/'B. PoF Summary Stats & Params'!$O$12)*((A90)/'B. PoF Summary Stats & Params'!$O$12)^('B. PoF Summary Stats & Params'!$M$12-1)), "Choose Model")) -> 0.09551901565
A91: 87 | B91: 1 | C91: =IF('B. PoF Summary Stats & Params'!$C$12="C", B91*'B. PoF Summary Stats & Params'!$I$8*'B. PoF Summary Stats & Params'!$I$10*A91^('B. PoF Summary Stats & Params'!$I$10-1), IF('B. PoF Summary Stats & Params'!$C$12="W", B91*(('B. PoF Summary Stats & Params'!$M$14/'B. PoF Summary Stats & Params'!$O$14)*((A91)/'B. PoF Summary Stats & Params'!$O$14)^('B. PoF Summary Stats & Params'!$M$14-1)), "Choose Model")) -> 0.14671108 | D91: =IF('B. PoF Summary Stats & Params'!$C$12="C", B91*'B. PoF Summary Stats & Params'!$I$8*'B. PoF Summary Stats & Params'!$I$6*A91^('B. PoF Summary Stats & Params'!$I$6-1), IF('B. PoF Summary Stats & Params'!$C$12="W", B91*(('B. PoF Summary Stats & Params'!$M$6/'B. PoF Summary Stats & Params'!$M$8)*((A91)/'B. PoF Summary Stats & Params'!$M$8)^('B. PoF Summary Stats & Params'!$M$6-1)), "Choose Model")) -> 0.1189010094 | E91: =IF('B. PoF Summary Stats & Params'!$C$12="C", B91*'B. PoF Summary Stats & Params'!$I$8*'B. PoF Summary Stats & Params'!$I$12*A91^('B. PoF Summary Stats & Params'!$I$12-1), IF('B. PoF Summary Stats & Params'!$C$12="W", B91*(('B. PoF Summary Stats & Params'!$M$12/'B. PoF Summary Stats & Params'!$O$12)*((A91)/'B. PoF Summary Stats & Params'!$O$12)^('B. PoF Summary Stats & Params'!$M$12-1)), "Choose Model")) -> 0.09630777672
A92: 88 | B92: 1 | C92: =IF('B. PoF Summary Stats & Params'!$C$12="C", B92*'B. PoF Summary Stats & Params'!$I$8*'B. PoF Summary Stats & Params'!$I$10*A92^('B. PoF Summary Stats & Params'!$I$10-1), IF('B. PoF Summary Stats & Params'!$C$12="W", B92*(('B. PoF Summary Stats & Params'!$M$14/'B. PoF Summary Stats & Params'!$O$14)*((A92)/'B. PoF Summary Stats & Params'!$O$14)^('B. PoF Summary Stats & Params'!$M$14-1)), "Choose Model")) -> 0.1480500061 | D92: =IF('B. PoF Summary Stats & Params'!$C$12="C", B92*'B. PoF Summary Stats & Params'!$I$8*'B. PoF Summary Stats & Params'!$I$6*A92^('B. PoF Summary Stats & Params'!$I$6-1), IF('B. PoF Summary Stats & Params'!$C$12="W", B92*(('B. PoF Summary Stats & Params'!$M$6/'B. PoF Summary Stats & Params'!$M$8)*((A92)/'B. PoF Summary Stats & Params'!$M$8)^('B. PoF Summary Stats & Params'!$M$6-1)), "Choose Model")) -> 0.1199288446 | E92: =IF('B. PoF Summary Stats & Params'!$C$12="C", B92*'B. PoF Summary Stats & Params'!$I$8*'B. PoF Summary Stats & Params'!$I$12*A92^('B. PoF Summary Stats & Params'!$I$12-1), IF('B. PoF Summary Stats & Params'!$C$12="W", B92*(('B. PoF Summary Stats & Params'!$M$12/'B. PoF Summary Stats & Params'!$O$12)*((A92)/'B. PoF Summary Stats & Params'!$O$12)^('B. PoF Summary Stats & Params'!$M$12-1)), "Choose Model")) -> 0.09709392505
A93: 89 | B93: 1 | C93: =IF('B. PoF Summary Stats & Params'!$C$12="C", B93*'B. PoF Summary Stats & Params'!$I$8*'B. PoF Summary Stats & Params'!$I$10*A93^('B. PoF Summary Stats & Params'!$I$10-1), IF('B. PoF Summary Stats & Params'!$C$12="W", B93*(('B. PoF Summary Stats & Params'!$M$14/'B. PoF Summary Stats & Params'!$O$14)*((A93)/'B. PoF Summary Stats & Params'!$O$14)^('B. PoF Summary Stats & Params'!$M$14-1)), "Choose Model")) -> 0.1493858155 | D93: =IF('B. PoF Summary Stats & Params'!$C$12="C", B93*'B. PoF Summary Stats & Params'!$I$8*'B. PoF Summary Stats & Params'!$I$6*A93^('B. PoF Summary Stats & Params'!$I$6-1), IF('B. PoF Summary Stats & Params'!$C$12="W", B93*(('B. PoF Summary Stats & Params'!$M$6/'B. PoF Summary Stats & Params'!$M$8)*((A93)/'B. PoF Summary Stats & Params'!$M$8)^('B. PoF Summary Stats & Params'!$M$6-1)), "Choose Model")) -> 0.1209538003 | E93: =IF('B. PoF Summary Stats & Params'!$C$12="C", B93*'B. PoF Summary Stats & Params'!$I$8*'B. PoF Summary Stats & Params'!$I$12*A93^('B. PoF Summary Stats & Params'!$I$12-1), IF('B. PoF Summary Stats & Params'!$C$12="W", B93*(('B. PoF Summary Stats & Params'!$M$12/'B. PoF Summary Stats & Params'!$O$12)*((A93)/'B. PoF Summary Stats & Params'!$O$12)^('B. PoF Summary Stats & Params'!$M$12-1)), "Choose Model")) -> 0.09787749884
A94: 90 | B94: 1 | C94: =IF('B. PoF Summary Stats & Params'!$C$12="C", B94*'B. PoF Summary Stats & Params'!$I$8*'B. PoF Summary Stats & Params'!$I$10*A94^('B. PoF Summary Stats & Params'!$I$10-1), IF('B. PoF Summary Stats & Params'!$C$12="W", B94*(('B. PoF Summary Stats & Params'!$M$14/'B. PoF Summary Stats & Params'!$O$14)*((A94)/'B. PoF Summary Stats & Params'!$O$14)^('B. PoF Summary Stats & Params'!$M$14-1)), "Choose Model")) -> 0.1507185502 | D94: =IF('B. PoF Summary Stats & Params'!$C$12="C", B94*'B. PoF Summary Stats & Params'!$I$8*'B. PoF Summary Stats & Params'!$I$6*A94^('B. PoF Summary Stats & Params'!$I$6-1), IF('B. PoF Summary Stats & Params'!$C$12="W", B94*(('B. PoF Summary Stats & Params'!$M$6/'B. PoF Summary Stats & Params'!$M$8)*((A94)/'B. PoF Summary Stats & Params'!$M$8)^('B. PoF Summary Stats & Params'!$M$6-1)), "Choose Model")) -> 0.1219759169 | E94: =IF('B. PoF Summary Stats & Params'!$C$12="C", B94*'B. PoF Summary Stats & Params'!$I$8*'B. PoF Summary Stats & Params'!$I$12*A94^('B. PoF Summary Stats & Params'!$I$12-1), IF('B. PoF Summary Stats & Params'!$C$12="W", B94*(('B. PoF Summary Stats & Params'!$M$12/'B. PoF Summary Stats & Params'!$O$12)*((A94)/'B. PoF Summary Stats & Params'!$O$12)^('B. PoF Summary Stats & Params'!$M$12-1)), "Choose Model")) -> 0.0986585353
A95: 91 | B95: 1 | C95: =IF('B. PoF Summary Stats & Params'!$C$12="C", B95*'B. PoF Summary Stats & Params'!$I$8*'B. PoF Summary Stats & Params'!$I$10*A95^('B. PoF Summary Stats & Params'!$I$10-1), IF('B. PoF Summary Stats & Params'!$C$12="W", B95*(('B. PoF Summary Stats & Params'!$M$14/'B. PoF Summary Stats & Params'!$O$14)*((A95)/'B. PoF Summary Stats & Params'!$O$14)^('B. PoF Summary Stats & Params'!$M$14-1)), "Choose Model")) -> 0.1520482515 | D95: =IF('B. PoF Summary Stats & Params'!$C$12="C", B95*'B. PoF Summary Stats & Params'!$I$8*'B. PoF Summary Stats & Params'!$I$6*A95^('B. PoF Summary Stats & Params'!$I$6-1), IF('B. PoF Summary Stats & Params'!$C$12="W", B95*(('B. PoF Summary Stats & Params'!$M$6/'B. PoF Summary Stats & Params'!$M$8)*((A95)/'B. PoF Summary Stats & Params'!$M$8)^('B. PoF Summary Stats & Params'!$M$6-1)), "Choose Model")) -> 0.1229952337 | E95: =IF('B. PoF Summary Stats & Params'!$C$12="C", B95*'B. PoF Summary Stats & Params'!$I$8*'B. PoF Summary Stats & Params'!$I$12*A95^('B. PoF Summary Stats & Params'!$I$12-1), IF('B. PoF Summary Stats & Params'!$C$12="W", B95*(('B. PoF Summary Stats & Params'!$M$12/'B. PoF Summary Stats & Params'!$O$12)*((A95)/'B. PoF Summary Stats & Params'!$O$12)^('B. PoF Summary Stats & Params'!$M$12-1)), "Choose Model")) -> 0.09943707071
A96: 92 | B96: 1 | C96: =IF('B. PoF Summary Stats & Params'!$C$12="C", B96*'B. PoF Summary Stats & Params'!$I$8*'B. PoF Summary Stats & Params'!$I$10*A96^('B. PoF Summary Stats & Params'!$I$10-1), IF('B. PoF Summary Stats & Params'!$C$12="W", B96*(('B. PoF Summary Stats & Params'!$M$14/'B. PoF Summary Stats & Params'!$O$14)*((A96)/'B. PoF Summary Stats & Params'!$O$14)^('B. PoF Summary Stats & Params'!$M$14-1)), "Choose Model")) -> 0.1533749594 | D96: =IF('B. PoF Summary Stats & Params'!$C$12="C", B96*'B. PoF Summary Stats & Params'!$I$8*'B. PoF Summary Stats & Params'!$I$6*A96^('B. PoF Summary Stats & Params'!$I$6-1), IF('B. PoF Summary Stats & Params'!$C$12="W", B96*(('B. PoF Summary Stats & Params'!$M$6/'B. PoF Summary Stats & Params'!$M$8)*((A96)/'B. PoF Summary Stats & Params'!$M$8)^('B. PoF Summary Stats & Params'!$M$6-1)), "Choose Model")) -> 0.1240117888 | E96: =IF('B. PoF Summary Stats & Params'!$C$12="C", B96*'B. PoF Summary Stats & Params'!$I$8*'B. PoF Summary Stats & Params'!$I$12*A96^('B. PoF Summary Stats & Params'!$I$12-1), IF('B. PoF Summary Stats & Params'!$C$12="W", B96*(('B. PoF Summary Stats & Params'!$M$12/'B. PoF Summary Stats & Params'!$O$12)*((A96)/'B. PoF Summary Stats & Params'!$O$12)^('B. PoF Summary Stats & Params'!$M$12-1)), "Choose Model")) -> 0.1002131404
A97: 93 | B97: 1 | C97: =IF('B. PoF Summary Stats & Params'!$C$12="C", B97*'B. PoF Summary Stats & Params'!$I$8*'B. PoF Summary Stats & Params'!$I$10*A97^('B. PoF Summary Stats & Params'!$I$10-1), IF('B. PoF Summary Stats & Params'!$C$12="W", B97*(('B. PoF Summary Stats & Params'!$M$14/'B. PoF Summary Stats & Params'!$O$14)*((A97)/'B. PoF Summary Stats & Params'!$O$14)^('B. PoF Summary Stats & Params'!$M$14-1)), "Choose Model")) -> 0.1546987131 | D97: =IF('B. PoF Summary Stats & Params'!$C$12="C", B97*'B. PoF Summary Stats & Params'!$I$8*'B. PoF Summary Stats & Params'!$I$6*A97^('B. PoF Summary Stats & Params'!$I$6-1), IF('B. PoF Summary Stats & Params'!$C$12="W", B97*(('B. PoF Summary Stats & Params'!$M$6/'B. PoF Summary Stats & Params'!$M$8)*((A97)/'B. PoF Summary Stats & Params'!$M$8)^('B. PoF Summary Stats & Params'!$M$6-1)), "Choose Model")) -> 0.1250256198 | E97: =IF('B. PoF Summary Stats & Params'!$C$12="C", B97*'B. PoF Summary Stats & Params'!$I$8*'B. PoF Summary Stats & Params'!$I$12*A97^('B. PoF Summary Stats & Params'!$I$12-1), IF('B. PoF Summary Stats & Params'!$C$12="W", B97*(('B. PoF Summary Stats & Params'!$M$12/'B. PoF Summary Stats & Params'!$O$12)*((A97)/'B. PoF Summary Stats & Params'!$O$12)^('B. PoF Summary Stats & Params'!$M$12-1)), "Choose Model")) -> 0.1009867789
A98: 94 | B98: 1 | C98: =IF('B. PoF Summary Stats & Params'!$C$12="C", B98*'B. PoF Summary Stats & Params'!$I$8*'B. PoF Summary Stats & Params'!$I$10*A98^('B. PoF Summary Stats & Params'!$I$10-1), IF('B. PoF Summary Stats & Params'!$C$12="W", B98*(('B. PoF Summary Stats & Params'!$M$14/'B. PoF Summary Stats & Params'!$O$14)*((A98)/'B. PoF Summary Stats & Params'!$O$14)^('B. PoF Summary Stats & Params'!$M$14-1)), "Choose Model")) -> 0.1560195508 | D98: =IF('B. PoF Summary Stats & Params'!$C$12="C", B98*'B. PoF Summary Stats & Params'!$I$8*'B. PoF Summary Stats & Params'!$I$6*A98^('B. PoF Summary Stats & Params'!$I$6-1), IF('B. PoF Summary Stats & Params'!$C$12="W", B98*(('B. PoF Summary Stats & Params'!$M$6/'B. PoF Summary Stats & Params'!$M$8)*((A98)/'B. PoF Summary Stats & Params'!$M$8)^('B. PoF Summary Stats & Params'!$M$6-1)), "Choose Model")) -> 0.1260367631 | E98: =IF('B. PoF Summary Stats & Params'!$C$12="C", B98*'B. PoF Summary Stats & Params'!$I$8*'B. PoF Summary Stats & Params'!$I$12*A98^('B. PoF Summary Stats & Params'!$I$12-1), IF('B. PoF Summary Stats & Params'!$C$12="W", B98*(('B. PoF Summary Stats & Params'!$M$12/'B. PoF Summary Stats & Params'!$O$12)*((A98)/'B. PoF Summary Stats & Params'!$O$12)^('B. PoF Summary Stats & Params'!$M$12-1)), "Choose Model")) -> 0.1017580199
A99: 95 | B99: 1 | C99: =IF('B. PoF Summary Stats & Params'!$C$12="C", B99*'B. PoF Summary Stats & Params'!$I$8*'B. PoF Summary Stats & Params'!$I$10*A99^('B. PoF Summary Stats & Params'!$I$10-1), IF('B. PoF Summary Stats & Params'!$C$12="W", B99*(('B. PoF Summary Stats & Params'!$M$14/'B. PoF Summary Stats & Params'!$O$14)*((A99)/'B. PoF Summary Stats & Params'!$O$14)^('B. PoF Summary Stats & Params'!$M$14-1)), "Choose Model")) -> 0.15733751 | D99: =IF('B. PoF Summary Stats & Params'!$C$12="C", B99*'B. PoF Summary Stats & Params'!$I$8*'B. PoF Summary Stats & Params'!$I$6*A99^('B. PoF Summary Stats & Params'!$I$6-1), IF('B. PoF Summary Stats & Params'!$C$12="W", B99*(('B. PoF Summary Stats & Params'!$M$6/'B. PoF Summary Stats & Params'!$M$8)*((A99)/'B. PoF Summary Stats & Params'!$M$8)^('B. PoF Summary Stats & Params'!$M$6-1)), "Choose Model")) -> 0.1270452543 | E99: =IF('B. PoF Summary Stats & Params'!$C$12="C", B99*'B. PoF Summary Stats & Params'!$I$8*'B. PoF Summary Stats & Params'!$I$12*A99^('B. PoF Summary Stats & Params'!$I$12-1), IF('B. PoF Summary Stats & Params'!$C$12="W", B99*(('B. PoF Summary Stats & Params'!$M$12/'B. PoF Summary Stats & Params'!$O$12)*((A99)/'B. PoF Summary Stats & Params'!$O$12)^('B. PoF Summary Stats & Params'!$M$12-1)), "Choose Model")) -> 0.1025268961
A100: 96 | B100: 1 | C100: =IF('B. PoF Summary Stats & Params'!$C$12="C", B100*'B. PoF Summary Stats & Params'!$I$8*'B. PoF Summary Stats & Params'!$I$10*A100^('B. PoF Summary Stats & Params'!$I$10-1), IF('B. PoF Summary Stats & Params'!$C$12="W", B100*(('B. PoF Summary Stats & Params'!$M$14/'B. PoF Summary Stats & Params'!$O$14)*((A100)/'B. PoF Summary Stats & Params'!$O$14)^('B. PoF Summary Stats & Params'!$M$14-1)), "Choose Model")) -> 0.158652627 | D100: =IF('B. PoF Summary Stats & Params'!$C$12="C", B100*'B. PoF Summary Stats & Params'!$I$8*'B. PoF Summary Stats & Params'!$I$6*A100^('B. PoF Summary Stats & Params'!$I$6-1), IF('B. PoF Summary Stats & Params'!$C$12="W", B100*(('B. PoF Summary Stats & Params'!$M$6/'B. PoF Summary Stats & Params'!$M$8)*((A100)/'B. PoF Summary Stats & Params'!$M$8)^('B. PoF Summary Stats & Params'!$M$6-1)), "Choose Model")) -> 0.1280511282 | E100: =IF('B. PoF Summary Stats & Params'!$C$12="C", B100*'B. PoF Summary Stats & Params'!$I$8*'B. PoF Summary Stats & Params'!$I$12*A100^('B. PoF Summary Stats & Params'!$I$12-1), IF('B. PoF Summary Stats & Params'!$C$12="W", B100*(('B. PoF Summary Stats & Params'!$M$12/'B. PoF Summary Stats & Params'!$O$12)*((A100)/'B. PoF Summary Stats & Params'!$O$12)^('B. PoF Summary Stats & Params'!$M$12-1)), "Choose Model")) -> 0.1032934396
A101: 97 | B101: 1 | C101: =IF('B. PoF Summary Stats & Params'!$C$12="C", B101*'B. PoF Summary Stats & Params'!$I$8*'B. PoF Summary Stats & Params'!$I$10*A101^('B. PoF Summary Stats & Params'!$I$10-1), IF('B. PoF Summary Stats & Params'!$C$12="W", B101*(('B. PoF Summary Stats & Params'!$M$14/'B. PoF Summary Stats & Params'!$O$14)*((A101)/'B. PoF Summary Stats & Params'!$O$14)^('B. PoF Summary Stats & Params'!$M$14-1)), "Choose Model")) -> 0.1599649375 | D101: =IF('B. PoF Summary Stats & Params'!$C$12="C", B101*'B. PoF Summary Stats & Params'!$I$8*'B. PoF Summary Stats & Params'!$I$6*A101^('B. PoF Summary Stats & Params'!$I$6-1), IF('B. PoF Summary Stats & Params'!$C$12="W", B101*(('B. PoF Summary Stats & Params'!$M$6/'B. PoF Summary Stats & Params'!$M$8)*((A101)/'B. PoF Summary Stats & Params'!$M$8)^('B. PoF Summary Stats & Params'!$M$6-1)), "Choose Model")) -> 0.1290544187 | E101: =IF('B. PoF Summary Stats & Params'!$C$12="C", B101*'B. PoF Summary Stats & Params'!$I$8*'B. PoF Summary Stats & Params'!$I$12*A101^('B. PoF Summary Stats & Params'!$I$12-1), IF('B. PoF Summary Stats & Params'!$C$12="W", B101*(('B. PoF Summary Stats & Params'!$M$12/'B. PoF Summary Stats & Params'!$O$12)*((A101)/'B. PoF Summary Stats & Params'!$O$12)^('B. PoF Summary Stats & Params'!$M$12-1)), "Choose Model")) -> 0.1040576816
A102: 98 | B102: 1 | C102: =IF('B. PoF Summary Stats & Params'!$C$12="C", B102*'B. PoF Summary Stats & Params'!$I$8*'B. PoF Summary Stats & Params'!$I$10*A102^('B. PoF Summary Stats & Params'!$I$10-1), IF('B. PoF Summary Stats & Params'!$C$12="W", B102*(('B. PoF Summary Stats & Params'!$M$14/'B. PoF Summary Stats & Params'!$O$14)*((A102)/'B. PoF Summary Stats & Params'!$O$14)^('B. PoF Summary Stats & Params'!$M$14-1)), "Choose Model")) -> 0.1612744763 | D102: =IF('B. PoF Summary Stats & Params'!$C$12="C", B102*'B. PoF Summary Stats & Params'!$I$8*'B. PoF Summary Stats & Params'!$I$6*A102^('B. PoF Summary Stats & Params'!$I$6-1), IF('B. PoF Summary Stats & Params'!$C$12="W", B102*(('B. PoF Summary Stats & Params'!$M$6/'B. PoF Summary Stats & Params'!$M$8)*((A102)/'B. PoF Summary Stats & Params'!$M$8)^('B. PoF Summary Stats & Params'!$M$6-1)), "Choose Model")) -> 0.1300551589 | E102: =IF('B. PoF Summary Stats & Params'!$C$12="C", B102*'B. PoF Summary Stats & Params'!$I$8*'B. PoF Summary Stats & Params'!$I$12*A102^('B. PoF Summary Stats & Params'!$I$12-1), IF('B. PoF Summary Stats & Params'!$C$12="W", B102*(('B. PoF Summary Stats & Params'!$M$12/'B. PoF Summary Stats & Params'!$O$12)*((A102)/'B. PoF Summary Stats & Params'!$O$12)^('B. PoF Summary Stats & Params'!$M$12-1)), "Choose Model")) -> 0.1048196527
A103: 99 | B103: 1 | C103: =IF('B. PoF Summary Stats & Params'!$C$12="C", B103*'B. PoF Summary Stats & Params'!$I$8*'B. PoF Summary Stats & Params'!$I$10*A103^('B. PoF Summary Stats & Params'!$I$10-1), IF('B. PoF Summary Stats & Params'!$C$12="W", B103*(('B. PoF Summary Stats & Params'!$M$14/'B. PoF Summary Stats & Params'!$O$14)*((A103)/'B. PoF Summary Stats & Params'!$O$14)^('B. PoF Summary Stats & Params'!$M$14-1)), "Choose Model")) -> 0.1625812776 | D103: =IF('B. PoF Summary Stats & Params'!$C$12="C", B103*'B. PoF Summary Stats & Params'!$I$8*'B. PoF Summary Stats & Params'!$I$6*A103^('B. PoF Summary Stats & Params'!$I$6-1), IF('B. PoF Summary Stats & Params'!$C$12="W", B103*(('B. PoF Summary Stats & Params'!$M$6/'B. PoF Summary Stats & Params'!$M$8)*((A103)/'B. PoF Summary Stats & Params'!$M$8)^('B. PoF Summary Stats & Params'!$M$6-1)), "Choose Model")) -> 0.1310533814 | E103: =IF('B. PoF Summary Stats & Params'!$C$12="C", B103*'B. PoF Summary Stats & Params'!$I$8*'B. PoF Summary Stats & Params'!$I$12*A103^('B. PoF Summary Stats & Params'!$I$12-1), IF('B. PoF Summary Stats & Params'!$C$12="W", B103*(('B. PoF Summary Stats & Params'!$M$12/'B. PoF Summary Stats & Params'!$O$12)*((A103)/'B. PoF Summary Stats & Params'!$O$12)^('B. PoF Summary Stats & Params'!$M$12-1)), "Choose Model")) -> 0.1055793827
A104: 100 | B104: 1 | C104: =IF('B. PoF Summary Stats & Params'!$C$12="C", B104*'B. PoF Summary Stats & Params'!$I$8*'B. PoF Summary Stats & Params'!$I$10*A104^('B. PoF Summary Stats & Params'!$I$10-1), IF('B. PoF Summary Stats & Params'!$C$12="W", B104*(('B. PoF Summary Stats & Params'!$M$14/'B. PoF Summary Stats & Params'!$O$14)*((A104)/'B. PoF Summary Stats & Params'!$O$14)^('B. PoF Summary Stats & Params'!$M$14-1)), "Choose Model")) -> 0.1638853745 | D104: =IF('B. PoF Summary Stats & Params'!$C$12="C", B104*'B. PoF Summary Stats & Params'!$I$8*'B. PoF Summary Stats & Params'!$I$6*A104^('B. PoF Summary Stats & Params'!$I$6-1), IF('B. PoF Summary Stats & Params'!$C$12="W", B104*(('B. PoF Summary Stats & Params'!$M$6/'B. PoF Summary Stats & Params'!$M$8)*((A104)/'B. PoF Summary Stats & Params'!$M$8)^('B. PoF Summary Stats & Params'!$M$6-1)), "Choose Model")) -> 0.1320491177 | E104: =IF('B. PoF Summary Stats & Params'!$C$12="C", B104*'B. PoF Summary Stats & Params'!$I$8*'B. PoF Summary Stats & Params'!$I$12*A104^('B. PoF Summary Stats & Params'!$I$12-1), IF('B. PoF Summary Stats & Params'!$C$12="W", B104*(('B. PoF Summary Stats & Params'!$M$12/'B. PoF Summary Stats & Params'!$O$12)*((A104)/'B. PoF Summary Stats & Params'!$O$12)^('B. PoF Summary Stats & Params'!$M$12-1)), "Choose Model")) -> 0.1063369008

Sheet B. PoF Summary Stats & Params
C1: PoF Summary Statistics and Parameters
B3: Summary Statisitics | E3: Failure Model Parameters | H3: Crow-AMSAA Parameters | L3: Weibull Parameters | R3: Health Index Parameters
B5: Number of PoF Adjustment Factors | C5: =COUNTIF('B. Population PoF Scores'!$O$5:$S$5,">"&0) -> 2
B6: Min Score | C6: =C5*1 -> 2 | E6: βavg | F6: =IF($C$12="C", I6, IF($C$12="W", M6, "Choose Model")) -> 1.753131606 | H6: βavg | L6: βavg | M6: 1.753131606 | S6: Earliest Age Asset Considered (Years) | V6: 0.5 | X6: Min PoF | Y6: =IF($C$12="C", I8*I12*V6^(I12-1), IF($C$12="W", (($M12/$O12)*((V6)/$O12)^(M12-1)), "Choose Model")) -> 0.002453913154
B7: Max Score | C7: =C5*5 -> 10 | E7: 95%CI Adj (β) | F7: =(F6-F14)/F6 -> 0.02383574761 | S7: Asset RAB Life (Years) | V7: 46.84 | X7: Max PoF | Y7: =IF($C$12="C", I8*I10*V9^(I10-1), IF($C$12="W", (($M14/$O14)*((V9)/$O14)^(M14-1)), "Choose Model")) -> 0.09745091341
B8: No. of Z-Scores | C8: =5^C5 -> 25 | F8: =F6*F7 -> 0.04178720248 | H8: λavg | L8: havg | M8: 31.60802803 | S8: Asset RAB Life Addition (%) | V8: 0.1 | X8: HI Categories | Y8: 10
E9: Std. Dev | F9: =SQRT(_xlfn.STDEV.P(({1;2;3;4;5}*'B. Population PoF Scores'!O5))^2+_xlfn.STDEV.P(({1;2;3;4;5}*'B. Population PoF Scores'!P5))^2+_xlfn.STDEV.P(({1;2;3;4;5}*'B. Population PoF Scores'!Q5))^2+_xlfn.STDEV.P(({1;2;3;4;5}*'B. Population PoF Scores'!R5))^2+_xlfn.STDEV.P(({1;2;3;4;5}*'B. Population PoF Scores'!S5))^2) -> 2 | S9: Asset RAB Life + Addition (%) | V9: =ROUND(V7*(1+V8), 0) -> 52 | X9: Delta per Cat. | Y9: =(Y7-Y6)/Y8 -> 0.009499700026
B10: Reference Date | C10: 2018 | E10: Max Std. Dev | F10: =(SUM('B. Population PoF Scores'!O5:S5)-F11)/F9*-1 -> 2 | H10: βpoor | L10: b | M10: -6.054284218
E11: Average PoF Factor Score | F11: =SUM('B. Population PoF Scores'!O5:S5)*3 -> 6
B12: Crow-AMSAA or Weibull Failure Model | C12: W | E12: β ZCF Scalar | F12: =F8/F10 -> 0.02089360124 | H12: βgood | L12: βgood | M12: 1.711344404 | N12: hgood | O12: 34.38896457 | S12: HEALTH INDEX | T12: PoF Range
S13: 1 | T13: 0 | U13: =$Y$6+S13*$Y$9 -> 0.01195361318
B14: Replacement Type | C14: New Model | E14: βgood | F14: =IF($C$12="C", I12, IF($C$12="W", M12, "Choose Model")) -> 1.711344404 | L14: βpoor | M14: 1.794918809 | N14: hpoor | O14: 29.1662686 | S14: 2 | T14: =U13 -> 0.01195361318 | U14: 0.02145331321
E15: βpoor | F15: =IF($C$12="C", I10, IF($C$12="W", M14, "Choose Model")) -> 1.794918809 | S15: 3 | T15: 0.02145331321 | U15: 0.03095301323
E16: λpopulation | F16: =IF($C$12="C", I8, "Not Applicable") -> Not Applicable | S16: 4 | T16: 0.03095301323 | U16: 0.04045271326
S17: 5 | T17: 0.04045271326 | U17: 0.04995241328
E18: havg | F18: =IF($C$12="C", "Not Applicable", M8) -> 31.60802803 | S18: 6 | T18: 0.04995241328 | U18: 0.05945211331
E19: Intercept (b) | F19: =IF($C$12="C", "Not Applicable", M10) -> -6.054284218 | S19: 7 | T19: 0.05945211331 | U19: 0.06895181333
E20: hgood | F20: =IF($C$12="C", "Not Applicable", O12) -> 34.38896457 | S20: 8 | T20: 0.06895181333 | U20: 0.07845151336
E21: 95%CI Adj (hgood) | F21: =IF($C$12="C", "Not Applicable", (F20-M8)/M8) -> 0.08798196892 | S21: 9 | T21: 0.07845151336 | U21: 0.08795121339
S22: 10 | T22: 0.08795121339 | U22: 0.09745091341
E23: hpoor | F23: =IF($C$12="C", "Not Applicable", O14) -> 29.1662686
E24: 95%CI Adj (hpoor) | F24: =IF($C$12="C", "Not Applicable", (F23-M8)/M8) -> -0.07725124207
E26: Replacement Asset PoF | F26: =IF($C$14="Like-for-like",IF($C$12="C",I8*I6*V6^(I12-1),IF($C$12="W",(($M6/$M8)*((V6)/$M8)^(M6-1)),"Choose Model")),IF($C$14="New model",IF($C$12="C", I8*I12*V6^(I12-1), IF($C$12="W", (($M12/$O12)*((V6)/$O12)^(M12-1)), "Choose Model")))) -> 0.002453913154

Sheet B. PoF Adj Factor Scoring
C1: PoF Adjustment Factors and Scores
B3: PoF Affect | C3: PoF Score | E3: ='B. Population PoF Scores'!B4 -> 0 | G3: ='B. Population PoF Scores'!C4 -> Construction type | I3: ='B. Population PoF Scores'!D4 -> Distance to coast | K3: ='B. Population PoF Scores'!E4 -> 0 | M3: ='B. Population PoF Scores'!F4 -> 0
E4: Factor Value | F4: PoF Score | G4: Factor Value | H4: PoF Score | I4: Factor Value | J4: PoF Score | K4: Factor Value | L4: PoF Score | M4: Factor Value | N4: PoF Score
E5: 0 | F5: 1 | G5: Essantee HS641 | H5: 5 | I5: 0 | J5: 5 | K5: 0 | L5: 1
B6: Insignificant | C6: 1 | E6: 1 | F6: 1 | G6: Haycolec (pin insulators) | H6: 2 | I6: 1 | J6: 5 | K6: 1 | L6: 1
B7: Minor | C7: 2 | E7: 2 | F7: 1 | G7: Other | H7: 1 | I7: 3 | J7: 4 | K7: 2 | L7: 1
B8: Moderate | C8: 3 | E8: 3 | F8: 1 | G8: Taplin D571 | H8: 4 | I8: 6 | J8: 3 | K8: 3 | L8: 1
B9: Major | C9: 4 | E9: 4 | F9: 1 | I9: 10 | J9: 2 | K9: 4 | L9: 1
B10: Severe | C10: 5 | I10: 100 | J10: 1

Sheet B. Population PoF Scores
C1: Population PoF Scores
A3: Asset Identifier | B3: POF ADJUSTMENT FACTORS | G3: POF SCORES
B4: ='A. Population Info'!G5 -> 0 | C4: ='A. Population Info'!H5 -> Construction type | D4: ='A. Population Info'!I5 -> Distance to coast | E4: ='A. Population Info'!J5 -> 0 | F4: ='A. Population Info'!K5 -> 0 | G4: =B4 -> 0 | H4: =C4 -> Construction type | I4: =D4 -> Distance to coast | J4: =E4 -> 0 | K4: =F4 -> 0 | O4: =B4 -> 0 | P4: =C4 -> Construction type | Q4: =D4 -> Distance to coast | R4: =E4 -> 0 | S4: =F4 -> 0
G5: =O5 -> 0 | H5: =P5 -> 1 | I5: =Q5 -> 1 | J5: =R5 -> 0 | K5: =S5 -> 0 | N5: Weighting 1 | O5: 0 | P5: 1 | Q5: 1 | R5: 0 | S5: 0
A6: ='A. Population Info'!A6 -> 1000000209 | B6: ='A. Population Info'!G6 -> 0 | C6: ='A. Population Info'!H6 -> Other | D6: ='A. Population Info'!I6 -> 3.343640374 | E6: ='A. Population Info'!J6 -> 0 | F6: ='A. Population Info'!K6 -> 0 | G6: =VLOOKUP(B:B,OFFSET('B. PoF Adj Factor Scoring'!$E$5:$F$282,,MATCH(G$4,'B. PoF Adj Factor Scoring'!$E$3:$N$3,0)-1),2,TRUE) -> 1 | H6: =VLOOKUP(C:C,OFFSET('B. PoF Adj Factor Scoring'!$E$5:$F$282,,MATCH(H$4,'B. PoF Adj Factor Scoring'!$E$3:$N$3,0)-1),2,TRUE) -> 1 | I6: =VLOOKUP(D:D,OFFSET('B. PoF Adj Factor Scoring'!$E$5:$F$282,,MATCH(I$4,'B. PoF Adj Factor Scoring'!$E$3:$N$3,0)-1),2,TRUE) -> 4 | J6: =VLOOKUP(E:E,OFFSET('B. PoF Adj Factor Scoring'!$E$5:$F$282,,MATCH(J$4,'B. PoF Adj Factor Scoring'!$E$3:$N$3,0)-1),2,TRUE) -> 1 | K6: =VLOOKUP(F:F,OFFSET('B. PoF Adj Factor Scoring'!$E$5:$F$282,,MATCH(K$4,'B. PoF Adj Factor Scoring'!$E$3:$N$3,0)-1),2,TRUE) -> 1
A7: ='A. Population Info'!A7 -> 1000000268 | B7: ='A. Population Info'!G7 -> 0 | C7: ='A. Population Info'!H7 -> Other | D7: ='A. Population Info'!I7 -> 116.7681583 | E7: ='A. Population Info'!J7 -> 0 | F7: ='A. Population Info'!K7 -> 0 | G7: =VLOOKUP(B:B,OFFSET('B. PoF Adj Factor Scoring'!$E$5:$F$282,,MATCH(G$4,'B. PoF Adj Factor Scoring'!$E$3:$N$3,0)-1),2,TRUE) -> 1 | H7: =VLOOKUP(C:C,OFFSET('B. PoF Adj Factor Scoring'!$E$5:$F$282,,MATCH(H$4,'B. PoF Adj Factor Scoring'!$E$3:$N$3,0)-1),2,TRUE) -> 1 | I7: =VLOOKUP(D:D,OFFSET('B. PoF Adj Factor Scoring'!$E$5:$F$282,,MATCH(I$4,'B. PoF Adj Factor Scoring'!$E$3:$N$3,0)-1),2,TRUE) -> 1 | J7: =VLOOKUP(E:E,OFFSET('B. PoF Adj Factor Scoring'!$E$5:$F$282,,MATCH(J$4,'B. PoF Adj Factor Scoring'!$E$3:$N$3,0)-1),2,TRUE) -> 1 | K7: =VLOOKUP(F:F,OFFSET('B. PoF Adj Factor Scoring'!$E$5:$F$282,,MATCH(K$4,'B. PoF Adj Factor Scoring'!$E$3:$N$3,0)-1),2,TRUE) -> 1
A8: ='A. Population Info'!A8 -> 1000000326 | B8: ='A. Population Info'!G8 -> 0 | C8: ='A. Population Info'!H8 -> Other | D8: ='A. Population Info'!I8 -> 20 | E8: ='A. Population Info'!J8 -> 0 | F8: ='A. Population Info'!K8 -> 0 | G8: =VLOOKUP(B:B,OFFSET('B. PoF Adj Factor Scoring'!$E$5:$F$282,,MATCH(G$4,'B. PoF Adj Factor Scoring'!$E$3:$N$3,0)-1),2,TRUE) -> 1 | H8: =VLOOKUP(C:C,OFFSET('B. PoF Adj Factor Scoring'!$E$5:$F$282,,MATCH(H$4,'B. PoF Adj Factor Scoring'!$E$3:$N$3,0)-1),2,TRUE) -> 1 | I8: =VLOOKUP(D:D,OFFSET('B. PoF Adj Factor Scoring'!$E$5:$F$282,,MATCH(I$4,'B. PoF Adj Factor Scoring'!$E$3:$N$3,0)-1),2,TRUE) -> 2 | J8: =VLOOKUP(E:E,OFFSET('B. PoF Adj Factor Scoring'!$E$5:$F$282,,MATCH(J$4,'B. PoF Adj Factor Scoring'!$E$3:$N$3,0)-1),2,TRUE) -> 1 | K8: =VLOOKUP(F:F,OFFSET('B. PoF Adj Factor Scoring'!$E$5:$F$282,,MATCH(K$4,'B. PoF Adj Factor Scoring'!$E$3:$N$3,0)-1),2,TRUE) -> 1
A9: ='A. Population Info'!A9 -> 1000000340 | B9: ='A. Population Info'!G9 -> 0 | C9: ='A. Population Info'!H9 -> Other | D9: ='A. Population Info'!I9 -> 20 | E9: ='A. Population Info'!J9 -> 0 | F9: ='A. Population Info'!K9 -> 0 | G9: =VLOOKUP(B:B,OFFSET('B. PoF Adj Factor Scoring'!$E$5:$F$282,,MATCH(G$4,'B. PoF Adj Factor Scoring'!$E$3:$N$3,0)-1),2,TRUE) -> 1 | H9: =VLOOKUP(C:C,OFFSET('B. PoF Adj Factor Scoring'!$E$5:$F$282,,MATCH(H$4,'B. PoF Adj Factor Scoring'!$E$3:$N$3,0)-1),2,TRUE) -> 1 | I9: =VLOOKUP(D:D,OFFSET('B. PoF Adj Factor Scoring'!$E$5:$F$282,,MATCH(I$4,'B. PoF Adj Factor Scoring'!$E$3:$N$3,0)-1),2,TRUE) -> 2 | J9: =VLOOKUP(E:E,OFFSET('B. PoF Adj Factor Scoring'!$E$5:$F$282,,MATCH(J$4,'B. PoF Adj Factor Scoring'!$E$3:$N$3,0)-1),2,TRUE) -> 1 | K9: =VLOOKUP(F:F,OFFSET('B. PoF Adj Factor Scoring'!$E$5:$F$282,,MATCH(K$4,'B. PoF Adj Factor Scoring'!$E$3:$N$3,0)-1),2,TRUE) -> 1
A10: ='A. Population Info'!A10 -> 1000000691 | B10: ='A. Population Info'!G10 -> 0 | C10: ='A. Population Info'!H10 -> Other | D10: ='A. Population Info'!I10 -> 110.7907232 | E10: ='A. Population Info'!J10 -> 0 | F10: ='A. Population Info'!K10 -> 0 | G10: =VLOOKUP(B:B,OFFSET('B. PoF Adj Factor Scoring'!$E$5:$F$282,,MATCH(G$4,'B. PoF Adj Factor Scoring'!$E$3:$N$3,0)-1),2,TRUE) -> 1 | H10: =VLOOKUP(C:C,OFFSET('B. PoF Adj Factor Scoring'!$E$5:$F$282,,MATCH(H$4,'B. PoF Adj Factor Scoring'!$E$3:$N$3,0)-1),2,TRUE) -> 1 | I10: =VLOOKUP(D:D,OFFSET('B. PoF Adj Factor Scoring'!$E$5:$F$282,,MATCH(I$4,'B. PoF Adj Factor Scoring'!$E$3:$N$3,0)-1),2,TRUE) -> 1 | J10: =VLOOKUP(E:E,OFFSET('B. PoF Adj Factor Scoring'!$E$5:$F$282,,MATCH(J$4,'B. PoF Adj Factor Scoring'!$E$3:$N$3,0)-1),2,TRUE) -> 1 | K10: =VLOOKUP(F:F,OFFSET('B. PoF Adj Factor Scoring'!$E$5:$F$282,,MATCH(K$4,'B. PoF Adj Factor Scoring'!$E$3:$N$3,0)-1),2,TRUE) -> 1
A11: ='A. Population Info'!A11 -> 1000000751 | B11: ='A. Population Info'!G11 -> 0 | C11: ='A. Population Info'!H11 -> Other | D11: ='A. Population Info'!I11 -> 64.15273413 | E11: ='A. Population Info'!J11 -> 0 | F11: ='A. Population Info'!K11 -> 0 | G11: =VLOOKUP(B:B,OFFSET('B. PoF Adj Factor Scoring'!$E$5:$F$282,,MATCH(G$4,'B. PoF Adj Factor Scoring'!$E$3:$N$3,0)-1),2,TRUE) -> 1 | H11: =VLOOKUP(C:C,OFFSET('B. PoF Adj Factor Scoring'!$E$5:$F$282,,MATCH(H$4,'B. PoF Adj Factor Scoring'!$E$3:$N$3,0)-1),2,TRUE) -> 1 | I11: =VLOOKUP(D:D,OFFSET('B. PoF Adj Factor Scoring'!$E$5:$F$282,,MATCH(I$4,'B. PoF Adj Factor Scoring'!$E$3:$N$3,0)-1),2,TRUE) -> 2 | J11: =VLOOKUP(E:E,OFFSET('B. PoF Adj Factor Scoring'!$E$5:$F$282,,MATCH(J$4,'B. PoF Adj Factor Scoring'!$E$3:$N$3,0)-1),2,TRUE) -> 1 | K11: =VLOOKUP(F:F,OFFSET('B. PoF Adj Factor Scoring'!$E$5:$F$282,,MATCH(K$4,'B. PoF Adj Factor Scoring'!$E$3:$N$3,0)-1),2,TRUE) -> 1
A12: ='A. Population Info'!A12 -> 1000000971 | B12: ='A. Population Info'!G12 -> 0 | C12: ='A. Population Info'!H12 -> Other | D12: ='A. Population Info'!I12 -> 101.833974 | E12: ='A. Population Info'!J12 -> 0 | F12: ='A. Population Info'!K12 -> 0 | G12: =VLOOKUP(B:B,OFFSET('B. PoF Adj Factor Scoring'!$E$5:$F$282,,MATCH(G$4,'B. PoF Adj Factor Scoring'!$E$3:$N$3,0)-1),2,TRUE) -> 1 | H12: =VLOOKUP(C:C,OFFSET('B. PoF Adj Factor Scoring'!$E$5:$F$282,,MATCH(H$4,'B. PoF Adj Factor Scoring'!$E$3:$N$3,0)-1),2,TRUE) -> 1 | I12: =VLOOKUP(D:D,OFFSET('B. PoF Adj Factor Scoring'!$E$5:$F$282,,MATCH(I$4,'B. PoF Adj Factor Scoring'!$E$3:$N$3,0)-1),2,TRUE) -> 1 | J12: =VLOOKUP(E:E,OFFSET('B. PoF Adj Factor Scoring'!$E$5:$F$282,,MATCH(J$4,'B. PoF Adj Factor Scoring'!$E$3:$N$3,0)-1),2,TRUE) -> 1 | K12: =VLOOKUP(F:F,OFFSET('B. PoF Adj Factor Scoring'!$E$5:$F$282,,MATCH(K$4,'B. PoF Adj Factor Scoring'!$E$3:$N$3,0)-1),2,TRUE) -> 1
A13: ='A. Population Info'!A13 -> 1000000983 | B13: ='A. Population Info'!G13 -> 0 | C13: ='A. Population Info'!H13 -> Other | D13: ='A. Population Info'!I13 -> 20 | E13: ='A. Population Info'!J13 -> 0 | F13: ='A. Population Info'!K13 -> 0 | G13: =VLOOKUP(B:B,OFFSET('B. PoF Adj Factor Scoring'!$E$5:$F$282,,MATCH(G$4,'B. PoF Adj Factor Scoring'!$E$3:$N$3,0)-1),2,TRUE) -> 1 | H13: =VLOOKUP(C:C,OFFSET('B. PoF Adj Factor Scoring'!$E$5:$F$282,,MATCH(H$4,'B. PoF Adj Factor Scoring'!$E$3:$N$3,0)-1),2,TRUE) -> 1 | I13: =VLOOKUP(D:D,OFFSET('B. PoF Adj Factor Scoring'!$E$5:$F$282,,MATCH(I$4,'B. PoF Adj Factor Scoring'!$E$3:$N$3,0)-1),2,TRUE) -> 2 | J13: =VLOOKUP(E:E,OFFSET('B. PoF Adj Factor Scoring'!$E$5:$F$282,,MATCH(J$4,'B. PoF Adj Factor Scoring'!$E$3:$N$3,0)-1),2,TRUE) -> 1 | K13: =VLOOKUP(F:F,OFFSET('B. PoF Adj Factor Scoring'!$E$5:$F$282,,MATCH(K$4,'B. PoF Adj Factor Scoring'!$E$3:$N$3,0)-1),2,TRUE) -> 1
A14: ='A. Population Info'!A14 -> 1000000993 | B14: ='A. Population Info'!G14 -> 0 | C14: ='A. Population Info'!H14 -> Other | D14: ='A. Population Info'!I14 -> 20 | E14: ='A. Population Info'!J14 -> 0 | F14: ='A. Population Info'!K14 -> 0 | G14: =VLOOKUP(B:B,OFFSET('B. PoF Adj Factor Scoring'!$E$5:$F$282,,MATCH(G$4,'B. PoF Adj Factor Scoring'!$E$3:$N$3,0)-1),2,TRUE) -> 1 | H14: =VLOOKUP(C:C,OFFSET('B. PoF Adj Factor Scoring'!$E$5:$F$282,,MATCH(H$4,'B. PoF Adj Factor Scoring'!$E$3:$N$3,0)-1),2,TRUE) -> 1 | I14: =VLOOKUP(D:D,OFFSET('B. PoF Adj Factor Scoring'!$E$5:$F$282,,MATCH(I$4,'B. PoF Adj Factor Scoring'!$E$3:$N$3,0)-1),2,TRUE) -> 2 | J14: =VLOOKUP(E:E,OFFSET('B. PoF Adj Factor Scoring'!$E$5:$F$282,,MATCH(J$4,'B. PoF Adj Factor Scoring'!$E$3:$N$3,0)-1),2,TRUE) -> 1 | K14: =VLOOKUP(F:F,OFFSET('B. PoF Adj Factor Scoring'!$E$5:$F$282,,MATCH(K$4,'B. PoF Adj Factor Scoring'!$E$3:$N$3,0)-1),2,TRUE) -> 1
A15: ='A. Population Info'!A15 -> 1000001837 | B15: ='A. Population Info'!G15 -> 0 | C15: ='A. Population Info'!H15 -> Other | D15: ='A. Population Info'!I15 -> 132.3644833 | E15: ='A. Population Info'!J15 -> 0 | F15: ='A. Population Info'!K15 -> 0 | G15: =VLOOKUP(B:B,OFFSET('B. PoF Adj Factor Scoring'!$E$5:$F$282,,MATCH(G$4,'B. PoF Adj Factor Scoring'!$E$3:$N$3,0)-1),2,TRUE) -> 1 | H15: =VLOOKUP(C:C,OFFSET('B. PoF Adj Factor Scoring'!$E$5:$F$282,,MATCH(H$4,'B. PoF Adj Factor Scoring'!$E$3:$N$3,0)-1),2,TRUE) -> 1 | I15: =VLOOKUP(D:D,OFFSET('B. PoF Adj Factor Scoring'!$E$5:$F$282,,MATCH(I$4,'B. PoF Adj Factor Scoring'!$E$3:$N$3,0)-1),2,TRUE) -> 1 | J15: =VLOOKUP(E:E,OFFSET('B. PoF Adj Factor Scoring'!$E$5:$F$282,,MATCH(J$4,'B. PoF Adj Factor Scoring'!$E$3:$N$3,0)-1),2,TRUE) -> 1 | K15: =VLOOKUP(F:F,OFFSET('B. PoF Adj Factor Scoring'!$E$5:$F$282,,MATCH(K$4,'B. PoF Adj Factor Scoring'!$E$3:$N$3,0)-1),2,TRUE) -> 1
A16: ='A. Population Info'!A16 -> 1000002195 | B16: ='A. Population Info'!G16 -> 0 | C16: ='A. Population Info'!H16 -> Other | D16: ='A. Population Info'!I16 -> 20 | E16: ='A. Population Info'!J16 -> 0 | F16: ='A. Population Info'!K16 -> 0 | G16: =VLOOKUP(B:B,OFFSET('B. PoF Adj Factor Scoring'!$E$5:$F$282,,MATCH(G$4,'B. PoF Adj Factor Scoring'!$E$3:$N$3,0)-1),2,TRUE) -> 1 | H16: =VLOOKUP(C:C,OFFSET('B. PoF Adj Factor Scoring'!$E$5:$F$282,,MATCH(H$4,'B. PoF Adj Factor Scoring'!$E$3:$N$3,0)-1),2,TRUE) -> 1 | I16: =VLOOKUP(D:D,OFFSET('B. PoF Adj Factor Scoring'!$E$5:$F$282,,MATCH(I$4,'B. PoF Adj Factor Scoring'!$E$3:$N$3,0)-1),2,TRUE) -> 2 | J16: =VLOOKUP(E:E,OFFSET('B. PoF Adj Factor Scoring'!$E$5:$F$282,,MATCH(J$4,'B. PoF Adj Factor Scoring'!$E$3:$N$3,0)-1),2,TRUE) -> 1 | K16: =VLOOKUP(F:F,OFFSET('B. PoF Adj Factor Scoring'!$E$5:$F$282,,MATCH(K$4,'B. PoF Adj Factor Scoring'!$E$3:$N$3,0)-1),2,TRUE) -> 1
A17: ='A. Population Info'!A17 -> 1000002217 | B17: ='A. Population Info'!G17 -> 0 | C17: ='A. Population Info'!H17 -> Other | D17: ='A. Population Info'!I17 -> 20 | E17: ='A. Population Info'!J17 -> 0 | F17: ='A. Population Info'!K17 -> 0 | G17: =VLOOKUP(B:B,OFFSET('B. PoF Adj Factor Scoring'!$E$5:$F$282,,MATCH(G$4,'B. PoF Adj Factor Scoring'!$E$3:$N$3,0)-1),2,TRUE) -> 1 | H17: =VLOOKUP(C:C,OFFSET('B. PoF Adj Factor Scoring'!$E$5:$F$282,,MATCH(H$4,'B. PoF Adj Factor Scoring'!$E$3:$N$3,0)-1),2,TRUE) -> 1 | I17: =VLOOKUP(D:D,OFFSET('B. PoF Adj Factor Scoring'!$E$5:$F$282,,MATCH(I$4,'B. PoF Adj Factor Scoring'!$E$3:$N$3,0)-1),2,TRUE) -> 2 | J17: =VLOOKUP(E:E,OFFSET('B. PoF Adj Factor Scoring'!$E$5:$F$282,,MATCH(J$4,'B. PoF Adj Factor Scoring'!$E$3:$N$3,0)-1),2,TRUE) -> 1 | K17: =VLOOKUP(F:F,OFFSET('B. PoF Adj Factor Scoring'!$E$5:$F$282,,MATCH(K$4,'B. PoF Adj Factor Scoring'!$E$3:$N$3,0)-1),2,TRUE) -> 1
A18: ='A. Population Info'!A18 -> 1000002238 | B18: ='A. Population Info'!G18 -> 0 | C18: ='A. Population Info'!H18 -> Other | D18: ='A. Population Info'!I18 -> 20 | E18: ='A. Population Info'!J18 -> 0 | F18: ='A. Population Info'!K18 -> 0 | G18: =VLOOKUP(B:B,OFFSET('B. PoF Adj Factor Scoring'!$E$5:$F$282,,MATCH(G$4,'B. PoF Adj Factor Scoring'!$E$3:$N$3,0)-1),2,TRUE) -> 1 | H18: =VLOOKUP(C:C,OFFSET('B. PoF Adj Factor Scoring'!$E$5:$F$282,,MATCH(H$4,'B. PoF Adj Factor Scoring'!$E$3:$N$3,0)-1),2,TRUE) -> 1 | I18: =VLOOKUP(D:D,OFFSET('B. PoF Adj Factor Scoring'!$E$5:$F$282,,MATCH(I$4,'B. PoF Adj Factor Scoring'!$E$3:$N$3,0)-1),2,TRUE) -> 2 | J18: =VLOOKUP(E:E,OFFSET('B. PoF Adj Factor Scoring'!$E$5:$F$282,,MATCH(J$4,'B. PoF Adj Factor Scoring'!$E$3:$N$3,0)-1),2,TRUE) -> 1 | K18: =VLOOKUP(F:F,OFFSET('B. PoF Adj Factor Scoring'!$E$5:$F$282,,MATCH(K$4,'B. PoF Adj Factor Scoring'!$E$3:$N$3,0)-1),2,TRUE) -> 1
A19: ='A. Population Info'!A19 -> 1000002414 | B19: ='A. Population Info'!G19 -> 0 | C19: ='A. Population Info'!H19 -> Other | D19: ='A. Population Info'!I19 -> 23.44547824 | E19: ='A. Population Info'!J19 -> 0 | F19: ='A. Population Info'!K19 -> 0 | G19: =VLOOKUP(B:B,OFFSET('B. PoF Adj Factor Scoring'!$E$5:$F$282,,MATCH(G$4,'B. PoF Adj Factor Scoring'!$E$3:$N$3,0)-1),2,TRUE) -> 1 | H19: =VLOOKUP(C:C,OFFSET('B. PoF Adj Factor Scoring'!$E$5:$F$282,,MATCH(H$4,'B. PoF Adj Factor Scoring'!$E$3:$N$3,0)-1),2,TRUE) -> 1 | I19: =VLOOKUP(D:D,OFFSET('B. PoF Adj Factor Scoring'!$E$5:$F$282,,MATCH(I$4,'B. PoF Adj Factor Scoring'!$E$3:$N$3,0)-1),2,TRUE) -> 2 | J19: =VLOOKUP(E:E,OFFSET('B. PoF Adj Factor Scoring'!$E$5:$F$282,,MATCH(J$4,'B. PoF Adj Factor Scoring'!$E$3:$N$3,0)-1),2,TRUE) -> 1 | K19: =VLOOKUP(F:F,OFFSET('B. PoF Adj Factor Scoring'!$E$5:$F$282,,MATCH(K$4,'B. PoF Adj Factor Scoring'!$E$3:$N$3,0)-1),2,TRUE) -> 1
A20: ='A. Population Info'!A20 -> 1000007091 | B20: ='A. Population Info'!G20 -> 0 | C20: ='A. Population Info'!H20 -> Other | D20: ='A. Population Info'!I20 -> 0.9381640817 | E20: ='A. Population Info'!J20 -> 0 | F20: ='A. Population Info'!K20 -> 0 | G20: =VLOOKUP(B:B,OFFSET('B. PoF Adj Factor Scoring'!$E$5:$F$282,,MATCH(G$4,'B. PoF Adj Factor Scoring'!$E$3:$N$3,0)-1),2,TRUE) -> 1 | H20: =VLOOKUP(C:C,OFFSET('B. PoF Adj Factor Scoring'!$E$5:$F$282,,MATCH(H$4,'B. PoF Adj Factor Scoring'!$E$3:$N$3,0)-1),2,TRUE) -> 1 | I20: =VLOOKUP(D:D,OFFSET('B. PoF Adj Factor Scoring'!$E$5:$F$282,,MATCH(I$4,'B. PoF Adj Factor Scoring'!$E$3:$N$3,0)-1),2,TRUE) -> 5 | J20: =VLOOKUP(E:E,OFFSET('B. PoF Adj Factor Scoring'!$E$5:$F$282,,MATCH(J$4,'B. PoF Adj Factor Scoring'!$E$3:$N$3,0)-1),2,TRUE) -> 1 | K20: =VLOOKUP(F:F,OFFSET('B. PoF Adj Factor Scoring'!$E$5:$F$282,,MATCH(K$4,'B. PoF Adj Factor Scoring'!$E$3:$N$3,0)-1),2,TRUE) -> 1
A21: ='A. Population Info'!A21 -> 1000007214 | B21: ='A. Population Info'!G21 -> 0 | C21: ='A. Population Info'!H21 -> Taplin D571 | D21: ='A. Population Info'!I21 -> 20 | E21: ='A. Population Info'!J21 -> 0 | F21: ='A. Population Info'!K21 -> 0 | G21: =VLOOKUP(B:B,OFFSET('B. PoF Adj Factor Scoring'!$E$5:$F$282,,MATCH(G$4,'B. PoF Adj Factor Scoring'!$E$3:$N$3,0)-1),2,TRUE) -> 1 | H21: =VLOOKUP(C:C,OFFSET('B. PoF Adj Factor Scoring'!$E$5:$F$282,,MATCH(H$4,'B. PoF Adj Factor Scoring'!$E$3:$N$3,0)-1),2,TRUE) -> 4 | I21: =VLOOKUP(D:D,OFFSET('B. PoF Adj Factor Scoring'!$E$5:$F$282,,MATCH(I$4,'B. PoF Adj Factor Scoring'!$E$3:$N$3,0)-1),2,TRUE) -> 2 | J21: =VLOOKUP(E:E,OFFSET('B. PoF Adj Factor Scoring'!$E$5:$F$282,,MATCH(J$4,'B. PoF Adj Factor Scoring'!$E$3:$N$3,0)-1),2,TRUE) -> 1 | K21: =VLOOKUP(F:F,OFFSET('B. PoF Adj Factor Scoring'!$E$5:$F$282,,MATCH(K$4,'B. PoF Adj Factor Scoring'!$E$3:$N$3,0)-1),2,TRUE) -> 1
A22: ='A. Population Info'!A22 -> 1000008531 | B22: ='A. Population Info'!G22 -> 0 | C22: ='A. Population Info'!H22 -> Other | D22: ='A. Population Info'!I22 -> 20 | E22: ='A. Population Info'!J22 -> 0 | F22: ='A. Population Info'!K22 -> 0 | G22: =VLOOKUP(B:B,OFFSET('B. PoF Adj Factor Scoring'!$E$5:$F$282,,MATCH(G$4,'B. PoF Adj Factor Scoring'!$E$3:$N$3,0)-1),2,TRUE) -> 1 | H22: =VLOOKUP(C:C,OFFSET('B. PoF Adj Factor Scoring'!$E$5:$F$282,,MATCH(H$4,'B. PoF Adj Factor Scoring'!$E$3:$N$3,0)-1),2,TRUE) -> 1 | I22: =VLOOKUP(D:D,OFFSET('B. PoF Adj Factor Scoring'!$E$5:$F$282,,MATCH(I$4,'B. PoF Adj Factor Scoring'!$E$3:$N$3,0)-1),2,TRUE) -> 2 | J22: =VLOOKUP(E:E,OFFSET('B. PoF Adj Factor Scoring'!$E$5:$F$282,,MATCH(J$4,'B. PoF Adj Factor Scoring'!$E$3:$N$3,0)-1),2,TRUE) -> 1 | K22: =VLOOKUP(F:F,OFFSET('B. PoF Adj Factor Scoring'!$E$5:$F$282,,MATCH(K$4,'B. PoF Adj Factor Scoring'!$E$3:$N$3,0)-1),2,TRUE) -> 1
A23: ='A. Population Info'!A23 -> 1000008676 | B23: ='A. Population Info'!G23 -> 0 | C23: ='A. Population Info'!H23 -> Other | D23: ='A. Population Info'!I23 -> 5.543722166 | E23: ='A. Population Info'!J23 -> 0 | F23: ='A. Population Info'!K23 -> 0 | G23: =VLOOKUP(B:B,OFFSET('B. PoF Adj Factor Scoring'!$E$5:$F$282,,MATCH(G$4,'B. PoF Adj Factor Scoring'!$E$3:$N$3,0)-1),2,TRUE) -> 1 | H23: =VLOOKUP(C:C,OFFSET('B. PoF Adj Factor Scoring'!$E$5:$F$282,,MATCH(H$4,'B. PoF Adj Factor Scoring'!$E$3:$N$3,0)-1),2,TRUE) -> 1 | I23: =VLOOKUP(D:D,OFFSET('B. PoF Adj Factor Scoring'!$E$5:$F$282,,MATCH(I$4,'B. PoF Adj Factor Scoring'!$E$3:$N$3,0)-1),2,TRUE) -> 4 | J23: =VLOOKUP(E:E,OFFSET('B. PoF Adj Factor Scoring'!$E$5:$F$282,,MATCH(J$4,'B. PoF Adj Factor Scoring'!$E$3:$N$3,0)-1),2,TRUE) -> 1 | K23: =VLOOKUP(F:F,OFFSET('B. PoF Adj Factor Scoring'!$E$5:$F$282,,MATCH(K$4,'B. PoF Adj Factor Scoring'!$E$3:$N$3,0)-1),2,TRUE) -> 1
A24: ='A. Population Info'!A24 -> 1000011104 | B24: ='A. Population Info'!G24 -> 0 | C24: ='A. Population Info'!H24 -> Other | D24: ='A. Population Info'!I24 -> 1.919963182 | E24: ='A. Population Info'!J24 -> 0 | F24: ='A. Population Info'!K24 -> 0 | G24: =VLOOKUP(B:B,OFFSET('B. PoF Adj Factor Scoring'!$E$5:$F$282,,MATCH(G$4,'B. PoF Adj Factor Scoring'!$E$3:$N$3,0)-1),2,TRUE) -> 1 | H24: =VLOOKUP(C:C,OFFSET('B. PoF Adj Factor Scoring'!$E$5:$F$282,,MATCH(H$4,'B. PoF Adj Factor Scoring'!$E$3:$N$3,0)-1),2,TRUE) -> 1 | I24: =VLOOKUP(D:D,OFFSET('B. PoF Adj Factor Scoring'!$E$5:$F$282,,MATCH(I$4,'B. PoF Adj Factor Scoring'!$E$3:$N$3,0)-1),2,TRUE) -> 5 | J24: =VLOOKUP(E:E,OFFSET('B. PoF Adj Factor Scoring'!$E$5:$F$282,,MATCH(J$4,'B. PoF Adj Factor Scoring'!$E$3:$N$3,0)-1),2,TRUE) -> 1 | K24: =VLOOKUP(F:F,OFFSET('B. PoF Adj Factor Scoring'!$E$5:$F$282,,MATCH(K$4,'B. PoF Adj Factor Scoring'!$E$3:$N$3,0)-1),2,TRUE) -> 1
A25: ='A. Population Info'!A25 -> 1000011938 | B25: ='A. Population Info'!G25 -> 0 | C25: ='A. Population Info'!H25 -> Other | D25: ='A. Population Info'!I25 -> 13.16849926 | E25: ='A. Population Info'!J25 -> 0 | F25: ='A. Population Info'!K25 -> 0 | G25: =VLOOKUP(B:B,OFFSET('B. PoF Adj Factor Scoring'!$E$5:$F$282,,MATCH(G$4,'B. PoF Adj Factor Scoring'!$E$3:$N$3,0)-1),2,TRUE) -> 1 | H25: =VLOOKUP(C:C,OFFSET('B. PoF Adj Factor Scoring'!$E$5:$F$282,,MATCH(H$4,'B. PoF Adj Factor Scoring'!$E$3:$N$3,0)-1),2,TRUE) -> 1 | I25: =VLOOKUP(D:D,OFFSET('B. PoF Adj Factor Scoring'!$E$5:$F$282,,MATCH(I$4,'B. PoF Adj Factor Scoring'!$E$3:$N$3,0)-1),2,TRUE) -> 2 | J25: =VLOOKUP(E:E,OFFSET('B. PoF Adj Factor Scoring'!$E$5:$F$282,,MATCH(J$4,'B. PoF Adj Factor Scoring'!$E$3:$N$3,0)-1),2,TRUE) -> 1 | K25: =VLOOKUP(F:F,OFFSET('B. PoF Adj Factor Scoring'!$E$5:$F$282,,MATCH(K$4,'B. PoF Adj Factor Scoring'!$E$3:$N$3,0)-1),2,TRUE) -> 1
A26: ='A. Population Info'!A26 -> 1000014012 | B26: ='A. Population Info'!G26 -> 0 | C26: ='A. Population Info'!H26 -> Other | D26: ='A. Population Info'!I26 -> 6.195802233 | E26: ='A. Population Info'!J26 -> 0 | F26: ='A. Population Info'!K26 -> 0 | G26: =VLOOKUP(B:B,OFFSET('B. PoF Adj Factor Scoring'!$E$5:$F$282,,MATCH(G$4,'B. PoF Adj Factor Scoring'!$E$3:$N$3,0)-1),2,TRUE) -> 1 | H26: =VLOOKUP(C:C,OFFSET('B. PoF Adj Factor Scoring'!$E$5:$F$282,,MATCH(H$4,'B. PoF Adj Factor Scoring'!$E$3:$N$3,0)-1),2,TRUE) -> 1 | I26: =VLOOKUP(D:D,OFFSET('B. PoF Adj Factor Scoring'!$E$5:$F$282,,MATCH(I$4,'B. PoF Adj Factor Scoring'!$E$3:$N$3,0)-1),2,TRUE) -> 3 | J26: =VLOOKUP(E:E,OFFSET('B. PoF Adj Factor Scoring'!$E$5:$F$282,,MATCH(J$4,'B. PoF Adj Factor Scoring'!$E$3:$N$3,0)-1),2,TRUE) -> 1 | K26: =VLOOKUP(F:F,OFFSET('B. PoF Adj Factor Scoring'!$E$5:$F$282,,MATCH(K$4,'B. PoF Adj Factor Scoring'!$E$3:$N$3,0)-1),2,TRUE) -> 1
A27: ='A. Population Info'!A27 -> 1000014046 | B27: ='A. Population Info'!G27 -> 0 | C27: ='A. Population Info'!H27 -> Other | D27: ='A. Population Info'!I27 -> 18.67950656 | E27: ='A. Population Info'!J27 -> 0 | F27: ='A. Population Info'!K27 -> 0 | G27: =VLOOKUP(B:B,OFFSET('B. PoF Adj Factor Scoring'!$E$5:$F$282,,MATCH(G$4,'B. PoF Adj Factor Scoring'!$E$3:$N$3,0)-1),2,TRUE) -> 1 | H27: =VLOOKUP(C:C,OFFSET('B. PoF Adj Factor Scoring'!$E$5:$F$282,,MATCH(H$4,'B. PoF Adj Factor Scoring'!$E$3:$N$3,0)-1),2,TRUE) -> 1 | I27: =VLOOKUP(D:D,OFFSET('B. PoF Adj Factor Scoring'!$E$5:$F$282,,MATCH(I$4,'B. PoF Adj Factor Scoring'!$E$3:$N$3,0)-1),2,TRUE) -> 2 | J27: =VLOOKUP(E:E,OFFSET('B. PoF Adj Factor Scoring'!$E$5:$F$282,,MATCH(J$4,'B. PoF Adj Factor Scoring'!$E$3:$N$3,0)-1),2,TRUE) -> 1 | K27: =VLOOKUP(F:F,OFFSET('B. PoF Adj Factor Scoring'!$E$5:$F$282,,MATCH(K$4,'B. PoF Adj Factor Scoring'!$E$3:$N$3,0)-1),2,TRUE) -> 1
A28: ='A. Population Info'!A28 -> 1000014057 | B28: ='A. Population Info'!G28 -> 0 | C28: ='A. Population Info'!H28 -> Other | D28: ='A. Population Info'!I28 -> 11.26750007 | E28: ='A. Population Info'!J28 -> 0 | F28: ='A. Population Info'!K28 -> 0 | G28: =VLOOKUP(B:B,OFFSET('B. PoF Adj Factor Scoring'!$E$5:$F$282,,MATCH(G$4,'B. PoF Adj Factor Scoring'!$E$3:$N$3,0)-1),2,TRUE) -> 1 | H28: =VLOOKUP(C:C,OFFSET('B. PoF Adj Factor Scoring'!$E$5:$F$282,,MATCH(H$4,'B. PoF Adj Factor Scoring'!$E$3:$N$3,0)-1),2,TRUE) -> 1 | I28: =VLOOKUP(D:D,OFFSET('B. PoF Adj Factor Scoring'!$E$5:$F$282,,MATCH(I$4,'B. PoF Adj Factor Scoring'!$E$3:$N$3,0)-1),2,TRUE) -> 2 | J28: =VLOOKUP(E:E,OFFSET('B. PoF Adj Factor Scoring'!$E$5:$F$282,,MATCH(J$4,'B. PoF Adj Factor Scoring'!$E$3:$N$3,0)-1),2,TRUE) -> 1 | K28: =VLOOKUP(F:F,OFFSET('B. PoF Adj Factor Scoring'!$E$5:$F$282,,MATCH(K$4,'B. PoF Adj Factor Scoring'!$E$3:$N$3,0)-1),2,TRUE) -> 1
A29: ='A. Population Info'!A29 -> 1000014107 | B29: ='A. Population Info'!G29 -> 0 | C29: ='A. Population Info'!H29 -> Other | D29: ='A. Population Info'!I29 -> 16.21989659 | E29: ='A. Population Info'!J29 -> 0 | F29: ='A. Population Info'!K29 -> 0 | G29: =VLOOKUP(B:B,OFFSET('B. PoF Adj Factor Scoring'!$E$5:$F$282,,MATCH(G$4,'B. PoF Adj Factor Scoring'!$E$3:$N$3,0)-1),2,TRUE) -> 1 | H29: =VLOOKUP(C:C,OFFSET('B. PoF Adj Factor Scoring'!$E$5:$F$282,,MATCH(H$4,'B. PoF Adj Factor Scoring'!$E$3:$N$3,0)-1),2,TRUE) -> 1 | I29: =VLOOKUP(D:D,OFFSET('B. PoF Adj Factor Scoring'!$E$5:$F$282,,MATCH(I$4,'B. PoF Adj Factor Scoring'!$E$3:$N$3,0)-1),2,TRUE) -> 2 | J29: =VLOOKUP(E:E,OFFSET('B. PoF Adj Factor Scoring'!$E$5:$F$282,,MATCH(J$4,'B. PoF Adj Factor Scoring'!$E$3:$N$3,0)-1),2,TRUE) -> 1 | K29: =VLOOKUP(F:F,OFFSET('B. PoF Adj Factor Scoring'!$E$5:$F$282,,MATCH(K$4,'B. PoF Adj Factor Scoring'!$E$3:$N$3,0)-1),2,TRUE) -> 1
A30: ='A. Population Info'!A30 -> 1000014162 | B30: ='A. Population Info'!G30 -> 0 | C30: ='A. Population Info'!H30 -> Haycolec (pin insulators) | D30: ='A. Population Info'!I30 -> 8.537268882 | E30: ='A. Population Info'!J30 -> 0 | F30: ='A. Population Info'!K30 -> 0 | G30: =VLOOKUP(B:B,OFFSET('B. PoF Adj Factor Scoring'!$E$5:$F$282,,MATCH(G$4,'B. PoF Adj Factor Scoring'!$E$3:$N$3,0)-1),2,TRUE) -> 1 | H30: =VLOOKUP(C:C,OFFSET('B. PoF Adj Factor Scoring'!$E$5:$F$282,,MATCH(H$4,'B. PoF Adj Factor Scoring'!$E$3:$N$3,0)-1),2,TRUE) -> 2 | I30: =VLOOKUP(D:D,OFFSET('B. PoF Adj Factor Scoring'!$E$5:$F$282,,MATCH(I$4,'B. PoF Adj Factor Scoring'!$E$3:$N$3,0)-1),2,TRUE) -> 3 | J30: =VLOOKUP(E:E,OFFSET('B. PoF Adj Factor Scoring'!$E$5:$F$282,,MATCH(J$4,'B. PoF Adj Factor Scoring'!$E$3:$N$3,0)-1),2,TRUE) -> 1 | K30: =VLOOKUP(F:F,OFFSET('B. PoF Adj Factor Scoring'!$E$5:$F$282,,MATCH(K$4,'B. PoF Adj Factor Scoring'!$E$3:$N$3,0)-1),2,TRUE) -> 1
A31: ='A. Population Info'!A31 -> 1000014183 | B31: ='A. Population Info'!G31 -> 0 | C31: ='A. Population Info'!H31 -> Other | D31: ='A. Population Info'!I31 -> 1.097012316 | E31: ='A. Population Info'!J31 -> 0 | F31: ='A. Population Info'!K31 -> 0 | G31: =VLOOKUP(B:B,OFFSET('B. PoF Adj Factor Scoring'!$E$5:$F$282,,MATCH(G$4,'B. PoF Adj Factor Scoring'!$E$3:$N$3,0)-1),2,TRUE) -> 1 | H31: =VLOOKUP(C:C,OFFSET('B. PoF Adj Factor Scoring'!$E$5:$F$282,,MATCH(H$4,'B. PoF Adj Factor Scoring'!$E$3:$N$3,0)-1),2,TRUE) -> 1 | I31: =VLOOKUP(D:D,OFFSET('B. PoF Adj Factor Scoring'!$E$5:$F$282,,MATCH(I$4,'B. PoF Adj Factor Scoring'!$E$3:$N$3,0)-1),2,TRUE) -> 5 | J31: =VLOOKUP(E:E,OFFSET('B. PoF Adj Factor Scoring'!$E$5:$F$282,,MATCH(J$4,'B. PoF Adj Factor Scoring'!$E$3:$N$3,0)-1),2,TRUE) -> 1 | K31: =VLOOKUP(F:F,OFFSET('B. PoF Adj Factor Scoring'!$E$5:$F$282,,MATCH(K$4,'B. PoF Adj Factor Scoring'!$E$3:$N$3,0)-1),2,TRUE) -> 1
A32: ='A. Population Info'!A32 -> 1000014193 | B32: ='A. Population Info'!G32 -> 0 | C32: ='A. Population Info'!H32 -> Other | D32: ='A. Population Info'!I32 -> 20 | E32: ='A. Population Info'!J32 -> 0 | F32: ='A. Population Info'!K32 -> 0 | G32: =VLOOKUP(B:B,OFFSET('B. PoF Adj Factor Scoring'!$E$5:$F$282,,MATCH(G$4,'B. PoF Adj Factor Scoring'!$E$3:$N$3,0)-1),2,TRUE) -> 1 | H32: =VLOOKUP(C:C,OFFSET('B. PoF Adj Factor Scoring'!$E$5:$F$282,,MATCH(H$4,'B. PoF Adj Factor Scoring'!$E$3:$N$3,0)-1),2,TRUE) -> 1 | I32: =VLOOKUP(D:D,OFFSET('B. PoF Adj Factor Scoring'!$E$5:$F$282,,MATCH(I$4,'B. PoF Adj Factor Scoring'!$E$3:$N$3,0)-1),2,TRUE) -> 2 | J32: =VLOOKUP(E:E,OFFSET('B. PoF Adj Factor Scoring'!$E$5:$F$282,,MATCH(J$4,'B. PoF Adj Factor Scoring'!$E$3:$N$3,0)-1),2,TRUE) -> 1 | K32: =VLOOKUP(F:F,OFFSET('B. PoF Adj Factor Scoring'!$E$5:$F$282,,MATCH(K$4,'B. PoF Adj Factor Scoring'!$E$3:$N$3,0)-1),2,TRUE) -> 1
A33: ='A. Population Info'!A33 -> 1000014632 | B33: ='A. Population Info'!G33 -> 0 | C33: ='A. Population Info'!H33 -> Other | D33: ='A. Population Info'!I33 -> 10.73320921 | E33: ='A. Population Info'!J33 -> 0 | F33: ='A. Population Info'!K33 -> 0 | G33: =VLOOKUP(B:B,OFFSET('B. PoF Adj Factor Scoring'!$E$5:$F$282,,MATCH(G$4,'B. PoF Adj Factor Scoring'!$E$3:$N$3,0)-1),2,TRUE) -> 1 | H33: =VLOOKUP(C:C,OFFSET('B. PoF Adj Factor Scoring'!$E$5:$F$282,,MATCH(H$4,'B. PoF Adj Factor Scoring'!$E$3:$N$3,0)-1),2,TRUE) -> 1 | I33: =VLOOKUP(D:D,OFFSET('B. PoF Adj Factor Scoring'!$E$5:$F$282,,MATCH(I$4,'B. PoF Adj Factor Scoring'!$E$3:$N$3,0)-1),2,TRUE) -> 2 | J33: =VLOOKUP(E:E,OFFSET('B. PoF Adj Factor Scoring'!$E$5:$F$282,,MATCH(J$4,'B. PoF Adj Factor Scoring'!$E$3:$N$3,0)-1),2,TRUE) -> 1 | K33: =VLOOKUP(F:F,OFFSET('B. PoF Adj Factor Scoring'!$E$5:$F$282,,MATCH(K$4,'B. PoF Adj Factor Scoring'!$E$3:$N$3,0)-1),2,TRUE) -> 1
A34: ='A. Population Info'!A34 -> 1000014846 | B34: ='A. Population Info'!G34 -> 0 | C34: ='A. Population Info'!H34 -> Other | D34: ='A. Population Info'!I34 -> 8.948627064 | E34: ='A. Population Info'!J34 -> 0 | F34: ='A. Population Info'!K34 -> 0 | G34: =VLOOKUP(B:B,OFFSET('B. PoF Adj Factor Scoring'!$E$5:$F$282,,MATCH(G$4,'B. PoF Adj Factor Scoring'!$E$3:$N$3,0)-1),2,TRUE) -> 1 | H34: =VLOOKUP(C:C,OFFSET('B. PoF Adj Factor Scoring'!$E$5:$F$282,,MATCH(H$4,'B. PoF Adj Factor Scoring'!$E$3:$N$3,0)-1),2,TRUE) -> 1 | I34: =VLOOKUP(D:D,OFFSET('B. PoF Adj Factor Scoring'!$E$5:$F$282,,MATCH(I$4,'B. PoF Adj Factor Scoring'!$E$3:$N$3,0)-1),2,TRUE) -> 3 | J34: =VLOOKUP(E:E,OFFSET('B. PoF Adj Factor Scoring'!$E$5:$F$282,,MATCH(J$4,'B. PoF Adj Factor Scoring'!$E$3:$N$3,0)-1),2,TRUE) -> 1 | K34: =VLOOKUP(F:F,OFFSET('B. PoF Adj Factor Scoring'!$E$5:$F$282,,MATCH(K$4,'B. PoF Adj Factor Scoring'!$E$3:$N$3,0)-1),2,TRUE) -> 1
A35: ='A. Population Info'!A35 -> 1000014857 | B35: ='A. Population Info'!G35 -> 0 | C35: ='A. Population Info'!H35 -> Other | D35: ='A. Population Info'!I35 -> 2.030183604 | E35: ='A. Population Info'!J35 -> 0 | F35: ='A. Population Info'!K35 -> 0 | G35: =VLOOKUP(B:B,OFFSET('B. PoF Adj Factor Scoring'!$E$5:$F$282,,MATCH(G$4,'B. PoF Adj Factor Scoring'!$E$3:$N$3,0)-1),2,TRUE) -> 1 | H35: =VLOOKUP(C:C,OFFSET('B. PoF Adj Factor Scoring'!$E$5:$F$282,,MATCH(H$4,'B. PoF Adj Factor Scoring'!$E$3:$N$3,0)-1),2,TRUE) -> 1 | I35: =VLOOKUP(D:D,OFFSET('B. PoF Adj Factor Scoring'!$E$5:$F$282,,MATCH(I$4,'B. PoF Adj Factor Scoring'!$E$3:$N$3,0)-1),2,TRUE) -> 5 | J35: =VLOOKUP(E:E,OFFSET('B. PoF Adj Factor Scoring'!$E$5:$F$282,,MATCH(J$4,'B. PoF Adj Factor Scoring'!$E$3:$N$3,0)-1),2,TRUE) -> 1 | K35: =VLOOKUP(F:F,OFFSET('B. PoF Adj Factor Scoring'!$E$5:$F$282,,MATCH(K$4,'B. PoF Adj Factor Scoring'!$E$3:$N$3,0)-1),2,TRUE) -> 1
A36: ='A. Population Info'!A36 -> 1000015785 | B36: ='A. Population Info'!G36 -> 0 | C36: ='A. Population Info'!H36 -> Other | D36: ='A. Population Info'!I36 -> 20 | E36: ='A. Population Info'!J36 -> 0 | F36: ='A. Population Info'!K36 -> 0 | G36: =VLOOKUP(B:B,OFFSET('B. PoF Adj Factor Scoring'!$E$5:$F$282,,MATCH(G$4,'B. PoF Adj Factor Scoring'!$E$3:$N$3,0)-1),2,TRUE) -> 1 | H36: =VLOOKUP(C:C,OFFSET('B. PoF Adj Factor Scoring'!$E$5:$F$282,,MATCH(H$4,'B. PoF Adj Factor Scoring'!$E$3:$N$3,0)-1),2,TRUE) -> 1 | I36: =VLOOKUP(D:D,OFFSET('B. PoF Adj Factor Scoring'!$E$5:$F$282,,MATCH(I$4,'B. PoF Adj Factor Scoring'!$E$3:$N$3,0)-1),2,TRUE) -> 2 | J36: =VLOOKUP(E:E,OFFSET('B. PoF Adj Factor Scoring'!$E$5:$F$282,,MATCH(J$4,'B. PoF Adj Factor Scoring'!$E$3:$N$3,0)-1),2,TRUE) -> 1 | K36: =VLOOKUP(F:F,OFFSET('B. PoF Adj Factor Scoring'!$E$5:$F$282,,MATCH(K$4,'B. PoF Adj Factor Scoring'!$E$3:$N$3,0)-1),2,TRUE) -> 1
A37: ='A. Population Info'!A37 -> 1000016201 | B37: ='A. Population Info'!G37 -> 0 | C37: ='A. Population Info'!H37 -> Other | D37: ='A. Population Info'!I37 -> 14.41747369 | E37: ='A. Population Info'!J37 -> 0 | F37: ='A. Population Info'!K37 -> 0 | G37: =VLOOKUP(B:B,OFFSET('B. PoF Adj Factor Scoring'!$E$5:$F$282,,MATCH(G$4,'B. PoF Adj Factor Scoring'!$E$3:$N$3,0)-1),2,TRUE) -> 1 | H37: =VLOOKUP(C:C,OFFSET('B. PoF Adj Factor Scoring'!$E$5:$F$282,,MATCH(H$4,'B. PoF Adj Factor Scoring'!$E$3:$N$3,0)-1),2,TRUE) -> 1 | I37: =VLOOKUP(D:D,OFFSET('B. PoF Adj Factor Scoring'!$E$5:$F$282,,MATCH(I$4,'B. PoF Adj Factor Scoring'!$E$3:$N$3,0)-1),2,TRUE) -> 2 | J37: =VLOOKUP(E:E,OFFSET('B. PoF Adj Factor Scoring'!$E$5:$F$282,,MATCH(J$4,'B. PoF Adj Factor Scoring'!$E$3:$N$3,0)-1),2,TRUE) -> 1 | K37: =VLOOKUP(F:F,OFFSET('B. PoF Adj Factor Scoring'!$E$5:$F$282,,MATCH(K$4,'B. PoF Adj Factor Scoring'!$E$3:$N$3,0)-1),2,TRUE) -> 1
A38: ='A. Population Info'!A38 -> 1000016221 | B38: ='A. Population Info'!G38 -> 0 | C38: ='A. Population Info'!H38 -> Other | D38: ='A. Population Info'!I38 -> 15.32005876 | E38: ='A. Population Info'!J38 -> 0 | F38: ='A. Population Info'!K38 -> 0 | G38: =VLOOKUP(B:B,OFFSET('B. PoF Adj Factor Scoring'!$E$5:$F$282,,MATCH(G$4,'B. PoF Adj Factor Scoring'!$E$3:$N$3,0)-1),2,TRUE) -> 1 | H38: =VLOOKUP(C:C,OFFSET('B. PoF Adj Factor Scoring'!$E$5:$F$282,,MATCH(H$4,'B. PoF Adj Factor Scoring'!$E$3:$N$3,0)-1),2,TRUE) -> 1 | I38: =VLOOKUP(D:D,OFFSET('B. PoF Adj Factor Scoring'!$E$5:$F$282,,MATCH(I$4,'B. PoF Adj Factor Scoring'!$E$3:$N$3,0)-1),2,TRUE) -> 2 | J38: =VLOOKUP(E:E,OFFSET('B. PoF Adj Factor Scoring'!$E$5:$F$282,,MATCH(J$4,'B. PoF Adj Factor Scoring'!$E$3:$N$3,0)-1),2,TRUE) -> 1 | K38: =VLOOKUP(F:F,OFFSET('B. PoF Adj Factor Scoring'!$E$5:$F$282,,MATCH(K$4,'B. PoF Adj Factor Scoring'!$E$3:$N$3,0)-1),2,TRUE) -> 1
A39: ='A. Population Info'!A39 -> 1000016287 | B39: ='A. Population Info'!G39 -> 0 | C39: ='A. Population Info'!H39 -> Other | D39: ='A. Population Info'!I39 -> 44.30960447 | E39: ='A. Population Info'!J39 -> 0 | F39: ='A. Population Info'!K39 -> 0 | G39: =VLOOKUP(B:B,OFFSET('B. PoF Adj Factor Scoring'!$E$5:$F$282,,MATCH(G$4,'B. PoF Adj Factor Scoring'!$E$3:$N$3,0)-1),2,TRUE) -> 1 | H39: =VLOOKUP(C:C,OFFSET('B. PoF Adj Factor Scoring'!$E$5:$F$282,,MATCH(H$4,'B. PoF Adj Factor Scoring'!$E$3:$N$3,0)-1),2,TRUE) -> 1 | I39: =VLOOKUP(D:D,OFFSET('B. PoF Adj Factor Scoring'!$E$5:$F$282,,MATCH(I$4,'B. PoF Adj Factor Scoring'!$E$3:$N$3,0)-1),2,TRUE) -> 2 | J39: =VLOOKUP(E:E,OFFSET('B. PoF Adj Factor Scoring'!$E$5:$F$282,,MATCH(J$4,'B. PoF Adj Factor Scoring'!$E$3:$N$3,0)-1),2,TRUE) -> 1 | K39: =VLOOKUP(F:F,OFFSET('B. PoF Adj Factor Scoring'!$E$5:$F$282,,MATCH(K$4,'B. PoF Adj Factor Scoring'!$E$3:$N$3,0)-1),2,TRUE) -> 1
A40: ='A. Population Info'!A40 -> 1000016385 | B40: ='A. Population Info'!G40 -> 0 | C40: ='A. Population Info'!H40 -> Other | D40: ='A. Population Info'!I40 -> 20 | E40: ='A. Population Info'!J40 -> 0 | F40: ='A. Population Info'!K40 -> 0 | G40: =VLOOKUP(B:B,OFFSET('B. PoF Adj Factor Scoring'!$E$5:$F$282,,MATCH(G$4,'B. PoF Adj Factor Scoring'!$E$3:$N$3,0)-1),2,TRUE) -> 1 | H40: =VLOOKUP(C:C,OFFSET('B. PoF Adj Factor Scoring'!$E$5:$F$282,,MATCH(H$4,'B. PoF Adj Factor Scoring'!$E$3:$N$3,0)-1),2,TRUE) -> 1 | I40: =VLOOKUP(D:D,OFFSET('B. PoF Adj Factor Scoring'!$E$5:$F$282,,MATCH(I$4,'B. PoF Adj Factor Scoring'!$E$3:$N$3,0)-1),2,TRUE) -> 2 | J40: =VLOOKUP(E:E,OFFSET('B. PoF Adj Factor Scoring'!$E$5:$F$282,,MATCH(J$4,'B. PoF Adj Factor Scoring'!$E$3:$N$3,0)-1),2,TRUE) -> 1 | K40: =VLOOKUP(F:F,OFFSET('B. PoF Adj Factor Scoring'!$E$5:$F$282,,MATCH(K$4,'B. PoF Adj Factor Scoring'!$E$3:$N$3,0)-1),2,TRUE) -> 1
A41: ='A. Population Info'!A41 -> 1000016397 | B41: ='A. Population Info'!G41 -> 0 | C41: ='A. Population Info'!H41 -> Other | D41: ='A. Population Info'!I41 -> 20 | E41: ='A. Population Info'!J41 -> 0 | F41: ='A. Population Info'!K41 -> 0 | G41: =VLOOKUP(B:B,OFFSET('B. PoF Adj Factor Scoring'!$E$5:$F$282,,MATCH(G$4,'B. PoF Adj Factor Scoring'!$E$3:$N$3,0)-1),2,TRUE) -> 1 | H41: =VLOOKUP(C:C,OFFSET('B. PoF Adj Factor Scoring'!$E$5:$F$282,,MATCH(H$4,'B. PoF Adj Factor Scoring'!$E$3:$N$3,0)-1),2,TRUE) -> 1 | I41: =VLOOKUP(D:D,OFFSET('B. PoF Adj Factor Scoring'!$E$5:$F$282,,MATCH(I$4,'B. PoF Adj Factor Scoring'!$E$3:$N$3,0)-1),2,TRUE) -> 2 | J41: =VLOOKUP(E:E,OFFSET('B. PoF Adj Factor Scoring'!$E$5:$F$282,,MATCH(J$4,'B. PoF Adj Factor Scoring'!$E$3:$N$3,0)-1),2,TRUE) -> 1 | K41: =VLOOKUP(F:F,OFFSET('B. PoF Adj Factor Scoring'!$E$5:$F$282,,MATCH(K$4,'B. PoF Adj Factor Scoring'!$E$3:$N$3,0)-1),2,TRUE) -> 1
A42: ='A. Population Info'!A42 -> 1000018705 | B42: ='A. Population Info'!G42 -> 0 | C42: ='A. Population Info'!H42 -> Other | D42: ='A. Population Info'!I42 -> 33.53324157 | E42: ='A. Population Info'!J42 -> 0 | F42: ='A. Population Info'!K42 -> 0 | G42: =VLOOKUP(B:B,OFFSET('B. PoF Adj Factor Scoring'!$E$5:$F$282,,MATCH(G$4,'B. PoF Adj Factor Scoring'!$E$3:$N$3,0)-1),2,TRUE) -> 1 | H42: =VLOOKUP(C:C,OFFSET('B. PoF Adj Factor Scoring'!$E$5:$F$282,,MATCH(H$4,'B. PoF Adj Factor Scoring'!$E$3:$N$3,0)-1),2,TRUE) -> 1 | I42: =VLOOKUP(D:D,OFFSET('B. PoF Adj Factor Scoring'!$E$5:$F$282,,MATCH(I$4,'B. PoF Adj Factor Scoring'!$E$3:$N$3,0)-1),2,TRUE) -> 2 | J42: =VLOOKUP(E:E,OFFSET('B. PoF Adj Factor Scoring'!$E$5:$F$282,,MATCH(J$4,'B. PoF Adj Factor Scoring'!$E$3:$N$3,0)-1),2,TRUE) -> 1 | K42: =VLOOKUP(F:F,OFFSET('B. PoF Adj Factor Scoring'!$E$5:$F$282,,MATCH(K$4,'B. PoF Adj Factor Scoring'!$E$3:$N$3,0)-1),2,TRUE) -> 1
A43: ='A. Population Info'!A43 -> 1000019221 | B43: ='A. Population Info'!G43 -> 0 | C43: ='A. Population Info'!H43 -> Other | D43: ='A. Population Info'!I43 -> 61.71730833 | E43: ='A. Population Info'!J43 -> 0 | F43: ='A. Population Info'!K43 -> 0 | G43: =VLOOKUP(B:B,OFFSET('B. PoF Adj Factor Scoring'!$E$5:$F$282,,MATCH(G$4,'B. PoF Adj Factor Scoring'!$E$3:$N$3,0)-1),2,TRUE) -> 1 | H43: =VLOOKUP(C:C,OFFSET('B. PoF Adj Factor Scoring'!$E$5:$F$282,,MATCH(H$4,'B. PoF Adj Factor Scoring'!$E$3:$N$3,0)-1),2,TRUE) -> 1 | I43: =VLOOKUP(D:D,OFFSET('B. PoF Adj Factor Scoring'!$E$5:$F$282,,MATCH(I$4,'B. PoF Adj Factor Scoring'!$E$3:$N$3,0)-1),2,TRUE) -> 2 | J43: =VLOOKUP(E:E,OFFSET('B. PoF Adj Factor Scoring'!$E$5:$F$282,,MATCH(J$4,'B. PoF Adj Factor Scoring'!$E$3:$N$3,0)-1),2,TRUE) -> 1 | K43: =VLOOKUP(F:F,OFFSET('B. PoF Adj Factor Scoring'!$E$5:$F$282,,MATCH(K$4,'B. PoF Adj Factor Scoring'!$E$3:$N$3,0)-1),2,TRUE) -> 1
A44: ='A. Population Info'!A44 -> 1000019412 | B44: ='A. Population Info'!G44 -> 0 | C44: ='A. Population Info'!H44 -> Haycolec (pin insulators) | D44: ='A. Population Info'!I44 -> 8.364450298 | E44: ='A. Population Info'!J44 -> 0 | F44: ='A. Population Info'!K44 -> 0 | G44: =VLOOKUP(B:B,OFFSET('B. PoF Adj Factor Scoring'!$E$5:$F$282,,MATCH(G$4,'B. PoF Adj Factor Scoring'!$E$3:$N$3,0)-1),2,TRUE) -> 1 | H44: =VLOOKUP(C:C,OFFSET('B. PoF Adj Factor Scoring'!$E$5:$F$282,,MATCH(H$4,'B. PoF Adj Factor Scoring'!$E$3:$N$3,0)-1),2,TRUE) -> 2 | I44: =VLOOKUP(D:D,OFFSET('B. PoF Adj Factor Scoring'!$E$5:$F$282,,MATCH(I$4,'B. PoF Adj Factor Scoring'!$E$3:$N$3,0)-1),2,TRUE) -> 3 | J44: =VLOOKUP(E:E,OFFSET('B. PoF Adj Factor Scoring'!$E$5:$F$282,,MATCH(J$4,'B. PoF Adj Factor Scoring'!$E$3:$N$3,0)-1),2,TRUE) -> 1 | K44: =VLOOKUP(F:F,OFFSET('B. PoF Adj Factor Scoring'!$E$5:$F$282,,MATCH(K$4,'B. PoF Adj Factor Scoring'!$E$3:$N$3,0)-1),2,TRUE) -> 1
A45: ='A. Population Info'!A45 -> 1000019452 | B45: ='A. Population Info'!G45 -> 0 | C45: ='A. Population Info'!H45 -> Haycolec (pin insulators) | D45: ='A. Population Info'!I45 -> 8.494562094 | E45: ='A. Population Info'!J45 -> 0 | F45: ='A. Population Info'!K45 -> 0 | G45: =VLOOKUP(B:B,OFFSET('B. PoF Adj Factor Scoring'!$E$5:$F$282,,MATCH(G$4,'B. PoF Adj Factor Scoring'!$E$3:$N$3,0)-1),2,TRUE) -> 1 | H45: =VLOOKUP(C:C,OFFSET('B. PoF Adj Factor Scoring'!$E$5:$F$282,,MATCH(H$4,'B. PoF Adj Factor Scoring'!$E$3:$N$3,0)-1),2,TRUE) -> 2 | I45: =VLOOKUP(D:D,OFFSET('B. PoF Adj Factor Scoring'!$E$5:$F$282,,MATCH(I$4,'B. PoF Adj Factor Scoring'!$E$3:$N$3,0)-1),2,TRUE) -> 3 | J45: =VLOOKUP(E:E,OFFSET('B. PoF Adj Factor Scoring'!$E$5:$F$282,,MATCH(J$4,'B. PoF Adj Factor Scoring'!$E$3:$N$3,0)-1),2,TRUE) -> 1 | K45: =VLOOKUP(F:F,OFFSET('B. PoF Adj Factor Scoring'!$E$5:$F$282,,MATCH(K$4,'B. PoF Adj Factor Scoring'!$E$3:$N$3,0)-1),2,TRUE) -> 1
A46: ='A. Population Info'!A46 -> 1000019482 | B46: ='A. Population Info'!G46 -> 0 | C46: ='A. Population Info'!H46 -> Other | D46: ='A. Population Info'!I46 -> 18.04110999 | E46: ='A. Population Info'!J46 -> 0 | F46: ='A. Population Info'!K46 -> 0 | G46: =VLOOKUP(B:B,OFFSET('B. PoF Adj Factor Scoring'!$E$5:$F$282,,MATCH(G$4,'B. PoF Adj Factor Scoring'!$E$3:$N$3,0)-1),2,TRUE) -> 1 | H46: =VLOOKUP(C:C,OFFSET('B. PoF Adj Factor Scoring'!$E$5:$F$282,,MATCH(H$4,'B. PoF Adj Factor Scoring'!$E$3:$N$3,0)-1),2,TRUE) -> 1 | I46: =VLOOKUP(D:D,OFFSET('B. PoF Adj Factor Scoring'!$E$5:$F$282,,MATCH(I$4,'B. PoF Adj Factor Scoring'!$E$3:$N$3,0)-1),2,TRUE) -> 2 | J46: =VLOOKUP(E:E,OFFSET('B. PoF Adj Factor Scoring'!$E$5:$F$282,,MATCH(J$4,'B. PoF Adj Factor Scoring'!$E$3:$N$3,0)-1),2,TRUE) -> 1 | K46: =VLOOKUP(F:F,OFFSET('B. PoF Adj Factor Scoring'!$E$5:$F$282,,MATCH(K$4,'B. PoF Adj Factor Scoring'!$E$3:$N$3,0)-1),2,TRUE) -> 1
A47: ='A. Population Info'!A47 -> 1000019494 | B47: ='A. Population Info'!G47 -> 0 | C47: ='A. Population Info'!H47 -> Other | D47: ='A. Population Info'!I47 -> 16.83101167 | E47: ='A. Population Info'!J47 -> 0 | F47: ='A. Population Info'!K47 -> 0 | G47: =VLOOKUP(B:B,OFFSET('B. PoF Adj Factor Scoring'!$E$5:$F$282,,MATCH(G$4,'B. PoF Adj Factor Scoring'!$E$3:$N$3,0)-1),2,TRUE) -> 1 | H47: =VLOOKUP(C:C,OFFSET('B. PoF Adj Factor Scoring'!$E$5:$F$282,,MATCH(H$4,'B. PoF Adj Factor Scoring'!$E$3:$N$3,0)-1),2,TRUE) -> 1 | I47: =VLOOKUP(D:D,OFFSET('B. PoF Adj Factor Scoring'!$E$5:$F$282,,MATCH(I$4,'B. PoF Adj Factor Scoring'!$E$3:$N$3,0)-1),2,TRUE) -> 2 | J47: =VLOOKUP(E:E,OFFSET('B. PoF Adj Factor Scoring'!$E$5:$F$282,,MATCH(J$4,'B. PoF Adj Factor Scoring'!$E$3:$N$3,0)-1),2,TRUE) -> 1 | K47: =VLOOKUP(F:F,OFFSET('B. PoF Adj Factor Scoring'!$E$5:$F$282,,MATCH(K$4,'B. PoF Adj Factor Scoring'!$E$3:$N$3,0)-1),2,TRUE) -> 1
A48: ='A. Population Info'!A48 -> 1000019504 | B48: ='A. Population Info'!G48 -> 0 | C48: ='A. Population Info'!H48 -> Other | D48: ='A. Population Info'!I48 -> 8.496888638 | E48: ='A. Population Info'!J48 -> 0 | F48: ='A. Population Info'!K48 -> 0 | G48: =VLOOKUP(B:B,OFFSET('B. PoF Adj Factor Scoring'!$E$5:$F$282,,MATCH(G$4,'B. PoF Adj Factor Scoring'!$E$3:$N$3,0)-1),2,TRUE) -> 1 | H48: =VLOOKUP(C:C,OFFSET('B. PoF Adj Factor Scoring'!$E$5:$F$282,,MATCH(H$4,'B. PoF Adj Factor Scoring'!$E$3:$N$3,0)-1),2,TRUE) -> 1 | I48: =VLOOKUP(D:D,OFFSET('B. PoF Adj Factor Scoring'!$E$5:$F$282,,MATCH(I$4,'B. PoF Adj Factor Scoring'!$E$3:$N$3,0)-1),2,TRUE) -> 3 | J48: =VLOOKUP(E:E,OFFSET('B. PoF Adj Factor Scoring'!$E$5:$F$282,,MATCH(J$4,'B. PoF Adj Factor Scoring'!$E$3:$N$3,0)-1),2,TRUE) -> 1 | K48: =VLOOKUP(F:F,OFFSET('B. PoF Adj Factor Scoring'!$E$5:$F$282,,MATCH(K$4,'B. PoF Adj Factor Scoring'!$E$3:$N$3,0)-1),2,TRUE) -> 1
A49: ='A. Population Info'!A49 -> 1000019517 | B49: ='A. Population Info'!G49 -> 0 | C49: ='A. Population Info'!H49 -> Other | D49: ='A. Population Info'!I49 -> 8.091993767 | E49: ='A. Population Info'!J49 -> 0 | F49: ='A. Population Info'!K49 -> 0 | G49: =VLOOKUP(B:B,OFFSET('B. PoF Adj Factor Scoring'!$E$5:$F$282,,MATCH(G$4,'B. PoF Adj Factor Scoring'!$E$3:$N$3,0)-1),2,TRUE) -> 1 | H49: =VLOOKUP(C:C,OFFSET('B. PoF Adj Factor Scoring'!$E$5:$F$282,,MATCH(H$4,'B. PoF Adj Factor Scoring'!$E$3:$N$3,0)-1),2,TRUE) -> 1 | I49: =VLOOKUP(D:D,OFFSET('B. PoF Adj Factor Scoring'!$E$5:$F$282,,MATCH(I$4,'B. PoF Adj Factor Scoring'!$E$3:$N$3,0)-1),2,TRUE) -> 3 | J49: =VLOOKUP(E:E,OFFSET('B. PoF Adj Factor Scoring'!$E$5:$F$282,,MATCH(J$4,'B. PoF Adj Factor Scoring'!$E$3:$N$3,0)-1),2,TRUE) -> 1 | K49: =VLOOKUP(F:F,OFFSET('B. PoF Adj Factor Scoring'!$E$5:$F$282,,MATCH(K$4,'B. PoF Adj Factor Scoring'!$E$3:$N$3,0)-1),2,TRUE) -> 1
A50: ='A. Population Info'!A50 -> 1000019538 | B50: ='A. Population Info'!G50 -> 0 | C50: ='A. Population Info'!H50 -> Other | D50: ='A. Population Info'!I50 -> 28.71863207 | E50: ='A. Population Info'!J50 -> 0 | F50: ='A. Population Info'!K50 -> 0 | G50: =VLOOKUP(B:B,OFFSET('B. PoF Adj Factor Scoring'!$E$5:$F$282,,MATCH(G$4,'B. PoF Adj Factor Scoring'!$E$3:$N$3,0)-1),2,TRUE) -> 1 | H50: =VLOOKUP(C:C,OFFSET('B. PoF Adj Factor Scoring'!$E$5:$F$282,,MATCH(H$4,'B. PoF Adj Factor Scoring'!$E$3:$N$3,0)-1),2,TRUE) -> 1 | I50: =VLOOKUP(D:D,OFFSET('B. PoF Adj Factor Scoring'!$E$5:$F$282,,MATCH(I$4,'B. PoF Adj Factor Scoring'!$E$3:$N$3,0)-1),2,TRUE) -> 2 | J50: =VLOOKUP(E:E,OFFSET('B. PoF Adj Factor Scoring'!$E$5:$F$282,,MATCH(J$4,'B. PoF Adj Factor Scoring'!$E$3:$N$3,0)-1),2,TRUE) -> 1 | K50: =VLOOKUP(F:F,OFFSET('B. PoF Adj Factor Scoring'!$E$5:$F$282,,MATCH(K$4,'B. PoF Adj Factor Scoring'!$E$3:$N$3,0)-1),2,TRUE) -> 1
A51: ='A. Population Info'!A51 -> 1000019550 | B51: ='A. Population Info'!G51 -> 0 | C51: ='A. Population Info'!H51 -> Other | D51: ='A. Population Info'!I51 -> 1.688884998 | E51: ='A. Population Info'!J51 -> 0 | F51: ='A. Population Info'!K51 -> 0 | G51: =VLOOKUP(B:B,OFFSET('B. PoF Adj Factor Scoring'!$E$5:$F$282,,MATCH(G$4,'B. PoF Adj Factor Scoring'!$E$3:$N$3,0)-1),2,TRUE) -> 1 | H51: =VLOOKUP(C:C,OFFSET('B. PoF Adj Factor Scoring'!$E$5:$F$282,,MATCH(H$4,'B. PoF Adj Factor Scoring'!$E$3:$N$3,0)-1),2,TRUE) -> 1 | I51: =VLOOKUP(D:D,OFFSET('B. PoF Adj Factor Scoring'!$E$5:$F$282,,MATCH(I$4,'B. PoF Adj Factor Scoring'!$E$3:$N$3,0)-1),2,TRUE) -> 5 | J51: =VLOOKUP(E:E,OFFSET('B. PoF Adj Factor Scoring'!$E$5:$F$282,,MATCH(J$4,'B. PoF Adj Factor Scoring'!$E$3:$N$3,0)-1),2,TRUE) -> 1 | K51: =VLOOKUP(F:F,OFFSET('B. PoF Adj Factor Scoring'!$E$5:$F$282,,MATCH(K$4,'B. PoF Adj Factor Scoring'!$E$3:$N$3,0)-1),2,TRUE) -> 1
A52: ='A. Population Info'!A52 -> 1000019728 | B52: ='A. Population Info'!G52 -> 0 | C52: ='A. Population Info'!H52 -> Other | D52: ='A. Population Info'!I52 -> 8.310038952 | E52: ='A. Population Info'!J52 -> 0 | F52: ='A. Population Info'!K52 -> 0 | G52: =VLOOKUP(B:B,OFFSET('B. PoF Adj Factor Scoring'!$E$5:$F$282,,MATCH(G$4,'B. PoF Adj Factor Scoring'!$E$3:$N$3,0)-1),2,TRUE) -> 1 | H52: =VLOOKUP(C:C,OFFSET('B. PoF Adj Factor Scoring'!$E$5:$F$282,,MATCH(H$4,'B. PoF Adj Factor Scoring'!$E$3:$N$3,0)-1),2,TRUE) -> 1 | I52: =VLOOKUP(D:D,OFFSET('B. PoF Adj Factor Scoring'!$E$5:$F$282,,MATCH(I$4,'B. PoF Adj Factor Scoring'!$E$3:$N$3,0)-1),2,TRUE) -> 3 | J52: =VLOOKUP(E:E,OFFSET('B. PoF Adj Factor Scoring'!$E$5:$F$282,,MATCH(J$4,'B. PoF Adj Factor Scoring'!$E$3:$N$3,0)-1),2,TRUE) -> 1 | K52: =VLOOKUP(F:F,OFFSET('B. PoF Adj Factor Scoring'!$E$5:$F$282,,MATCH(K$4,'B. PoF Adj Factor Scoring'!$E$3:$N$3,0)-1),2,TRUE) -> 1
A53: ='A. Population Info'!A53 -> 1000019734 | B53: ='A. Population Info'!G53 -> 0 | C53: ='A. Population Info'!H53 -> Other | D53: ='A. Population Info'!I53 -> 20 | E53: ='A. Population Info'!J53 -> 0 | F53: ='A. Population Info'!K53 -> 0 | G53: =VLOOKUP(B:B,OFFSET('B. PoF Adj Factor Scoring'!$E$5:$F$282,,MATCH(G$4,'B. PoF Adj Factor Scoring'!$E$3:$N$3,0)-1),2,TRUE) -> 1 | H53: =VLOOKUP(C:C,OFFSET('B. PoF Adj Factor Scoring'!$E$5:$F$282,,MATCH(H$4,'B. PoF Adj Factor Scoring'!$E$3:$N$3,0)-1),2,TRUE) -> 1 | I53: =VLOOKUP(D:D,OFFSET('B. PoF Adj Factor Scoring'!$E$5:$F$282,,MATCH(I$4,'B. PoF Adj Factor Scoring'!$E$3:$N$3,0)-1),2,TRUE) -> 2 | J53: =VLOOKUP(E:E,OFFSET('B. PoF Adj Factor Scoring'!$E$5:$F$282,,MATCH(J$4,'B. PoF Adj Factor Scoring'!$E$3:$N$3,0)-1),2,TRUE) -> 1 | K53: =VLOOKUP(F:F,OFFSET('B. PoF Adj Factor Scoring'!$E$5:$F$282,,MATCH(K$4,'B. PoF Adj Factor Scoring'!$E$3:$N$3,0)-1),2,TRUE) -> 1
A54: ='A. Population Info'!A54 -> 1000019739 | B54: ='A. Population Info'!G54 -> 0 | C54: ='A. Population Info'!H54 -> Other | D54: ='A. Population Info'!I54 -> 20 | E54: ='A. Population Info'!J54 -> 0 | F54: ='A. Population Info'!K54 -> 0 | G54: =VLOOKUP(B:B,OFFSET('B. PoF Adj Factor Scoring'!$E$5:$F$282,,MATCH(G$4,'B. PoF Adj Factor Scoring'!$E$3:$N$3,0)-1),2,TRUE) -> 1 | H54: =VLOOKUP(C:C,OFFSET('B. PoF Adj Factor Scoring'!$E$5:$F$282,,MATCH(H$4,'B. PoF Adj Factor Scoring'!$E$3:$N$3,0)-1),2,TRUE) -> 1 | I54: =VLOOKUP(D:D,OFFSET('B. PoF Adj Factor Scoring'!$E$5:$F$282,,MATCH(I$4,'B. PoF Adj Factor Scoring'!$E$3:$N$3,0)-1),2,TRUE) -> 2 | J54: =VLOOKUP(E:E,OFFSET('B. PoF Adj Factor Scoring'!$E$5:$F$282,,MATCH(J$4,'B. PoF Adj Factor Scoring'!$E$3:$N$3,0)-1),2,TRUE) -> 1 | K54: =VLOOKUP(F:F,OFFSET('B. PoF Adj Factor Scoring'!$E$5:$F$282,,MATCH(K$4,'B. PoF Adj Factor Scoring'!$E$3:$N$3,0)-1),2,TRUE) -> 1
A55: ='A. Population Info'!A55 -> 1000019849 | B55: ='A. Population Info'!G55 -> 0 | C55: ='A. Population Info'!H55 -> Other | D55: ='A. Population Info'!I55 -> 20 | E55: ='A. Population Info'!J55 -> 0 | F55: ='A. Population Info'!K55 -> 0 | G55: =VLOOKUP(B:B,OFFSET('B. PoF Adj Factor Scoring'!$E$5:$F$282,,MATCH(G$4,'B. PoF Adj Factor Scoring'!$E$3:$N$3,0)-1),2,TRUE) -> 1 | H55: =VLOOKUP(C:C,OFFSET('B. PoF Adj Factor Scoring'!$E$5:$F$282,,MATCH(H$4,'B. PoF Adj Factor Scoring'!$E$3:$N$3,0)-1),2,TRUE) -> 1 | I55: =VLOOKUP(D:D,OFFSET('B. PoF Adj Factor Scoring'!$E$5:$F$282,,MATCH(I$4,'B. PoF Adj Factor Scoring'!$E$3:$N$3,0)-1),2,TRUE) -> 2 | J55: =VLOOKUP(E:E,OFFSET('B. PoF Adj Factor Scoring'!$E$5:$F$282,,MATCH(J$4,'B. PoF Adj Factor Scoring'!$E$3:$N$3,0)-1),2,TRUE) -> 1 | K55: =VLOOKUP(F:F,OFFSET('B. PoF Adj Factor Scoring'!$E$5:$F$282,,MATCH(K$4,'B. PoF Adj Factor Scoring'!$E$3:$N$3,0)-1),2,TRUE) -> 1
A56: ='A. Population Info'!A56 -> 1000020069 | B56: ='A. Population Info'!G56 -> 0 | C56: ='A. Population Info'!H56 -> Other | D56: ='A. Population Info'!I56 -> 6.292218363 | E56: ='A. Population Info'!J56 -> 0 | F56: ='A. Population Info'!K56 -> 0 | G56: =VLOOKUP(B:B,OFFSET('B. PoF Adj Factor Scoring'!$E$5:$F$282,,MATCH(G$4,'B. PoF Adj Factor Scoring'!$E$3:$N$3,0)-1),2,TRUE) -> 1 | H56: =VLOOKUP(C:C,OFFSET('B. PoF Adj Factor Scoring'!$E$5:$F$282,,MATCH(H$4,'B. PoF Adj Factor Scoring'!$E$3:$N$3,0)-1),2,TRUE) -> 1 | I56: =VLOOKUP(D:D,OFFSET('B. PoF Adj Factor Scoring'!$E$5:$F$282,,MATCH(I$4,'B. PoF Adj Factor Scoring'!$E$3:$N$3,0)-1),2,TRUE) -> 3 | J56: =VLOOKUP(E:E,OFFSET('B. PoF Adj Factor Scoring'!$E$5:$F$282,,MATCH(J$4,'B. PoF Adj Factor Scoring'!$E$3:$N$3,0)-1),2,TRUE) -> 1 | K56: =VLOOKUP(F:F,OFFSET('B. PoF Adj Factor Scoring'!$E$5:$F$282,,MATCH(K$4,'B. PoF Adj Factor Scoring'!$E$3:$N$3,0)-1),2,TRUE) -> 1
A57: ='A. Population Info'!A57 -> 1000023523 | B57: ='A. Population Info'!G57 -> 0 | C57: ='A. Population Info'!H57 -> Other | D57: ='A. Population Info'!I57 -> 1.821652363 | E57: ='A. Population Info'!J57 -> 0 | F57: ='A. Population Info'!K57 -> 0 | G57: =VLOOKUP(B:B,OFFSET('B. PoF Adj Factor Scoring'!$E$5:$F$282,,MATCH(G$4,'B. PoF Adj Factor Scoring'!$E$3:$N$3,0)-1),2,TRUE) -> 1 | H57: =VLOOKUP(C:C,OFFSET('B. PoF Adj Factor Scoring'!$E$5:$F$282,,MATCH(H$4,'B. PoF Adj Factor Scoring'!$E$3:$N$3,0)-1),2,TRUE) -> 1 | I57: =VLOOKUP(D:D,OFFSET('B. PoF Adj Factor Scoring'!$E$5:$F$282,,MATCH(I$4,'B. PoF Adj Factor Scoring'!$E$3:$N$3,0)-1),2,TRUE) -> 5 | J57: =VLOOKUP(E:E,OFFSET('B. PoF Adj Factor Scoring'!$E$5:$F$282,,MATCH(J$4,'B. PoF Adj Factor Scoring'!$E$3:$N$3,0)-1),2,TRUE) -> 1 | K57: =VLOOKUP(F:F,OFFSET('B. PoF Adj Factor Scoring'!$E$5:$F$282,,MATCH(K$4,'B. PoF Adj Factor Scoring'!$E$3:$N$3,0)-1),2,TRUE) -> 1
A58: ='A. Population Info'!A58 -> 1000024046 | B58: ='A. Population Info'!G58 -> 0 | C58: ='A. Population Info'!H58 -> Other | D58: ='A. Population Info'!I58 -> 71.89772837 | E58: ='A. Population Info'!J58 -> 0 | F58: ='A. Population Info'!K58 -> 0 | G58: =VLOOKUP(B:B,OFFSET('B. PoF Adj Factor Scoring'!$E$5:$F$282,,MATCH(G$4,'B. PoF Adj Factor Scoring'!$E$3:$N$3,0)-1),2,TRUE) -> 1 | H58: =VLOOKUP(C:C,OFFSET('B. PoF Adj Factor Scoring'!$E$5:$F$282,,MATCH(H$4,'B. PoF Adj Factor Scoring'!$E$3:$N$3,0)-1),2,TRUE) -> 1 | I58: =VLOOKUP(D:D,OFFSET('B. PoF Adj Factor Scoring'!$E$5:$F$282,,MATCH(I$4,'B. PoF Adj Factor Scoring'!$E$3:$N$3,0)-1),2,TRUE) -> 2 | J58: =VLOOKUP(E:E,OFFSET('B. PoF Adj Factor Scoring'!$E$5:$F$282,,MATCH(J$4,'B. PoF Adj Factor Scoring'!$E$3:$N$3,0)-1),2,TRUE) -> 1 | K58: =VLOOKUP(F:F,OFFSET('B. PoF Adj Factor Scoring'!$E$5:$F$282,,MATCH(K$4,'B. PoF Adj Factor Scoring'!$E$3:$N$3,0)-1),2,TRUE) -> 1
A59: ='A. Population Info'!A59 -> 1000024317 | B59: ='A. Population Info'!G59 -> 0 | C59: ='A. Population Info'!H59 -> Other | D59: ='A. Population Info'!I59 -> 8.44667343 | E59: ='A. Population Info'!J59 -> 0 | F59: ='A. Population Info'!K59 -> 0 | G59: =VLOOKUP(B:B,OFFSET('B. PoF Adj Factor Scoring'!$E$5:$F$282,,MATCH(G$4,'B. PoF Adj Factor Scoring'!$E$3:$N$3,0)-1),2,TRUE) -> 1 | H59: =VLOOKUP(C:C,OFFSET('B. PoF Adj Factor Scoring'!$E$5:$F$282,,MATCH(H$4,'B. PoF Adj Factor Scoring'!$E$3:$N$3,0)-1),2,TRUE) -> 1 | I59: =VLOOKUP(D:D,OFFSET('B. PoF Adj Factor Scoring'!$E$5:$F$282,,MATCH(I$4,'B. PoF Adj Factor Scoring'!$E$3:$N$3,0)-1),2,TRUE) -> 3 | J59: =VLOOKUP(E:E,OFFSET('B. PoF Adj Factor Scoring'!$E$5:$F$282,,MATCH(J$4,'B. PoF Adj Factor Scoring'!$E$3:$N$3,0)-1),2,TRUE) -> 1 | K59: =VLOOKUP(F:F,OFFSET('B. PoF Adj Factor Scoring'!$E$5:$F$282,,MATCH(K$4,'B. PoF Adj Factor Scoring'!$E$3:$N$3,0)-1),2,TRUE) -> 1
A60: ='A. Population Info'!A60 -> 1000024441 | B60: ='A. Population Info'!G60 -> 0 | C60: ='A. Population Info'!H60 -> Other | D60: ='A. Population Info'!I60 -> 7.397740673 | E60: ='A. Population Info'!J60 -> 0 | F60: ='A. Population Info'!K60 -> 0 | G60: =VLOOKUP(B:B,OFFSET('B. PoF Adj Factor Scoring'!$E$5:$F$282,,MATCH(G$4,'B. PoF Adj Factor Scoring'!$E$3:$N$3,0)-1),2,TRUE) -> 1 | H60: =VLOOKUP(C:C,OFFSET('B. PoF Adj Factor Scoring'!$E$5:$F$282,,MATCH(H$4,'B. PoF Adj Factor Scoring'!$E$3:$N$3,0)-1),2,TRUE) -> 1 | I60: =VLOOKUP(D:D,OFFSET('B. PoF Adj Factor Scoring'!$E$5:$F$282,,MATCH(I$4,'B. PoF Adj Factor Scoring'!$E$3:$N$3,0)-1),2,TRUE) -> 3 | J60: =VLOOKUP(E:E,OFFSET('B. PoF Adj Factor Scoring'!$E$5:$F$282,,MATCH(J$4,'B. PoF Adj Factor Scoring'!$E$3:$N$3,0)-1),2,TRUE) -> 1 | K60: =VLOOKUP(F:F,OFFSET('B. PoF Adj Factor Scoring'!$E$5:$F$282,,MATCH(K$4,'B. PoF Adj Factor Scoring'!$E$3:$N$3,0)-1),2,TRUE) -> 1
A61: ='A. Population Info'!A61 -> 1000024541 | B61: ='A. Population Info'!G61 -> 0 | C61: ='A. Population Info'!H61 -> Other | D61: ='A. Population Info'!I61 -> 2.583862653 | E61: ='A. Population Info'!J61 -> 0 | F61: ='A. Population Info'!K61 -> 0 | G61: =VLOOKUP(B:B,OFFSET('B. PoF Adj Factor Scoring'!$E$5:$F$282,,MATCH(G$4,'B. PoF Adj Factor Scoring'!$E$3:$N$3,0)-1),2,TRUE) -> 1 | H61: =VLOOKUP(C:C,OFFSET('B. PoF Adj Factor Scoring'!$E$5:$F$282,,MATCH(H$4,'B. PoF Adj Factor Scoring'!$E$3:$N$3,0)-1),2,TRUE) -> 1 | I61: =VLOOKUP(D:D,OFFSET('B. PoF Adj Factor Scoring'!$E$5:$F$282,,MATCH(I$4,'B. PoF Adj Factor Scoring'!$E$3:$N$3,0)-1),2,TRUE) -> 5 | J61: =VLOOKUP(E:E,OFFSET('B. PoF Adj Factor Scoring'!$E$5:$F$282,,MATCH(J$4,'B. PoF Adj Factor Scoring'!$E$3:$N$3,0)-1),2,TRUE) -> 1 | K61: =VLOOKUP(F:F,OFFSET('B. PoF Adj Factor Scoring'!$E$5:$F$282,,MATCH(K$4,'B. PoF Adj Factor Scoring'!$E$3:$N$3,0)-1),2,TRUE) -> 1
A62: ='A. Population Info'!A62 -> 1000024646 | B62: ='A. Population Info'!G62 -> 0 | C62: ='A. Population Info'!H62 -> Other | D62: ='A. Population Info'!I62 -> 2.869474689 | E62: ='A. Population Info'!J62 -> 0 | F62: ='A. Population Info'!K62 -> 0 | G62: =VLOOKUP(B:B,OFFSET('B. PoF Adj Factor Scoring'!$E$5:$F$282,,MATCH(G$4,'B. PoF Adj Factor Scoring'!$E$3:$N$3,0)-1),2,TRUE) -> 1 | H62: =VLOOKUP(C:C,OFFSET('B. PoF Adj Factor Scoring'!$E$5:$F$282,,MATCH(H$4,'B. PoF Adj Factor Scoring'!$E$3:$N$3,0)-1),2,TRUE) -> 1 | I62: =VLOOKUP(D:D,OFFSET('B. PoF Adj Factor Scoring'!$E$5:$F$282,,MATCH(I$4,'B. PoF Adj Factor Scoring'!$E$3:$N$3,0)-1),2,TRUE) -> 5 | J62: =VLOOKUP(E:E,OFFSET('B. PoF Adj Factor Scoring'!$E$5:$F$282,,MATCH(J$4,'B. PoF Adj Factor Scoring'!$E$3:$N$3,0)-1),2,TRUE) -> 1 | K62: =VLOOKUP(F:F,OFFSET('B. PoF Adj Factor Scoring'!$E$5:$F$282,,MATCH(K$4,'B. PoF Adj Factor Scoring'!$E$3:$N$3,0)-1),2,TRUE) -> 1
A63: ='A. Population Info'!A63 -> 1000024648 | B63: ='A. Population Info'!G63 -> 0 | C63: ='A. Population Info'!H63 -> Other | D63: ='A. Population Info'!I63 -> 1.779193545 | E63: ='A. Population Info'!J63 -> 0 | F63: ='A. Population Info'!K63 -> 0 | G63: =VLOOKUP(B:B,OFFSET('B. PoF Adj Factor Scoring'!$E$5:$F$282,,MATCH(G$4,'B. PoF Adj Factor Scoring'!$E$3:$N$3,0)-1),2,TRUE) -> 1 | H63: =VLOOKUP(C:C,OFFSET('B. PoF Adj Factor Scoring'!$E$5:$F$282,,MATCH(H$4,'B. PoF Adj Factor Scoring'!$E$3:$N$3,0)-1),2,TRUE) -> 1 | I63: =VLOOKUP(D:D,OFFSET('B. PoF Adj Factor Scoring'!$E$5:$F$282,,MATCH(I$4,'B. PoF Adj Factor Scoring'!$E$3:$N$3,0)-1),2,TRUE) -> 5 | J63: =VLOOKUP(E:E,OFFSET('B. PoF Adj Factor Scoring'!$E$5:$F$282,,MATCH(J$4,'B. PoF Adj Factor Scoring'!$E$3:$N$3,0)-1),2,TRUE) -> 1 | K63: =VLOOKUP(F:F,OFFSET('B. PoF Adj Factor Scoring'!$E$5:$F$282,,MATCH(K$4,'B. PoF Adj Factor Scoring'!$E$3:$N$3,0)-1),2,TRUE) -> 1
A64: ='A. Population Info'!A64 -> 1000024720 | B64: ='A. Population Info'!G64 -> 0 | C64: ='A. Population Info'!H64 -> Other | D64: ='A. Population Info'!I64 -> 13.31685707 | E64: ='A. Population Info'!J64 -> 0 | F64: ='A. Population Info'!K64 -> 0 | G64: =VLOOKUP(B:B,OFFSET('B. PoF Adj Factor Scoring'!$E$5:$F$282,,MATCH(G$4,'B. PoF Adj Factor Scoring'!$E$3:$N$3,0)-1),2,TRUE) -> 1 | H64: =VLOOKUP(C:C,OFFSET('B. PoF Adj Factor Scoring'!$E$5:$F$282,,MATCH(H$4,'B. PoF Adj Factor Scoring'!$E$3:$N$3,0)-1),2,TRUE) -> 1 | I64: =VLOOKUP(D:D,OFFSET('B. PoF Adj Factor Scoring'!$E$5:$F$282,,MATCH(I$4,'B. PoF Adj Factor Scoring'!$E$3:$N$3,0)-1),2,TRUE) -> 2 | J64: =VLOOKUP(E:E,OFFSET('B. PoF Adj Factor Scoring'!$E$5:$F$282,,MATCH(J$4,'B. PoF Adj Factor Scoring'!$E$3:$N$3,0)-1),2,TRUE) -> 1 | K64: =VLOOKUP(F:F,OFFSET('B. PoF Adj Factor Scoring'!$E$5:$F$282,,MATCH(K$4,'B. PoF Adj Factor Scoring'!$E$3:$N$3,0)-1),2,TRUE) -> 1
A65: ='A. Population Info'!A65 -> 1000025263 | B65: ='A. Population Info'!G65 -> 0 | C65: ='A. Population Info'!H65 -> Other | D65: ='A. Population Info'!I65 -> 20 | E65: ='A. Population Info'!J65 -> 0 | F65: ='A. Population Info'!K65 -> 0 | G65: =VLOOKUP(B:B,OFFSET('B. PoF Adj Factor Scoring'!$E$5:$F$282,,MATCH(G$4,'B. PoF Adj Factor Scoring'!$E$3:$N$3,0)-1),2,TRUE) -> 1 | H65: =VLOOKUP(C:C,OFFSET('B. PoF Adj Factor Scoring'!$E$5:$F$282,,MATCH(H$4,'B. PoF Adj Factor Scoring'!$E$3:$N$3,0)-1),2,TRUE) -> 1 | I65: =VLOOKUP(D:D,OFFSET('B. PoF Adj Factor Scoring'!$E$5:$F$282,,MATCH(I$4,'B. PoF Adj Factor Scoring'!$E$3:$N$3,0)-1),2,TRUE) -> 2 | J65: =VLOOKUP(E:E,OFFSET('B. PoF Adj Factor Scoring'!$E$5:$F$282,,MATCH(J$4,'B. PoF Adj Factor Scoring'!$E$3:$N$3,0)-1),2,TRUE) -> 1 | K65: =VLOOKUP(F:F,OFFSET('B. PoF Adj Factor Scoring'!$E$5:$F$282,,MATCH(K$4,'B. PoF Adj Factor Scoring'!$E$3:$N$3,0)-1),2,TRUE) -> 1
A66: ='A. Population Info'!A66 -> 1000025380 | B66: ='A. Population Info'!G66 -> 0 | C66: ='A. Population Info'!H66 -> Other | D66: ='A. Population Info'!I66 -> 20 | E66: ='A. Population Info'!J66 -> 0 | F66: ='A. Population Info'!K66 -> 0 | G66: =VLOOKUP(B:B,OFFSET('B. PoF Adj Factor Scoring'!$E$5:$F$282,,MATCH(G$4,'B. PoF Adj Factor Scoring'!$E$3:$N$3,0)-1),2,TRUE) -> 1 | H66: =VLOOKUP(C:C,OFFSET('B. PoF Adj Factor Scoring'!$E$5:$F$282,,MATCH(H$4,'B. PoF Adj Factor Scoring'!$E$3:$N$3,0)-1),2,TRUE) -> 1 | I66: =VLOOKUP(D:D,OFFSET('B. PoF Adj Factor Scoring'!$E$5:$F$282,,MATCH(I$4,'B. PoF Adj Factor Scoring'!$E$3:$N$3,0)-1),2,TRUE) -> 2 | J66: =VLOOKUP(E:E,OFFSET('B. PoF Adj Factor Scoring'!$E$5:$F$282,,MATCH(J$4,'B. PoF Adj Factor Scoring'!$E$3:$N$3,0)-1),2,TRUE) -> 1 | K66: =VLOOKUP(F:F,OFFSET('B. PoF Adj Factor Scoring'!$E$5:$F$282,,MATCH(K$4,'B. PoF Adj Factor Scoring'!$E$3:$N$3,0)-1),2,TRUE) -> 1
A67: ='A. Population Info'!A67 -> 1000025769 | B67: ='A. Population Info'!G67 -> 0 | C67: ='A. Population Info'!H67 -> Other | D67: ='A. Population Info'!I67 -> 21.03518894 | E67: ='A. Population Info'!J67 -> 0 | F67: ='A. Population Info'!K67 -> 0 | G67: =VLOOKUP(B:B,OFFSET('B. PoF Adj Factor Scoring'!$E$5:$F$282,,MATCH(G$4,'B. PoF Adj Factor Scoring'!$E$3:$N$3,0)-1),2,TRUE) -> 1 | H67: =VLOOKUP(C:C,OFFSET('B. PoF Adj Factor Scoring'!$E$5:$F$282,,MATCH(H$4,'B. PoF Adj Factor Scoring'!$E$3:$N$3,0)-1),2,TRUE) -> 1 | I67: =VLOOKUP(D:D,OFFSET('B. PoF Adj Factor Scoring'!$E$5:$F$282,,MATCH(I$4,'B. PoF Adj Factor Scoring'!$E$3:$N$3,0)-1),2,TRUE) -> 2 | J67: =VLOOKUP(E:E,OFFSET('B. PoF Adj Factor Scoring'!$E$5:$F$282,,MATCH(J$4,'B. PoF Adj Factor Scoring'!$E$3:$N$3,0)-1),2,TRUE) -> 1 | K67: =VLOOKUP(F:F,OFFSET('B. PoF Adj Factor Scoring'!$E$5:$F$282,,MATCH(K$4,'B. PoF Adj Factor Scoring'!$E$3:$N$3,0)-1),2,TRUE) -> 1
A68: ='A. Population Info'!A68 -> 1000027001 | B68: ='A. Population Info'!G68 -> 0 | C68: ='A. Population Info'!H68 -> Other | D68: ='A. Population Info'!I68 -> 108.9669087 | E68: ='A. Population Info'!J68 -> 0 | F68: ='A. Population Info'!K68 -> 0 | G68: =VLOOKUP(B:B,OFFSET('B. PoF Adj Factor Scoring'!$E$5:$F$282,,MATCH(G$4,'B. PoF Adj Factor Scoring'!$E$3:$N$3,0)-1),2,TRUE) -> 1 | H68: =VLOOKUP(C:C,OFFSET('B. PoF Adj Factor Scoring'!$E$5:$F$282,,MATCH(H$4,'B. PoF Adj Factor Scoring'!$E$3:$N$3,0)-1),2,TRUE) -> 1 | I68: =VLOOKUP(D:D,OFFSET('B. PoF Adj Factor Scoring'!$E$5:$F$282,,MATCH(I$4,'B. PoF Adj Factor Scoring'!$E$3:$N$3,0)-1),2,TRUE) -> 1 | J68: =VLOOKUP(E:E,OFFSET('B. PoF Adj Factor Scoring'!$E$5:$F$282,,MATCH(J$4,'B. PoF Adj Factor Scoring'!$E$3:$N$3,0)-1),2,TRUE) -> 1 | K68: =VLOOKUP(F:F,OFFSET('B. PoF Adj Factor Scoring'!$E$5:$F$282,,MATCH(K$4,'B. PoF Adj Factor Scoring'!$E$3:$N$3,0)-1),2,TRUE) -> 1
A69: ='A. Population Info'!A69 -> 1000027143 | B69: ='A. Population Info'!G69 -> 0 | C69: ='A. Population Info'!H69 -> Other | D69: ='A. Population Info'!I69 -> 44.27413548 | E69: ='A. Population Info'!J69 -> 0 | F69: ='A. Population Info'!K69 -> 0 | G69: =VLOOKUP(B:B,OFFSET('B. PoF Adj Factor Scoring'!$E$5:$F$282,,MATCH(G$4,'B. PoF Adj Factor Scoring'!$E$3:$N$3,0)-1),2,TRUE) -> 1 | H69: =VLOOKUP(C:C,OFFSET('B. PoF Adj Factor Scoring'!$E$5:$F$282,,MATCH(H$4,'B. PoF Adj Factor Scoring'!$E$3:$N$3,0)-1),2,TRUE) -> 1 | I69: =VLOOKUP(D:D,OFFSET('B. PoF Adj Factor Scoring'!$E$5:$F$282,,MATCH(I$4,'B. PoF Adj Factor Scoring'!$E$3:$N$3,0)-1),2,TRUE) -> 2 | J69: =VLOOKUP(E:E,OFFSET('B. PoF Adj Factor Scoring'!$E$5:$F$282,,MATCH(J$4,'B. PoF Adj Factor Scoring'!$E$3:$N$3,0)-1),2,TRUE) -> 1 | K69: =VLOOKUP(F:F,OFFSET('B. PoF Adj Factor Scoring'!$E$5:$F$282,,MATCH(K$4,'B. PoF Adj Factor Scoring'!$E$3:$N$3,0)-1),2,TRUE) -> 1
A70: ='A. Population Info'!A70 -> 1000027280 | B70: ='A. Population Info'!G70 -> 0 | C70: ='A. Population Info'!H70 -> Haycolec (pin insulators) | D70: ='A. Population Info'!I70 -> 25.29132653 | E70: ='A. Population Info'!J70 -> 0 | F70: ='A. Population Info'!K70 -> 0 | G70: =VLOOKUP(B:B,OFFSET('B. PoF Adj Factor Scoring'!$E$5:$F$282,,MATCH(G$4,'B. PoF Adj Factor Scoring'!$E$3:$N$3,0)-1),2,TRUE) -> 1 | H70: =VLOOKUP(C:C,OFFSET('B. PoF Adj Factor Scoring'!$E$5:$F$282,,MATCH(H$4,'B. PoF Adj Factor Scoring'!$E$3:$N$3,0)-1),2,TRUE) -> 2 | I70: =VLOOKUP(D:D,OFFSET('B. PoF Adj Factor Scoring'!$E$5:$F$282,,MATCH(I$4,'B. PoF Adj Factor Scoring'!$E$3:$N$3,0)-1),2,TRUE) -> 2 | J70: =VLOOKUP(E:E,OFFSET('B. PoF Adj Factor Scoring'!$E$5:$F$282,,MATCH(J$4,'B. PoF Adj Factor Scoring'!$E$3:$N$3,0)-1),2,TRUE) -> 1 | K70: =VLOOKUP(F:F,OFFSET('B. PoF Adj Factor Scoring'!$E$5:$F$282,,MATCH(K$4,'B. PoF Adj Factor Scoring'!$E$3:$N$3,0)-1),2,TRUE) -> 1
A71: ='A. Population Info'!A71 -> 1000027554 | B71: ='A. Population Info'!G71 -> 0 | C71: ='A. Population Info'!H71 -> Other | D71: ='A. Population Info'!I71 -> 18.13514335 | E71: ='A. Population Info'!J71 -> 0 | F71: ='A. Population Info'!K71 -> 0 | G71: =VLOOKUP(B:B,OFFSET('B. PoF Adj Factor Scoring'!$E$5:$F$282,,MATCH(G$4,'B. PoF Adj Factor Scoring'!$E$3:$N$3,0)-1),2,TRUE) -> 1 | H71: =VLOOKUP(C:C,OFFSET('B. PoF Adj Factor Scoring'!$E$5:$F$282,,MATCH(H$4,'B. PoF Adj Factor Scoring'!$E$3:$N$3,0)-1),2,TRUE) -> 1 | I71: =VLOOKUP(D:D,OFFSET('B. PoF Adj Factor Scoring'!$E$5:$F$282,,MATCH(I$4,'B. PoF Adj Factor Scoring'!$E$3:$N$3,0)-1),2,TRUE) -> 2 | J71: =VLOOKUP(E:E,OFFSET('B. PoF Adj Factor Scoring'!$E$5:$F$282,,MATCH(J$4,'B. PoF Adj Factor Scoring'!$E$3:$N$3,0)-1),2,TRUE) -> 1 | K71: =VLOOKUP(F:F,OFFSET('B. PoF Adj Factor Scoring'!$E$5:$F$282,,MATCH(K$4,'B. PoF Adj Factor Scoring'!$E$3:$N$3,0)-1),2,TRUE) -> 1
A72: ='A. Population Info'!A72 -> 1000027576 | B72: ='A. Population Info'!G72 -> 0 | C72: ='A. Population Info'!H72 -> Other | D72: ='A. Population Info'!I72 -> 18.20490156 | E72: ='A. Population Info'!J72 -> 0 | F72: ='A. Population Info'!K72 -> 0 | G72: =VLOOKUP(B:B,OFFSET('B. PoF Adj Factor Scoring'!$E$5:$F$282,,MATCH(G$4,'B. PoF Adj Factor Scoring'!$E$3:$N$3,0)-1),2,TRUE) -> 1 | H72: =VLOOKUP(C:C,OFFSET('B. PoF Adj Factor Scoring'!$E$5:$F$282,,MATCH(H$4,'B. PoF Adj Factor Scoring'!$E$3:$N$3,0)-1),2,TRUE) -> 1 | I72: =VLOOKUP(D:D,OFFSET('B. PoF Adj Factor Scoring'!$E$5:$F$282,,MATCH(I$4,'B. PoF Adj Factor Scoring'!$E$3:$N$3,0)-1),2,TRUE) -> 2 | J72: =VLOOKUP(E:E,OFFSET('B. PoF Adj Factor Scoring'!$E$5:$F$282,,MATCH(J$4,'B. PoF Adj Factor Scoring'!$E$3:$N$3,0)-1),2,TRUE) -> 1 | K72: =VLOOKUP(F:F,OFFSET('B. PoF Adj Factor Scoring'!$E$5:$F$282,,MATCH(K$4,'B. PoF Adj Factor Scoring'!$E$3:$N$3,0)-1),2,TRUE) -> 1
A73: ='A. Population Info'!A73 -> 1000027586 | B73: ='A. Population Info'!G73 -> 0 | C73: ='A. Population Info'!H73 -> Other | D73: ='A. Population Info'!I73 -> 17.4052972 | E73: ='A. Population Info'!J73 -> 0 | F73: ='A. Population Info'!K73 -> 0 | G73: =VLOOKUP(B:B,OFFSET('B. PoF Adj Factor Scoring'!$E$5:$F$282,,MATCH(G$4,'B. PoF Adj Factor Scoring'!$E$3:$N$3,0)-1),2,TRUE) -> 1 | H73: =VLOOKUP(C:C,OFFSET('B. PoF Adj Factor Scoring'!$E$5:$F$282,,MATCH(H$4,'B. PoF Adj Factor Scoring'!$E$3:$N$3,0)-1),2,TRUE) -> 1 | I73: =VLOOKUP(D:D,OFFSET('B. PoF Adj Factor Scoring'!$E$5:$F$282,,MATCH(I$4,'B. PoF Adj Factor Scoring'!$E$3:$N$3,0)-1),2,TRUE) -> 2 | J73: =VLOOKUP(E:E,OFFSET('B. PoF Adj Factor Scoring'!$E$5:$F$282,,MATCH(J$4,'B. PoF Adj Factor Scoring'!$E$3:$N$3,0)-1),2,TRUE) -> 1 | K73: =VLOOKUP(F:F,OFFSET('B. PoF Adj Factor Scoring'!$E$5:$F$282,,MATCH(K$4,'B. PoF Adj Factor Scoring'!$E$3:$N$3,0)-1),2,TRUE) -> 1
A74: ='A. Population Info'!A74 -> 1000027608 | B74: ='A. Population Info'!G74 -> 0 | C74: ='A. Population Info'!H74 -> Other | D74: ='A. Population Info'!I74 -> 17.19352136 | E74: ='A. Population Info'!J74 -> 0 | F74: ='A. Population Info'!K74 -> 0 | G74: =VLOOKUP(B:B,OFFSET('B. PoF Adj Factor Scoring'!$E$5:$F$282,,MATCH(G$4,'B. PoF Adj Factor Scoring'!$E$3:$N$3,0)-1),2,TRUE) -> 1 | H74: =VLOOKUP(C:C,OFFSET('B. PoF Adj Factor Scoring'!$E$5:$F$282,,MATCH(H$4,'B. PoF Adj Factor Scoring'!$E$3:$N$3,0)-1),2,TRUE) -> 1 | I74: =VLOOKUP(D:D,OFFSET('B. PoF Adj Factor Scoring'!$E$5:$F$282,,MATCH(I$4,'B. PoF Adj Factor Scoring'!$E$3:$N$3,0)-1),2,TRUE) -> 2 | J74: =VLOOKUP(E:E,OFFSET('B. PoF Adj Factor Scoring'!$E$5:$F$282,,MATCH(J$4,'B. PoF Adj Factor Scoring'!$E$3:$N$3,0)-1),2,TRUE) -> 1 | K74: =VLOOKUP(F:F,OFFSET('B. PoF Adj Factor Scoring'!$E$5:$F$282,,MATCH(K$4,'B. PoF Adj Factor Scoring'!$E$3:$N$3,0)-1),2,TRUE) -> 1
A75: ='A. Population Info'!A75 -> 1000027640 | B75: ='A. Population Info'!G75 -> 0 | C75: ='A. Population Info'!H75 -> Other | D75: ='A. Population Info'!I75 -> 18.29797466 | E75: ='A. Population Info'!J75 -> 0 | F75: ='A. Population Info'!K75 -> 0 | G75: =VLOOKUP(B:B,OFFSET('B. PoF Adj Factor Scoring'!$E$5:$F$282,,MATCH(G$4,'B. PoF Adj Factor Scoring'!$E$3:$N$3,0)-1),2,TRUE) -> 1 | H75: =VLOOKUP(C:C,OFFSET('B. PoF Adj Factor Scoring'!$E$5:$F$282,,MATCH(H$4,'B. PoF Adj Factor Scoring'!$E$3:$N$3,0)-1),2,TRUE) -> 1 | I75: =VLOOKUP(D:D,OFFSET('B. PoF Adj Factor Scoring'!$E$5:$F$282,,MATCH(I$4,'B. PoF Adj Factor Scoring'!$E$3:$N$3,0)-1),2,TRUE) -> 2 | J75: =VLOOKUP(E:E,OFFSET('B. PoF Adj Factor Scoring'!$E$5:$F$282,,MATCH(J$4,'B. PoF Adj Factor Scoring'!$E$3:$N$3,0)-1),2,TRUE) -> 1 | K75: =VLOOKUP(F:F,OFFSET('B. PoF Adj Factor Scoring'!$E$5:$F$282,,MATCH(K$4,'B. PoF Adj Factor Scoring'!$E$3:$N$3,0)-1),2,TRUE) -> 1
A76: ='A. Population Info'!A76 -> 1000027887 | B76: ='A. Population Info'!G76 -> 0 | C76: ='A. Population Info'!H76 -> Other | D76: ='A. Population Info'!I76 -> 2.325593141 | E76: ='A. Population Info'!J76 -> 0 | F76: ='A. Population Info'!K76 -> 0 | G76: =VLOOKUP(B:B,OFFSET('B. PoF Adj Factor Scoring'!$E$5:$F$282,,MATCH(G$4,'B. PoF Adj Factor Scoring'!$E$3:$N$3,0)-1),2,TRUE) -> 1 | H76: =VLOOKUP(C:C,OFFSET('B. PoF Adj Factor Scoring'!$E$5:$F$282,,MATCH(H$4,'B. PoF Adj Factor Scoring'!$E$3:$N$3,0)-1),2,TRUE) -> 1 | I76: =VLOOKUP(D:D,OFFSET('B. PoF Adj Factor Scoring'!$E$5:$F$282,,MATCH(I$4,'B. PoF Adj Factor Scoring'!$E$3:$N$3,0)-1),2,TRUE) -> 5 | J76: =VLOOKUP(E:E,OFFSET('B. PoF Adj Factor Scoring'!$E$5:$F$282,,MATCH(J$4,'B. PoF Adj Factor Scoring'!$E$3:$N$3,0)-1),2,TRUE) -> 1 | K76: =VLOOKUP(F:F,OFFSET('B. PoF Adj Factor Scoring'!$E$5:$F$282,,MATCH(K$4,'B. PoF Adj Factor Scoring'!$E$3:$N$3,0)-1),2,TRUE) -> 1
A77: ='A. Population Info'!A77 -> 1000028884 | B77: ='A. Population Info'!G77 -> 0 | C77: ='A. Population Info'!H77 -> Haycolec (pin insulators) | D77: ='A. Population Info'!I77 -> 117.8595993 | E77: ='A. Population Info'!J77 -> 0 | F77: ='A. Population Info'!K77 -> 0 | G77: =VLOOKUP(B:B,OFFSET('B. PoF Adj Factor Scoring'!$E$5:$F$282,,MATCH(G$4,'B. PoF Adj Factor Scoring'!$E$3:$N$3,0)-1),2,TRUE) -> 1 | H77: =VLOOKUP(C:C,OFFSET('B. PoF Adj Factor Scoring'!$E$5:$F$282,,MATCH(H$4,'B. PoF Adj Factor Scoring'!$E$3:$N$3,0)-1),2,TRUE) -> 2 | I77: =VLOOKUP(D:D,OFFSET('B. PoF Adj Factor Scoring'!$E$5:$F$282,,MATCH(I$4,'B. PoF Adj Factor Scoring'!$E$3:$N$3,0)-1),2,TRUE) -> 1 | J77: =VLOOKUP(E:E,OFFSET('B. PoF Adj Factor Scoring'!$E$5:$F$282,,MATCH(J$4,'B. PoF Adj Factor Scoring'!$E$3:$N$3,0)-1),2,TRUE) -> 1 | K77: =VLOOKUP(F:F,OFFSET('B. PoF Adj Factor Scoring'!$E$5:$F$282,,MATCH(K$4,'B. PoF Adj Factor Scoring'!$E$3:$N$3,0)-1),2,TRUE) -> 1
A78: ='A. Population Info'!A78 -> 1000029314 | B78: ='A. Population Info'!G78 -> 0 | C78: ='A. Population Info'!H78 -> Essantee HS641 | D78: ='A. Population Info'!I78 -> 9.718963382 | E78: ='A. Population Info'!J78 -> 0 | F78: ='A. Population Info'!K78 -> 0 | G78: =VLOOKUP(B:B,OFFSET('B. PoF Adj Factor Scoring'!$E$5:$F$282,,MATCH(G$4,'B. PoF Adj Factor Scoring'!$E$3:$N$3,0)-1),2,TRUE) -> 1 | H78: =VLOOKUP(C:C,OFFSET('B. PoF Adj Factor Scoring'!$E$5:$F$282,,MATCH(H$4,'B. PoF Adj Factor Scoring'!$E$3:$N$3,0)-1),2,TRUE) -> 5 | I78: =VLOOKUP(D:D,OFFSET('B. PoF Adj Factor Scoring'!$E$5:$F$282,,MATCH(I$4,'B. PoF Adj Factor Scoring'!$E$3:$N$3,0)-1),2,TRUE) -> 3 | J78: =VLOOKUP(E:E,OFFSET('B. PoF Adj Factor Scoring'!$E$5:$F$282,,MATCH(J$4,'B. PoF Adj Factor Scoring'!$E$3:$N$3,0)-1),2,TRUE) -> 1 | K78: =VLOOKUP(F:F,OFFSET('B. PoF Adj Factor Scoring'!$E$5:$F$282,,MATCH(K$4,'B. PoF Adj Factor Scoring'!$E$3:$N$3,0)-1),2,TRUE) -> 1
A79: ='A. Population Info'!A79 -> 1000030003 | B79: ='A. Population Info'!G79 -> 0 | C79: ='A. Population Info'!H79 -> Other | D79: ='A. Population Info'!I79 -> 13.69779427 | E79: ='A. Population Info'!J79 -> 0 | F79: ='A. Population Info'!K79 -> 0 | G79: =VLOOKUP(B:B,OFFSET('B. PoF Adj Factor Scoring'!$E$5:$F$282,,MATCH(G$4,'B. PoF Adj Factor Scoring'!$E$3:$N$3,0)-1),2,TRUE) -> 1 | H79: =VLOOKUP(C:C,OFFSET('B. PoF Adj Factor Scoring'!$E$5:$F$282,,MATCH(H$4,'B. PoF Adj Factor Scoring'!$E$3:$N$3,0)-1),2,TRUE) -> 1 | I79: =VLOOKUP(D:D,OFFSET('B. PoF Adj Factor Scoring'!$E$5:$F$282,,MATCH(I$4,'B. PoF Adj Factor Scoring'!$E$3:$N$3,0)-1),2,TRUE) -> 2 | J79: =VLOOKUP(E:E,OFFSET('B. PoF Adj Factor Scoring'!$E$5:$F$282,,MATCH(J$4,'B. PoF Adj Factor Scoring'!$E$3:$N$3,0)-1),2,TRUE) -> 1 | K79: =VLOOKUP(F:F,OFFSET('B. PoF Adj Factor Scoring'!$E$5:$F$282,,MATCH(K$4,'B. PoF Adj Factor Scoring'!$E$3:$N$3,0)-1),2,TRUE) -> 1
A80: ='A. Population Info'!A80 -> 1000030059 | B80: ='A. Population Info'!G80 -> 0 | C80: ='A. Population Info'!H80 -> Essantee HS641 | D80: ='A. Population Info'!I80 -> 18.43259135 | E80: ='A. Population Info'!J80 -> 0 | F80: ='A. Population Info'!K80 -> 0 | G80: =VLOOKUP(B:B,OFFSET('B. PoF Adj Factor Scoring'!$E$5:$F$282,,MATCH(G$4,'B. PoF Adj Factor Scoring'!$E$3:$N$3,0)-1),2,TRUE) -> 1 | H80: =VLOOKUP(C:C,OFFSET('B. PoF Adj Factor Scoring'!$E$5:$F$282,,MATCH(H$4,'B. PoF Adj Factor Scoring'!$E$3:$N$3,0)-1),2,TRUE) -> 5 | I80: =VLOOKUP(D:D,OFFSET('B. PoF Adj Factor Scoring'!$E$5:$F$282,,MATCH(I$4,'B. PoF Adj Factor Scoring'!$E$3:$N$3,0)-1),2,TRUE) -> 2 | J80: =VLOOKUP(E:E,OFFSET('B. PoF Adj Factor Scoring'!$E$5:$F$282,,MATCH(J$4,'B. PoF Adj Factor Scoring'!$E$3:$N$3,0)-1),2,TRUE) -> 1 | K80: =VLOOKUP(F:F,OFFSET('B. PoF Adj Factor Scoring'!$E$5:$F$282,,MATCH(K$4,'B. PoF Adj Factor Scoring'!$E$3:$N$3,0)-1),2,TRUE) -> 1
A81: ='A. Population Info'!A81 -> 1000030067 | B81: ='A. Population Info'!G81 -> 0 | C81: ='A. Population Info'!H81 -> Other | D81: ='A. Population Info'!I81 -> 20 | E81: ='A. Population Info'!J81 -> 0 | F81: ='A. Population Info'!K81 -> 0 | G81: =VLOOKUP(B:B,OFFSET('B. PoF Adj Factor Scoring'!$E$5:$F$282,,MATCH(G$4,'B. PoF Adj Factor Scoring'!$E$3:$N$3,0)-1),2,TRUE) -> 1 | H81: =VLOOKUP(C:C,OFFSET('B. PoF Adj Factor Scoring'!$E$5:$F$282,,MATCH(H$4,'B. PoF Adj Factor Scoring'!$E$3:$N$3,0)-1),2,TRUE) -> 1 | I81: =VLOOKUP(D:D,OFFSET('B. PoF Adj Factor Scoring'!$E$5:$F$282,,MATCH(I$4,'B. PoF Adj Factor Scoring'!$E$3:$N$3,0)-1),2,TRUE) -> 2 | J81: =VLOOKUP(E:E,OFFSET('B. PoF Adj Factor Scoring'!$E$5:$F$282,,MATCH(J$4,'B. PoF Adj Factor Scoring'!$E$3:$N$3,0)-1),2,TRUE) -> 1 | K81: =VLOOKUP(F:F,OFFSET('B. PoF Adj Factor Scoring'!$E$5:$F$282,,MATCH(K$4,'B. PoF Adj Factor Scoring'!$E$3:$N$3,0)-1),2,TRUE) -> 1
A82: ='A. Population Info'!A82 -> 1000030077 | B82: ='A. Population Info'!G82 -> 0 | C82: ='A. Population Info'!H82 -> Other | D82: ='A. Population Info'!I82 -> 20 | E82: ='A. Population Info'!J82 -> 0 | F82: ='A. Population Info'!K82 -> 0 | G82: =VLOOKUP(B:B,OFFSET('B. PoF Adj Factor Scoring'!$E$5:$F$282,,MATCH(G$4,'B. PoF Adj Factor Scoring'!$E$3:$N$3,0)-1),2,TRUE) -> 1 | H82: =VLOOKUP(C:C,OFFSET('B. PoF Adj Factor Scoring'!$E$5:$F$282,,MATCH(H$4,'B. PoF Adj Factor Scoring'!$E$3:$N$3,0)-1),2,TRUE) -> 1 | I82: =VLOOKUP(D:D,OFFSET('B. PoF Adj Factor Scoring'!$E$5:$F$282,,MATCH(I$4,'B. PoF Adj Factor Scoring'!$E$3:$N$3,0)-1),2,TRUE) -> 2 | J82: =VLOOKUP(E:E,OFFSET('B. PoF Adj Factor Scoring'!$E$5:$F$282,,MATCH(J$4,'B. PoF Adj Factor Scoring'!$E$3:$N$3,0)-1),2,TRUE) -> 1 | K82: =VLOOKUP(F:F,OFFSET('B. PoF Adj Factor Scoring'!$E$5:$F$282,,MATCH(K$4,'B. PoF Adj Factor Scoring'!$E$3:$N$3,0)-1),2,TRUE) -> 1
A83: ='A. Population Info'!A83 -> 1000030121 | B83: ='A. Population Info'!G83 -> 0 | C83: ='A. Population Info'!H83 -> Haycolec (pin insulators) | D83: ='A. Population Info'!I83 -> 16.90341755 | E83: ='A. Population Info'!J83 -> 0 | F83: ='A. Population Info'!K83 -> 0 | G83: =VLOOKUP(B:B,OFFSET('B. PoF Adj Factor Scoring'!$E$5:$F$282,,MATCH(G$4,'B. PoF Adj Factor Scoring'!$E$3:$N$3,0)-1),2,TRUE) -> 1 | H83: =VLOOKUP(C:C,OFFSET('B. PoF Adj Factor Scoring'!$E$5:$F$282,,MATCH(H$4,'B. PoF Adj Factor Scoring'!$E$3:$N$3,0)-1),2,TRUE) -> 2 | I83: =VLOOKUP(D:D,OFFSET('B. PoF Adj Factor Scoring'!$E$5:$F$282,,MATCH(I$4,'B. PoF Adj Factor Scoring'!$E$3:$N$3,0)-1),2,TRUE) -> 2 | J83: =VLOOKUP(E:E,OFFSET('B. PoF Adj Factor Scoring'!$E$5:$F$282,,MATCH(J$4,'B. PoF Adj Factor Scoring'!$E$3:$N$3,0)-1),2,TRUE) -> 1 | K83: =VLOOKUP(F:F,OFFSET('B. PoF Adj Factor Scoring'!$E$5:$F$282,,MATCH(K$4,'B. PoF Adj Factor Scoring'!$E$3:$N$3,0)-1),2,TRUE) -> 1
A84: ='A. Population Info'!A84 -> 1000030136 | B84: ='A. Population Info'!G84 -> 0 | C84: ='A. Population Info'!H84 -> Other | D84: ='A. Population Info'!I84 -> 31.33944716 | E84: ='A. Population Info'!J84 -> 0 | F84: ='A. Population Info'!K84 -> 0 | G84: =VLOOKUP(B:B,OFFSET('B. PoF Adj Factor Scoring'!$E$5:$F$282,,MATCH(G$4,'B. PoF Adj Factor Scoring'!$E$3:$N$3,0)-1),2,TRUE) -> 1 | H84: =VLOOKUP(C:C,OFFSET('B. PoF Adj Factor Scoring'!$E$5:$F$282,,MATCH(H$4,'B. PoF Adj Factor Scoring'!$E$3:$N$3,0)-1),2,TRUE) -> 1 | I84: =VLOOKUP(D:D,OFFSET('B. PoF Adj Factor Scoring'!$E$5:$F$282,,MATCH(I$4,'B. PoF Adj Factor Scoring'!$E$3:$N$3,0)-1),2,TRUE) -> 2 | J84: =VLOOKUP(E:E,OFFSET('B. PoF Adj Factor Scoring'!$E$5:$F$282,,MATCH(J$4,'B. PoF Adj Factor Scoring'!$E$3:$N$3,0)-1),2,TRUE) -> 1 | K84: =VLOOKUP(F:F,OFFSET('B. PoF Adj Factor Scoring'!$E$5:$F$282,,MATCH(K$4,'B. PoF Adj Factor Scoring'!$E$3:$N$3,0)-1),2,TRUE) -> 1
A85: ='A. Population Info'!A85 -> 1000030144 | B85: ='A. Population Info'!G85 -> 0 | C85: ='A. Population Info'!H85 -> Haycolec (pin insulators) | D85: ='A. Population Info'!I85 -> 12.04322288 | E85: ='A. Population Info'!J85 -> 0 | F85: ='A. Population Info'!K85 -> 0 | G85: =VLOOKUP(B:B,OFFSET('B. PoF Adj Factor Scoring'!$E$5:$F$282,,MATCH(G$4,'B. PoF Adj Factor Scoring'!$E$3:$N$3,0)-1),2,TRUE) -> 1 | H85: =VLOOKUP(C:C,OFFSET('B. PoF Adj Factor Scoring'!$E$5:$F$282,,MATCH(H$4,'B. PoF Adj Factor Scoring'!$E$3:$N$3,0)-1),2,TRUE) -> 2 | I85: =VLOOKUP(D:D,OFFSET('B. PoF Adj Factor Scoring'!$E$5:$F$282,,MATCH(I$4,'B. PoF Adj Factor Scoring'!$E$3:$N$3,0)-1),2,TRUE) -> 2 | J85: =VLOOKUP(E:E,OFFSET('B. PoF Adj Factor Scoring'!$E$5:$F$282,,MATCH(J$4,'B. PoF Adj Factor Scoring'!$E$3:$N$3,0)-1),2,TRUE) -> 1 | K85: =VLOOKUP(F:F,OFFSET('B. PoF Adj Factor Scoring'!$E$5:$F$282,,MATCH(K$4,'B. PoF Adj Factor Scoring'!$E$3:$N$3,0)-1),2,TRUE) -> 1
A86: ='A. Population Info'!A86 -> 1000030168 | B86: ='A. Population Info'!G86 -> 0 | C86: ='A. Population Info'!H86 -> Taplin D571 | D86: ='A. Population Info'!I86 -> 16.76649179 | E86: ='A. Population Info'!J86 -> 0 | F86: ='A. Population Info'!K86 -> 0 | G86: =VLOOKUP(B:B,OFFSET('B. PoF Adj Factor Scoring'!$E$5:$F$282,,MATCH(G$4,'B. PoF Adj Factor Scoring'!$E$3:$N$3,0)-1),2,TRUE) -> 1 | H86: =VLOOKUP(C:C,OFFSET('B. PoF Adj Factor Scoring'!$E$5:$F$282,,MATCH(H$4,'B. PoF Adj Factor Scoring'!$E$3:$N$3,0)-1),2,TRUE) -> 4 | I86: =VLOOKUP(D:D,OFFSET('B. PoF Adj Factor Scoring'!$E$5:$F$282,,MATCH(I$4,'B. PoF Adj Factor Scoring'!$E$3:$N$3,0)-1),2,TRUE) -> 2 | J86: =VLOOKUP(E:E,OFFSET('B. PoF Adj Factor Scoring'!$E$5:$F$282,,MATCH(J$4,'B. PoF Adj Factor Scoring'!$E$3:$N$3,0)-1),2,TRUE) -> 1 | K86: =VLOOKUP(F:F,OFFSET('B. PoF Adj Factor Scoring'!$E$5:$F$282,,MATCH(K$4,'B. PoF Adj Factor Scoring'!$E$3:$N$3,0)-1),2,TRUE) -> 1
A87: ='A. Population Info'!A87 -> 1000030187 | B87: ='A. Population Info'!G87 -> 0 | C87: ='A. Population Info'!H87 -> Other | D87: ='A. Population Info'!I87 -> 20 | E87: ='A. Population Info'!J87 -> 0 | F87: ='A. Population Info'!K87 -> 0 | G87: =VLOOKUP(B:B,OFFSET('B. PoF Adj Factor Scoring'!$E$5:$F$282,,MATCH(G$4,'B. PoF Adj Factor Scoring'!$E$3:$N$3,0)-1),2,TRUE) -> 1 | H87: =VLOOKUP(C:C,OFFSET('B. PoF Adj Factor Scoring'!$E$5:$F$282,,MATCH(H$4,'B. PoF Adj Factor Scoring'!$E$3:$N$3,0)-1),2,TRUE) -> 1 | I87: =VLOOKUP(D:D,OFFSET('B. PoF Adj Factor Scoring'!$E$5:$F$282,,MATCH(I$4,'B. PoF Adj Factor Scoring'!$E$3:$N$3,0)-1),2,TRUE) -> 2 | J87: =VLOOKUP(E:E,OFFSET('B. PoF Adj Factor Scoring'!$E$5:$F$282,,MATCH(J$4,'B. PoF Adj Factor Scoring'!$E$3:$N$3,0)-1),2,TRUE) -> 1 | K87: =VLOOKUP(F:F,OFFSET('B. PoF Adj Factor Scoring'!$E$5:$F$282,,MATCH(K$4,'B. PoF Adj Factor Scoring'!$E$3:$N$3,0)-1),2,TRUE) -> 1
A88: ='A. Population Info'!A88 -> 1000030212 | B88: ='A. Population Info'!G88 -> 0 | C88: ='A. Population Info'!H88 -> Haycolec (pin insulators) | D88: ='A. Population Info'!I88 -> 19.7333587 | E88: ='A. Population Info'!J88 -> 0 | F88: ='A. Population Info'!K88 -> 0 | G88: =VLOOKUP(B:B,OFFSET('B. PoF Adj Factor Scoring'!$E$5:$F$282,,MATCH(G$4,'B. PoF Adj Factor Scoring'!$E$3:$N$3,0)-1),2,TRUE) -> 1 | H88: =VLOOKUP(C:C,OFFSET('B. PoF Adj Factor Scoring'!$E$5:$F$282,,MATCH(H$4,'B. PoF Adj Factor Scoring'!$E$3:$N$3,0)-1),2,TRUE) -> 2 | I88: =VLOOKUP(D:D,OFFSET('B. PoF Adj Factor Scoring'!$E$5:$F$282,,MATCH(I$4,'B. PoF Adj Factor Scoring'!$E$3:$N$3,0)-1),2,TRUE) -> 2 | J88: =VLOOKUP(E:E,OFFSET('B. PoF Adj Factor Scoring'!$E$5:$F$282,,MATCH(J$4,'B. PoF Adj Factor Scoring'!$E$3:$N$3,0)-1),2,TRUE) -> 1 | K88: =VLOOKUP(F:F,OFFSET('B. PoF Adj Factor Scoring'!$E$5:$F$282,,MATCH(K$4,'B. PoF Adj Factor Scoring'!$E$3:$N$3,0)-1),2,TRUE) -> 1
A89: ='A. Population Info'!A89 -> 1000030277 | B89: ='A. Population Info'!G89 -> 0 | C89: ='A. Population Info'!H89 -> Other | D89: ='A. Population Info'!I89 -> 16.78587158 | E89: ='A. Population Info'!J89 -> 0 | F89: ='A. Population Info'!K89 -> 0 | G89: =VLOOKUP(B:B,OFFSET('B. PoF Adj Factor Scoring'!$E$5:$F$282,,MATCH(G$4,'B. PoF Adj Factor Scoring'!$E$3:$N$3,0)-1),2,TRUE) -> 1 | H89: =VLOOKUP(C:C,OFFSET('B. PoF Adj Factor Scoring'!$E$5:$F$282,,MATCH(H$4,'B. PoF Adj Factor Scoring'!$E$3:$N$3,0)-1),2,TRUE) -> 1 | I89: =VLOOKUP(D:D,OFFSET('B. PoF Adj Factor Scoring'!$E$5:$F$282,,MATCH(I$4,'B. PoF Adj Factor Scoring'!$E$3:$N$3,0)-1),2,TRUE) -> 2 | J89: =VLOOKUP(E:E,OFFSET('B. PoF Adj Factor Scoring'!$E$5:$F$282,,MATCH(J$4,'B. PoF Adj Factor Scoring'!$E$3:$N$3,0)-1),2,TRUE) -> 1 | K89: =VLOOKUP(F:F,OFFSET('B. PoF Adj Factor Scoring'!$E$5:$F$282,,MATCH(K$4,'B. PoF Adj Factor Scoring'!$E$3:$N$3,0)-1),2,TRUE) -> 1
A90: ='A. Population Info'!A90 -> 1000030309 | B90: ='A. Population Info'!G90 -> 0 | C90: ='A. Population Info'!H90 -> Other | D90: ='A. Population Info'!I90 -> 16.68287168 | E90: ='A. Population Info'!J90 -> 0 | F90: ='A. Population Info'!K90 -> 0 | G90: =VLOOKUP(B:B,OFFSET('B. PoF Adj Factor Scoring'!$E$5:$F$282,,MATCH(G$4,'B. PoF Adj Factor Scoring'!$E$3:$N$3,0)-1),2,TRUE) -> 1 | H90: =VLOOKUP(C:C,OFFSET('B. PoF Adj Factor Scoring'!$E$5:$F$282,,MATCH(H$4,'B. PoF Adj Factor Scoring'!$E$3:$N$3,0)-1),2,TRUE) -> 1 | I90: =VLOOKUP(D:D,OFFSET('B. PoF Adj Factor Scoring'!$E$5:$F$282,,MATCH(I$4,'B. PoF Adj Factor Scoring'!$E$3:$N$3,0)-1),2,TRUE) -> 2 | J90: =VLOOKUP(E:E,OFFSET('B. PoF Adj Factor Scoring'!$E$5:$F$282,,MATCH(J$4,'B. PoF Adj Factor Scoring'!$E$3:$N$3,0)-1),2,TRUE) -> 1 | K90: =VLOOKUP(F:F,OFFSET('B. PoF Adj Factor Scoring'!$E$5:$F$282,,MATCH(K$4,'B. PoF Adj Factor Scoring'!$E$3:$N$3,0)-1),2,TRUE) -> 1
A91: ='A. Population Info'!A91 -> 1000030330 | B91: ='A. Population Info'!G91 -> 0 | C91: ='A. Population Info'!H91 -> Other | D91: ='A. Population Info'!I91 -> 17.85320948 | E91: ='A. Population Info'!J91 -> 0 | F91: ='A. Population Info'!K91 -> 0 | G91: =VLOOKUP(B:B,OFFSET('B. PoF Adj Factor Scoring'!$E$5:$F$282,,MATCH(G$4,'B. PoF Adj Factor Scoring'!$E$3:$N$3,0)-1),2,TRUE) -> 1 | H91: =VLOOKUP(C:C,OFFSET('B. PoF Adj Factor Scoring'!$E$5:$F$282,,MATCH(H$4,'B. PoF Adj Factor Scoring'!$E$3:$N$3,0)-1),2,TRUE) -> 1 | I91: =VLOOKUP(D:D,OFFSET('B. PoF Adj Factor Scoring'!$E$5:$F$282,,MATCH(I$4,'B. PoF Adj Factor Scoring'!$E$3:$N$3,0)-1),2,TRUE) -> 2 | J91: =VLOOKUP(E:E,OFFSET('B. PoF Adj Factor Scoring'!$E$5:$F$282,,MATCH(J$4,'B. PoF Adj Factor Scoring'!$E$3:$N$3,0)-1),2,TRUE) -> 1 | K91: =VLOOKUP(F:F,OFFSET('B. PoF Adj Factor Scoring'!$E$5:$F$282,,MATCH(K$4,'B. PoF Adj Factor Scoring'!$E$3:$N$3,0)-1),2,TRUE) -> 1
A92: ='A. Population Info'!A92 -> 1000030350 | B92: ='A. Population Info'!G92 -> 0 | C92: ='A. Population Info'!H92 -> Other | D92: ='A. Population Info'!I92 -> 15.6957646 | E92: ='A. Population Info'!J92 -> 0 | F92: ='A. Population Info'!K92 -> 0 | G92: =VLOOKUP(B:B,OFFSET('B. PoF Adj Factor Scoring'!$E$5:$F$282,,MATCH(G$4,'B. PoF Adj Factor Scoring'!$E$3:$N$3,0)-1),2,TRUE) -> 1 | H92: =VLOOKUP(C:C,OFFSET('B. PoF Adj Factor Scoring'!$E$5:$F$282,,MATCH(H$4,'B. PoF Adj Factor Scoring'!$E$3:$N$3,0)-1),2,TRUE) -> 1 | I92: =VLOOKUP(D:D,OFFSET('B. PoF Adj Factor Scoring'!$E$5:$F$282,,MATCH(I$4,'B. PoF Adj Factor Scoring'!$E$3:$N$3,0)-1),2,TRUE) -> 2 | J92: =VLOOKUP(E:E,OFFSET('B. PoF Adj Factor Scoring'!$E$5:$F$282,,MATCH(J$4,'B. PoF Adj Factor Scoring'!$E$3:$N$3,0)-1),2,TRUE) -> 1 | K92: =VLOOKUP(F:F,OFFSET('B. PoF Adj Factor Scoring'!$E$5:$F$282,,MATCH(K$4,'B. PoF Adj Factor Scoring'!$E$3:$N$3,0)-1),2,TRUE) -> 1
A93: ='A. Population Info'!A93 -> 1000030372 | B93: ='A. Population Info'!G93 -> 0 | C93: ='A. Population Info'!H93 -> Other | D93: ='A. Population Info'!I93 -> 20 | E93: ='A. Population Info'!J93 -> 0 | F93: ='A. Population Info'!K93 -> 0 | G93: =VLOOKUP(B:B,OFFSET('B. PoF Adj Factor Scoring'!$E$5:$F$282,,MATCH(G$4,'B. PoF Adj Factor Scoring'!$E$3:$N$3,0)-1),2,TRUE) -> 1 | H93: =VLOOKUP(C:C,OFFSET('B. PoF Adj Factor Scoring'!$E$5:$F$282,,MATCH(H$4,'B. PoF Adj Factor Scoring'!$E$3:$N$3,0)-1),2,TRUE) -> 1 | I93: =VLOOKUP(D:D,OFFSET('B. PoF Adj Factor Scoring'!$E$5:$F$282,,MATCH(I$4,'B. PoF Adj Factor Scoring'!$E$3:$N$3,0)-1),2,TRUE) -> 2 | J93: =VLOOKUP(E:E,OFFSET('B. PoF Adj Factor Scoring'!$E$5:$F$282,,MATCH(J$4,'B. PoF Adj Factor Scoring'!$E$3:$N$3,0)-1),2,TRUE) -> 1 | K93: =VLOOKUP(F:F,OFFSET('B. PoF Adj Factor Scoring'!$E$5:$F$282,,MATCH(K$4,'B. PoF Adj Factor Scoring'!$E$3:$N$3,0)-1),2,TRUE) -> 1
A94: ='A. Population Info'!A94 -> 1000030373 | B94: ='A. Population Info'!G94 -> 0 | C94: ='A. Population Info'!H94 -> Haycolec (pin insulators) | D94: ='A. Population Info'!I94 -> 18.25102508 | E94: ='A. Population Info'!J94 -> 0 | F94: ='A. Population Info'!K94 -> 0 | G94: =VLOOKUP(B:B,OFFSET('B. PoF Adj Factor Scoring'!$E$5:$F$282,,MATCH(G$4,'B. PoF Adj Factor Scoring'!$E$3:$N$3,0)-1),2,TRUE) -> 1 | H94: =VLOOKUP(C:C,OFFSET('B. PoF Adj Factor Scoring'!$E$5:$F$282,,MATCH(H$4,'B. PoF Adj Factor Scoring'!$E$3:$N$3,0)-1),2,TRUE) -> 2 | I94: =VLOOKUP(D:D,OFFSET('B. PoF Adj Factor Scoring'!$E$5:$F$282,,MATCH(I$4,'B. PoF Adj Factor Scoring'!$E$3:$N$3,0)-1),2,TRUE) -> 2 | J94: =VLOOKUP(E:E,OFFSET('B. PoF Adj Factor Scoring'!$E$5:$F$282,,MATCH(J$4,'B. PoF Adj Factor Scoring'!$E$3:$N$3,0)-1),2,TRUE) -> 1 | K94: =VLOOKUP(F:F,OFFSET('B. PoF Adj Factor Scoring'!$E$5:$F$282,,MATCH(K$4,'B. PoF Adj Factor Scoring'!$E$3:$N$3,0)-1),2,TRUE) -> 1
A95: ='A. Population Info'!A95 -> 1000030417 | B95: ='A. Population Info'!G95 -> 0 | C95: ='A. Population Info'!H95 -> Other | D95: ='A. Population Info'!I95 -> 18.44991646 | E95: ='A. Population Info'!J95 -> 0 | F95: ='A. Population Info'!K95 -> 0 | G95: =VLOOKUP(B:B,OFFSET('B. PoF Adj Factor Scoring'!$E$5:$F$282,,MATCH(G$4,'B. PoF Adj Factor Scoring'!$E$3:$N$3,0)-1),2,TRUE) -> 1 | H95: =VLOOKUP(C:C,OFFSET('B. PoF Adj Factor Scoring'!$E$5:$F$282,,MATCH(H$4,'B. PoF Adj Factor Scoring'!$E$3:$N$3,0)-1),2,TRUE) -> 1 | I95: =VLOOKUP(D:D,OFFSET('B. PoF Adj Factor Scoring'!$E$5:$F$282,,MATCH(I$4,'B. PoF Adj Factor Scoring'!$E$3:$N$3,0)-1),2,TRUE) -> 2 | J95: =VLOOKUP(E:E,OFFSET('B. PoF Adj Factor Scoring'!$E$5:$F$282,,MATCH(J$4,'B. PoF Adj Factor Scoring'!$E$3:$N$3,0)-1),2,TRUE) -> 1 | K95: =VLOOKUP(F:F,OFFSET('B. PoF Adj Factor Scoring'!$E$5:$F$282,,MATCH(K$4,'B. PoF Adj Factor Scoring'!$E$3:$N$3,0)-1),2,TRUE) -> 1
A96: ='A. Population Info'!A96 -> 1000030439 | B96: ='A. Population Info'!G96 -> 0 | C96: ='A. Population Info'!H96 -> Other | D96: ='A. Population Info'!I96 -> 6.905877148 | E96: ='A. Population Info'!J96 -> 0 | F96: ='A. Population Info'!K96 -> 0 | G96: =VLOOKUP(B:B,OFFSET('B. PoF Adj Factor Scoring'!$E$5:$F$282,,MATCH(G$4,'B. PoF Adj Factor Scoring'!$E$3:$N$3,0)-1),2,TRUE) -> 1 | H96: =VLOOKUP(C:C,OFFSET('B. PoF Adj Factor Scoring'!$E$5:$F$282,,MATCH(H$4,'B. PoF Adj Factor Scoring'!$E$3:$N$3,0)-1),2,TRUE) -> 1 | I96: =VLOOKUP(D:D,OFFSET('B. PoF Adj Factor Scoring'!$E$5:$F$282,,MATCH(I$4,'B. PoF Adj Factor Scoring'!$E$3:$N$3,0)-1),2,TRUE) -> 3 | J96: =VLOOKUP(E:E,OFFSET('B. PoF Adj Factor Scoring'!$E$5:$F$282,,MATCH(J$4,'B. PoF Adj Factor Scoring'!$E$3:$N$3,0)-1),2,TRUE) -> 1 | K96: =VLOOKUP(F:F,OFFSET('B. PoF Adj Factor Scoring'!$E$5:$F$282,,MATCH(K$4,'B. PoF Adj Factor Scoring'!$E$3:$N$3,0)-1),2,TRUE) -> 1
A97: ='A. Population Info'!A97 -> 1000030449 | B97: ='A. Population Info'!G97 -> 0 | C97: ='A. Population Info'!H97 -> Taplin D571 | D97: ='A. Population Info'!I97 -> 20 | E97: ='A. Population Info'!J97 -> 0 | F97: ='A. Population Info'!K97 -> 0 | G97: =VLOOKUP(B:B,OFFSET('B. PoF Adj Factor Scoring'!$E$5:$F$282,,MATCH(G$4,'B. PoF Adj Factor Scoring'!$E$3:$N$3,0)-1),2,TRUE) -> 1 | H97: =VLOOKUP(C:C,OFFSET('B. PoF Adj Factor Scoring'!$E$5:$F$282,,MATCH(H$4,'B. PoF Adj Factor Scoring'!$E$3:$N$3,0)-1),2,TRUE) -> 4 | I97: =VLOOKUP(D:D,OFFSET('B. PoF Adj Factor Scoring'!$E$5:$F$282,,MATCH(I$4,'B. PoF Adj Factor Scoring'!$E$3:$N$3,0)-1),2,TRUE) -> 2 | J97: =VLOOKUP(E:E,OFFSET('B. PoF Adj Factor Scoring'!$E$5:$F$282,,MATCH(J$4,'B. PoF Adj Factor Scoring'!$E$3:$N$3,0)-1),2,TRUE) -> 1 | K97: =VLOOKUP(F:F,OFFSET('B. PoF Adj Factor Scoring'!$E$5:$F$282,,MATCH(K$4,'B. PoF Adj Factor Scoring'!$E$3:$N$3,0)-1),2,TRUE) -> 1
A98: ='A. Population Info'!A98 -> 1000030491 | B98: ='A. Population Info'!G98 -> 0 | C98: ='A. Population Info'!H98 -> Other | D98: ='A. Population Info'!I98 -> 20 | E98: ='A. Population Info'!J98 -> 0 | F98: ='A. Population Info'!K98 -> 0 | G98: =VLOOKUP(B:B,OFFSET('B. PoF Adj Factor Scoring'!$E$5:$F$282,,MATCH(G$4,'B. PoF Adj Factor Scoring'!$E$3:$N$3,0)-1),2,TRUE) -> 1 | H98: =VLOOKUP(C:C,OFFSET('B. PoF Adj Factor Scoring'!$E$5:$F$282,,MATCH(H$4,'B. PoF Adj Factor Scoring'!$E$3:$N$3,0)-1),2,TRUE) -> 1 | I98: =VLOOKUP(D:D,OFFSET('B. PoF Adj Factor Scoring'!$E$5:$F$282,,MATCH(I$4,'B. PoF Adj Factor Scoring'!$E$3:$N$3,0)-1),2,TRUE) -> 2 | J98: =VLOOKUP(E:E,OFFSET('B. PoF Adj Factor Scoring'!$E$5:$F$282,,MATCH(J$4,'B. PoF Adj Factor Scoring'!$E$3:$N$3,0)-1),2,TRUE) -> 1 | K98: =VLOOKUP(F:F,OFFSET('B. PoF Adj Factor Scoring'!$E$5:$F$282,,MATCH(K$4,'B. PoF Adj Factor Scoring'!$E$3:$N$3,0)-1),2,TRUE) -> 1
A99: ='A. Population Info'!A99 -> 1000030502 | B99: ='A. Population Info'!G99 -> 0 | C99: ='A. Population Info'!H99 -> Other | D99: ='A. Population Info'!I99 -> 24.11533402 | E99: ='A. Population Info'!J99 -> 0 | F99: ='A. Population Info'!K99 -> 0 | G99: =VLOOKUP(B:B,OFFSET('B. PoF Adj Factor Scoring'!$E$5:$F$282,,MATCH(G$4,'B. PoF Adj Factor Scoring'!$E$3:$N$3,0)-1),2,TRUE) -> 1 | H99: =VLOOKUP(C:C,OFFSET('B. PoF Adj Factor Scoring'!$E$5:$F$282,,MATCH(H$4,'B. PoF Adj Factor Scoring'!$E$3:$N$3,0)-1),2,TRUE) -> 1 | I99: =VLOOKUP(D:D,OFFSET('B. PoF Adj Factor Scoring'!$E$5:$F$282,,MATCH(I$4,'B. PoF Adj Factor Scoring'!$E$3:$N$3,0)-1),2,TRUE) -> 2 | J99: =VLOOKUP(E:E,OFFSET('B. PoF Adj Factor Scoring'!$E$5:$F$282,,MATCH(J$4,'B. PoF Adj Factor Scoring'!$E$3:$N$3,0)-1),2,TRUE) -> 1 | K99: =VLOOKUP(F:F,OFFSET('B. PoF Adj Factor Scoring'!$E$5:$F$282,,MATCH(K$4,'B. PoF Adj Factor Scoring'!$E$3:$N$3,0)-1),2,TRUE) -> 1
A100: ='A. Population Info'!A100 -> 1000030549 | B100: ='A. Population Info'!G100 -> 0 | C100: ='A. Population Info'!H100 -> Other | D100: ='A. Population Info'!I100 -> 20 | E100: ='A. Population Info'!J100 -> 0 | F100: ='A. Population Info'!K100 -> 0 | G100: =VLOOKUP(B:B,OFFSET('B. PoF Adj Factor Scoring'!$E$5:$F$282,,MATCH(G$4,'B. PoF Adj Factor Scoring'!$E$3:$N$3,0)-1),2,TRUE) -> 1 | H100: =VLOOKUP(C:C,OFFSET('B. PoF Adj Factor Scoring'!$E$5:$F$282,,MATCH(H$4,'B. PoF Adj Factor Scoring'!$E$3:$N$3,0)-1),2,TRUE) -> 1 | I100: =VLOOKUP(D:D,OFFSET('B. PoF Adj Factor Scoring'!$E$5:$F$282,,MATCH(I$4,'B. PoF Adj Factor Scoring'!$E$3:$N$3,0)-1),2,TRUE) -> 2 | J100: =VLOOKUP(E:E,OFFSET('B. PoF Adj Factor Scoring'!$E$5:$F$282,,MATCH(J$4,'B. PoF Adj Factor Scoring'!$E$3:$N$3,0)-1),2,TRUE) -> 1 | K100: =VLOOKUP(F:F,OFFSET('B. PoF Adj Factor Scoring'!$E$5:$F$282,,MATCH(K$4,'B. PoF Adj Factor Scoring'!$E$3:$N$3,0)-1),2,TRUE) -> 1
A101: ='A. Population Info'!A101 -> 1000030558 | B101: ='A. Population Info'!G101 -> 0 | C101: ='A. Population Info'!H101 -> Haycolec (pin insulators) | D101: ='A. Population Info'!I101 -> 14.19660908 | E101: ='A. Population Info'!J101 -> 0 | F101: ='A. Population Info'!K101 -> 0 | G101: =VLOOKUP(B:B,OFFSET('B. PoF Adj Factor Scoring'!$E$5:$F$282,,MATCH(G$4,'B. PoF Adj Factor Scoring'!$E$3:$N$3,0)-1),2,TRUE) -> 1 | H101: =VLOOKUP(C:C,OFFSET('B. PoF Adj Factor Scoring'!$E$5:$F$282,,MATCH(H$4,'B. PoF Adj Factor Scoring'!$E$3:$N$3,0)-1),2,TRUE) -> 2 | I101: =VLOOKUP(D:D,OFFSET('B. PoF Adj Factor Scoring'!$E$5:$F$282,,MATCH(I$4,'B. PoF Adj Factor Scoring'!$E$3:$N$3,0)-1),2,TRUE) -> 2 | J101: =VLOOKUP(E:E,OFFSET('B. PoF Adj Factor Scoring'!$E$5:$F$282,,MATCH(J$4,'B. PoF Adj Factor Scoring'!$E$3:$N$3,0)-1),2,TRUE) -> 1 | K101: =VLOOKUP(F:F,OFFSET('B. PoF Adj Factor Scoring'!$E$5:$F$282,,MATCH(K$4,'B. PoF Adj Factor Scoring'!$E$3:$N$3,0)-1),2,TRUE) -> 1
A102: ='A. Population Info'!A102 -> 1000030580 | B102: ='A. Population Info'!G102 -> 0 | C102: ='A. Population Info'!H102 -> Other | D102: ='A. Population Info'!I102 -> 22.06882967 | E102: ='A. Population Info'!J102 -> 0 | F102: ='A. Population Info'!K102 -> 0 | G102: =VLOOKUP(B:B,OFFSET('B. PoF Adj Factor Scoring'!$E$5:$F$282,,MATCH(G$4,'B. PoF Adj Factor Scoring'!$E$3:$N$3,0)-1),2,TRUE) -> 1 | H102: =VLOOKUP(C:C,OFFSET('B. PoF Adj Factor Scoring'!$E$5:$F$282,,MATCH(H$4,'B. PoF Adj Factor Scoring'!$E$3:$N$3,0)-1),2,TRUE) -> 1 | I102: =VLOOKUP(D:D,OFFSET('B. PoF Adj Factor Scoring'!$E$5:$F$282,,MATCH(I$4,'B. PoF Adj Factor Scoring'!$E$3:$N$3,0)-1),2,TRUE) -> 2 | J102: =VLOOKUP(E:E,OFFSET('B. PoF Adj Factor Scoring'!$E$5:$F$282,,MATCH(J$4,'B. PoF Adj Factor Scoring'!$E$3:$N$3,0)-1),2,TRUE) -> 1 | K102: =VLOOKUP(F:F,OFFSET('B. PoF Adj Factor Scoring'!$E$5:$F$282,,MATCH(K$4,'B. PoF Adj Factor Scoring'!$E$3:$N$3,0)-1),2,TRUE) -> 1
